Workbook

Sheet SUMMARY
C3: SUMMARY / REKAPITULACIJA
C6: SUM PRICE without VAT / UKUPNA CENA bez PDVa
B7: UKUPNO/ TOTAL | C7: =CENA!I258 -> 0
B11: Napomena I: | C11: štampati samo sheetove (SUMMARY, CENA)
B12: Napomena II: | C12: Na zahtev Naručioca, najkasnije 10 dana nakon zaključenja ugovora, Dobavljač je dužan da dostavi kompletno popunjenu Vendors listu u skladu sa zahtevima datim u delu C tenderskog dosijea, dokument: PROJEKTNI ZADATAK ZA GRAĐEVINSKI MATERIJAL.
C13: unositi cene samo u zeleno obeležen sheet u zelena polja (CENA) samo za pozicije za koje je zbir količina po materijalima različit od 0 (odnosno samo za pozicije za koje postoji količina) od G5 - G266 (jedinične cene)
C14: popuniti zelena polja u VendorsList
B16: Remark I: | C16: print only green sheet (SUMMARY, CENA)
B17: Remark II: | C17: At the request of the Contracting Authority, at the latest 10 days after the conclusion of the contract, the Supplier is obliged to submit the fully completed Vendors list in accordance with the requirements given in part C of the tender dossier, document: TERMS OF REFERNCES FOR THE CONSTRUCTION MATERIAL.
C18: The prices entered only in the green marked sheet in green cells (CENA) only for items for which the sum of the quantity of materials is different than 0 (only for items that have quantity) G5 - G266 (unit price)

Sheet CENA
A2: KOD/ CODE | D2: Opis građevinskog materijala | E2: Description of building materials | F2: Jed. prod./ UNIT | G2: Jedinična prod.cena/ UNIT PRICE | H2: Zbir Količina po materijalima/ SUM QTY | I2: ZBIR UKUPNO PO MATERIJALIMA/ SUM PRICE
A4: 1 | B4: A | D4: OSNOVNI GRAĐEVINSKI MATERIJAL | E4: BASIC BUILDING MATERIALS
A5: 1.1 | B5: O | C5: 1 | D5: Cement za betone do MB 30 | E5: Cement for concrete up to 30 MB | F5: kg | H5: =KORISNICI!H14 -> 103700 | I5: =G5*H5 -> 0
A6: 1.2 | B6: O | C6: 2 | D6: Hidratisani gašeni kreč pripremljen u prahu | E6: Hydrated slaked lime powdered | F6: kg | H6: =KORISNICI!H15 -> 4100 | I6: =G6*H6 -> 0
A7: 1.3 | B7: O | C7: 3 | D7: Rebrasto betonsko gvožđe (RA) | E7: Ribbed reinforcement steel | F7: / | H7: / | I7: /
A8: 1.3.1 | C8: A | D8: 10 mm - dužine 12m | E8: 10 mm - length 12m | F8: kg | H8: =KORISNICI!H17 -> 1161 | I8: =G8*H8 -> 0
A9: 1.3.2 | C9: B | D9: 12 mm - dužine 12m | E9: 12 mm - length 12m | F9: kg | H9: =KORISNICI!H18 -> 1893.8 | I9: 0
A10: 1.3.3 | C10: C | D10: 14 mm - dužine 12m | E10: 14 mm - length 12m | F10: kg | H10: =KORISNICI!H19 -> 0 | I10: 0
A11: 1.3.4 | C11: D | D11: 16 mm - dužine 12m | E11: 16 mm - length 12m | F11: kg | H11: =KORISNICI!H20 -> 0 | I11: 0
A12: 1.4 | B12: O | C12: 4 | D12: Glatko betonsko gvožđe (GA) | E12: Glibly reinforcement steel | F12: / | H12: / | I12: /
A13: 1.4.1 | C13: B | D13: 8 mm - dužine 12m | E13: 8 mm - length 12m | F13: kg | H13: =KORISNICI!H22 -> 1355.64 | I13: =G13*H13 -> 0
A14: 1.4.2 | C14: C | D14: 10 mm - dužine 12m | E14: 10 mm - length 12m | F14: kg | H14: =KORISNICI!H23 -> 0 | I14: 0
A15: 1.5 | B15: O | C15: 5 | D15: Armaturna betonska mreža dim. (dxš) 6000 x 2150 = 12,9 m2/kom | E15: Reinforcement mesh dim. (lxw) 6000 x 2150 = 12,9 m2/pcs | F15: / | H15: / | I15: /
A16: 1.5.1 | C16: A | D16: Q84 /4x4/150x150/ | E16: Q84 /4x4/150x150/ | F16: kg | H16: =KORISNICI!H25 -> 0 | I16: =G16*H16 -> 0
A17: 1.5.2 | C17: B | D17: Q131 /5x5/150x150/ | E17: Q131 /5x5/150x150/ | F17: kg | H17: =KORISNICI!H26 -> 136.9 | I17: 0
A18: 1.5.3 | C18: C | D18: Q188 /6x6/150x150/ | E18: Q188 /6x6/150x150/ | F18: kg | H18: =KORISNICI!H27 -> 4971.96 | I18: 0
A19: 1.5.4 | C19: D | D19: Q283 /6x6/100x100/ | E19: Q283 /6x6/100x100/ | F19: kg | H19: =KORISNICI!H28 -> 0 | I19: 0
A20: 1.5.5 | C20: E | D20: Q335 /8x8/150x150/ | E20: Q335 /8x8/150x150/ | F20: kg | H20: =KORISNICI!H29 -> 0 | I20: 0
A22: 2 | B22: Z | D22: MATERIJAL ZA ZIDANJE, MALTERISANJE, GLETOVANJE I FARBANJE | E22: MASONRY, PLASTERING FAIRING AND PAINTING MATERIAL
A23: 2.1 | B23: Z | C23: 1 | D23: Giter blok (d/š/v) 250x190x190 mm | E23: Gitter block (l/w/h) 250x190x190 mm | F23: kom/pcs | H23: =KORISNICI!H32 -> 12480 | I23: =G23*H23 -> 0
A24: 2.2 | B24: Z | C24: 2 | D24: Giter polublok (12cm) (d/š/v) 250x120x190mm | E24: Gitter half block (12cm) (l/w/h) 250x120x190mm | F24: kom/pcs | H24: =KORISNICI!H33 -> 1680 | I24: 0
A25: 2.3 | B25: Z | C25: 3 | D25: Opeka puna (d/š/v) 250x120x65 mm | E25: Brick (full-without holes) (l/w/h) 250x120x65 mm | F25: kom/pcs | H25: =KORISNICI!H34 -> 9216 | I25: 0
A26: 2.4 | B26: Z | C26: 4 | D26: Blok od porobetona za pregradni zid (d/š/v) 625x200x200 mm | E26: Aerated concrete block for partition wall (l/w/h) 625x200x200 mm | F26: kom/pcs | H26: =KORISNICI!H35 -> 0 | I26: 0
A27: 2.5 | B27: Z | C27: 5 | D27: Fert nosači (gredice) Dužina nosača je jednaka dužini binora = širina otvora između zidova + 30 cm. Broj gredica = dužina prostorije x 0,40 | E27: Fert beams Boom length is equal to the length of Binor = width of the openings between the walls + 30 cm. Number of beams = length of room x 0.40 | F27: / | H27: / | I27: /
A28: 2.5.1 | C28: A | D28: 0,00-3,90 m | E28: 0,00-3,90 m | F28: m1 | H28: =KORISNICI!H37 -> 136.5 | I28: =G28*H28 -> 0
A29: 2.5.2 | C29: B | D29: 3,91-4,50 m | E29: 3,91-4,50 m | F29: m1 | H29: =KORISNICI!H38 -> 261 | I29: 0
A30: 2.5.3 | C30: C | D30: 4,51-4,90 m | E30: 4,51-4,90 m | F30: m1 | H30: =KORISNICI!H39 -> 117.6 | I30: 0
A31: 2.5.4 | C31: D | D31: 4,91-5,30 m | E31: 4,91-5,30 m | F31: m1 | H31: =KORISNICI!H40 -> 0 | I31: 0
A32: 2.5.5 | C32: E | D32: 5,31-5,90 m | E32: 5,31-5,90 m | F32: m1 | H32: =KORISNICI!H41 -> 0 | I32: 0
A33: 2.5.6 | C33: F | D33: 5,91-6,30 m | E33: 5,91-6,30 m | F33: m1 | H33: =KORISNICI!H42 -> 12.6 | I33: 0
A34: 2.6 | B34: Z | C34: 6 | D34: Fert ispuna (d/š/v) 245x285/275x160 mm | E34: Fert fillings (l/w/h) 245x285/275x160 mm | F34: kom/pcs | H34: =KORISNICI!H43 -> 1638 | I34: 0
A35: 2.7 | B35: Z | C35: 7 | D35: Malter za zidanje Pripremljeno krečno - cementno vezivo | E35: Mortar for masonry Prepared lime - cement binder | F35: kg | H35: =KORISNICI!H44 -> 8440 | I35: 0
A36: 2.8 | B36: Z | C36: 8 | D36: Malter za malterisanje Pripremljeno krečno - cementno vezivo | E36: Mortar for plastering Prepared lime - cement binder | F36: kg | H36: =KORISNICI!H45 -> 32520 | I36: 0
A37: 2.9 | B37: Z | C37: 9 | D37: Krečna glet masa Bezcementna krečna masa za gletovanje | E37: Lime smoothing mass No cement lime compound for smoothing | F37: kg | H37: =KORISNICI!H46 -> 8450 | I37: 0
A38: 2.10 | B38: Z | C38: 10 | D38: Poludisperzivna boja Poludisperziona boja razrediva vodom | E38: Semi dispersion paint | F38: kg | H38: =KORISNICI!H47 -> 2475 | I38: 0
A40: 3 | B40: K | D40: MATERIJAL ZA KROVNU KONSTRUKCIJU, KROVNI POKRIVAČ, OSB I GIPS KARONSKE TABLE | E40: ROOF CONSTRUCTION AND ROOFING MATERIAL, OSB AND PLASTERBOARD TABLE
A41: 3.1 | B41: K | C41: 1 | D41: Presovani glineni crep I klase dimenzija: 400-450x245-275 mm | E41: Pressed clay tiles class 1 dim: 400-450x245-275 mm | F41: kom/pcs | H41: =KORISNICI!H50 -> 115840 | I41: =G41*H41 -> 0
A42: 3.2 | B42: K | C42: 3 | D42: Biber crep I klase dimenzija: 180x380 mm | E42: Biber clay tiles class 1 dim: 180x380 mm | F42: kom/pcs | H42: =KORISNICI!H51 -> 0 | I42: 0
A43: 3.3 | B43: K | C43: 2 | D43: Slemeni crep I klase (žljebnjak) | E43: Ridge clay tiles class 1 | F43: kom/pcs | H43: =KORISNICI!H52 -> 2518 | I43: 0
A44: 3.4 | B44: K | C44: 4 | D44: Paropropusna i vodonepropusna krovna folija kontrola vodene pare iznad termoizolacije | E44: Vapour permeable and waterproof roof sheeting control of water vapor above the insulation | F44: m2 | H44: =KORISNICI!H53 -> 8850 | I44: 0
A45: 3.5 | B45: K | C45: 5 | D45: Staklena mineralna vuna termoizolacija potkrovlja između rogova | E45: Glass Mineral Wool loft insulation between the rafters | F45: / | H45: / | I45: /
A46: 3.5.1 | C46: A | D46: debljina d=10 cm | E46: thickness d=10 cm | F46: m2 | H46: =KORISNICI!H55 -> 936 | I46: =G46*H46 -> 0
A47: 3.5.2 | C47: B | D47: debljina d=12 cm | E47: thickness d=12 cm | F47: m2 | H47: =KORISNICI!H56 -> 550.56 | I47: 0
A48: 3.5.3 | C48: C | D48: debljina d=14 cm | E48: thickness d=14 cm | F48: m2 | H48: =KORISNICI!H57 -> 0 | I48: 0
A49: 3.6 | B49: K | C49: 6 | D49: Parna brana kontrola vodene pare ispod termoizolacije | E49: Vapor barrier control of water vapor below the insulation | F49: m2 | H49: =KORISNICI!H58 -> 1950 | I49: 0
A50: 3.7 | B50: K | C50: 7 | D50: Čamova rezana građa različitog preseka dužine 400 cm | E50: Fir lumber of different cross-section length 400 cm | F50: / | H50: / | I50: /
A51: 3.7.1 | C51: A | D51: Rog/Venčanica/Raspinjača 10/12 cm | E51: rafters / wall plate / ridge collar 10/12 cm | F51: m3 | H51: =KORISNICI!H60 -> 2.88 | I51: =G51*H51 -> 0
A52: 3.7.2 | C52: B | D52: Rog/Stub/Grebenjača/Slemenja. 12/14 cm | E52: column / pile / hip rafter / ridge 12/14 cm | F52: m3 | H52: =KORISNICI!H61 -> 15.008 | I52: 0
A53: 3.7.3 | C53: C | D53: Stub/Grebenjača 14/14 cm | E53: column / hip rafter 14/14 cm | F53: m3 | H53: =KORISNICI!H62 -> 0 | I53: 0
A54: 3.7.4 | C54: H | D54: Tavanjače 18/26 cm | E54: attic beams 18/26 cm | F54: m3 | H54: =KORISNICI!H63 -> 0 | I54: 0
A55: 3.8 | B55: K | C55: 8 | D55: Čamova rezana građa različitog preseka dužine 600 cm | E55: Fir lumber of different cross-section length 600 cm | F55: / | H55: / | I55: /
A56: 3.8.1 | C56: A | D56: Rog/Venčanica/Raspinjača 10/12 cm | E56: rafters / wall plate / ridge collar 10/12 cm | F56: m3 | H56: =KORISNICI!H65 -> 120.312 | I56: =G56*H56 -> 0
A57: 3.8.2 | C57: B | D57: Rog/Stub/Grebenjača/Slemenja. 12/14 cm | E57: column / pile / hip rafter / ridge 12/14 cm | F57: m3 | H57: =KORISNICI!H66 -> 21.672 | I57: 0
A58: 3.8.3 | C58: C | D58: Stub/Grebenjača 14/14 cm | E58: column / hip rafter 14/14 cm | F58: m3 | H58: =KORISNICI!H67 -> 1.17 | I58: 0
A59: 3.8.4 | C59: D | D59: Rožnjača 14/16 cm | E59: Purlin 14/16 cm | F59: m3 | H59: =KORISNICI!H68 -> 0 | I59: 0
A60: 3.8.5 | C60: E | D60: Kosnik/Pajanta 10/10 cm | E60: Strut 10/10 cm | F60: m3 | H60: =KORISNICI!H69 -> 0.72 | I60: 0
A61: 3.8.6 | C61: F | D61: Klešta 6/12 cm | E61: Collar tie 6/12 cm | F61: m3 | H61: =KORISNICI!H70 -> 1.935 | I61: 0
A62: 3.8.7 | C62: G | D62: Krovna štafla 5/8 cm | E62: Roof battens 5/8 cm | F62: m3 | H62: =KORISNICI!H71 -> 3.312 | I62: 0
A63: 3.8.8 | C63: H | D63: Tavanjače 18/26 cm | E63: attic beams 18/26 cm | F63: m3 | H63: =KORISNICI!H72 -> 0 | I63: 0
A64: 3.9 | B64: K | C64: 9 | D64: Građevinska daska - fosna 4,8/25/400 cm | E64: Fir board 4,8/25/400 cm | F64: m3 | H64: =KORISNICI!H73 -> 0.144 | I64: 0
A65: 3.10 | B65: K | C65: 10 | D65: Krovna daska od čamove rezane građe 2,4-2,5/15 cm, isporučuje se dužine l=3,0 metra | E65: Roof fir board 2,4-2,5/15 cm, lenght l=3,0 m | F65: m3 | H65: =KORISNICI!H74 -> 34.20940594 | I65: 0
A66: 3.11 | B66: K | C66: 11 | D66: Krovna letva od čamove rezane građe 3 / 5 cm , isporučuje se dužine l=3,0 metra | E66: Fir batten 3 / 5 cm , lenght l=3,0 m | F66: m1 | H66: =KORISNICI!H75 -> 31974 | I66: 0
A67: 3.12 | B67: K | C67: 12 | D67: OSB3 vlagootporne konstruktivne ploče d=18 mm / dim. 2440 x 1220 | E67: OSB3 moisture resistant structural panels d=18 mm / dim. 2440 x 1220 | F67: kom/pcs | H67: =KORISNICI!H76 -> 632 | I67: 0
A68: 3.13 | B68: K | C68: 13 | D68: Standardne gips kartonske ploče - Tip A dimenzije: 1200-1250 x 2000 mm | E68: Standard plasterboard table - Type A dim: 1200-1250 x 2000 mm | F68: kom/pcs | H68: =KORISNICI!H77 -> 483 | I68: 0
A69: 3.14 | B69: K | C69: 14 | D69: Vlagootporne gips kartonske ploče - Tip H2 dimenzije: 1200-1250 x 2000 mm | E69: Moisture resistant Plasterboard - Type H2 dim: 1200-1250 x 2000 mm | F69: kom/pcs | H69: =KORISNICI!H78 -> 74 | I69: 0
A70: 3.15 | B70: K | C70: 15 | D70: Čelični pocinkovani i farbani olučni elementi prečnika: Ø 100 mm dužine 600 cm | E70: Galvanized steel and painted gutter elements diameter: Ø 100 mm length 600 cm | F70: / | H70: / | I70: /
A71: 3.15.1 | C71: A | D71: Horizontalni polukružni | E71: horizontal semicircular gutter | F71: kom/pcs | H71: =KORISNICI!H80 -> 231 | I71: =G71*H71 -> 0
A72: 3.15.2 | C72: B | D72: Vertikalni kružni oluk | E72: Vertical circular gutter | F72: kom/pcs | H72: =KORISNICI!H81 -> 118 | I72: 0
A74: 4 | B74: P | D74: MATERIJAL ZA PODOVE, LAMINAT, PLOČICE I XPS | E74: FLOORING, LAMINATE, TILES AND XPS
A75: 4.1 | B75: P | C75: 1 | D75: Unutrašnje podne keramičke pločice Min. dimenzije pločica: 200x300 mm | E75: Floor tiles for inside Min. tile size: 200x300 mm | F75: m2 | H75: =KORISNICI!H84 -> 639 | I75: =G75*H75 -> 0
A76: 4.2 | B76: P | C76: 2 | D76: Unutrašnje zidne keramičke pločice Min. dimenzije pločica: 200x300 mm | E76: Wall tiles for inside Min. tile size: 200x300 mm | F76: m2 | H76: =KORISNICI!H85 -> 1045 | I76: 0
A77: 4.3 | B77: P | C77: 3 | D77: Lepak za keramičke pločice Fleksibilni, polimer-cementni lepak | E77: Glue for ceramic tiles Flexible, polymer-cement glue | F77: kg | H77: =KORISNICI!H86 -> 5075 | I77: 0
A78: 4.4 | B78: P | C78: 4 | D78: Fleksibilna masa za fugovanje Vodoodbojna fug masa na bazi cementa | E78: Flexible mass for grouting Waterproof grout cement based | F78: kg | H78: =KORISNICI!H87 -> 492 | I78: 0
A79: 4.5 | B79: P | C79: 5 | D79: Laminat - jakopresovani (HLP) sa klik sistemom, dezen: hrast natur (prirodni) | E79: Laminate (HLP) with click system, design: oak natural (natural) | F79: m2 | H79: =KORISNICI!H88 -> 1712 | I79: 0
A80: 4.6 | B80: P | C80: 6 | D80: Lajsne za laminat od medijapana materijal: medijapan / MDF | E80: Moldings for laminate MDF Material: MDF / MDF | F80: m1 | H80: =KORISNICI!H89 -> 2184 | I80: 0
A81: 4.7 | B81: P | C81: 7 | D81: Podloga za laminat od polietilenske pene Sunđerasta podloga za laminat | E81: The base for laminate of polyethylene foam Foam base for laminate | F81: m2 | H81: =KORISNICI!H90 -> 2161.5 | I81: 0
A82: 4.8 | B82: P | C82: 8 | D82: Cementni suvi estrih (cementna košuljica). Pripremljeno cementno praškasto vezivo | E82: Cement dry screed (cement screed) Prepared cement powder binder | F82: kg | H82: =KORISNICI!H91 -> 79240 | I82: 0
A83: 4.9 | B83: P | C83: 9 | D83: Građevinska PVC folija Za razdvajanje cementne košuljice od termo izolacije. | E83: PVC foil for construction. To separate the cement screed of thermal insulation. | F83: m2 | H83: =KORISNICI!H92 -> 1240 | I83: 0
A84: 4.10 | B84: P | C84: 10 | D84: Stirodur (XPS za izolaciju na podovima) ploča od ekstrudirane polistirenske pene | E84: Stirodur (XPS insulation for floors) panel of extruded polystyrene foam | F84: / | H84: / | I84: /
A85: 4.10.1 | C85: A | D85: debljine d=2 cm | E85: d=2 cm | F85: m2 | H85: =KORISNICI!H94 -> 2010 | I85: =G85*H85 -> 0
A86: 4.10.2 | C86: B | D86: debljine d=5 cm | E86: d=5 cm | F86: m2 | H86: =KORISNICI!H95 -> 102 | I86: 0
A88: 5 | B88: F | D88: MATERIJAL ZA IZRADU FASADE | E88: FACADE MATERIAL
A89: 5.1 | B89: F | C89: 1 | D89: EPS za termoizolaciju fasadnih zidova ploča od ekspandiranog polistirena | E89: Thermal insulation for facade walls (EPS) plates made of expanded polystyrene | F89: / | H89: / | I89: /
A90: 5.1.1 | C90: A | D90: debljina d=8 cm | E90: d=8 cm | F90: m2 | H90: =KORISNICI!H99 -> 177 | I90: =G90*H90 -> 0
A91: 5.1.2 | C91: B | D91: debljina d=10 cm | E91: d=10 cm | F91: m2 | H91: =KORISNICI!H100 -> 5357.5 | I91: 0
A92: 5.1.3 | C92: C | D92: debljina d=12 cm | E92: d=12 cm | F92: m2 | H92: =KORISNICI!H101 -> 0 | I92: 0
A93: 5.1.4 | C93: D | D93: debljina d=14 cm | E93: d=14 cm | F93: m2 | H93: =KORISNICI!H102 -> 0 | I93: 0
A94: 5.2 | B94: F | C94: 2 | D94: GrađevinskI lepak za EPS ploče cementni lepak namenjen za lepljenje ploča od ekspandiranog polistirena (EPS) i armiranje armaturne (rabic) mrežice | E94: Construction glue for EPS plates cement adhesive for gluing plates made of expanded polystyrene (EPS) and reinforcing wire (rabic) net | F94: kg | H94: =KORISNICI!H103 -> 72300 | I94: 0
A95: 5.3 | B95: F | C95: 3 | D95: Armaturna (rabic) staklena mrežica. Visokokvalitetna alkalno postojana staklena mrežica | E95: Reinforcing (rabic) fiberglass mesh High quality alkali resistant fiberglass mesh | F95: m2 | H95: =KORISNICI!H104 -> 7500 | I95: 0
A96: 5.4 | B96: F | C96: 4 | D96: Aktivni predpremaz pre nanošenja tankoslojnog fasadnog maltera. predpremaz za izjednačavanje upijanja - podloga | E96: Active primer before applying the thin-layer plaster primer for the equalization of absorption surface | F96: kg | H96: =KORISNICI!H105 -> 1675 | I96: 0
A97: 5.5 | B97: F | C97: 5 | D97: Fasadni tankoslojni akrilni malter Završni malter u pastoznom stanju, namenjen za zaštitu fasadnih zidnih površina | E97: Facade thin-layer acrylic plaster Finishing plaster in paste-like state, intended for the protection of facade wall surfaces | F97: / | H97: / | I97: /
A98: 5.5.1 | C98: A | D98: boja približna RAL 1034 -kajsija | E98: color similar to RAL 1034-apricot | F98: kg | H98: =KORISNICI!H107 -> 16150 | I98: =G98*H98 -> 0
A99: 5.5.2 | C99: B | D99: boja približna RAL 6005 -pastelno zelena | E99: color similar to RAL 6005 pastel-green | F99: kg | H99: =KORISNICI!H108 -> 0 | I99: 0
A100: 5.5.3 | C100: C | D100: boja približna RAL 5023 -pastelno plava | E100: color similar to RAL 5023 pastel-blue | F100: kg | H100: =KORISNICI!H109 -> 0 | I100: 0
A101: 5.5.4 | C101: D | D101: boja približna RAL 3011 -pastelno crvena | E101: color similar to RAL 3011 pastel-red | F101: kg | H101: =KORISNICI!H110 -> 0 | I101: 0
A102: 5.5.5 | C102: E | D102: boja približna RAL 8002 -braon | E102: color similar to RAL 8002 brown | F102: kg | H102: =KORISNICI!H111 -> 4025 | I102: 0
A104: 6 | B104: H | D104: MATERIJAL ZA HIDRO IZOLACIJE | E104: WATERPROOFING MATERIAL
A105: 6.1 | B105: H | C105: 1 | D105: Bitulit (prethodni premaz za hidroizolaciju) Upotrebljava se u isporučenom stanju (hladan postupak ) bez zagrevanja | E105: Bitulit (previous coating for waterproofing) It is used as delivered (cold process) without heating | F105: kg | H105: =KORISNICI!H114 -> 306 | I105: =G105*H105 -> 0
A106: 6.2 | B106: H | C106: 2 | D106: Poliazbitol (hladni premaz za hidroizolaciju) Upotrebljava se u isporučenom stanju (hladan postupak) bez zagrevanja | E106: POLYASBITOL (cold coating for waterproofing) It is used as delivered (cold process) without heating | F106: kg | H106: =KORISNICI!H115 -> 110 | I106: 0
A107: 6.3 | B107: H | C107: 3 | D107: Ter papir Bitumenska hidroizolaciona traka. | E107: Ter paper Bituminous waterproofing tape. | F107: m2 | H107: =KORISNICI!H116 -> 0 | I107: 0
A108: 6.4 | B108: H | C108: 4 | D108: Kondor V-3 (hidroizolaciona traka) Plastomer-bitumenska traka, uložak stakleni voal, debljina: ≥ 3 mm | E108: Condor V-3 (waterproof tape) Plastomer-bituminous tape, glass mat, thickness: ≥ 3 mm | F108: m2 | H108: =KORISNICI!H117 -> 990 | I108: 0
A110: 7 | B110: S | D110: STOLARIJA | E110: DOORS AND WINDOWS
A111: 7.1 | B111: S | C111: 1 | D111: Ulazna vrata od PVC-a (komplet pozicija). boja profila: bela RAL 9003 broj komora: ≥ 5 komora širina x visina (zidarske mere) | E111: Entrance door of PVC (set position) Profile color: white RAL 9003 Number of chambers: ≥ 5 chambers width x height (masonry measures) | F111: / | H111: / | I111: /
A112: 7.1.1 | C112: A | D112: JK 90x210 cm - Leva 90 cm | E112: one wing 90x210 cm - Left 90 cm | F112: kom/pcs | H112: =KORISNICI!H121 -> 6 | I112: =G112*H112 -> 0
A113: 7.1.2 | C113: B | D113: JK 90x210 cm - Desna 90 cm | E113: one wing 90x210 cm - Right 90 cm | F113: kom/pcs | H113: =KORISNICI!H122 -> 18 | I113: 0
A114: 7.1.3 | C114: C | D114: DK 120x210 cm - Leva 90+30 cm | E114: two wings 120x210 cm - Left 90+30 cm | F114: kom/pcs | H114: =KORISNICI!H123 -> 8 | I114: 0
A115: 7.1.4 | C115: D | D115: DK 120x210 cm - Desna 90+30 cm | E115: two wings 120x210 cm - Right 90+30 cm | F115: kom/pcs | H115: =KORISNICI!H124 -> 16 | I115: 0
A116: 7.2 | B116: S | C116: 2 | D116: Prozori od PVC-a (komplet pozicija). Vertikalno i horizontalno otvaranje, boja profila: bela RAL 9003, broj komora: ≥ 5 komora širina x visina (zidarske mere) | E116: Windows made of PVC (set position) Vertical and horizontal opening, color profile: white RAL 9003, the number of chambers: ≥ 5 chambers width x height (masonry measures) | F116: / | H116: / | I116: /
A117: 7.2.1 | C117: A | D117: JK 60x60 cm | E117: one wing 60x60 cm | F117: kom/pcs | H117: =KORISNICI!H126 -> 65 | I117: =G117*H117 -> 0
A118: 7.2.2 | C118: B | D118: JK 80x80 cm | E118: one wing 80x80 cm | F118: kom/pcs | H118: =KORISNICI!H127 -> 19 | I118: 0
A119: 7.2.3 | C119: C | D119: JK 80x120 cm | E119: one wing 80x120 cm | F119: kom/pcs | H119: =KORISNICI!H128 -> 16 | I119: 0
A120: 7.2.4 | C120: D | D120: JK 80x140 cm | E120: one wing 80x140 cm | F120: kom/pcs | H120: =KORISNICI!H129 -> 2 | I120: 0
A121: 7.2.5 | C121: E | D121: JK 100x120 cm | E121: one wing 100x120 cm | F121: kom/pcs | H121: =KORISNICI!H130 -> 8 | I121: 0
A122: 7.2.6 | C122: F | D122: JK 100x140 cm | E122: one wing 100x140 cm | F122: kom/pcs | H122: =KORISNICI!H131 -> 11 | I122: 0
A123: 7.2.7 | C123: G | D123: DK 120x120 cm | E123: two wings 120x120 cm | F123: kom/pcs | H123: =KORISNICI!H132 -> 15 | I123: 0
A124: 7.2.8 | C124: H | D124: DK 120x140 cm | E124: two wings 120x140 cm | F124: kom/pcs | H124: =KORISNICI!H133 -> 31 | I124: 0
A125: 7.2.9 | C125: I | D125: DK 140x120 cm | E125: two wings 140x120 cm | F125: kom/pcs | H125: =KORISNICI!H134 -> 11 | I125: 0
A126: 7.2.10 | C126: J | D126: DK 140x140 cm | E126: two wings 140x140 cm | F126: kom/pcs | H126: =KORISNICI!H135 -> 13 | I126: 0
A127: 7.2.11 | C127: K | D127: DK 160x120 cm | E127: two wings 160x120 cm | F127: kom/pcs | H127: =KORISNICI!H136 -> 19 | I127: 0
A128: 7.2.12 | C128: L | D128: DK 160x140 cm | E128: two wings 160x140 cm | F128: kom/pcs | H128: =KORISNICI!H137 -> 28 | I128: 0
A129: 7.3 | B129: S | C129: 3 | D129: Krovni prozor sa aluminijumskom opšivkom od laminirane i impregnirane čamove građe | E129: Roof window with aluminum flashings of laminated and impregnated fir timber | F129: / | H129: / | I129: /
A130: 7.3.1 | C130: A | D130: dimenzije 66 x 118 (širinaxvisina) | E130: 66 x 118 (width x height) | F130: kom/pcs | H130: =KORISNICI!H139 -> 0 | I130: =G130*H130 -> 0
A131: 7.3.2 | C131: B | D131: dimenzije 78 x 98 (širinaxvisina) | E131: 78 x 98 (width x height) | F131: kom/pcs | H131: =KORISNICI!H140 -> 0 | I131: 0
A132: 7.3.3 | C132: C | D132: dimenzije 78 x 118 (širinaxvisina) | E132: 78 x 118 (width x height) | F132: kom/pcs | H132: =KORISNICI!H141 -> 0 | I132: 0
A133: 7.4 | B133: S | C133: 4 | D133: Balkonska vrata od PVC-a (komplet pozicija). boja profila: bela RAL 9003 broj komora: ≥ 5 komora širina x visina (zidarske mere) | E133: Balcony doors from PVC (set position) Profile color: white RAL 9003 Number of chambers: ≥ 5 chambers width x height (masonry measures) | F133: / | H133: / | I133: /
A134: 7.4.1 | C134: A | D134: JK 90x210 cm - Leva | E134: one wing 90x210 cm - Left | F134: kom/pcs | H134: =KORISNICI!H143 -> 1 | I134: =G134*H134 -> 0
A135: 7.4.2 | C135: B | D135: JK 90x210 cm - Desna | E135: one wing 90x210 cm - Right | F135: kom/pcs | H135: =KORISNICI!H144 -> 2 | I135: 0
A136: 7.4.3 | C136: C | D136: DK 140x210 cm | E136: two wings 140x210 cm | F136: kom/pcs | H136: =KORISNICI!H145 -> 1 | I136: 0
A137: 7.5 | B137: S | C137: 5 | D137: Unutrašnja vrata sa ispunom od kartonskog saća (komplet pozicija). širina x visina (spoljna mera futera) | E137: Internal doors filled with cardboard honeycomb (set position) width x height (external measures footer) | F137: / | H137: / | I137: /
A138: 7.5.1 | C138: A | D138: 70x205 cm - Leva (dubina štoka 0-16 cm) | E138: 70x205 cm - Left (depth door 0-16 cm) | F138: kom/pcs | H138: =KORISNICI!H147 -> 3 | I138: =G138*H138 -> 0
A139: 7.5.2 | C139: B | D139: 70x205 cm - Leva (dubina štoka 16-30 cm) | E139: 70x205 cm - Left (depth door 16-30 cm) | F139: kom/pcs | H139: =KORISNICI!H148 -> 0 | I139: 0
A140: 7.5.3 | C140: C | D140: 70x205 cm - Desna (dubina štoka 0-16 cm) | E140: 70x205 cm - Right (depth door 0-16 cm) | F140: kom/pcs | H140: =KORISNICI!H149 -> 6 | I140: 0
A141: 7.5.4 | C141: D | D141: 70x205 cm - Desna (dubina štoka 16-30 cm) | E141: 70x205 cm - Right (depth door 16-30 cm) | F141: kom/pcs | H141: =KORISNICI!H150 -> 0 | I141: 0
A142: 7.5.5 | C142: E | D142: 80x205 cm - Leva (dubina štoka 0-16 cm) | E142: 80x205 cm - Left (depth door 0-16 cm) | F142: kom/pcs | H142: =KORISNICI!H151 -> 9 | I142: 0
A143: 7.5.6 | C143: F | D143: 80x205 cm - Leva (dubina štoka 16-30 cm) | E143: 80x205 cm - Left (depth door 16-30 cm) | F143: kom/pcs | H143: =KORISNICI!H152 -> 2 | I143: 0
A144: 7.5.7 | C144: G | D144: 80x205 cm - Desna (dubina štoka 0-16 cm) | E144: 80x205 cm - Right (depth door 0-16 cm) | F144: kom/pcs | H144: =KORISNICI!H153 -> 13 | I144: 0
A145: 7.5.8 | C145: H | D145: 80x205 cm - Desna (dubina štoka 16-30 cm) | E145: 80x205 cm - Right (depth door 16-30 cm) | F145: kom/pcs | H145: =KORISNICI!H154 -> 0 | I145: 0
A146: 7.5.9 | C146: I | D146: 90x205 cm - Leva (dubina štoka 0-16 cm) | E146: 90x205 cm - Left (depth door 0-16 cm) | F146: kom/pcs | H146: =KORISNICI!H155 -> 21 | I146: 0
A147: 7.5.10 | C147: J | D147: 90x205 cm - Leva (dubina štoka 16-30 cm) | E147: 90x205 cm - Left (depth door 16-30 cm) | F147: kom/pcs | H147: =KORISNICI!H156 -> 0 | I147: 0
A148: 7.5.11 | C148: K | D148: 90x205 cm - Desna (dubina štoka 0-16 cm) | E148: 90x205 cm - Right (depth door 0-16 cm) | F148: kom/pcs | H148: =KORISNICI!H157 -> 30 | I148: 0
A149: 7.5.12 | C149: L | D149: 90x205 cm - Desna (dubina štoka 16-30 cm) | E149: 90x205 cm - Right (depth door 16-30 cm) | F149: kom/pcs | H149: =KORISNICI!H158 -> 0 | I149: 0
A151: 8 | B151: D | D151: OSTALA OPREMA I MATERIJAL | E151: OTHER EQUIPMENT AND SUPPLIES
A152: 8.1 | B152: D | C152: 1 | D152: Jednostruki dimnjak prečnika Ф 140 mm. Troslojni montažni dimnjački sistem namenjen za sva ložišta i sve vrste goriva, bez ventilacije. Sastavljen je od: dimnjačke cevi od tehničke keramike, izolacije oko cevi dimnjaka od kamene vune minimalne specifične težine 80kg/m3, spoljneg dimnjačkog plašta od lakog betona, vatrostalnog lepka u kartušama, vatrootpornih i gasnonepropusnih atestiranih troslojnih vratanaca , kondenz posude, priključaka za reviziju i ložišta, krovne ploče od staklo betona, nosača tervola i tvrdih tervol ploča za priključke, ventilacione rešetke, dilatacione rozete od nerđajućeg čelika. Spoljna dimenzija dimnjačkog plašta za fi14cm=32x32cm. | E152: A single chimney diameter 140 mm. Three-layer prefabricated chimney system designed for all furnaces and all types of fuel, with no ventilation. It is composed of: chimney pipe of technical ceramics, pipe insulation around the chimney of stone wool minimum specific weight of 80kg/m3, external chimney mantle of lightweight concrete, refractory adhesive in cartouches, fireproof and gas impermeable certified three-layer side door, condensate pots, connectors for the audit and furnaces, roof tiles of glass concrete girders Tervola and hard tervol plate connections, ventilation grilles, rosettes expansion of stainless steel. The external dimensions of the chimney sleeve fi14cm = 32x32cm. | F152: m1 | H152: =KORISNICI!H161 -> 115 | I152: =G152*H152 -> 0
A154: 9 | B154: V | D154: Vodovod Kanalizacija Oprema | E154: WATER SUPPLY AND SEWAGE
D155: Vodovod | E155: WATER SUPPLY
A156: 9.1 | B156: V | C156: 1 | D156: Vodovodne polietilenske cevi PE 100 PN16 za radni pritisak 16 bara (SDR 11) | E156: Water supply polyethylene pipe PE 100 PN16 the working pressure of 16 bar (SDR 11) | F156: / | H156: / | I156: /
A157: 9.1.1 | C157: A | D157: d25 (s min. 2,3) - 3/4" | E157: d25 (s min. 2,3) - 3/4" | F157: m1 | H157: =KORISNICI!H166 -> 0 | I157: =G157*H157 -> 0
A158: 9.1.2 | C158: B | D158: d32 (s min. 3,0) - 1" | E158: d32 (s min. 3,0) - 1" | F158: m1 | H158: =KORISNICI!H167 -> 0 | I158: 0
A159: 9.1.3 | C159: C | D159: d40 (s min. 3,7) - 5/4" | E159: d40 (s min. 3,7) - 5/4" | F159: m1 | H159: =KORISNICI!H168 -> 0 | I159: 0
A160: 9.2 | B160: V | C160: 2 | D160: Vodovodne cevi PP-R 80 PN20 za radni pritisak 20 bara, bele ili zelene boje (materijal: polipropilen-random kapolimer) | E160: Water pipe PP-R 80 PN20 the working pressure of 20 bar, white or green (material: polypropylene random kapolimer) | F160: / | H160: / | I160: /
A161: 9.2.1 | C161: B | D161: d20 (s min. 3,4) - 1/2" | E161: d20 (s min. 3,4) - 1/2" | F161: m1 | H161: =KORISNICI!H170 -> 1188 | I161: =G161*H161 -> 0
A162: 9.2.2 | C162: C | D162: d25 (s min. 4,2) - 3/4" | E162: d25 (s min. 4,2) - 3/4" | F162: m1 | H162: =KORISNICI!H171 -> 396 | I162: 0
A163: 9.2.3 | C163: D | D163: d32 (s min. 5,4) - 1" | E163: d32 (s min. 5,4) - 1" | F163: m1 | H163: =KORISNICI!H172 -> 0 | I163: 0
A164: 9.3 | B164: V | C164: 3 | D164: Vodomer sa prirubnicama, holenderima i pripadajućom opremom za montažu, za pritisak do 16 bara | E164: water gauge flanges, unions and associated equipment for assembly, for pressure up to 16 bar | F164: / | H164: / | I164: /
A165: 9.3.1 | C165: A | D165: horizontalni 3/4" | E165: Horizontal 3/4" | F165: kom/pcs | H165: =KORISNICI!H174 -> 0 | I165: =G165*H165 -> 0
A166: 9.3.2 | C166: B | D166: horizontalni 1" | E166: Horizontal 1" | F166: kom/pcs | H166: =KORISNICI!H175 -> 0 | I166: 0
A167: 9.3.3 | C167: C | D167: horizontalni 5/4" | E167: Horizontal 5/4" | F167: kom/pcs | H167: =KORISNICI!H176 -> 0 | I167: 0
A168: 9.4 | B168: V | C168: 4 | D168: Ravni propusni ventil sa ogrankom za pražnjenje | E168: Skip straight valve with a branch drain | F168: / | H168: / | I168: /
A169: 9.4.1 | C169: A | D169: d25 (s min. 2,3) - 3/4" | E169: d25 (s min. 2,3) - 3/4" | F169: kom/pcs | H169: =KORISNICI!H178 -> 33 | I169: =G169*H169 -> 0
A170: 9.4.2 | C170: B | D170: d32 (s min. 3,0) - 1" | E170: d32 (s min. 3,0) - 1" | F170: kom/pcs | H170: =KORISNICI!H179 -> 0 | I170: 0
A171: 9.5 | B171: V | C171: 5 | D171: Propusni ventil za uzidanje sa kapom | E171: Gate valve for the wall with cap | F171: / | H171: / | I171: /
A172: 9.5.1 | C172: A | D172: d20 (s min. 3,4) - 1/2" | E172: d20 (s min. 3,4) - 1/2" | F172: kom/pcs | H172: =KORISNICI!H181 -> 165 | I172: =G172*H172 -> 0
A173: 9.5.2 | C173: B | D173: d25 (s min. 4,2) - 3/4" | E173: d25 (s min. 4,2) - 3/4" | F173: kom/pcs | H173: =KORISNICI!H182 -> 33 | I173: 0
A174: 9.5.3 | C174: C | D174: d32 (s min. 3,0) - 1" | E174: d32 (s min. 3,0) - 1" | F174: kom/pcs | H174: =KORISNICI!H183 -> 0 | I174: 0
A175: 9.6 | B175: V | C175: 6 | D175: Ugaoni "EK" sa kapom | E175: Angle valve "EK" with cap | F175: / | H175: / | I175: /
A176: 9.6.1 | C176: A | D176: d20 (s min. 3,4) - 1/2" | E176: d20 (s min. 3,4) - 1/2" | F176: kom/pcs | H176: =KORISNICI!H185 -> 165 | I176: =G176*H176 -> 0
A177: 9.7 | B177: V | C177: 7 | D177: Termička izolacija vodovodnih cevi -tipa plamaflex ISO ili sl. | E177: Thermal insulation of water pipes-type PLAMAFLEX ISO etc.. | F177: / | H177: / | I177: /
A178: 9.7.1 | C178: B | D178: d20 (22/9) - 1/2" | E178: d20 (22/9) - 1/2" | F178: m1 | H178: =KORISNICI!H187 -> 0 | I178: =G178*H178 -> 0
A179: 9.7.2 | C179: C | D179: d25 (25/9) - 3/4" | E179: d25 (25/9) - 3/4" | F179: m1 | H179: =KORISNICI!H188 -> 0 | I179: 0
A180: 9.7.3 | C180: D | D180: d32 (35/9)- 1" | E180: d32 (35/9)- 1" | F180: m1 | H180: =KORISNICI!H189 -> 0 | I180: 0
D181: Kanalizacija | E181: SEWAGE
A182: 9.8 | B182: V | C182: 8 | D182: PVC kanalizacione cevi SDR 41 / SN4 / PN5 za spoljni razvod, kućna i ulična kanalizacija | E182: PVC sewer pipe SDR 41 / CH4 / PN5 for external distribution, household and street sewage | F182: / | H182: / | I182: /
A183: 9.8.1 | C183: A | D183: d110 (s min. 3,2) dužina 6,0m | E183: d110 (s min. 3,2) length 6,0m | F183: kom/pcs | H183: =KORISNICI!H192 -> 0 | I183: =G183*H183 -> 0
A184: 9.8.2 | C184: B | D184: d160 (s min. 4,0) dužina 6,0m | E184: d160 (s min. 4,0) length 6,0m | F184: kom/pcs | H184: =KORISNICI!H193 -> 6 | I184: 0
A185: 9.9 | B185: V | C185: 9 | D185: Plastične PP cevi SDR 51 / SN2 / PN4 za unutrašnji (kućni) razvod, kućna kanalizacija | E185: Plastic PP pipes SDR 51 / SN2 / PN4 for internal (home) distribution, household sewage | F185: / | H185: / | I185: /
A186: 9.9.1 | C186: A | D186: d50 (s min. 1,8) dužina 3,0m | E186: d50 (s min. 1,8) length 3,0m | F186: kom/pcs | H186: =KORISNICI!H195 -> 132 | I186: =G186*H186 -> 0
A187: 9.9.2 | C187: B | D187: d75 (s min. 1,9) dužina 3,0m | E187: d75 (s min. 1,9) length 3,0m | F187: kom/pcs | H187: =KORISNICI!H196 -> 132 | I187: 0
A188: 9.9.3 | C188: C | D188: d110 (s min. 2,7) dužina 3,0m | E188: d110 (s min. 2,7) length 3,0m | F188: kom/pcs | H188: =KORISNICI!H197 -> 66 | I188: 0
A189: 9.10 | B189: V | C189: 10 | D189: Plitki PE podni slivnik d50 sa horizontalnim odvodom dimenzija 150x150mm | E189: Shallow PE floor drain with horizontal outlet d50 size 150x150mm | F189: kom/pcs | H189: =KORISNICI!H198 -> 33 | I189: 0
A190: 9.11 | B190: V | C190: 11 | D190: Zidni sifoni sa odvodnom mesinganom cevi d32 (mašina za pranje veša i sudova) | E190: Wall siphon with drainage brass tubes d32 (washing machines, dishwashers) | F190: kom/pcs | H190: =KORISNICI!H199 -> 66 | I190: 0
D191: Oprema u kupatilu | E191: BATHROOM EQUPIMENT
A192: 9.12 | B192: V | C192: 12 | D192: WC šolja od keramike I klase | E192: Ceramic toilet bowl class 1 | F192: kom/pcs | H192: =KORISNICI!H201 -> 34 | I192: =G192*H192 -> 0
A193: 9.13 | B193: V | C193: 13 | D193: Niskomontažni plastični predzidni vodokotlić za nisku montažu iznad wc šolje sa plovkom i svim potrebnim delovima za funkcionisanje vodokotlića | E193: Low mounting plastic-wall toilet tank for low installation above the toilet bowl float and all the parts required for the operation of flushing | F193: kom/pcs | H193: =KORISNICI!H202 -> 34 | I193: 0
A194: 9.14 | B194: V | C194: 14 | D194: Umivaonikom sa stubom od keramike I klase | E194: Washbasin with ceramic pillar class 1 | F194: kom/pcs | H194: =KORISNICI!H203 -> 34 | I194: 0
A195: 9.15 | B195: V | C195: 15 | D195: Pravougaona akrilna tuš kada dimenzija 90x90cm sa odlivnim ventilom | E195: Rectangular acrylic shower size 90x90cm with discharge valve | F195: kom/pcs | H195: =KORISNICI!H204 -> 33 | I195: 0
A196: 9.16 | B196: V | C196: 16 | D196: Električni akumulacioni bojler 50l vertikalni grejač 2 kW, napon 230V, kazan izrađen od emajliranog lima, sa pratećim materijalom za ugradnju | E196: Electric storage water heater 50l vertical heater 2 kW, 230V, caldron made ​​of enameled steel, with supporting material for installation | F196: kom/pcs | H196: =KORISNICI!H205 -> 35 | I196: 0
A197: 9.17 | B197: V | C197: 17 | D197: Ogledalo sa etažerom (iznad umivaonika) četvrtasto, min. dimenzija 80x60cm | E197: Mirror with shelf above wash basin square, min. 80x60cm | F197: kom/pcs | H197: =KORISNICI!H206 -> 34 | I197: 0
A198: 9.18 | B198: V | C198: 18 | D198: Baterije (slavine) hromirane baterije za hladnu i toplu vodu | E198: Lever chrome lever for cold and hot water | F198: / | H198: / | I198: /
A199: 9.18.1 | C199: A | D199: za umivaonik jednoručna stojeća | E199: For washbasin single lever basin standing | F199: kom/pcs | H199: =KORISNICI!H208 -> 34 | I199: =G199*H199 -> 0
A200: 9.18.2 | C200: B | D200: za tuš kadu (sa tuš ručicom i tuš crevom) jednoručna sa poniklovanim savitljivim crevom | E200: For shower bath (with shower head and shower hose) Single lever with nickel hoses | F200: kom/pcs | H200: =KORISNICI!H209 -> 34 | I200: 0
A201: 9.18.3 | C201: C | D201: za mašinu za veš i sudove, holender slavina DN20/15, s pripadajućom opremom za ugradnju | E201: for washing machine and dishwasher, union DN20/15 taps, and all the equipment for installation | F201: kom/pcs | H201: =KORISNICI!H210 -> 35 | I201: 0
D202: Oprema u kuhinji | E202: KITCHEN EQUIPMENT
A203: 9.19 | B203: V | C203: 19 | D203: Korito sudopere od "Inox "-a (dvodelno) (izrađeno od plemenitog nerđajućeg čelika) orjenacione dimenzije: 780 x 435 x 150 mm | E203: kitchen sink "Inox" two-part (made of stainless steel) approx. dim: 780 x 435 x 150 mm | F203: kom/pcs | H203: =KORISNICI!H212 -> 28 | I203: =G203*H203 -> 0
A204: 9.20 | B204: V | C204: 20 | D204: Električni akumulacioni bojler 5l za ugradnju iznad sudopere, vertikalni grejač 2 kW, napon 230V, kazan izrađen od plastike sa pratećim materijalom za ugradnju | E204: Electric storage water heater 5l Fitting over the sink, vertical heater 2 kW, 230V, caldron made ​​of plastic with the materials for installation | F204: kom/pcs | H204: =KORISNICI!H213 -> 28 | I204: 0
A205: 9.21 | B205: V | C205: 21 | D205: Baterija za sudoperu jednoručna stojeća hromirana baterija za hladnu i toplu vodu | E205: Sink-standing single lever chrome mixer for hot and cold water | F205: kom/pcs | H205: =KORISNICI!H214 -> 28 | I205: 0
A207: 10 | B207: E | D207: ELEKTRO MATERIJAL I OPREMA | E207: Electrical materials and equipment
D208: Kablovi i kablovski pribor | E208: Electrical cables and cable accessories
A209: 10.1 | B209: E | C209: 1 | D209: Napojni kablovi | E209: Power cables | F209: / | H209: / | I209: /
A210: 10.1.1 | C210: A | D210: X00-A 4x16 mm2 | E210: X00-A 4x16 mm2 | F210: m | H210: =KORISNICI!H219 -> 0 | I210: =G210*H210 -> 0
A211: 10.1.2 | C211: B | D211: PP00-Y 5x6 mm2 | E211: PP00-Y 5x6 mm2 | F211: m | H211: =KORISNICI!H220 -> 0 | I211: 0
... 47 more rows

Sheet KORISNICI
G1: POTPROJEKAT/ SUBPROJECT | J1: SRB 9 | M1: SRB 9 | P1: SRB 9 | S1: SRB 9 | V1: SRB 9 | Y1: SRB 9 | AB1: SRB 9 | AE1: SRB 9 | AH1: SRB 9 | AK1: SRB 9 | AN1: SRB 9 | AQ1: SRB 9 | AT1: SRB 9 | AW1: SRB 9 | AZ1: SRB 9 | BC1: SRB 9 | BF1: SRB 9 | BI1: SRB 9 | BL1: SRB 9 | BO1: SRB 9 | BR1: SRB 9 | BU1: SRB 9 | BX1: SRB 9 | CA1: SRB 9 | CD1: SRB 9 | CG1: SRB 9 | CJ1: SRB 9 | CM1: SRB 9 | CP1: SRB 9 | CS1: SRB 9 | CV1: SRB 9 | CY1: SRB 9 | DB1: SRB 9 | DE1: SRB 9 | DH1: SRB 9 | DK1: SRB 9 | DN1: SRB 9 | DQ1: SRB 9 | DT1: SRB 9 | DW1: SRB 9 | DZ1: SRB 9 | EC1: SRB 9
G2: ID KORISNIKA/ USER ID | I2: =COUNTA(J2:UU2) -> 42 | J2: 115 | M2: 116 | P2: 117 | S2: 118 | V2: 119 | Y2: 120 | AB2: 121 | AE2: 122 | AH2: 123 | AK2: 124 | AN2: 125 | AQ2: 126 | AT2: 127 | AW2: 128 | AZ2: 129 | BC2: 130 | BF2: 131 | BI2: 132 | BL2: 133 | BO2: 134 | BR2: 135 | BU2: 137 | BX2: 138 | CA2: 139 | CD2: 140 | CG2: 141 | CJ2: 142 | CM2: 143 | CP2: 144 | CS2: 145 | CV2: 146 | CY2: 147 | DB2: 148 | DE2: 149 | DH2: 150 | DK2: 151 | DN2: 152 | DQ2: 153 | DT2: 154 | DW2: 155 | DZ2: 156 | EC2: 157
G3: IME KORISNIKA/ NAME | I3: 42 | J3: Željko | M3: Milan | P3: Milan | S3: Zoran | V3: Ilija | Y3: Slobodan | AB3: Miloš | AE3: Darko | AH3: Nenad | AK3: Milutin | AN3: Stevo | AQ3: Vele | AT3: Veljko | AW3: Branka | AZ3: Srđan | BC3: Branko | BF3: Dušan | BI3: Zoran | BL3: Duško | BO3: Milan | BR3: Mirjana | BU3: Đuro | BX3: Nikola | CA3: Enis | CD3: Marko | CG3: Milan | CJ3: Branislav | CM3: Đuka | CP3: Miljka | CS3: Mile | CV3: Jovan | CY3: Mirko | DB3: Dragan | DE3: Dušan | DH3: Katica | DK3: Milan | DN3: Stojanka | DQ3: Milorad | DT3: Đuro | DW3: Slavica | DZ3: Aleksandra | EC3: Mićo
G4: PREZIME KORISNIKA/ SURNAME | I4: 42 | J4: Žiža | M4: Jovetić | P4: Kalinić | S4: Totović | V4: Pribić | Y4: Lakić | AB4: Vučković | AE4: Novaković | AH4: Lovrić | AK4: Kekić | AN4: Pavlović | AQ4: Draganić | AT4: Zelenbaba | AW4: Mraović | AZ4: Miščević | BC4: Lukač | BF4: Ivković | BI4: Davidović | BL4: Banić | BO4: Štetić | BR4: Galetić | BU4: Krnić | BX4: Bajić | CA4: Cimeša | CD4: Hrstić | CG4: Brdar | CJ4: Jakovljević | CM4: Šainović | CP4: Bibić | CS4: Roknić | CV4: Medić | CY4: Vlajnić | DB4: Kesić | DE4: Đekić | DH4: Balog | DK4: Čakširan | DN4: Španović | DQ4: Cimeša | DT4: Pavić | DW4: Utvić | DZ4: Drobnjak | EC4: Babić
G5: TELEFON KORISNIKA/ PHONE | I5: 42 | J5: 063/205-023 | M5: 063/7687096 | P5: 064/15-40-605 | S5: 064/9388912 | V5: 062/829-05-60 | Y5: 062/145-9610 | AB5: 062/152-0990 | AE5: 065/3810980 | AH5: 064/318-0103 | AK5: 0625/815-044 | AN5: 063/11-640-12 | AQ5: 025/462193 | AT5: 063/198-1280 | AW5: 064/3325523 | AZ5: 060/1564315 | BC5: 064/1954073 | BF5: 064/9455052 | BI5: 063/122-3583 | BL5: 063/7646772 | BO5: 025/804317 | BR5: 065/8810851 | BU5: 062/199-2268 | BX5: 025/442-380 | CA5: 060/0853873 | CD5: 062/1521632 | CG5: 063/554-959 | CJ5: 063/407-043 | CM5: 060/582-8004 | CP5: 025/583-8390 | CS5: 025/853208 | CV5: 064/307-5540 | CY5: 025/864342 | DB5: 061/3236-799 | DE5: 063/7083489 | DH5: 063/7155456 | DK5: 064/219-0683 | DN5: 064/000-41-06 | DQ5: 025/852-168 | DT5: 063/1501586 | DW5: 065/281-0502 | DZ5: 025/461-723 | EC5: 063/101-6538
G6: OPŠTINA ISPORUKE/ MUNICIPALITY | I6: 42 | J6: Sombor | M6: Sombor | P6: Sombor | S6: Sombor | V6: Sombor | Y6: Sombor | AB6: Sombor | AE6: Sombor | AH6: Sombor | AK6: Sombor | AN6: Sombor | AQ6: Sombor | AT6: Sombor | AW6: Sombor | AZ6: Sombor | BC6: Sombor | BF6: Sombor | BI6: Sombor | BL6: Sombor | BO6: Sombor | BR6: Sombor | BU6: Sombor | BX6: Sombor | CA6: Sombor | CD6: Sombor | CG6: Sombor | CJ6: Sombor | CM6: Sombor | CP6: Sombor | CS6: Sombor | CV6: Sombor | CY6: Sombor | DB6: Sombor | DE6: Sombor | DH6: Sombor | DK6: Sombor | DN6: Sombor | DQ6: Sombor | DT6: Sombor | DW6: Sombor | DZ6: Sombor | EC6: Sombor
G7: MESTO ISPORUKE/ CITY | I7: 42 | J7: Bezdan | M7: Kljaljićevo | P7: Stapar | S7: Bezdan | V7: Bezdan | Y7: Sombor | AB7: Aleksa Šantić | AE7: Bezdan | AH7: Čonoplja | AK7: Čonoplja | AN7: Aleksa Šantić | AQ7: Sombor | AT7: Rastina | AW7: Sombor | AZ7: Kljaljićevo | BC7: Svetozara Miletića | BF7: Telečka | BI7: Sombor | BL7: Riđica | BO7: Kolut | BR7: Bezdan | BU7: Čonoplja | BX7: Sombor | CA7: Kljaljićevo | CD7: Kljajićevo | CG7: Bezdan | CJ7: Bezdan | CM7: Stapar | CP7: Aleksa Šantić | CS7: Kljaljićevo | CV7: Sombor | CY7: Telečka | DB7: Kolut | DE7: Telečka | DH7: Bački Monoštor | DK7: Čonoplja | DN7: Aleksa Šantić | DQ7: Kljajićevo | DT7: Kljaljićevo | DW7: Telečka | DZ7: Sombor | EC7: Žarkovac
G8: LOKACIJA ISPORUKE/ LOCATION OF DELIVERY | I8: 42 | J8: Bajska 25 | M8: Miloša Kljaljića 43 | P8: Somborski put BB | S8: Bajska 12 | V8: Bajska 124 | Y8: Zorana Gomirca 2 | AB8: Vuka ST. Karadžića 32 | AE8: Nova 32 | AH8: Petefi Šandora 17 | AK8: Miloša Kljajića 7 | AN8: Nikole Tesle 26 | AQ8: Nikole Tesle 27 | AT8: V.S. Stepanovića 50 | AW8: Ivana Mažuranića 28 | AZ8: Proleterska 20 | BC8: Dositeja Obradovića 46 | BF8: Sivački put 24 | BI8: Miloša Obilića 86 | BL8: Nikole Tesle 80 | BO8: Marka Oreškovića 42 | BR8: Bajska 91 | BU8: Karađorđeva 26 | BX8: Dubrovačka 10 | CA8: Njegoševa 36 | CD8: Oktobarske revolucije 40 | CG8: Somborski put 47 | CJ8: Nova 23 | CM8: Branka Radičevića 30 | CP8: Ive Andrića 26 | CS8: Vojvode Vuka 45 | CV8: Matije Gupca45 | CY8: Doža Đerđa 11 | DB8: Ive Lole Ribara 69 | DE8: Bajšanski put 44 | DH8: Dunavska 128 | DK8: Ilije Birčanina 6 | DN8: Vuka St. Karadžića bb | DQ8: Save Kovačevića 1 | DT8: Njegoševa 28 | DW8: Doža Đerđa bb | DZ8: Filipa Kljajića 41C | EC8: Cara Lazara 23
G9: UKUPNO PO KORISNIKU/ TOTAL BY BENEFICIARY | I9: 42 | J9: =K267 -> 0 | M9: =N267 -> 0 | P9: =Q267 -> 0 | S9: =T267 -> 0 | V9: =W267 -> 0 | Y9: =Z267 -> 0 | AB9: =AC267 -> 0 | AE9: =AF267 -> 0 | AH9: =AI267 -> 0 | AK9: =AL267 -> 0 | AN9: =AO267 -> 0 | AQ9: =AR267 -> 0 | AT9: =AU267 -> 0 | AW9: =AX267 -> 0 | AZ9: =BA267 -> 0 | BC9: =BD267 -> 0 | BF9: =BG267 -> 0 | BI9: =BJ267 -> 0 | BL9: =BM267 -> 0 | BO9: =BP267 -> 0 | BR9: =BS267 -> 0 | BU9: 8996.542162 | BX9: =BY267 -> 0 | CA9: =CB267 -> 0 | CD9: =CE267 -> 0 | CG9: =CH267 -> 0 | CJ9: =CK267 -> 0 | CM9: =CN267 -> 0 | CP9: =CQ267 -> 0 | CS9: =CT267 -> 0 | CV9: =CW267 -> 0 | CY9: =CZ267 -> 0 | DB9: =DC267 -> 0 | DE9: =DF267 -> 0 | DH9: =DI267 -> 0 | DK9: =DL267 -> 0 | DN9: =DO267 -> 0 | DQ9: =DR267 -> 0 | DT9: =DU267 -> 0 | DW9: =DX267 -> 0 | DZ9: =EA267 -> 0 | EC9: =ED267 -> 0
A11: KOD/ CODE | D11: Opis građevinskog materijala | E11: Description of building materials | F11: Jed. prod./ UNIT | G11: Jedinična prod.cena/ UNIT PRICE | H11: Zbir Količina po materijalima/ SUM QTY | I11: ZBIR UKUPNO PO MATERIJALIMA/ SUM PRICE | J11: Količina/ QTY | K11: UKUPNO/ TOTAL | M11: Količina/ QTY | N11: UKUPNO/ TOTAL | P11: Količina/ QTY | Q11: UKUPNO/ TOTAL | S11: Količina/ QTY | T11: UKUPNO/ TOTAL | V11: Količina/ QTY | W11: UKUPNO/ TOTAL | Y11: Količina/ QTY | Z11: UKUPNO/ TOTAL | AB11: Količina/ QTY | AC11: UKUPNO/ TOTAL | AE11: Količina/ QTY | AF11: UKUPNO/ TOTAL | AH11: Količina/ QTY | AI11: UKUPNO/ TOTAL | AK11: Količina/ QTY | AL11: UKUPNO/ TOTAL | AN11: Količina/ QTY | AO11: UKUPNO/ TOTAL | AQ11: Količina/ QTY | AR11: UKUPNO/ TOTAL | AT11: Količina/ QTY | AU11: UKUPNO/ TOTAL | AW11: Količina/ QTY | AX11: UKUPNO/ TOTAL | AZ11: Količina/ QTY | BA11: UKUPNO/ TOTAL | BC11: Količina/ QTY | BD11: UKUPNO/ TOTAL | BF11: Količina/ QTY | BG11: UKUPNO/ TOTAL | BI11: Količina/ QTY | BJ11: UKUPNO/ TOTAL | BL11: Količina/ QTY | BM11: UKUPNO/ TOTAL | BO11: Količina/ QTY | BP11: UKUPNO/ TOTAL | BR11: Količina/ QTY | BS11: UKUPNO/ TOTAL | BU11: Količina/ QTY | BV11: UKUPNO/ TOTAL | BX11: Količina/ QTY | BY11: UKUPNO/ TOTAL | CA11: Količina/ QTY | CB11: UKUPNO/ TOTAL | CD11: Količina/ QTY | CE11: UKUPNO/ TOTAL | CG11: Količina/ QTY | CH11: UKUPNO/ TOTAL | CJ11: Količina/ QTY | CK11: UKUPNO/ TOTAL | CM11: Količina/ QTY | CN11: UKUPNO/ TOTAL | CP11: Količina/ QTY | CQ11: UKUPNO/ TOTAL | CS11: Količina/ QTY | CT11: UKUPNO/ TOTAL | CV11: Količina/ QTY | CW11: UKUPNO/ TOTAL | CY11: Količina/ QTY | CZ11: UKUPNO/ TOTAL | DB11: Količina/ QTY | DC11: UKUPNO/ TOTAL | DE11: Količina/ QTY | DF11: UKUPNO/ TOTAL | DH11: Količina/ QTY | DI11: UKUPNO/ TOTAL | DK11: Količina/ QTY | DL11: UKUPNO/ TOTAL | DN11: Količina/ QTY | DO11: UKUPNO/ TOTAL | DQ11: Količina/ QTY | DR11: UKUPNO/ TOTAL | DT11: Količina/ QTY | DU11: UKUPNO/ TOTAL | DW11: Količina/ QTY | DX11: UKUPNO/ TOTAL | DZ11: Količina/ QTY | EA11: UKUPNO/ TOTAL | EC11: Količina/ QTY | ED11: UKUPNO/ TOTAL
J12: =CONCATENATE("ID",J2) -> ID115 | M12: =CONCATENATE("ID",M2) -> ID116 | P12: =CONCATENATE("ID",P2) -> ID117 | S12: =CONCATENATE("ID",S2) -> ID118 | V12: =CONCATENATE("ID",V2) -> ID119 | Y12: =CONCATENATE("ID",Y2) -> ID120 | AB12: =CONCATENATE("ID",AB2) -> ID121 | AE12: =CONCATENATE("ID",AE2) -> ID122 | AH12: =CONCATENATE("ID",AH2) -> ID123 | AK12: =CONCATENATE("ID",AK2) -> ID124 | AN12: =CONCATENATE("ID",AN2) -> ID125 | AQ12: =CONCATENATE("ID",AQ2) -> ID126 | AT12: =CONCATENATE("ID",AT2) -> ID127 | AW12: =CONCATENATE("ID",AW2) -> ID128 | AZ12: =CONCATENATE("ID",AZ2) -> ID129 | BC12: =CONCATENATE("ID",BC2) -> ID130 | BF12: =CONCATENATE("ID",BF2) -> ID131 | BI12: =CONCATENATE("ID",BI2) -> ID132 | BL12: =CONCATENATE("ID",BL2) -> ID133 | BO12: =CONCATENATE("ID",BO2) -> ID134 | BR12: =CONCATENATE("ID",BR2) -> ID135 | BU12: ID136 | BX12: =CONCATENATE("ID",BX2) -> ID138 | CA12: =CONCATENATE("ID",CA2) -> ID139 | CD12: =CONCATENATE("ID",CD2) -> ID140 | CG12: =CONCATENATE("ID",CG2) -> ID141 | CJ12: =CONCATENATE("ID",CJ2) -> ID142 | CM12: =CONCATENATE("ID",CM2) -> ID143 | CP12: =CONCATENATE("ID",CP2) -> ID144 | CS12: =CONCATENATE("ID",CS2) -> ID145 | CV12: =CONCATENATE("ID",CV2) -> ID146 | CY12: =CONCATENATE("ID",CY2) -> ID147 | DB12: =CONCATENATE("ID",DB2) -> ID148 | DE12: =CONCATENATE("ID",DE2) -> ID149 | DH12: =CONCATENATE("ID",DH2) -> ID150 | DK12: =CONCATENATE("ID",DK2) -> ID151 | DN12: =CONCATENATE("ID",DN2) -> ID152 | DQ12: =CONCATENATE("ID",DQ2) -> ID153 | DT12: =CONCATENATE("ID",DT2) -> ID154 | DW12: =CONCATENATE("ID",DW2) -> ID155 | DZ12: =CONCATENATE("ID",DZ2) -> ID156 | EC12: =CONCATENATE("ID",EC2) -> ID157
A13: 1 | B13: A | D13: OSNOVNI GRAĐEVINSKI MATERIJAL | E13: BASIC BUILDING MATERIALS
A14: 1.1 | B14: O | C14: 1 | D14: Cement za betone do MB 30 | E14: Cement for concrete up to 30 MB | F14: kg | G14: =CENA!G5 -> 0 | H14: =J14+M14+P14+S14+AQ14+CJ14+DK14+FD14+V14+Y14+AB14+AE14+AH14+AK14+AN14+AT14+AW14+AZ14+BC14+BF14+BI14+BL14+BO14+BR14+BU14+BX14+CA14+CD14+CG14+CM14+CP14+CS14+CV14+CY14+DB14+DE14+DH14+DN14+DQ14+DT14+DW14+DZ14+EC14+EF14+EI14+EL14+EO14+ER14+EU14+EX14+FA14+FG14+FJ14+FM14+FP14+FS14+FV14+FY14+GB14+GE14+GH14+GK14+GN14+GQ14+GT14+GW14+GZ14+HC14+HF14+HI14+HL14+HO14+HR14+HU14+HX14+IA14+ID14+IG14+IJ14+IM14+IP14+IS14+IV14+IY14+JB14+JE14+JH14+JK14+JN14+JQ14+JT14+JW14+JZ14+KC14+KF14+KI14+KL14+KO14+KR14+KU14+KX14+LA14+LD14+LG14+LJ14+LM14+LP14+LS14+LV14+LY14+MB14+ME14+MH14+MK14+MN14+MQ14+MT14+MW14+MZ14+NC14+NF14+NI14+NL14+NO14+NR14+NU14+NX14+OA14+OD14+OG14+OJ14+OM14+OP14+OS14+OV14+OY14+PB14+PE14+PH14+PK14+PN14+PQ14+PT14+PW14+PZ14+QC14+QF14+QI14+QL14+QO14+QR14+QU14+QX14+RA14+RD14+RG14+RJ14+RM14+RP14+RS14+RV14+RY14+SB14+SE14+SH14+SK14+SN14+SQ14+ST14+SW14+SZ14+TC14+TF14+TI14+TL14+TO14+TR14+TU14+TX14+UA14+UD14+UG14+UJ14+UM14+UP14+US14 -> 103700 | I14: =G14*H14 -> 0 | J14: 0 | K14: =$G14*J14 -> 0 | M14: 3000 | N14: =$G14*M14 -> 0 | P14: 3000 | Q14: =$G14*P14 -> 0 | S14: 10500 | T14: =$G14*S14 -> 0 | V14: 4000 | W14: =$G14*V14 -> 0 | Y14: 1000 | Z14: =$G14*Y14 -> 0 | AB14: 4000 | AC14: =$G14*AB14 -> 0 | AE14: 3500 | AF14: =$G14*AE14 -> 0 | AH14: 0 | AI14: =$G14*AH14 -> 0 | AK14: 4000 | AL14: =$G14*AK14 -> 0 | AN14: 4500 | AO14: =$G14*AN14 -> 0 | AQ14: 2000 | AR14: =$G14*AQ14 -> 0 | AT14: 2000 | AU14: =$G14*AT14 -> 0 | AW14: 0 | AX14: =$G14*AW14 -> 0 | AZ14: 2000 | BA14: =$G14*AZ14 -> 0 | BC14: 1750 | BD14: =$G14*BC14 -> 0 | BF14: 2000 | BG14: =$G14*BF14 -> 0 | BI14: 0 | BJ14: =$G14*BI14 -> 0 | BL14: 10000 | BM14: =$G14*BL14 -> 0 | BO14: 3300 | BP14: =$G14*BO14 -> 0 | BR14: 1550 | BS14: =$G14*BR14 -> 0 | BU14: 5000 | BV14: =$G14*BU14 -> 0 | BX14: 1000 | BY14: =$G14*BX14 -> 0 | CB14: =$G14*CA14 -> 0 | CD14: 3800 | CE14: =$G14*CD14 -> 0 | CG14: 6000 | CH14: =$G14*CG14 -> 0 | CJ14: 3500 | CK14: =$G14*CJ14 -> 0 | CM14: 2000 | CN14: =$G14*CM14 -> 0 | CP14: 0 | CQ14: =$G14*CP14 -> 0 | CS14: 0 | CT14: =$G14*CS14 -> 0 | CV14: 0 | CW14: =$G14*CV14 -> 0 | CY14: 1000 | CZ14: =$G14*CY14 -> 0 | DB14: 4000 | DC14: =$G14*DB14 -> 0 | DE14: 1000 | DF14: =$G14*DE14 -> 0 | DH14: 2100 | DI14: =$G14*DH14 -> 0 | DK14: 0 | DL14: =$G14*DK14 -> 0 | DN14: 0 | DO14: =$G14*DN14 -> 0 | DQ14: 3000 | DR14: =$G14*DQ14 -> 0 | DT14: 2000 | DU14: =$G14*DT14 -> 0 | DW14: 6000 | DX14: =$G14*DW14 -> 0 | DZ14: 1200 | EA14: =$G14*DZ14 -> 0 | EC14: 0 | ED14: =$G14*EC14 -> 0
A15: 1.2 | B15: O | C15: 2 | D15: Hidratisani gašeni kreč pripremljen u prahu | E15: Hydrated slaked lime powdered | F15: kg | G15: =CENA!G6 -> 0 | H15: =J15+M15+P15+S15+AQ15+CJ15+DK15+FD15+V15+Y15+AB15+AE15+AH15+AK15+AN15+AT15+AW15+AZ15+BC15+BF15+BI15+BL15+BO15+BR15+BU15+BX15+CA15+CD15+CG15+CM15+CP15+CS15+CV15+CY15+DB15+DE15+DH15+DN15+DQ15+DT15+DW15+DZ15+EC15+EF15+EI15+EL15+EO15+ER15+EU15+EX15+FA15+FG15+FJ15+FM15+FP15+FS15+FV15+FY15+GB15+GE15+GH15+GK15+GN15+GQ15+GT15+GW15+GZ15+HC15+HF15+HI15+HL15+HO15+HR15+HU15+HX15+IA15+ID15+IG15+IJ15+IM15+IP15+IS15+IV15+IY15+JB15+JE15+JH15+JK15+JN15+JQ15+JT15+JW15+JZ15+KC15+KF15+KI15+KL15+KO15+KR15+KU15+KX15+LA15+LD15+LG15+LJ15+LM15+LP15+LS15+LV15+LY15+MB15+ME15+MH15+MK15+MN15+MQ15+MT15+MW15+MZ15+NC15+NF15+NI15+NL15+NO15+NR15+NU15+NX15+OA15+OD15+OG15+OJ15+OM15+OP15+OS15+OV15+OY15+PB15+PE15+PH15+PK15+PN15+PQ15+PT15+PW15+PZ15+QC15+QF15+QI15+QL15+QO15+QR15+QU15+QX15+RA15+RD15+RG15+RJ15+RM15+RP15+RS15+RV15+RY15+SB15+SE15+SH15+SK15+SN15+SQ15+ST15+SW15+SZ15+TC15+TF15+TI15+TL15+TO15+TR15+TU15+TX15+UA15+UD15+UG15+UJ15+UM15+UP15+US15 -> 4100 | I15: =G15*H15 -> 0 | J15: 0 | K15: =$G15*J15 -> 0 | M15: 0 | N15: =$G15*M15 -> 0 | P15: 0 | Q15: 0 | S15: 1000 | T15: 0 | V15: 0 | W15: =$G15*V15 -> 0 | Y15: 0 | Z15: =$G15*Y15 -> 0 | AB15: 0 | AC15: =$G15*AB15 -> 0 | AE15: 0 | AF15: =$G15*AE15 -> 0 | AH15: 0 | AI15: =$G15*AH15 -> 0 | AK15: 0 | AL15: =$G15*AK15 -> 0 | AN15: 0 | AO15: =$G15*AN15 -> 0 | AQ15: 0 | AR15: =$G15*AQ15 -> 0 | AT15: 0 | AU15: =$G15*AT15 -> 0 | AW15: 0 | AX15: =$G15*AW15 -> 0 | AZ15: 0 | BA15: =$G15*AZ15 -> 0 | BC15: 0 | BD15: =$G15*BC15 -> 0 | BF15: 0 | BG15: =$G15*BF15 -> 0 | BI15: 0 | BJ15: =$G15*BI15 -> 0 | BL15: 1500 | BM15: =$G15*BL15 -> 0 | BO15: 0 | BP15: =$G15*BO15 -> 0 | BR15: 0 | BS15: =$G15*BR15 -> 0 | BU15: 0 | BV15: =$G15*BU15 -> 0 | BX15: 0 | BY15: 0 | CB15: =$G15*CA15 -> 0 | CD15: 0 | CE15: =$G15*CD15 -> 0 | CG15: 1600 | CH15: =$G15*CG15 -> 0 | CJ15: 0 | CK15: =$G15*CJ15 -> 0 | CM15: 0 | CN15: =$G15*CM15 -> 0 | CP15: 0 | CQ15: =$G15*CP15 -> 0 | CS15: 0 | CT15: =$G15*CS15 -> 0 | CV15: 0 | CW15: =$G15*CV15 -> 0 | CY15: 0 | CZ15: =$G15*CY15 -> 0 | DB15: 0 | DC15: =$G15*DB15 -> 0 | DE15: 0 | DF15: =$G15*DE15 -> 0 | DH15: 0 | DI15: =$G15*DH15 -> 0 | DK15: 0 | DL15: =$G15*DK15 -> 0 | DN15: 0 | DO15: =$G15*DN15 -> 0 | DQ15: 0 | DR15: 0 | DT15: 0 | DU15: 0 | DW15: 0 | DX15: =$G15*DW15 -> 0 | DZ15: 0 | EA15: =$G15*DZ15 -> 0 | EC15: 0 | ED15: =$G15*EC15 -> 0
A16: 1.3 | B16: O | C16: 3 | D16: Rebrasto betonsko gvožđe (RA) | E16: Ribbed reinforcement steel | F16: / | G16: / | H16: / | I16: / | J16: / | K16: / | M16: / | N16: / | P16: / | Q16: / | S16: / | T16: / | V16: / | W16: / | Y16: / | Z16: / | AB16: / | AC16: / | AE16: / | AF16: / | AH16: / | AI16: / | AK16: / | AL16: / | AN16: / | AO16: / | AQ16: / | AR16: / | AT16: / | AU16: / | AW16: / | AX16: / | AZ16: / | BA16: / | BC16: / | BD16: / | BF16: / | BG16: / | BI16: / | BJ16: / | BL16: / | BM16: / | BO16: / | BP16: / | BR16: / | BS16: / | BU16: / | BV16: / | BX16: / | BY16: / | CA16: / | CB16: / | CD16: / | CE16: / | CG16: / | CH16: / | CJ16: / | CK16: / | CM16: / | CN16: / | CP16: / | CQ16: / | CS16: / | CT16: / | CV16: / | CW16: / | CY16: / | CZ16: / | DB16: / | DC16: / | DE16: / | DF16: / | DH16: / | DI16: / | DK16: / | DL16: / | DN16: / | DO16: / | DQ16: / | DR16: / | DT16: / | DU16: / | DW16: / | DX16: / | DZ16: / | EA16: / | EC16: / | ED16: /
A17: 1.3.1 | C17: A | D17: 10 mm - dužine 12m | E17: 10 mm - length 12m | F17: kg | G17: =CENA!G8 -> 0 | H17: =J17+M17+P17+S17+AQ17+CJ17+DK17+FD17+V17+Y17+AB17+AE17+AH17+AK17+AN17+AT17+AW17+AZ17+BC17+BF17+BI17+BL17+BO17+BR17+BU17+BX17+CA17+CD17+CG17+CM17+CP17+CS17+CV17+CY17+DB17+DE17+DH17+DN17+DQ17+DT17+DW17+DZ17+EC17+EF17+EI17+EL17+EO17+ER17+EU17+EX17+FA17+FG17+FJ17+FM17+FP17+FS17+FV17+FY17+GB17+GE17+GH17+GK17+GN17+GQ17+GT17+GW17+GZ17+HC17+HF17+HI17+HL17+HO17+HR17+HU17+HX17+IA17+ID17+IG17+IJ17+IM17+IP17+IS17+IV17+IY17+JB17+JE17+JH17+JK17+JN17+JQ17+JT17+JW17+JZ17+KC17+KF17+KI17+KL17+KO17+KR17+KU17+KX17+LA17+LD17+LG17+LJ17+LM17+LP17+LS17+LV17+LY17+MB17+ME17+MH17+MK17+MN17+MQ17+MT17+MW17+MZ17+NC17+NF17+NI17+NL17+NO17+NR17+NU17+NX17+OA17+OD17+OG17+OJ17+OM17+OP17+OS17+OV17+OY17+PB17+PE17+PH17+PK17+PN17+PQ17+PT17+PW17+PZ17+QC17+QF17+QI17+QL17+QO17+QR17+QU17+QX17+RA17+RD17+RG17+RJ17+RM17+RP17+RS17+RV17+RY17+SB17+SE17+SH17+SK17+SN17+SQ17+ST17+SW17+SZ17+TC17+TF17+TI17+TL17+TO17+TR17+TU17+TX17+UA17+UD17+UG17+UJ17+UM17+UP17+US17 -> 1161 | I17: =G17*H17 -> 0 | J17: 0 | K17: =$G17*J17 -> 0 | L17: =J17/$UW$17 -> 0 | M17: 170.28 | N17: =$G17*M17 -> 0 | O17: =M17/$UW$17 -> 22 | P17: 247.68 | Q17: =$G17*P17 -> 0 | R17: =P17/$UW$17 -> 32 | S17: 0 | T17: =$G17*S17 -> 0 | U17: =S17/$UW$17 -> 0 | V17: 0 | W17: =$G17*V17 -> 0 | X17: =V17/$UW$17 -> 0 | Y17: 0 | Z17: =$G17*Y17 -> 0 | AA17: =Y17/$UW$17 -> 0 | AB17: 0 | AC17: =$G17*AB17 -> 0 | AD17: =AB17/$UW$17 -> 0 | AE17: 0 | AF17: =$G17*AE17 -> 0 | AG17: =AE17/$UW$17 -> 0 | AH17: 0 | AI17: =$G17*AH17 -> 0 | AJ17: =AH17/$UW$17 -> 0 | AK17: 0 | AL17: =$G17*AK17 -> 0 | AM17: =AK17/$UW$17 -> 0 | AN17: 0 | AO17: =$G17*AN17 -> 0 | AP17: =AN17/$UW$17 -> 0 | AQ17: 0 | AR17: =$G17*AQ17 -> 0 | AS17: =AQ17/$UW$17 -> 0 | AT17: 0 | AU17: =$G17*AT17 -> 0 | AV17: =AT17/$UW$17 -> 0 | AW17: 0 | AX17: =$G17*AW17 -> 0 | AY17: =AW17/$UW$17 -> 0 | AZ17: 0 | BA17: =$G17*AZ17 -> 0 | BB17: =AZ17/$UW$17 -> 0 | BC17: 0 | BD17: =$G17*BC17 -> 0 | BE17: =BC17/$UW$17 -> 0 | BF17: 0 | BG17: =$G17*BF17 -> 0 | BH17: =BF17/$UW$17 -> 0 | BI17: 0 | BJ17: =$G17*BI17 -> 0 | BK17: =BI17/$UW$17 -> 0 | BL17: 309.6 | BM17: =$G17*BL17 -> 0 | BN17: =BL17/$UW$17 -> 40 | BO17: 0 | BP17: =$G17*BO17 -> 0 | BQ17: =BO17/$UW$17 -> 0 | BR17: 0 | BS17: =$G17*BR17 -> 0 | BT17: =BR17/$UW$17 -> 0 | BU17: 61.92 | BV17: =$G17*BU17 -> 0 | BW17: =BU17/$UW$17 -> 8 | BX17: 0 | BY17: =$G17*BX17 -> 0 | BZ17: =BX17/$UW$17 -> 0 | CB17: =$G17*CA17 -> 0 | CC17: =CA17/$UW$17 -> 0 | CD17: 0 | CE17: =$G17*CD17 -> 0 | CF17: =CD17/$UW$17 -> 0 | CG17: 0 | CH17: =$G17*CG17 -> 0 | CI17: =CG17/$UW$17 -> 0 | CJ17: 0 | CK17: =$G17*CJ17 -> 0 | CL17: =CJ17/$UW$17 -> 0 | CM17: 139.32 | CN17: =$G17*CM17 -> 0 | CO17: =CM17/$UW$17 -> 18 | CP17: 0 | CQ17: =$G17*CP17 -> 0 | CR17: =CP17/$UW$17 -> 0 | CS17: 0 | CT17: =$G17*CS17 -> 0 | CU17: =CS17/$UW$17 -> 0 | CV17: 0 | CW17: =$G17*CV17 -> 0 | CX17: =CV17/$UW$17 -> 0 | CY17: 0 | CZ17: =$G17*CY17 -> 0 | DA17: =CY17/$UW$17 -> 0 | DB17: 0 | DC17: =$G17*DB17 -> 0 | DD17: =DB17/$UW$17 -> 0 | DE17: 0 | DF17: =$G17*DE17 -> 0 | DG17: =DE17/$UW$17 -> 0 | DH17: 0 | DI17: =$G17*DH17 -> 0 | DJ17: =DH17/$UW$17 -> 0 | DK17: 0 | DL17: =$G17*DK17 -> 0 | DM17: =DK17/$UW$17 -> 0 | DN17: 0 | DO17: =$G17*DN17 -> 0 | DP17: =DN17/$UW$17 -> 0 | DQ17: 0 | DR17: =$G17*DQ17 -> 0 | DS17: =DQ17/$UW$17 -> 0 | DT17: 0 | DU17: =$G17*DT17 -> 0 | DV17: =DT17/$UW$17 -> 0 | DW17: 232.2 | DX17: =$G17*DW17 -> 0 | DY17: =DW17/$UW$17 -> 30 | DZ17: 0 | EA17: =$G17*DZ17 -> 0 | EB17: =DZ17/$UW$17 -> 0 | EC17: 0 | ED17: =$G17*EC17 -> 0 | EE17: =EC17/$UW$17 -> 0 | UW17: 7.74
A18: 1.3.2 | C18: B | D18: 12 mm - dužine 12m | E18: 12 mm - length 12m | F18: kg | G18: =CENA!G9 -> 0 | H18: 1893.8 | I18: 0 | J18: 0 | K18: =$G18*J18 -> 0 | L18: =J18/$UW$18 -> 0 | M18: 0 | N18: =$G18*M18 -> 0 | O18: =M18/$UW$18 -> 0 | P18: 0 | Q18: 0 | R18: =P18/$UW$18 -> 0 | S18: 278.5 | T18: 0 | U18: =S18/$UW$18 -> 25 | V18: 0 | W18: =$G18*V18 -> 0 | X18: =V18/$UW$18 -> 0 | Y18: 0 | Z18: =$G18*Y18 -> 0 | AA18: =Y18/$UW$18 -> 0 | AB18: 0 | AC18: =$G18*AB18 -> 0 | AD18: =AB18/$UW$18 -> 0 | AE18: 167.1 | AF18: =$G18*AE18 -> 0 | AG18: =AE18/$UW$18 -> 15 | AH18: 0 | AI18: =$G18*AH18 -> 0 | AJ18: =AH18/$UW$18 -> 0 | AK18: 111.4 | AL18: =$G18*AK18 -> 0 | AM18: =AK18/$UW$18 -> 10 | AN18: 0 | AO18: =$G18*AN18 -> 0 | AP18: =AN18/$UW$18 -> 0 | AQ18: 0 | AR18: =$G18*AQ18 -> 0 | AS18: =AQ18/$UW$18 -> 0 | AT18: 0 | AU18: =$G18*AT18 -> 0 | AV18: =AT18/$UW$18 -> 0 | AW18: 0 | AX18: =$G18*AW18 -> 0 | AY18: =AW18/$UW$18 -> 0 | AZ18: 0 | BA18: =$G18*AZ18 -> 0 | BB18: =AZ18/$UW$18 -> 0 | BC18: 0 | BD18: =$G18*BC18 -> 0 | BE18: =BC18/$UW$18 -> 0 | BF18: 0 | BG18: =$G18*BF18 -> 0 | BH18: =BF18/$UW$18 -> 0 | BI18: 0 | BJ18: =$G18*BI18 -> 0 | BK18: =BI18/$UW$18 -> 0 | BL18: 222.8 | BM18: =$G18*BL18 -> 0 | BN18: =BL18/$UW$18 -> 20 | BO18: 278.5 | BP18: =$G18*BO18 -> 0 | BQ18: =BO18/$UW$18 -> 25 | BR18: 0 | BS18: =$G18*BR18 -> 0 | BT18: =BR18/$UW$18 -> 0 | BU18: 0 | BV18: =$G18*BU18 -> 0 | BW18: =BU18/$UW$18 -> 0 | BX18: 0 | BY18: 0 | BZ18: =BX18/$UW$18 -> 0 | CB18: =$G18*CA18 -> 0 | CC18: =CA18/$UW$18 -> 0 | CD18: 256.22 | CE18: =$G18*CD18 -> 0 | CF18: =CD18/$UW$18 -> 23 | CG18: 222.8 | CH18: =$G18*CG18 -> 0 | CI18: =CG18/$UW$18 -> 20 | CJ18: 222.8 | CK18: =$G18*CJ18 -> 0 | CL18: =CJ18/$UW$18 -> 20 | CM18: 0 | CN18: =$G18*CM18 -> 0 | CO18: =CM18/$UW$18 -> 0 | CP18: 0 | CQ18: =$G18*CP18 -> 0 | CR18: =CP18/$UW$18 -> 0 | CS18: 0 | CT18: =$G18*CS18 -> 0 | CU18: =CS18/$UW$18 -> 0 | CV18: 0 | CW18: =$G18*CV18 -> 0 | CX18: =CV18/$UW$18 -> 0 | CY18: 0 | CZ18: =$G18*CY18 -> 0 | DA18: =CY18/$UW$18 -> 0 | DB18: 0 | DC18: =$G18*DB18 -> 0 | DD18: =DB18/$UW$18 -> 0 | DE18: 0 | DF18: =$G18*DE18 -> 0 | DG18: =DE18/$UW$18 -> 0 | DH18: 0 | DI18: =$G18*DH18 -> 0 | DJ18: =DH18/$UW$18 -> 0 | DK18: 0 | DL18: =$G18*DK18 -> 0 | DM18: =DK18/$UW$18 -> 0 | DN18: 0 | DO18: =$G18*DN18 -> 0 | DP18: =DN18/$UW$18 -> 0 | DQ18: 0 | DR18: 0 | DS18: =DQ18/$UW$18 -> 0 | DT18: 0 | DU18: 0 | DV18: =DT18/$UW$18 -> 0 | DW18: 133.68 | DX18: =$G18*DW18 -> 0 | DY18: =DW18/$UW$18 -> 12 | DZ18: 0 | EA18: =$G18*DZ18 -> 0 | EB18: =DZ18/$UW$18 -> 0 | EC18: 0 | ED18: =$G18*EC18 -> 0 | EE18: =EC18/$UW$18 -> 0 | UW18: 11.14
A19: 1.3.3 | C19: C | D19: 14 mm - dužine 12m | E19: 14 mm - length 12m | F19: kg | G19: =CENA!G10 -> 0 | H19: 0 | I19: 0 | J19: 0 | K19: =$G19*J19 -> 0 | L19: =J19/$UW$19 -> 0 | M19: 0 | N19: =$G19*M19 -> 0 | O19: =M19/$UW$19 -> 0 | P19: 0 | Q19: 0 | R19: =P19/$UW$19 -> 0 | S19: 0 | T19: 0 | U19: =S19/$UW$19 -> 0 | V19: 0 | W19: =$G19*V19 -> 0 | X19: =V19/$UW$19 -> 0 | Y19: 0 | Z19: =$G19*Y19 -> 0 | AA19: =Y19/$UW$19 -> 0 | AB19: 0 | AC19: =$G19*AB19 -> 0 | AD19: =AB19/$UW$19 -> 0 | AE19: 0 | AF19: =$G19*AE19 -> 0 | AG19: =AE19/$UW$19 -> 0 | AH19: 0 | AI19: =$G19*AH19 -> 0 | AJ19: =AH19/$UW$19 -> 0 | AK19: 0 | AL19: =$G19*AK19 -> 0 | AM19: =AK19/$UW$19 -> 0 | AN19: 0 | AO19: =$G19*AN19 -> 0 | AP19: =AN19/$UW$19 -> 0 | AQ19: 0 | AR19: =$G19*AQ19 -> 0 | AS19: =AQ19/$UW$19 -> 0 | AT19: 0 | AU19: =$G19*AT19 -> 0 | AV19: =AT19/$UW$19 -> 0 | AW19: 0 | AX19: =$G19*AW19 -> 0 | AY19: =AW19/$UW$19 -> 0 | AZ19: 0 | BA19: =$G19*AZ19 -> 0 | BB19: =AZ19/$UW$19 -> 0 | BC19: 0 | BD19: =$G19*BC19 -> 0 | BE19: =BC19/$UW$19 -> 0 | BF19: 0 | BG19: =$G19*BF19 -> 0 | BH19: =BF19/$UW$19 -> 0 | BI19: 0 | BJ19: =$G19*BI19 -> 0 | BK19: =BI19/$UW$19 -> 0 | BL19: 0 | BM19: =$G19*BL19 -> 0 | BN19: =BL19/$UW$19 -> 0 | BO19: 0 | BP19: =$G19*BO19 -> 0 | BQ19: =BO19/$UW$19 -> 0 | BR19: 0 | BS19: =$G19*BR19 -> 0 | BT19: =BR19/$UW$19 -> 0 | BU19: 0 | BV19: =$G19*BU19 -> 0 | BW19: =BU19/$UW$19 -> 0 | BX19: 0 | BY19: 0 | BZ19: =BX19/$UW$19 -> 0 | CB19: =$G19*CA19 -> 0 | CC19: =CA19/$UW$19 -> 0 | CD19: 0 | CE19: =$G19*CD19 -> 0 | CF19: =CD19/$UW$19 -> 0 | CG19: 0 | CH19: =$G19*CG19 -> 0 | CI19: =CG19/$UW$19 -> 0 | CJ19: 0 | CK19: =$G19*CJ19 -> 0 | CL19: =CJ19/$UW$19 -> 0 | CM19: 0 | CN19: =$G19*CM19 -> 0 | CO19: =CM19/$UW$19 -> 0 | CP19: 0 | CQ19: =$G19*CP19 -> 0 | CR19: =CP19/$UW$19 -> 0 | CS19: 0 | CT19: =$G19*CS19 -> 0 | CU19: =CS19/$UW$19 -> 0 | CV19: 0 | CW19: =$G19*CV19 -> 0 | CX19: =CV19/$UW$19 -> 0 | CY19: 0 | CZ19: =$G19*CY19 -> 0 | DA19: =CY19/$UW$19 -> 0 | DB19: 0 | DC19: =$G19*DB19 -> 0 | DD19: =DB19/$UW$19 -> 0 | DE19: 0 | DF19: =$G19*DE19 -> 0 | DG19: =DE19/$UW$19 -> 0 | DH19: 0 | DI19: =$G19*DH19 -> 0 | DJ19: =DH19/$UW$19 -> 0 | DK19: 0 | DL19: =$G19*DK19 -> 0 | DM19: =DK19/$UW$19 -> 0 | DN19: 0 | DO19: =$G19*DN19 -> 0 | DP19: =DN19/$UW$19 -> 0 | DQ19: 0 | DR19: 0 | DS19: =DQ19/$UW$19 -> 0 | DT19: 0 | DU19: 0 | DV19: =DT19/$UW$19 -> 0 | DW19: 0 | DX19: =$G19*DW19 -> 0 | DY19: =DW19/$UW$19 -> 0 | DZ19: 0 | EA19: =$G19*DZ19 -> 0 | EB19: =DZ19/$UW$19 -> 0 | EC19: 0 | ED19: =$G19*EC19 -> 0 | EE19: =EC19/$UW$19 -> 0 | UW19: 15.17
A20: 1.3.4 | C20: D | D20: 16 mm - dužine 12m | E20: 16 mm - length 12m | F20: kg | G20: =CENA!G11 -> 0 | H20: 0 | I20: 0 | J20: 0 | K20: =$G20*J20 -> 0 | L20: =J20/$UW$20 -> 0 | M20: 0 | N20: =$G20*M20 -> 0 | O20: =M20/$UW$20 -> 0 | P20: 0 | Q20: 0 | R20: =P20/$UW$20 -> 0 | S20: 0 | T20: 0 | U20: =S20/$UW$20 -> 0 | V20: 0 | W20: =$G20*V20 -> 0 | X20: =V20/$UW$20 -> 0 | Y20: 0 | Z20: =$G20*Y20 -> 0 | AA20: =Y20/$UW$20 -> 0 | AB20: 0 | AC20: =$G20*AB20 -> 0 | AD20: =AB20/$UW$20 -> 0 | AE20: 0 | AF20: =$G20*AE20 -> 0 | AG20: =AE20/$UW$20 -> 0 | AH20: 0 | AI20: =$G20*AH20 -> 0 | AJ20: =AH20/$UW$20 -> 0 | AK20: 0 | AL20: =$G20*AK20 -> 0 | AM20: =AK20/$UW$20 -> 0 | AN20: 0 | AO20: =$G20*AN20 -> 0 | AP20: =AN20/$UW$20 -> 0 | AQ20: 0 | AR20: =$G20*AQ20 -> 0 | AS20: =AQ20/$UW$20 -> 0 | AT20: 0 | AU20: =$G20*AT20 -> 0 | AV20: =AT20/$UW$20 -> 0 | AW20: 0 | AX20: =$G20*AW20 -> 0 | AY20: =AW20/$UW$20 -> 0 | AZ20: 0 | BA20: =$G20*AZ20 -> 0 | BB20: =AZ20/$UW$20 -> 0 | BC20: 0 | BD20: =$G20*BC20 -> 0 | BE20: =BC20/$UW$20 -> 0 | BF20: 0 | BG20: =$G20*BF20 -> 0 | BH20: =BF20/$UW$20 -> 0 | BI20: 0 | BJ20: =$G20*BI20 -> 0 | BK20: =BI20/$UW$20 -> 0 | BL20: 0 | BM20: =$G20*BL20 -> 0 | BN20: =BL20/$UW$20 -> 0 | BO20: 0 | BP20: =$G20*BO20 -> 0 | BQ20: =BO20/$UW$20 -> 0 | BR20: 0 | BS20: =$G20*BR20 -> 0 | BT20: =BR20/$UW$20 -> 0 | BU20: 0 | BV20: =$G20*BU20 -> 0 | BW20: =BU20/$UW$20 -> 0 | BX20: 0 | BY20: 0 | BZ20: =BX20/$UW$20 -> 0 | CB20: =$G20*CA20 -> 0 | CC20: =CA20/$UW$20 -> 0 | CD20: 0 | CE20: =$G20*CD20 -> 0 | CF20: =CD20/$UW$20 -> 0 | CG20: 0 | CH20: =$G20*CG20 -> 0 | CI20: =CG20/$UW$20 -> 0 | CJ20: 0 | CK20: =$G20*CJ20 -> 0 | CL20: =CJ20/$UW$20 -> 0 | CM20: 0 | CN20: =$G20*CM20 -> 0 | CO20: =CM20/$UW$20 -> 0 | CP20: 0 | CQ20: =$G20*CP20 -> 0 | CR20: =CP20/$UW$20 -> 0 | CS20: 0 | CT20: =$G20*CS20 -> 0 | CU20: =CS20/$UW$20 -> 0 | CV20: 0 | CW20: =$G20*CV20 -> 0 | CX20: =CV20/$UW$20 -> 0 | CY20: 0 | CZ20: =$G20*CY20 -> 0 | DA20: =CY20/$UW$20 -> 0 | DB20: 0 | DC20: =$G20*DB20 -> 0 | DD20: =DB20/$UW$20 -> 0 | DE20: 0 | DF20: =$G20*DE20 -> 0 | DG20: =DE20/$UW$20 -> 0 | DH20: 0 | DI20: =$G20*DH20 -> 0 | DJ20: =DH20/$UW$20 -> 0 | DK20: 0 | DL20: =$G20*DK20 -> 0 | DM20: =DK20/$UW$20 -> 0 | DN20: 0 | DO20: =$G20*DN20 -> 0 | DP20: =DN20/$UW$20 -> 0 | DQ20: 0 | DR20: 0 | DS20: =DQ20/$UW$20 -> 0 | DT20: 0 | DU20: 0 | DV20: =DT20/$UW$20 -> 0 | DW20: 0 | DX20: =$G20*DW20 -> 0 | DY20: =DW20/$UW$20 -> 0 | DZ20: 0 | EA20: =$G20*DZ20 -> 0 | EB20: =DZ20/$UW$20 -> 0 | EC20: 0 | ED20: =$G20*EC20 -> 0 | EE20: =EC20/$UW$20 -> 0 | UW20: 19.81
A21: 1.4 | B21: O | C21: 4 | D21: Glatko betonsko gvožđe (GA) | E21: Glibly reinforcement steel | F21: / | G21: / | H21: / | I21: / | J21: / | K21: / | M21: / | N21: / | P21: / | Q21: / | S21: / | T21: / | V21: / | W21: / | Y21: / | Z21: / | AB21: / | AC21: / | AE21: / | AF21: / | AH21: / | AI21: / | AK21: / | AL21: / | AN21: / | AO21: / | AQ21: / | AR21: / | AT21: / | AU21: / | AW21: / | AX21: / | AZ21: / | BA21: / | BC21: / | BD21: / | BF21: / | BG21: / | BI21: / | BJ21: / | BL21: / | BM21: / | BO21: / | BP21: / | BR21: / | BS21: / | BU21: / | BV21: / | BX21: / | BY21: / | CA21: / | CB21: / | CD21: / | CE21: / | CG21: / | CH21: / | CJ21: / | CK21: / | CM21: / | CN21: / | CP21: / | CQ21: / | CS21: / | CT21: / | CV21: / | CW21: / | CY21: / | CZ21: / | DB21: / | DC21: / | DE21: / | DF21: / | DH21: / | DI21: / | DK21: / | DL21: / | DN21: / | DO21: / | DQ21: / | DR21: / | DT21: / | DU21: / | DW21: / | DX21: / | DZ21: / | EA21: / | EC21: / | ED21: /
A22: 1.4.1 | C22: B | D22: 8 mm - dužine 12m | E22: 8 mm - length 12m | F22: kg | G22: =CENA!G13 -> 0 | H22: =J22+M22+P22+S22+AQ22+CJ22+DK22+FD22+V22+Y22+AB22+AE22+AH22+AK22+AN22+AT22+AW22+AZ22+BC22+BF22+BI22+BL22+BO22+BR22+BU22+BX22+CA22+CD22+CG22+CM22+CP22+CS22+CV22+CY22+DB22+DE22+DH22+DN22+DQ22+DT22+DW22+DZ22+EC22+EF22+EI22+EL22+EO22+ER22+EU22+EX22+FA22+FG22+FJ22+FM22+FP22+FS22+FV22+FY22+GB22+GE22+GH22+GK22+GN22+GQ22+GT22+GW22+GZ22+HC22+HF22+HI22+HL22+HO22+HR22+HU22+HX22+IA22+ID22+IG22+IJ22+IM22+IP22+IS22+IV22+IY22+JB22+JE22+JH22+JK22+JN22+JQ22+JT22+JW22+JZ22+KC22+KF22+KI22+KL22+KO22+KR22+KU22+KX22+LA22+LD22+LG22+LJ22+LM22+LP22+LS22+LV22+LY22+MB22+ME22+MH22+MK22+MN22+MQ22+MT22+MW22+MZ22+NC22+NF22+NI22+NL22+NO22+NR22+NU22+NX22+OA22+OD22+OG22+OJ22+OM22+OP22+OS22+OV22+OY22+PB22+PE22+PH22+PK22+PN22+PQ22+PT22+PW22+PZ22+QC22+QF22+QI22+QL22+QO22+QR22+QU22+QX22+RA22+RD22+RG22+RJ22+RM22+RP22+RS22+RV22+RY22+SB22+SE22+SH22+SK22+SN22+SQ22+ST22+SW22+SZ22+TC22+TF22+TI22+TL22+TO22+TR22+TU22+TX22+UA22+UD22+UG22+UJ22+UM22+UP22+US22 -> 1355.64 | I22: =G22*H22 -> 0 | J22: 0 | K22: =$G22*J22 -> 0 | L22: =J22/$UW$22 -> 0 | M22: 118.5 | N22: =$G22*M22 -> 0 | O22: =M22/$UW$22 -> 25 | P22: 170.64 | Q22: =$G22*P22 -> 0 | R22: =P22/$UW$22 -> 36 | S22: 118.5 | T22: =$G22*S22 -> 0 | U22: =S22/$UW$22 -> 25 | V22: 0 | W22: =$G22*V22 -> 0 | X22: =V22/$UW$22 -> 0 | Y22: 0 | Z22: =$G22*Y22 -> 0 | AA22: =Y22/$UW$22 -> 0 | AB22: 0 | AC22: =$G22*AB22 -> 0 | AD22: =AB22/$UW$22 -> 0 | AE22: 71.1 | AF22: =$G22*AE22 -> 0 | AG22: =AE22/$UW$22 -> 15 | AH22: 0 | AI22: =$G22*AH22 -> 0 | AJ22: =AH22/$UW$22 -> 0 | AK22: 85.32 | AL22: =$G22*AK22 -> 0 | AM22: =AK22/$UW$22 -> 18 | AN22: 0 | AO22: =$G22*AN22 -> 0 | AP22: =AN22/$UW$22 -> 0 | AQ22: 0 | AR22: =$G22*AQ22 -> 0 | AS22: =AQ22/$UW$22 -> 0 | AT22: 0 | AU22: =$G22*AT22 -> 0 | AV22: =AT22/$UW$22 -> 0 | AW22: 0 | AX22: =$G22*AW22 -> 0 | AY22: =AW22/$UW$22 -> 0 | AZ22: 0 | BA22: =$G22*AZ22 -> 0 | BB22: =AZ22/$UW$22 -> 0 | BC22: 0 | BD22: =$G22*BC22 -> 0 | BE22: =BC22/$UW$22 -> 0 | BF22: 0 | BG22: =$G22*BF22 -> 0 | BH22: =BF22/$UW$22 -> 0 | BI22: 0 | BJ22: =$G22*BI22 -> 0 | BK22: =BI22/$UW$22 -> 0 | BL22: 99.54 | BM22: =$G22*BL22 -> 0 | BN22: =BL22/$UW$22 -> 21 | BO22: 118.5 | BP22: =$G22*BO22 -> 0 | BQ22: =BO22/$UW$22 -> 25 | BR22: 0 | BS22: =$G22*BR22 -> 0 | BT22: =BR22/$UW$22 -> 0 | BU22: 18.96 | BV22: =$G22*BU22 -> 0 | BW22: =BU22/$UW$22 -> 4 | BX22: 0 | BY22: =$G22*BX22 -> 0 | BZ22: =BX22/$UW$22 -> 0 | CB22: =$G22*CA22 -> 0 | CC22: =CA22/$UW$22 -> 0 | CD22: 109.02 | CE22: =$G22*CD22 -> 0 | CF22: =CD22/$UW$22 -> 23 | CG22: 104.28 | CH22: =$G22*CG22 -> 0 | CI22: =CG22/$UW$22 -> 22 | CJ22: 94.8 | CK22: =$G22*CJ22 -> 0 | CL22: =CJ22/$UW$22 -> 20 | CM22: 75.84 | CN22: =$G22*CM22 -> 0 | CO22: =CM22/$UW$22 -> 16 | CP22: 0 | CQ22: =$G22*CP22 -> 0 | CR22: =CP22/$UW$22 -> 0 | CS22: 0 | CT22: =$G22*CS22 -> 0 | CU22: =CS22/$UW$22 -> 0 | CV22: 0 | CW22: =$G22*CV22 -> 0 | CX22: =CV22/$UW$22 -> 0 | CY22: 0 | CZ22: =$G22*CY22 -> 0 | DA22: =CY22/$UW$22 -> 0 | DB22: 0 | DC22: =$G22*DB22 -> 0 | DD22: =DB22/$UW$22 -> 0 | DE22: 0 | DF22: =$G22*DE22 -> 0 | DG22: =DE22/$UW$22 -> 0 | DH22: 0 | DI22: =$G22*DH22 -> 0 | DJ22: =DH22/$UW$22 -> 0 | DK22: 0 | DL22: =$G22*DK22 -> 0 | DM22: =DK22/$UW$22 -> 0 | DN22: 0 | DO22: =$G22*DN22 -> 0 | DP22: =DN22/$UW$22 -> 0 | DQ22: 0 | DR22: =$G22*DQ22 -> 0 | DS22: =DQ22/$UW$22 -> 0 | DT22: 0 | DU22: =$G22*DT22 -> 0 | DV22: =DT22/$UW$22 -> 0 | DW22: 170.64 | DX22: =$G22*DW22 -> 0 | DY22: =DW22/$UW$22 -> 36 | DZ22: 0 | EA22: =$G22*DZ22 -> 0 | EB22: =DZ22/$UW$22 -> 0 | EC22: 0 | ED22: =$G22*EC22 -> 0 | EE22: =EC22/$UW$22 -> 0 | UW22: 4.74
A23: 1.4.2 | C23: C | D23: 10 mm - dužine 12m | E23: 10 mm - length 12m | F23: kg | G23: =CENA!G14 -> 0 | H23: 0 | I23: 0 | J23: 0 | K23: =$G23*J23 -> 0 | L23: =J23/$UW$23 -> 0 | M23: 0 | N23: =$G23*M23 -> 0 | O23: =M23/$UW$23 -> 0 | P23: 0 | Q23: 0 | R23: =P23/$UW$23 -> 0 | S23: 0 | T23: 0 | U23: =S23/$UW$23 -> 0 | V23: 0 | W23: =$G23*V23 -> 0 | X23: =V23/$UW$23 -> 0 | Y23: 0 | Z23: =$G23*Y23 -> 0 | AA23: =Y23/$UW$23 -> 0 | AB23: 0 | AC23: =$G23*AB23 -> 0 | AD23: =AB23/$UW$23 -> 0 | AE23: 0 | AF23: =$G23*AE23 -> 0 | AG23: =AE23/$UW$23 -> 0 | AH23: 0 | AI23: =$G23*AH23 -> 0 | AJ23: =AH23/$UW$23 -> 0 | AK23: 0 | AL23: =$G23*AK23 -> 0 | AM23: =AK23/$UW$23 -> 0 | AN23: 0 | AO23: =$G23*AN23 -> 0 | AP23: =AN23/$UW$23 -> 0 | AQ23: 0 | AR23: =$G23*AQ23 -> 0 | AS23: =AQ23/$UW$23 -> 0 | AT23: 0 | AU23: =$G23*AT23 -> 0 | AV23: =AT23/$UW$23 -> 0 | AW23: 0 | AX23: =$G23*AW23 -> 0 | AY23: =AW23/$UW$23 -> 0 | AZ23: 0 | BA23: =$G23*AZ23 -> 0 | BB23: =AZ23/$UW$23 -> 0 | BC23: 0 | BD23: =$G23*BC23 -> 0 | BE23: =BC23/$UW$23 -> 0 | BF23: 0 | BG23: =$G23*BF23 -> 0 | BH23: =BF23/$UW$23 -> 0 | BI23: 0 | BJ23: =$G23*BI23 -> 0 | BK23: =BI23/$UW$23 -> 0 | BL23: 0 | BM23: =$G23*BL23 -> 0 | BN23: =BL23/$UW$23 -> 0 | BO23: 0 | BP23: =$G23*BO23 -> 0 | BQ23: =BO23/$UW$23 -> 0 | BR23: 0 | BS23: =$G23*BR23 -> 0 | BT23: =BR23/$UW$23 -> 0 | BU23: 0 | BV23: =$G23*BU23 -> 0 | BW23: =BU23/$UW$23 -> 0 | BX23: 0 | BY23: 0 | BZ23: =BX23/$UW$23 -> 0 | CB23: =$G23*CA23 -> 0 | CC23: =CA23/$UW$23 -> 0 | CD23: 0 | CE23: =$G23*CD23 -> 0 | CF23: =CD23/$UW$23 -> 0 | CG23: 0 | CH23: =$G23*CG23 -> 0 | CI23: =CG23/$UW$23 -> 0 | CJ23: 0 | CK23: =$G23*CJ23 -> 0 | CL23: =CJ23/$UW$23 -> 0 | CM23: 0 | CN23: =$G23*CM23 -> 0 | CO23: =CM23/$UW$23 -> 0 | CP23: 0 | CQ23: =$G23*CP23 -> 0 | CR23: =CP23/$UW$23 -> 0 | CS23: 0 | CT23: =$G23*CS23 -> 0 | CU23: =CS23/$UW$23 -> 0 | CV23: 0 | CW23: =$G23*CV23 -> 0 | CX23: =CV23/$UW$23 -> 0 | CY23: 0 | CZ23: =$G23*CY23 -> 0 | DA23: =CY23/$UW$23 -> 0 | DB23: 0 | DC23: =$G23*DB23 -> 0 | DD23: =DB23/$UW$23 -> 0 | DE23: 0 | DF23: =$G23*DE23 -> 0 | DG23: =DE23/$UW$23 -> 0 | DH23: 0 | DI23: =$G23*DH23 -> 0 | DJ23: =DH23/$UW$23 -> 0 | DK23: 0 | DL23: =$G23*DK23 -> 0 | DM23: =DK23/$UW$23 -> 0 | DN23: 0 | DO23: =$G23*DN23 -> 0 | DP23: =DN23/$UW$23 -> 0 | DQ23: 0 | DR23: 0 | DS23: =DQ23/$UW$23 -> 0 | DT23: 0 | DU23: 0 | DV23: =DT23/$UW$23 -> 0 | DW23: 0 | DX23: =$G23*DW23 -> 0 | DY23: =DW23/$UW$23 -> 0 | DZ23: 0 | EA23: =$G23*DZ23 -> 0 | EB23: =DZ23/$UW$23 -> 0 | EC23: 0 | ED23: =$G23*EC23 -> 0 | EE23: =EC23/$UW$23 -> 0 | UW23: 7.4
A24: 1.5 | B24: O | C24: 5 | D24: Armaturna betonska mreža dim. (dxš) 6000 x 2150 = 12,9 m2/kom | E24: Reinforcement mesh dim. (lxw) 6000 x 2150 = 12,9 m2/pcs | F24: / | G24: / | H24: / | I24: / | J24: / | K24: / | M24: / | N24: / | P24: / | Q24: / | S24: / | T24: / | V24: / | W24: / | Y24: / | Z24: / | AB24: / | AC24: / | AE24: / | AF24: / | AH24: / | AI24: / | AK24: / | AL24: / | AN24: / | AO24: / | AQ24: / | AR24: / | AT24: / | AU24: / | AW24: / | AX24: / | AZ24: / | BA24: / | BC24: / | BD24: / | BF24: / | BG24: / | BI24: / | BJ24: / | BL24: / | BM24: / | BO24: / | BP24: / | BR24: / | BS24: / | BU24: / | BV24: / | BX24: / | BY24: / | CA24: / | CB24: / | CD24: / | CE24: / | CG24: / | CH24: / | CJ24: / | CK24: / | CM24: / | CN24: / | CP24: / | CQ24: / | CS24: / | CT24: / | CV24: / | CW24: / | CY24: / | CZ24: / | DB24: / | DC24: / | DE24: / | DF24: / | DH24: / | DI24: / | DK24: / | DL24: / | DN24: / | DO24: / | DQ24: / | DR24: / | DT24: / | DU24: / | DW24: / | DX24: / | DZ24: / | EA24: / | EC24: / | ED24: /
A25: 1.5.1 | C25: A | D25: Q84 /4x4/150x150/ | E25: Q84 /4x4/150x150/ | F25: kg | G25: =CENA!G16 -> 0 | H25: =J25+M25+P25+S25+AQ25+CJ25+DK25+FD25+V25+Y25+AB25+AE25+AH25+AK25+AN25+AT25+AW25+AZ25+BC25+BF25+BI25+BL25+BO25+BR25+BU25+BX25+CA25+CD25+CG25+CM25+CP25+CS25+CV25+CY25+DB25+DE25+DH25+DN25+DQ25+DT25+DW25+DZ25+EC25+EF25+EI25+EL25+EO25+ER25+EU25+EX25+FA25+FG25+FJ25+FM25+FP25+FS25+FV25+FY25+GB25+GE25+GH25+GK25+GN25+GQ25+GT25+GW25+GZ25+HC25+HF25+HI25+HL25+HO25+HR25+HU25+HX25+IA25+ID25+IG25+IJ25+IM25+IP25+IS25+IV25+IY25+JB25+JE25+JH25+JK25+JN25+JQ25+JT25+JW25+JZ25+KC25+KF25+KI25+KL25+KO25+KR25+KU25+KX25+LA25+LD25+LG25+LJ25+LM25+LP25+LS25+LV25+LY25+MB25+ME25+MH25+MK25+MN25+MQ25+MT25+MW25+MZ25+NC25+NF25+NI25+NL25+NO25+NR25+NU25+NX25+OA25+OD25+OG25+OJ25+OM25+OP25+OS25+OV25+OY25+PB25+PE25+PH25+PK25+PN25+PQ25+PT25+PW25+PZ25+QC25+QF25+QI25+QL25+QO25+QR25+QU25+QX25+RA25+RD25+RG25+RJ25+RM25+RP25+RS25+RV25+RY25+SB25+SE25+SH25+SK25+SN25+SQ25+ST25+SW25+SZ25+TC25+TF25+TI25+TL25+TO25+TR25+TU25+TX25+UA25+UD25+UG25+UJ25+UM25+UP25+US25 -> 0 | I25: =G25*H25 -> 0 | J25: 0 | K25: =$G25*J25 -> 0 | L25: =J25/$UW$25 -> 0 | M25: 0 | N25: =$G25*M25 -> 0 | O25: =M25/$UW$25 -> 0 | P25: 0 | Q25: =$G25*P25 -> 0 | R25: =P25/$UW$25 -> 0 | S25: 0 | T25: =$G25*S25 -> 0 | U25: =S25/$UW$25 -> 0 | V25: 0 | W25: =$G25*V25 -> 0 | X25: =V25/$UW$25 -> 0 | Y25: 0 | Z25: =$G25*Y25 -> 0 | AA25: =Y25/$UW$25 -> 0 | AB25: 0 | AC25: =$G25*AB25 -> 0 | AD25: =AB25/$UW$25 -> 0 | AE25: 0 | AF25: =$G25*AE25 -> 0 | AG25: =AE25/$UW$25 -> 0 | AH25: 0 | AI25: =$G25*AH25 -> 0 | AJ25: =AH25/$UW$25 -> 0 | AK25: 0 | AL25: =$G25*AK25 -> 0 | AM25: =AK25/$UW$25 -> 0 | AN25: 0 | AO25: =$G25*AN25 -> 0 | AP25: =AN25/$UW$25 -> 0 | AQ25: 0 | AR25: =$G25*AQ25 -> 0 | AS25: =AQ25/$UW$25 -> 0 | AT25: 0 | AU25: =$G25*AT25 -> 0 | AV25: =AT25/$UW$25 -> 0 | AW25: 0 | AX25: =$G25*AW25 -> 0 | AY25: =AW25/$UW$25 -> 0 | AZ25: 0 | BA25: =$G25*AZ25 -> 0 | BB25: =AZ25/$UW$25 -> 0 | BC25: 0 | BD25: =$G25*BC25 -> 0 | BE25: =BC25/$UW$25 -> 0 | BF25: 0 | BG25: =$G25*BF25 -> 0 | BH25: =BF25/$UW$25 -> 0 | BI25: 0 | BJ25: =$G25*BI25 -> 0 | BK25: =BI25/$UW$25 -> 0 | BL25: 0 | BM25: =$G25*BL25 -> 0 | BN25: =BL25/$UW$25 -> 0 | BO25: 0 | BP25: =$G25*BO25 -> 0 | BQ25: =BO25/$UW$25 -> 0 | BR25: 0 | BS25: =$G25*BR25 -> 0 | BT25: =BR25/$UW$25 -> 0 | BU25: 0 | BV25: =$G25*BU25 -> 0 | BW25: =BU25/$UW$25 -> 0 | BX25: 0 | BY25: =$G25*BX25 -> 0 | BZ25: =BX25/$UW$25 -> 0 | CB25: =$G25*CA25 -> 0 | CC25: =CA25/$UW$25 -> 0 | CD25: 0 | CE25: =$G25*CD25 -> 0 | CF25: =CD25/$UW$25 -> 0 | CG25: 0 | CH25: =$G25*CG25 -> 0 | CI25: =CG25/$UW$25 -> 0 | CJ25: 0 | CK25: =$G25*CJ25 -> 0 | CL25: =CJ25/$UW$25 -> 0 | CM25: 0 | CN25: =$G25*CM25 -> 0 | CO25: =CM25/$UW$25 -> 0 | CP25: 0 | CQ25: =$G25*CP25 -> 0 | CR25: =CP25/$UW$25 -> 0 | CS25: 0 | CT25: =$G25*CS25 -> 0 | CU25: =CS25/$UW$25 -> 0 | CV25: 0 | CW25: =$G25*CV25 -> 0 | CX25: =CV25/$UW$25 -> 0 | CY25: 0 | CZ25: =$G25*CY25 -> 0 | DA25: =CY25/$UW$25 -> 0 | DB25: 0 | DC25: =$G25*DB25 -> 0 | DD25: =DB25/$UW$25 -> 0 | DE25: 0 | DF25: =$G25*DE25 -> 0 | DG25: =DE25/$UW$25 -> 0 | DH25: 0 | DI25: =$G25*DH25 -> 0 | DJ25: =DH25/$UW$25 -> 0 | DK25: 0 | DL25: =$G25*DK25 -> 0 | DM25: =DK25/$UW$25 -> 0 | DN25: 0 | DO25: =$G25*DN25 -> 0 | DP25: =DN25/$UW$25 -> 0 | DQ25: 0 | DR25: =$G25*DQ25 -> 0 | DS25: =DQ25/$UW$25 -> 0 | DT25: 0 | DU25: =$G25*DT25 -> 0 | DV25: =DT25/$UW$25 -> 0 | DW25: 0 | DX25: =$G25*DW25 -> 0 | DY25: =DW25/$UW$25 -> 0 | DZ25: 0 | EA25: =$G25*DZ25 -> 0 | EB25: =DZ25/$UW$25 -> 0 | EC25: 0 | ED25: =$G25*EC25 -> 0 | EE25: =EC25/$UW$25 -> 0 | UW25: 17.6
A26: 1.5.2 | C26: B | D26: Q131 /5x5/150x150/ | E26: Q131 /5x5/150x150/ | F26: kg | G26: =CENA!G17 -> 0 | H26: 136.9 | I26: 0 | J26: 0 | K26: =$G26*J26 -> 0 | L26: =J26/$UW$26 -> 0 | M26: 0 | N26: =$G26*M26 -> 0 | O26: =M26/$UW$26 -> 0 | P26: 0 | Q26: 0 | R26: =P26/$UW$26 -> 0 | S26: 0 | T26: 0 | U26: =S26/$UW$26 -> 0 | V26: 0 | W26: =$G26*V26 -> 0 | X26: =V26/$UW$26 -> 0 | Y26: 0 | Z26: =$G26*Y26 -> 0 | AA26: =Y26/$UW$26 -> 0 | AB26: 0 | AC26: =$G26*AB26 -> 0 | AD26: =AB26/$UW$26 -> 0 | AE26: 0 | AF26: =$G26*AE26 -> 0 | AG26: =AE26/$UW$26 -> 0 | AH26: 0 | AI26: =$G26*AH26 -> 0 | AJ26: =AH26/$UW$26 -> 0 | AK26: 0 | AL26: =$G26*AK26 -> 0 | AM26: =AK26/$UW$26 -> 0 | AN26: 0 | AO26: =$G26*AN26 -> 0 | AP26: =AN26/$UW$26 -> 0 | AQ26: 0 | AR26: =$G26*AQ26 -> 0 | AS26: =AQ26/$UW$26 -> 0 | AT26: 0 | AU26: =$G26*AT26 -> 0 | AV26: =AT26/$UW$26 -> 0 | AW26: 0 | AX26: =$G26*AW26 -> 0 | AY26: =AW26/$UW$26 -> 0 | AZ26: 0 | BA26: =$G26*AZ26 -> 0 | BB26: =AZ26/$UW$26 -> 0 | BC26: 0 | BD26: =$G26*BC26 -> 0 | BE26: =BC26/$UW$26 -> 0 | BF26: 0 | BG26: =$G26*BF26 -> 0 | BH26: =BF26/$UW$26 -> 0 | BI26: 0 | BJ26: =$G26*BI26 -> 0 | BK26: =BI26/$UW$26 -> 0 | BL26: 136.9 | BM26: =$G26*BL26 -> 0 | BN26: =BL26/$UW$26 -> 5 | BO26: 0 | BP26: =$G26*BO26 -> 0 | BQ26: =BO26/$UW$26 -> 0 | BR26: 0 | BS26: =$G26*BR26 -> 0 | BT26: =BR26/$UW$26 -> 0 | BU26: 0 | BV26: =$G26*BU26 -> 0 | BW26: =BU26/$UW$26 -> 0 | BX26: 0 | BY26: 0 | BZ26: =BX26/$UW$26 -> 0 | CB26: =$G26*CA26 -> 0 | CC26: =CA26/$UW$26 -> 0 | CD26: 0 | CE26: =$G26*CD26 -> 0 | CF26: =CD26/$UW$26 -> 0 | CG26: 0 | CH26: =$G26*CG26 -> 0 | CI26: =CG26/$UW$26 -> 0 | CJ26: 0 | CK26: =$G26*CJ26 -> 0 | CL26: =CJ26/$UW$26 -> 0 | CM26: 0 | CN26: =$G26*CM26 -> 0 | CO26: =CM26/$UW$26 -> 0 | CP26: 0 | CQ26: =$G26*CP26 -> 0 | CR26: =CP26/$UW$26 -> 0 | CS26: 0 | CT26: =$G26*CS26 -> 0 | CU26: =CS26/$UW$26 -> 0 | CV26: 0 | CW26: =$G26*CV26 -> 0 | CX26: =CV26/$UW$26 -> 0 | CY26: 0 | CZ26: =$G26*CY26 -> 0 | DA26: =CY26/$UW$26 -> 0 | DB26: 0 | DC26: =$G26*DB26 -> 0 | DD26: =DB26/$UW$26 -> 0 | DE26: 0 | DF26: =$G26*DE26 -> 0 | DG26: =DE26/$UW$26 -> 0 | DH26: 0 | DI26: =$G26*DH26 -> 0 | DJ26: =DH26/$UW$26 -> 0 | DK26: 0 | DL26: =$G26*DK26 -> 0 | DM26: =DK26/$UW$26 -> 0 | DN26: 0 | DO26: =$G26*DN26 -> 0 | DP26: =DN26/$UW$26 -> 0 | DQ26: 0 | DR26: 0 | DS26: =DQ26/$UW$26 -> 0 | DT26: 0 | DU26: 0 | DV26: =DT26/$UW$26 -> 0 | DW26: 0 | DX26: =$G26*DW26 -> 0 | DY26: =DW26/$UW$26 -> 0 | DZ26: 0 | EA26: =$G26*DZ26 -> 0 | EB26: =DZ26/$UW$26 -> 0 | EC26: 0 | ED26: =$G26*EC26 -> 0 | EE26: =EC26/$UW$26 -> 0 | UW26: 27.38
A27: 1.5.3 | C27: C | D27: Q188 /6x6/150x150/ | E27: Q188 /6x6/150x150/ | F27: kg | G27: =CENA!G18 -> 0 | H27: 4971.96 | I27: 0 | J27: 0 | K27: =$G27*J27 -> 0 | L27: =J27/$UW$27 -> 0 | M27: 0 | N27: =$G27*M27 -> 0 | O27: =M27/$UW$27 -> 0 | P27: 78.92 | Q27: 0 | R27: =P27/$UW$27 -> 2 | S27: 473.52 | T27: 0 | U27: =S27/$UW$27 -> 12 | V27: 236.76 | W27: =$G27*V27 -> 0 | X27: =V27/$UW$27 -> 6 | Y27: 78.92 | Z27: =$G27*Y27 -> 0 | AA27: =Y27/$UW$27 -> 2 | AB27: 276.22 | AC27: =$G27*AB27 -> 0 | AD27: =AB27/$UW$27 -> 7 | AE27: 157.84 | AF27: =$G27*AE27 -> 0 | AG27: =AE27/$UW$27 -> 4 | AH27: 0 | AI27: =$G27*AH27 -> 0 | AJ27: =AH27/$UW$27 -> 0 | AK27: 0 | AL27: =$G27*AK27 -> 0 | AM27: =AK27/$UW$27 -> 0 | AN27: 315.68 | AO27: =$G27*AN27 -> 0 | AP27: =AN27/$UW$27 -> 8 | AQ27: 157.84 | AR27: =$G27*AQ27 -> 0 | AS27: =AQ27/$UW$27 -> 4 | AT27: 118.38 | AU27: =$G27*AT27 -> 0 | AV27: =AT27/$UW$27 -> 3 | AW27: 0 | AX27: =$G27*AW27 -> 0 | AY27: =AW27/$UW$27 -> 0 | AZ27: 157.84 | BA27: =$G27*AZ27 -> 0 | BB27: =AZ27/$UW$27 -> 4 | BC27: 197.3 | BD27: =$G27*BC27 -> 0 | BE27: =BC27/$UW$27 -> 5 | BF27: 157.84 | BG27: =$G27*BF27 -> 0 | BH27: =BF27/$UW$27 -> 4 | BI27: 0 | BJ27: =$G27*BI27 -> 0 | BK27: =BI27/$UW$27 -> 0 | BL27: 0 | BM27: =$G27*BL27 -> 0 | BN27: =BL27/$UW$27 -> 0 | BO27: 315.68 | BP27: =$G27*BO27 -> 0 | BQ27: =BO27/$UW$27 -> 8 | BR27: 236.76 | BS27: =$G27*BR27 -> 0 | BT27: =BR27/$UW$27 -> 6 | BU27: 315.68 | BV27: =$G27*BU27 -> 0 | BW27: =BU27/$UW$27 -> 8 | BX27: 0 | BY27: 0 | BZ27: =BX27/$UW$27 -> 0 | CB27: =$G27*CA27 -> 0 | CC27: =CA27/$UW$27 -> 0 | CD27: 236.76 | CE27: =$G27*CD27 -> 0 | CF27: =CD27/$UW$27 -> 6 | CG27: 0 | CH27: =$G27*CG27 -> 0 | CI27: =CG27/$UW$27 -> 0 | CJ27: 197.3 | CK27: =$G27*CJ27 -> 0 | CL27: =CJ27/$UW$27 -> 5 | CM27: 0 | CN27: =$G27*CM27 -> 0 | CO27: =CM27/$UW$27 -> 0 | CP27: 0 | CQ27: =$G27*CP27 -> 0 | CR27: =CP27/$UW$27 -> 0 | CS27: 0 | CT27: =$G27*CS27 -> 0 | CU27: =CS27/$UW$27 -> 0 | CV27: 0 | CW27: =$G27*CV27 -> 0 | CX27: =CV27/$UW$27 -> 0 | CY27: 78.92 | CZ27: =$G27*CY27 -> 0 | DA27: =CY27/$UW$27 -> 2 | DB27: 197.3 | DC27: =$G27*DB27 -> 0 | DD27: =DB27/$UW$27 -> 5 | DE27: 78.92 | DF27: =$G27*DE27 -> 0 | DG27: =DE27/$UW$27 -> 2 | DH27: 197.3 | DI27: =$G27*DH27 -> 0 | DJ27: =DH27/$UW$27 -> 5 | DK27: 0 | DL27: =$G27*DK27 -> 0 | DM27: =DK27/$UW$27 -> 0 | DN27: 0 | DO27: =$G27*DN27 -> 0 | DP27: =DN27/$UW$27 -> 0 | DQ27: 276.22 | DR27: 0 | DS27: =DQ27/$UW$27 -> 7 | DT27: 157.84 | DU27: 0 | DV27: =DT27/$UW$27 -> 4 | DW27: 157.84 | DX27: =$G27*DW27 -> 0 | DY27: =DW27/$UW$27 -> 4 | DZ27: 118.38 | EA27: =$G27*DZ27 -> 0 | EB27: =DZ27/$UW$27 -> 3 | EC27: 0 | ED27: =$G27*EC27 -> 0 | EE27: =EC27/$UW$27 -> 0 | UW27: 39.46
A28: 1.5.4 | C28: D | D28: Q283 /6x6/100x100/ | E28: Q283 /6x6/100x100/ | F28: kg | G28: =CENA!G19 -> 0 | H28: 0 | I28: 0 | J28: 0 | K28: =$G28*J28 -> 0 | L28: =J28/$UW$28 -> 0 | M28: 0 | N28: =$G28*M28 -> 0 | O28: =M28/$UW$28 -> 0 | P28: 0 | Q28: 0 | R28: =P28/$UW$28 -> 0 | S28: 0 | T28: 0 | U28: =S28/$UW$28 -> 0 | V28: 0 | W28: =$G28*V28 -> 0 | X28: =V28/$UW$28 -> 0 | Y28: 0 | Z28: =$G28*Y28 -> 0 | AA28: =Y28/$UW$28 -> 0 | AB28: 0 | AC28: =$G28*AB28 -> 0 | AD28: =AB28/$UW$28 -> 0 | AE28: 0 | AF28: =$G28*AE28 -> 0 | AG28: =AE28/$UW$28 -> 0 | AH28: 0 | AI28: =$G28*AH28 -> 0 | AJ28: =AH28/$UW$28 -> 0 | AK28: 0 | AL28: =$G28*AK28 -> 0 | AM28: =AK28/$UW$28 -> 0 | AN28: 0 | AO28: =$G28*AN28 -> 0 | AP28: =AN28/$UW$28 -> 0 | AQ28: 0 | AR28: =$G28*AQ28 -> 0 | AS28: =AQ28/$UW$28 -> 0 | AT28: 0 | AU28: =$G28*AT28 -> 0 | AV28: =AT28/$UW$28 -> 0 | AW28: 0 | AX28: =$G28*AW28 -> 0 | AY28: =AW28/$UW$28 -> 0 | AZ28: 0 | BA28: =$G28*AZ28 -> 0 | BB28: =AZ28/$UW$28 -> 0 | BC28: 0 | BD28: =$G28*BC28 -> 0 | BE28: =BC28/$UW$28 -> 0 | BF28: 0 | BG28: =$G28*BF28 -> 0 | BH28: =BF28/$UW$28 -> 0 | BI28: 0 | BJ28: =$G28*BI28 -> 0 | BK28: =BI28/$UW$28 -> 0 | BL28: 0 | BM28: =$G28*BL28 -> 0 | BN28: =BL28/$UW$28 -> 0 | BO28: 0 | BP28: =$G28*BO28 -> 0 | BQ28: =BO28/$UW$28 -> 0 | BR28: 0 | BS28: =$G28*BR28 -> 0 | BT28: =BR28/$UW$28 -> 0 | BU28: 0 | BV28: =$G28*BU28 -> 0 | BW28: =BU28/$UW$28 -> 0 | BX28: 0 | BY28: 0 | BZ28: =BX28/$UW$28 -> 0 | CB28: =$G28*CA28 -> 0 | CC28: =CA28/$UW$28 -> 0 | CD28: 0 | CE28: =$G28*CD28 -> 0 | CF28: =CD28/$UW$28 -> 0 | CG28: 0 | CH28: =$G28*CG28 -> 0 | CI28: =CG28/$UW$28 -> 0 | CJ28: 0 | CK28: =$G28*CJ28 -> 0 | CL28: =CJ28/$UW$28 -> 0 | CM28: 0 | CN28: =$G28*CM28 -> 0 | CO28: =CM28/$UW$28 -> 0 | CP28: 0 | CQ28: =$G28*CP28 -> 0 | CR28: =CP28/$UW$28 -> 0 | CS28: 0 | CT28: =$G28*CS28 -> 0 | CU28: =CS28/$UW$28 -> 0 | CV28: 0 | CW28: =$G28*CV28 -> 0 | CX28: =CV28/$UW$28 -> 0 | CY28: 0 | CZ28: =$G28*CY28 -> 0 | DA28: =CY28/$UW$28 -> 0 | DB28: 0 | DC28: =$G28*DB28 -> 0 | DD28: =DB28/$UW$28 -> 0 | DE28: 0 | DF28: =$G28*DE28 -> 0 | DG28: =DE28/$UW$28 -> 0 | DH28: 0 | DI28: =$G28*DH28 -> 0 | DJ28: =DH28/$UW$28 -> 0 | DK28: 0 | DL28: =$G28*DK28 -> 0 | DM28: =DK28/$UW$28 -> 0 | DN28: 0 | DO28: =$G28*DN28 -> 0 | DP28: =DN28/$UW$28 -> 0 | DQ28: 0 | DR28: 0 | DS28: =DQ28/$UW$28 -> 0 | DT28: 0 | DU28: 0 | DV28: =DT28/$UW$28 -> 0 | DW28: 0 | DX28: =$G28*DW28 -> 0 | DY28: =DW28/$UW$28 -> 0 | DZ28: 0 | EA28: =$G28*DZ28 -> 0 | EB28: =DZ28/$UW$28 -> 0 | EC28: 0 | ED28: =$G28*EC28 -> 0 | EE28: =EC28/$UW$28 -> 0 | UW28: 58.21
A29: 1.5.5 | C29: E | D29: Q335 /8x8/150x150/ | E29: Q335 /8x8/150x150/ | F29: kg | G29: =CENA!G20 -> 0 | H29: 0 | I29: 0 | J29: 0 | K29: =$G29*J29 -> 0 | L29: =J29/$UW$29 -> 0 | M29: 0 | N29: =$G29*M29 -> 0 | O29: =M29/$UW$29 -> 0 | P29: 0 | Q29: 0 | R29: =P29/$UW$29 -> 0 | S29: 0 | T29: 0 | U29: =S29/$UW$29 -> 0 | V29: 0 | W29: =$G29*V29 -> 0 | X29: =V29/$UW$29 -> 0 | Y29: 0 | Z29: =$G29*Y29 -> 0 | AA29: =Y29/$UW$29 -> 0 | AB29: 0 | AC29: =$G29*AB29 -> 0 | AD29: =AB29/$UW$29 -> 0 | AE29: 0 | AF29: =$G29*AE29 -> 0 | AG29: =AE29/$UW$29 -> 0 | AH29: 0 | AI29: =$G29*AH29 -> 0 | AJ29: =AH29/$UW$29 -> 0 | AK29: 0 | AL29: =$G29*AK29 -> 0 | AM29: =AK29/$UW$29 -> 0 | AN29: 0 | AO29: =$G29*AN29 -> 0 | AP29: =AN29/$UW$29 -> 0 | AQ29: 0 | AR29: =$G29*AQ29 -> 0 | AS29: =AQ29/$UW$29 -> 0 | AT29: 0 | AU29: =$G29*AT29 -> 0 | AV29: =AT29/$UW$29 -> 0 | AW29: 0 | AX29: =$G29*AW29 -> 0 | AY29: =AW29/$UW$29 -> 0 | AZ29: 0 | BA29: =$G29*AZ29 -> 0 | BB29: =AZ29/$UW$29 -> 0 | BC29: 0 | BD29: =$G29*BC29 -> 0 | BE29: =BC29/$UW$29 -> 0 | BF29: 0 | BG29: =$G29*BF29 -> 0 | BH29: =BF29/$UW$29 -> 0 | BI29: 0 | BJ29: =$G29*BI29 -> 0 | BK29: =BI29/$UW$29 -> 0 | BL29: 0 | BM29: =$G29*BL29 -> 0 | BN29: =BL29/$UW$29 -> 0 | BO29: 0 | BP29: =$G29*BO29 -> 0 | BQ29: =BO29/$UW$29 -> 0 | BR29: 0 | BS29: =$G29*BR29 -> 0 | BT29: =BR29/$UW$29 -> 0 | BU29: 0 | BV29: =$G29*BU29 -> 0 | BW29: =BU29/$UW$29 -> 0 | BX29: 0 | BY29: 0 | BZ29: =BX29/$UW$29 -> 0 | CB29: =$G29*CA29 -> 0 | CC29: =CA29/$UW$29 -> 0 | CD29: 0 | CE29: =$G29*CD29 -> 0 | CF29: =CD29/$UW$29 -> 0 | CG29: 0 | CH29: =$G29*CG29 -> 0 | CI29: =CG29/$UW$29 -> 0 | CJ29: 0 | CK29: =$G29*CJ29 -> 0 | CL29: =CJ29/$UW$29 -> 0 | CM29: 0 | CN29: =$G29*CM29 -> 0 | CO29: =CM29/$UW$29 -> 0 | CP29: 0 | CQ29: =$G29*CP29 -> 0 | CR29: =CP29/$UW$29 -> 0 | CS29: 0 | CT29: =$G29*CS29 -> 0 | CU29: =CS29/$UW$29 -> 0 | CV29: 0 | CW29: =$G29*CV29 -> 0 | CX29: =CV29/$UW$29 -> 0 | CY29: 0 | CZ29: =$G29*CY29 -> 0 | DA29: =CY29/$UW$29 -> 0 | DB29: 0 | DC29: =$G29*DB29 -> 0 | DD29: =DB29/$UW$29 -> 0 | DE29: 0 | DF29: =$G29*DE29 -> 0 | DG29: =DE29/$UW$29 -> 0 | DH29: 0 | DI29: =$G29*DH29 -> 0 | DJ29: =DH29/$UW$29 -> 0 | DK29: 0 | DL29: =$G29*DK29 -> 0 | DM29: =DK29/$UW$29 -> 0 | DN29: 0 | DO29: =$G29*DN29 -> 0 | DP29: =DN29/$UW$29 -> 0 | DQ29: 0 | DR29: 0 | DS29: =DQ29/$UW$29 -> 0 | DT29: 0 | DU29: 0 | DV29: =DT29/$UW$29 -> 0 | DW29: 0 | DX29: =$G29*DW29 -> 0 | DY29: =DW29/$UW$29 -> 0 | DZ29: 0 | EA29: =$G29*DZ29 -> 0 | EB29: =DZ29/$UW$29 -> 0 | EC29: 0 | ED29: =$G29*EC29 -> 0 | EE29: =EC29/$UW$29 -> 0 | UW29: 70.22
A31: 2 | B31: Z | D31: MATERIJAL ZA ZIDANJE, MALTERISANJE, GLETOVANJE I FARBANJE | E31: MASONRY, PLASTERING FAIRING AND PAINTING MATERIAL
A32: 2.1 | B32: Z | C32: 1 | D32: Giter blok (d/š/v) 250x190x190 mm | E32: Gitter block (l/w/h) 250x190x190 mm | F32: kom/pcs | G32: =CENA!G23 -> 0 | H32: =J32+M32+P32+S32+AQ32+CJ32+DK32+FD32+V32+Y32+AB32+AE32+AH32+AK32+AN32+AT32+AW32+AZ32+BC32+BF32+BI32+BL32+BO32+BR32+BU32+BX32+CA32+CD32+CG32+CM32+CP32+CS32+CV32+CY32+DB32+DE32+DH32+DN32+DQ32+DT32+DW32+DZ32+EC32+EF32+EI32+EL32+EO32+ER32+EU32+EX32+FA32+FG32+FJ32+FM32+FP32+FS32+FV32+FY32+GB32+GE32+GH32+GK32+GN32+GQ32+GT32+GW32+GZ32+HC32+HF32+HI32+HL32+HO32+HR32+HU32+HX32+IA32+ID32+IG32+IJ32+IM32+IP32+IS32+IV32+IY32+JB32+JE32+JH32+JK32+JN32+JQ32+JT32+JW32+JZ32+KC32+KF32+KI32+KL32+KO32+KR32+KU32+KX32+LA32+LD32+LG32+LJ32+LM32+LP32+LS32+LV32+LY32+MB32+ME32+MH32+MK32+MN32+MQ32+MT32+MW32+MZ32+NC32+NF32+NI32+NL32+NO32+NR32+NU32+NX32+OA32+OD32+OG32+OJ32+OM32+OP32+OS32+OV32+OY32+PB32+PE32+PH32+PK32+PN32+PQ32+PT32+PW32+PZ32+QC32+QF32+QI32+QL32+QO32+QR32+QU32+QX32+RA32+RD32+RG32+RJ32+RM32+RP32+RS32+RV32+RY32+SB32+SE32+SH32+SK32+SN32+SQ32+ST32+SW32+SZ32+TC32+TF32+TI32+TL32+TO32+TR32+TU32+TX32+UA32+UD32+UG32+UJ32+UM32+UP32+US32 -> 12480 | I32: =G32*H32 -> 0 | J32: 0 | K32: =$G32*J32 -> 0 | M32: 0 | N32: =$G32*M32 -> 0 | P32: 960 | Q32: =$G32*P32 -> 0 | S32: 1280 | T32: =$G32*S32 -> 0 | V32: 320 | W32: =$G32*V32 -> 0 | Y32: 0 | Z32: =$G32*Y32 -> 0 | AB32: 0 | AC32: =$G32*AB32 -> 0 | AE32: 1120 | AF32: =$G32*AE32 -> 0 | AH32: 0 | AI32: =$G32*AH32 -> 0 | AK32: 1280 | AL32: =$G32*AK32 -> 0 | AN32: 0 | AO32: =$G32*AN32 -> 0 | AQ32: 0 | AR32: =$G32*AQ32 -> 0 | AT32: 0 | AU32: =$G32*AT32 -> 0 | AW32: 0 | AX32: =$G32*AW32 -> 0 | AZ32: 0 | BA32: =$G32*AZ32 -> 0 | BC32: 0 | BD32: =$G32*BC32 -> 0 | BF32: 0 | BG32: =$G32*BF32 -> 0 | BI32: 0 | BJ32: =$G32*BI32 -> 0 | BL32: 3520 | BM32: =$G32*BL32 -> 0 | BO32: 0 | BP32: =$G32*BO32 -> 0 | BR32: 0 | BS32: =$G32*BR32 -> 0 | BU32: 320 | BV32: =$G32*BU32 -> 0 | BX32: 0 | BY32: =$G32*BX32 -> 0 | CA32: 0 | CB32: =$G32*CA32 -> 0 | CD32: 640 | CE32: =$G32*CD32 -> 0 | CG32: 0 | CH32: =$G32*CG32 -> 0 | CJ32: 640 | CK32: =$G32*CJ32 -> 0 | CM32: 640 | CN32: =$G32*CM32 -> 0 | CP32: 0 | CQ32: =$G32*CP32 -> 0 | CS32: 0 | CT32: =$G32*CS32 -> 0 | CV32: 0 | CW32: =$G32*CV32 -> 0 | CY32: 320 | CZ32: =$G32*CY32 -> 0 | DB32: 0 | DC32: =$G32*DB32 -> 0 | DE32: 0 | DF32: =$G32*DE32 -> 0 | DH32: 0 | DI32: =$G32*DH32 -> 0 | DK32: 0 | DL32: =$G32*DK32 -> 0 | DN32: 0 | DO32: =$G32*DN32 -> 0 | DQ32: 0 | DR32: =$G32*DQ32 -> 0 | DT32: 0 | DU32: =$G32*DT32 -> 0 | DW32: 1440 | DX32: =$G32*DW32 -> 0 | DZ32: 0 | EA32: =$G32*DZ32 -> 0 | EC32: 0 | ED32: =$G32*EC32 -> 0
A33: 2.2 | B33: Z | C33: 2 | D33: Giter polublok (12cm) (d/š/v) 250x120x190mm | E33: Gitter half block (12cm) (l/w/h) 250x120x190mm | F33: kom/pcs | G33: =CENA!G24 -> 0 | H33: 1680 | I33: 0 | J33: 1680 | K33: =$G33*J33 -> 0 | M33: 0 | N33: =$G33*M33 -> 0 | P33: 0 | Q33: 0 | S33: 0 | T33: 0 | V33: 0 | W33: =$G33*V33 -> 0 | Y33: 0 | Z33: =$G33*Y33 -> 0 | AB33: 0 | AC33: =$G33*AB33 -> 0 | AE33: 0 | AF33: =$G33*AE33 -> 0 | AH33: 0 | AI33: =$G33*AH33 -> 0 | AK33: 0 | AL33: =$G33*AK33 -> 0 | AN33: 0 | AO33: =$G33*AN33 -> 0 | AQ33: 0 | AR33: =$G33*AQ33 -> 0 | AT33: 0 | AU33: =$G33*AT33 -> 0 | AW33: 0 | AX33: =$G33*AW33 -> 0 | AZ33: 0 | BA33: =$G33*AZ33 -> 0 | BC33: 0 | BD33: =$G33*BC33 -> 0 | BF33: 0 | BG33: =$G33*BF33 -> 0 | BI33: 0 | BJ33: =$G33*BI33 -> 0 | BL33: 0 | BM33: =$G33*BL33 -> 0 | BO33: 0 | BP33: =$G33*BO33 -> 0 | BR33: 0 | BS33: =$G33*BR33 -> 0 | BU33: 0 | BV33: =$G33*BU33 -> 0 | BX33: 0 | BY33: 0 | CA33: 0 | CB33: =$G33*CA33 -> 0 | CD33: 0 | CE33: =$G33*CD33 -> 0 | CG33: 0 | CH33: =$G33*CG33 -> 0 | CJ33: 0 | CK33: =$G33*CJ33 -> 0 | CM33: 0 | CN33: =$G33*CM33 -> 0 | CP33: 0 | CQ33: =$G33*CP33 -> 0 | CS33: 0 | CT33: =$G33*CS33 -> 0 | CV33: 0 | CW33: =$G33*CV33 -> 0 | CY33: 0 | CZ33: =$G33*CY33 -> 0 | DB33: 0 | DC33: =$G33*DB33 -> 0 | DE33: 0 | DF33: =$G33*DE33 -> 0 | DH33: 0 | DI33: =$G33*DH33 -> 0 | DK33: 0 | DL33: =$G33*DK33 -> 0 | DN33: 0 | DO33: =$G33*DN33 -> 0 | DQ33: 0 | DR33: 0 | DT33: 0 | DU33: 0 | DW33: 0 | DX33: =$G33*DW33 -> 0 | DZ33: 0 | EA33: =$G33*DZ33 -> 0 | EC33: 0 | ED33: =$G33*EC33 -> 0
A34: 2.3 | B34: Z | C34: 3 | D34: Opeka puna (d/š/v) 250x120x65 mm | E34: Brick (full-without holes) (l/w/h) 250x120x65 mm | F34: kom/pcs | G34: =CENA!G25 -> 0 | H34: 9216 | I34: 0 | J34: 0 | K34: =$G34*J34 -> 0 | M34: 0 | N34: =$G34*M34 -> 0 | P34: 0 | Q34: 0 | S34: 1536 | T34: 0 | V34: 0 | W34: =$G34*V34 -> 0 | Y34: 0 | Z34: =$G34*Y34 -> 0 | AB34: 0 | AC34: =$G34*AB34 -> 0 | AE34: 0 | AF34: =$G34*AE34 -> 0 | AH34: 0 | AI34: =$G34*AH34 -> 0 | AK34: 0 | AL34: =$G34*AK34 -> 0 | AN34: 0 | AO34: =$G34*AN34 -> 0 | AQ34: 0 | AR34: =$G34*AQ34 -> 0 | AT34: 0 | AU34: =$G34*AT34 -> 0 | AW34: 512 | AX34: =$G34*AW34 -> 0 | AZ34: 1024 | BA34: =$G34*AZ34 -> 0 | BC34: 0 | BD34: =$G34*BC34 -> 0 | BF34: 0 | BG34: =$G34*BF34 -> 0 | BI34: 0 | BJ34: =$G34*BI34 -> 0 | BL34: 0 | BM34: =$G34*BL34 -> 0 | BO34: 0 | BP34: =$G34*BO34 -> 0 | BR34: 0 | BS34: =$G34*BR34 -> 0 | BU34: 0 | BV34: =$G34*BU34 -> 0 | BX34: 1536 | BY34: 0 | CA34: 1024 | CB34: =$G34*CA34 -> 0 | CD34: 0 | CE34: =$G34*CD34 -> 0 | CG34: 0 | CH34: =$G34*CG34 -> 0 | CJ34: 0 | CK34: =$G34*CJ34 -> 0 | CM34: 0 | CN34: =$G34*CM34 -> 0 | CP34: 0 | CQ34: =$G34*CP34 -> 0 | CS34: 0 | CT34: =$G34*CS34 -> 0 | CV34: 512 | CW34: =$G34*CV34 -> 0 | CY34: 0 | CZ34: =$G34*CY34 -> 0 | DB34: 1536 | DC34: =$G34*DB34 -> 0 | DE34: 512 | DF34: =$G34*DE34 -> 0 | DH34: 0 | DI34: =$G34*DH34 -> 0 | DK34: 0 | DL34: =$G34*DK34 -> 0 | DN34: 0 | DO34: =$G34*DN34 -> 0 | DQ34: 0 | DR34: 0 | DT34: 512 | DU34: 0 | DW34: 0 | DX34: =$G34*DW34 -> 0 | DZ34: 0 | EA34: =$G34*DZ34 -> 0 | EC34: 512 | ED34: =$G34*EC34 -> 0
A35: 2.4 | B35: Z | C35: 4 | D35: Blok od porobetona za pregradni zid (d/š/v) 625x200x200 mm | E35: Aerated concrete block for partition wall (l/w/h) 625x200x200 mm | F35: kom/pcs | G35: =CENA!G26 -> 0 | H35: 0 | I35: 0 | J35: 0 | K35: =$G35*J35 -> 0 | M35: 0 | N35: =$G35*M35 -> 0 | P35: 0 | Q35: 0 | S35: 0 | T35: 0 | V35: 0 | W35: =$G35*V35 -> 0 | Y35: 0 | Z35: =$G35*Y35 -> 0 | AB35: 0 | AC35: =$G35*AB35 -> 0 | AE35: 0 | AF35: =$G35*AE35 -> 0 | AH35: 0 | AI35: =$G35*AH35 -> 0 | AK35: 0 | AL35: =$G35*AK35 -> 0 | AN35: 0 | AO35: =$G35*AN35 -> 0 | AQ35: 0 | AR35: =$G35*AQ35 -> 0 | AT35: 0 | AU35: =$G35*AT35 -> 0 | AW35: 0 | AX35: =$G35*AW35 -> 0 | AZ35: 0 | BA35: =$G35*AZ35 -> 0 | BC35: 0 | BD35: =$G35*BC35 -> 0 | BF35: 0 | BG35: =$G35*BF35 -> 0 | BI35: 0 | BJ35: =$G35*BI35 -> 0 | BL35: 0 | BM35: =$G35*BL35 -> 0 | BO35: 0 | BP35: =$G35*BO35 -> 0 | BR35: 0 | BS35: =$G35*BR35 -> 0 | BU35: 0 | BV35: =$G35*BU35 -> 0 | BX35: 0 | BY35: 0 | CA35: 0 | CB35: =$G35*CA35 -> 0 | CD35: 0 | CE35: =$G35*CD35 -> 0 | CG35: 0 | CH35: =$G35*CG35 -> 0 | CJ35: 0 | CK35: =$G35*CJ35 -> 0 | CM35: 0 | CN35: =$G35*CM35 -> 0 | CP35: 0 | CQ35: =$G35*CP35 -> 0 | CS35: 0 | CT35: =$G35*CS35 -> 0 | CV35: 0 | CW35: =$G35*CV35 -> 0 | CY35: 0 | CZ35: =$G35*CY35 -> 0 | DB35: 0 | DC35: =$G35*DB35 -> 0 | DE35: 0 | DF35: =$G35*DE35 -> 0 | DH35: 0 | DI35: =$G35*DH35 -> 0 | DK35: 0 | DL35: =$G35*DK35 -> 0 | DN35: 0 | DO35: =$G35*DN35 -> 0 | DQ35: 0 | DR35: 0 | DT35: 0 | DU35: 0 | DW35: 0 | DX35: =$G35*DW35 -> 0 | DZ35: 0 | EA35: =$G35*DZ35 -> 0 | EC35: 0 | ED35: =$G35*EC35 -> 0
A36: 2.5 | B36: Z | C36: 5 | D36: Fert nosači (gredice) Dužina nosača je jednaka dužini binora = širina otvora između zidova + 30 cm. Broj gredica = dužina prostorije x 0,40 | E36: Fert beams Boom length is equal to the length of Binor = width of the openings between the walls + 30 cm. Number of beams = length of room x 0.40 | F36: / | G36: / | H36: / | I36: / | J36: / | K36: / | M36: / | N36: / | P36: / | Q36: / | S36: / | T36: / | V36: / | W36: / | Y36: / | Z36: / | AB36: / | AC36: / | AE36: / | AF36: / | AH36: / | AI36: / | AK36: / | AL36: / | AN36: / | AO36: / | AQ36: / | AR36: / | AT36: / | AU36: / | AW36: / | AX36: / | AZ36: / | BA36: / | BC36: / | BD36: / | BF36: / | BG36: / | BI36: / | BJ36: / | BL36: / | BM36: / | BO36: / | BP36: / | BR36: / | BS36: / | BU36: / | BV36: / | BX36: / | BY36: / | CA36: / | CB36: / | CD36: / | CE36: / | CG36: / | CH36: / | CJ36: / | CK36: / | CM36: / | CN36: / | CP36: / | CQ36: / | CS36: / | CT36: / | CV36: / | CW36: / | CY36: / | CZ36: / | DB36: / | DC36: / | DE36: / | DF36: / | DH36: / | DI36: / | DK36: / | DL36: / | DN36: / | DO36: / | DQ36: / | DR36: / | DT36: / | DU36: / | DW36: / | DX36: / | DZ36: / | EA36: / | EC36: / | ED36: /
A37: 2.5.1 | C37: A | D37: 0,00-3,90 m | E37: 0,00-3,90 m | F37: m1 | G37: =CENA!G28 -> 0 | H37: =J37+M37+P37+S37+AQ37+CJ37+DK37+FD37+V37+Y37+AB37+AE37+AH37+AK37+AN37+AT37+AW37+AZ37+BC37+BF37+BI37+BL37+BO37+BR37+BU37+BX37+CA37+CD37+CG37+CM37+CP37+CS37+CV37+CY37+DB37+DE37+DH37+DN37+DQ37+DT37+DW37+DZ37+EC37+EF37+EI37+EL37+EO37+ER37+EU37+EX37+FA37+FG37+FJ37+FM37+FP37+FS37+FV37+FY37+GB37+GE37+GH37+GK37+GN37+GQ37+GT37+GW37+GZ37+HC37+HF37+HI37+HL37+HO37+HR37+HU37+HX37+IA37+ID37+IG37+IJ37+IM37+IP37+IS37+IV37+IY37+JB37+JE37+JH37+JK37+JN37+JQ37+JT37+JW37+JZ37+KC37+KF37+KI37+KL37+KO37+KR37+KU37+KX37+LA37+LD37+LG37+LJ37+LM37+LP37+LS37+LV37+LY37+MB37+ME37+MH37+MK37+MN37+MQ37+MT37+MW37+MZ37+NC37+NF37+NI37+NL37+NO37+NR37+NU37+NX37+OA37+OD37+OG37+OJ37+OM37+OP37+OS37+OV37+OY37+PB37+PE37+PH37+PK37+PN37+PQ37+PT37+PW37+PZ37+QC37+QF37+QI37+QL37+QO37+QR37+QU37+QX37+RA37+RD37+RG37+RJ37+RM37+RP37+RS37+RV37+RY37+SB37+SE37+SH37+SK37+SN37+SQ37+ST37+SW37+SZ37+TC37+TF37+TI37+TL37+TO37+TR37+TU37+TX37+UA37+UD37+UG37+UJ37+UM37+UP37+US37 -> 136.5 | I37: =G37*H37 -> 0 | J37: 0 | K37: =$G37*J37 -> 0 | M37: 0 | N37: =$G37*M37 -> 0 | P37: 46.8 | Q37: =$G37*P37 -> 0 | R37: =P37/3.9 -> 12 | S37: 0 | T37: =$G37*S37 -> 0 | U37: =S37/3.9 -> 0 | V37: 0 | W37: =$G37*V37 -> 0 | Y37: 0 | Z37: =$G37*Y37 -> 0 | AB37: 0 | AC37: =$G37*AB37 -> 0 | AE37: 0 | AF37: =$G37*AE37 -> 0 | AH37: 0 | AI37: =$G37*AH37 -> 0 | AK37: 0 | AL37: =$G37*AK37 -> 0 | AM37: =AK37/3.9 -> 0 | AN37: 0 | AO37: =$G37*AN37 -> 0 | AP37: =AN37/3.9 -> 0 | AQ37: 0 | AR37: =$G37*AQ37 -> 0 | AT37: 0 | AU37: =$G37*AT37 -> 0 | AW37: 0 | AX37: =$G37*AW37 -> 0 | AY37: =AW37/3.9 -> 0 | AZ37: 0 | BA37: =$G37*AZ37 -> 0 | BB37: =AZ37/3.9 -> 0 | BC37: 0 | BD37: =$G37*BC37 -> 0 | BF37: 0 | BG37: =$G37*BF37 -> 0 | BI37: 0 | BJ37: =$G37*BI37 -> 0 | BL37: 89.7 | BM37: =$G37*BL37 -> 0 | BO37: 0 | BP37: =$G37*BO37 -> 0 | BQ37: =BO37/3.9 -> 0 | BR37: 0 | BS37: =$G37*BR37 -> 0 | BT37: =BR37/3.9 -> 0 | BU37: 0 | BV37: =$G37*BU37 -> 0 | BX37: 0 | BY37: =$G37*BX37 -> 0 | BZ37: =BX37/3.9 -> 0 | CA37: 0 | CB37: =$G37*CA37 -> 0 | CD37: 0 | CE37: =$G37*CD37 -> 0 | CG37: 0 | CH37: =$G37*CG37 -> 0 | CJ37: 0 | CK37: =$G37*CJ37 -> 0 | CM37: 0 | CN37: =$G37*CM37 -> 0 | CP37: 0 | CQ37: =$G37*CP37 -> 0 | CR37: =CP37/3.9 -> 0 | CS37: 0 | CT37: =$G37*CS37 -> 0 | CU37: =CS37/3.9 -> 0 | CV37: 0 | CW37: =$G37*CV37 -> 0 | CY37: 0 | CZ37: =$G37*CY37 -> 0 | DB37: 0 | DC37: =$G37*DB37 -> 0 | DD37: =DB37/3.9 -> 0 | DE37: 0 | DF37: =$G37*DE37 -> 0 | DG37: =DE37/3.9 -> 0 | DH37: 0 | DI37: =$G37*DH37 -> 0 | DK37: 0 | DL37: =$G37*DK37 -> 0 | DN37: 0 | DO37: =$G37*DN37 -> 0 | DQ37: 0 | DR37: =$G37*DQ37 -> 0 | DS37: =DQ37/3.9 -> 0 | DT37: 0 | DU37: =$G37*DT37 -> 0 | DV37: =DT37/3.9 -> 0 | DW37: 0 | DX37: =$G37*DW37 -> 0 | DZ37: 0 | EA37: =$G37*DZ37 -> 0 | EC37: 0 | ED37: =$G37*EC37 -> 0
A38: 2.5.2 | C38: B | D38: 3,91-4,50 m | E38: 3,91-4,50 m | F38: m1 | G38: =CENA!G29 -> 0 | H38: 261 | I38: 0 | J38: 0 | K38: 0 | M38: 0 | N38: 0 | P38: 0 | Q38: 0 | R38: =P38/4.5 -> 0 | S38: 252 | T38: 0 | U38: =S38/4.5 -> 56 | V38: 0 | W38: 0 | Y38: 0 | Z38: 0 | AB38: 0 | AC38: 0 | AE38: 0 | AF38: 0 | AH38: 0 | AI38: 0 | AK38: 0 | AL38: 0 | AM38: =AK38/4.5 -> 0 | AN38: 0 | AO38: 0 | AP38: =AN38/4.5 -> 0 | AQ38: 0 | AR38: 0 | AT38: 0 | AU38: 0 | AW38: 0 | AX38: 0 | AY38: =AW38/4.5 -> 0 | AZ38: 0 | BA38: 0 | BB38: =AZ38/4.5 -> 0 | BC38: 0 | BD38: 0 | BF38: 0 | BG38: 0 | BI38: 0 | BJ38: 0 | BL38: 9 | BM38: 0 | BO38: 0 | BP38: 0 | BQ38: =BO38/4.5 -> 0 | BR38: 0 | BS38: 0 | BT38: =BR38/4.5 -> 0 | BU38: 0 | BV38: 0 | BX38: 0 | BY38: 0 | BZ38: =BX38/4.5 -> 0 | CA38: 0 | CB38: 0 | CD38: 0 | CE38: 0 | CG38: 0 | CH38: 0 | CJ38: 0 | CK38: 0 | CM38: 0 | CN38: 0 | CP38: 0 | CQ38: 0 | CR38: =CP38/4.5 -> 0 | CS38: 0 | CT38: 0 | CU38: =CS38/4.5 -> 0 | CV38: 0 | CW38: 0 | CY38: 0 | CZ38: 0 | DB38: 0 | DC38: 0 | DD38: =DB38/4.5 -> 0 | DE38: 0 | DF38: 0 | DG38: =DE38/4.5 -> 0 | DH38: 0 | DI38: 0 | DK38: 0 | DL38: 0 | DN38: 0 | DO38: 0 | DQ38: 0 | DR38: 0 | DS38: =DQ38/4.5 -> 0 | DT38: 0 | DU38: 0 | DV38: =DT38/4.5 -> 0 | DW38: 0 | DX38: 0 | DZ38: 0 | EA38: 0 | EC38: 0 | ED38: 0
A39: 2.5.3 | C39: C | D39: 4,51-4,90 m | E39: 4,51-4,90 m | F39: m1 | G39: =CENA!G30 -> 0 | H39: 117.6 | I39: 0 | J39: 0 | K39: 0 | M39: 0 | N39: 0 | P39: 0 | Q39: 0 | R39: =P39/4.9 -> 0 | S39: 0 | T39: 0 | U39: =S39/4.9 -> 0 | V39: 0 | W39: 0 | Y39: 0 | Z39: 0 | AB39: 0 | AC39: 0 | AE39: 0 | AF39: 0 | AH39: 0 | AI39: 0 | AK39: 0 | AL39: 0 | AM39: =AK39/4.9 -> 0 | AN39: 0 | AO39: 0 | AP39: =AN39/4.9 -> 0 | AQ39: 0 | AR39: 0 | AT39: 0 | AU39: 0 | AW39: 0 | AX39: 0 | AY39: =AW39/4.9 -> 0 | AZ39: 0 | BA39: 0 | BB39: =AZ39/4.9 -> 0 | BC39: 0 | BD39: 0 | BF39: 0 | BG39: 0 | BI39: 0 | BJ39: 0 | BL39: 117.6 | BM39: 0 | BO39: 0 | BP39: 0 | BQ39: =BO39/4.9 -> 0 | BR39: 0 | BS39: 0 | BT39: =BR39/4.9 -> 0 | BU39: 0 | BV39: 0 | BX39: 0 | BY39: 0 | BZ39: =BX39/4.9 -> 0 | CA39: 0 | CB39: 0 | CD39: 0 | CE39: 0 | CG39: 0 | CH39: 0 | CJ39: 0 | CK39: 0 | CM39: 0 | CN39: 0 | CP39: 0 | CQ39: 0 | CR39: =CP39/4.9 -> 0 | CS39: 0 | CT39: 0 | CU39: =CS39/4.9 -> 0 | CV39: 0 | CW39: 0 | CY39: 0 | CZ39: 0 | DB39: 0 | DC39: 0 | DD39: =DB39/4.9 -> 0 | DE39: 0 | DF39: 0 | DG39: =DE39/4.9 -> 0 | DH39: 0 | DI39: 0 | DK39: 0 | DL39: 0 | DN39: 0 | DO39: 0 | DQ39: 0 | DR39: 0 | DS39: =DQ39/4.9 -> 0 | DT39: 0 | DU39: 0 | DV39: =DT39/4.9 -> 0 | DW39: 0 | DX39: 0 | DZ39: 0 | EA39: 0 | EC39: 0 | ED39: 0
A40: 2.5.4 | C40: D | D40: 4,91-5,30 m | E40: 4,91-5,30 m | F40: m1 | G40: =CENA!G31 -> 0 | H40: 0 | I40: 0 | J40: 0 | K40: 0 | M40: 0 | N40: 0 | P40: 0 | Q40: 0 | R40: =P40/5.3 -> 0 | S40: 0 | T40: 0 | U40: =S40/5.3 -> 0 | V40: 0 | W40: 0 | Y40: 0 | Z40: 0 | AB40: 0 | AC40: 0 | AE40: 0 | AF40: 0 | AH40: 0 | AI40: 0 | AK40: 0 | AL40: 0 | AM40: =AK40/5.3 -> 0 | AN40: 0 | AO40: 0 | AP40: =AN40/5.3 -> 0 | AQ40: 0 | AR40: 0 | AT40: 0 | AU40: 0 | AW40: 0 | AX40: 0 | AY40: =AW40/5.3 -> 0 | AZ40: 0 | BA40: 0 | BB40: =AZ40/5.3 -> 0 | BC40: 0 | BD40: 0 | BF40: 0 | BG40: 0 | BI40: 0 | BJ40: 0 | BL40: 0 | BM40: 0 | BO40: 0 | BP40: 0 | BQ40: =BO40/5.3 -> 0 | BR40: 0 | BS40: 0 | BT40: =BR40/5.3 -> 0 | BU40: 0 | BV40: 0 | BX40: 0 | BY40: 0 | BZ40: =BX40/5.3 -> 0 | CA40: 0 | CB40: 0 | CD40: 0 | CE40: 0 | CG40: 0 | CH40: 0 | CJ40: 0 | CK40: 0 | CM40: 0 | CN40: 0 | CP40: 0 | CQ40: 0 | CR40: =CP40/5.3 -> 0 | CS40: 0 | CT40: 0 | CU40: =CS40/5.3 -> 0 | CV40: 0 | CW40: 0 | CY40: 0 | CZ40: 0 | DB40: 0 | DC40: 0 | DD40: =DB40/5.3 -> 0 | DE40: 0 | DF40: 0 | DG40: =DE40/5.3 -> 0 | DH40: 0 | DI40: 0 | DK40: 0 | DL40: 0 | DN40: 0 | DO40: 0 | DQ40: 0 | DR40: 0 | DS40: =DQ40/5.3 -> 0 | DT40: 0 | DU40: 0 | DV40: =DT40/5.3 -> 0 | DW40: 0 | DX40: 0 | DZ40: 0 | EA40: 0 | EC40: 0 | ED40: 0
A41: 2.5.5 | C41: E | D41: 5,31-5,90 m | E41: 5,31-5,90 m | F41: m1 | G41: =CENA!G32 -> 0 | H41: 0 | I41: 0 | J41: 0 | K41: 0 | M41: 0 | N41: 0 | P41: 0 | Q41: 0 | R41: =P41/5.9 -> 0 | S41: 0 | T41: 0 | U41: =S41/5.9 -> 0 | V41: 0 | W41: 0 | Y41: 0 | Z41: 0 | AB41: 0 | AC41: 0 | AE41: 0 | AF41: 0 | AH41: 0 | AI41: 0 | AK41: 0 | AL41: 0 | AM41: =AK41/5.9 -> 0 | AN41: 0 | AO41: 0 | AP41: =AN41/5.9 -> 0 | AQ41: 0 | AR41: 0 | AT41: 0 | AU41: 0 | AW41: 0 | AX41: 0 | AY41: =AW41/5.9 -> 0 | AZ41: 0 | BA41: 0 | BB41: =AZ41/5.9 -> 0 | BC41: 0 | BD41: 0 | BF41: 0 | BG41: 0 | BI41: 0 | BJ41: 0 | BL41: 0 | BM41: 0 | BO41: 0 | BP41: 0 | BQ41: =BO41/5.9 -> 0 | BR41: 0 | BS41: 0 | BT41: =BR41/5.9 -> 0 | BU41: 0 | BV41: 0 | BX41: 0 | BY41: 0 | BZ41: =BX41/5.9 -> 0 | CA41: 0 | CB41: 0 | CD41: 0 | CE41: 0 | CG41: 0 | CH41: 0 | CJ41: 0 | CK41: 0 | CM41: 0 | CN41: 0 | CP41: 0 | CQ41: 0 | CR41: =CP41/5.9 -> 0 | CS41: 0 | CT41: 0 | CU41: =CS41/5.9 -> 0 | CV41: 0 | CW41: 0 | CY41: 0 | CZ41: 0 | DB41: 0 | DC41: 0 | DD41: =DB41/5.9 -> 0 | DE41: 0 | DF41: 0 | DG41: =DE41/5.9 -> 0 | DH41: 0 | DI41: 0 | DK41: 0 | DL41: 0 | DN41: 0 | DO41: 0 | DQ41: 0 | DR41: 0 | DS41: =DQ41/5.9 -> 0 | DT41: 0 | DU41: 0 | DV41: =DT41/5.9 -> 0 | DW41: 0 | DX41: 0 | DZ41: 0 | EA41: 0 | EC41: 0 | ED41: 0
A42: 2.5.6 | C42: F | D42: 5,91-6,30 m | E42: 5,91-6,30 m | F42: m1 | G42: =CENA!G33 -> 0 | H42: 12.6 | I42: 0 | J42: 0 | K42: 0 | M42: 0 | N42: 0 | P42: 0 | Q42: 0 | R42: =P42/6.3 -> 0 | S42: 0 | T42: 0 | U42: =S42/6.3 -> 0 | V42: 0 | W42: 0 | Y42: 0 | Z42: 0 | AB42: 0 | AC42: 0 | AE42: 0 | AF42: 0 | AH42: 0 | AI42: 0 | AK42: 0 | AL42: 0 | AM42: =AK42/6.3 -> 0 | AN42: 0 | AO42: 0 | AP42: =AN42/6.3 -> 0 | AQ42: 0 | AR42: 0 | AT42: 0 | AU42: 0 | AW42: 0 | AX42: 0 | AY42: =AW42/6.3 -> 0 | AZ42: 0 | BA42: 0 | BB42: =AZ42/6.3 -> 0 | BC42: 0 | BD42: 0 | BF42: 0 | BG42: 0 | BI42: 0 | BJ42: 0 | BL42: 12.6 | BM42: 0 | BO42: 0 | BP42: 0 | BQ42: =BO42/6.3 -> 0 | BR42: 0 | BS42: 0 | BT42: =BR42/6.3 -> 0 | BU42: 0 | BV42: 0 | BX42: 0 | BY42: 0 | BZ42: =BX42/6.3 -> 0 | CA42: 0 | CB42: 0 | CD42: 0 | CE42: 0 | CG42: 0 | CH42: 0 | CJ42: 0 | CK42: 0 | CM42: 0 | CN42: 0 | CP42: 0 | CQ42: 0 | CR42: =CP42/6.3 -> 0 | CS42: 0 | CT42: 0 | CU42: =CS42/6.3 -> 0 | CV42: 0 | CW42: 0 | CY42: 0 | CZ42: 0 | DB42: 0 | DC42: 0 | DD42: =DB42/6.3 -> 0 | DE42: 0 | DF42: 0 | DG42: =DE42/6.3 -> 0 | DH42: 0 | DI42: 0 | DK42: 0 | DL42: 0 | DN42: 0 | DO42: 0 | DQ42: 0 | DR42: 0 | DS42: =DQ42/6.3 -> 0 | DT42: 0 | DU42: 0 | DV42: =DT42/6.3 -> 0 | DW42: 0 | DX42: 0 | DZ42: 0 | EA42: 0 | EC42: 0 | ED42: 0
A43: 2.6 | B43: Z | C43: 6 | D43: Fert ispuna (d/š/v) 245x285/275x160 mm | E43: Fert fillings (l/w/h) 245x285/275x160 mm | F43: kom/pcs | G43: =CENA!G34 -> 0 | H43: 1638 | I43: 0 | J43: 0 | K43: 0 | M43: 0 | N43: 0 | P43: 252 | Q43: 0 | S43: 630 | T43: 0 | V43: 0 | W43: 0 | Y43: 0 | Z43: 0 | AB43: 0 | AC43: 0 | AE43: 0 | AF43: 0 | AH43: 0 | AI43: 0 | AK43: 0 | AL43: 0 | AN43: 0 | AO43: 0 | AQ43: 0 | AR43: 0 | AT43: 0 | AU43: 0 | AW43: 0 | AX43: 0 | AZ43: 0 | BA43: 0 | BC43: 0 | BD43: 0 | BF43: 0 | BG43: 0 | BI43: 0 | BJ43: 0 | BL43: 756 | BM43: 0 | BO43: 0 | BP43: 0 | BR43: 0 | BS43: 0 | BU43: 0 | BV43: 0 | BX43: 0 | BY43: 0 | CA43: 0 | CB43: 0 | CD43: 0 | CE43: 0 | CG43: 0 | CH43: 0 | CJ43: 0 | CK43: 0 | CM43: 0 | CN43: 0 | CP43: 0 | CQ43: 0 | CS43: 0 | CT43: 0 | CV43: 0 | CW43: 0 | CY43: 0 | CZ43: 0 | DB43: 0 | DC43: 0 | DE43: 0 | DF43: 0 | DH43: 0 | DI43: 0 | DK43: 0 | DL43: 0 | DN43: 0 | DO43: 0 | DQ43: 0 | DR43: 0 | DT43: 0 | DU43: 0 | DW43: 0 | DX43: 0 | DZ43: 0 | EA43: 0 | EC43: 0 | ED43: 0
A44: 2.7 | B44: Z | C44: 7 | D44: Malter za zidanje Pripremljeno krečno - cementno vezivo | E44: Mortar for masonry Prepared lime - cement binder | F44: kg | G44: =CENA!G35 -> 0 | H44: 8440 | I44: 0 | J44: 0 | K44: 0 | M44: 0 | N44: 0 | P44: 920 | Q44: 0 | S44: 0 | T44: 0 | V44: 320 | W44: 0 | Y44: 0 | Z44: 0 | AB44: 0 | AC44: 0 | AE44: 1200 | AF44: 0 | AH44: 0 | AI44: 0 | AK44: 1200 | AL44: 0 | AN44: 0 | AO44: 0 | AQ44: 0 | AR44: 0 | AT44: 0 | AU44: 0 | AW44: 0 | AX44: 0 | AZ44: 400 | BA44: 0 | BC44: 0 | BD44: 0 | BF44: 0 | BG44: 0 | BI44: 0 | BJ44: 0 | BL44: 0 | BM44: 0 | BO44: 400 | BP44: 0 | BR44: 0 | BS44: 0 | BU44: 200 | BV44: 0 | BX44: 600 | BY44: 0 | CA44: 0 | CB44: 0 | CD44: 600 | CE44: 0 | CG44: 0 | CH44: 0 | CJ44: 0 | CK44: 0 | CM44: 600 | CN44: 0 | CP44: 0 | CQ44: 0 | CS44: 0 | CT44: 0 | CV44: 200 | CW44: 0 | CY44: 280 | CZ44: 0 | DB44: 0 | DC44: 0 | DE44: 200 | DF44: 0 | DH44: 0 | DI44: 0 | DK44: 0 | DL44: 0 | DN44: 0 | DO44: 0 | DQ44: 0 | DR44: 0 | DT44: 0 | DU44: 0 | DW44: 1320 | DX44: 0 | DZ44: 0 | EA44: 0 | EC44: 0 | ED44: 0
A45: 2.8 | B45: Z | C45: 8 | D45: Malter za malterisanje Pripremljeno krečno - cementno vezivo | E45: Mortar for plastering Prepared lime - cement binder | F45: kg | G45: =CENA!G36 -> 0 | H45: 32520 | I45: 0 | J45: 5360 | K45: 0 | M45: 1560 | N45: 0 | P45: 1360 | Q45: 0 | S45: 0 | T45: 0 | V45: 1000 | W45: 0 | Y45: 0 | Z45: 0 | AB45: 0 | AC45: 0 | AE45: 1560 | AF45: 0 | AH45: 0 | AI45: 0 | AK45: 0 | AL45: 0 | AN45: 0 | AO45: 0 | AQ45: 0 | AR45: 0 | AT45: 0 | AU45: 0 | AW45: 1600 | AX45: 0 | AZ45: 520 | BA45: 0 | BC45: 2600 | BD45: 0 | BF45: 0 | BG45: 0 | BI45: 0 | BJ45: 0 | BL45: 0 | BM45: 0 | BO45: 0 | BP45: 0 | BR45: 0 | BS45: 0 | BU45: 520 | BV45: 0 | BX45: 1040 | BY45: 0 | CA45: 3920 | CB45: 0 | CD45: 0 | CE45: 0 | CG45: 0 | CH45: 0 | CJ45: 0 | CK45: 0 | CM45: 4680 | CN45: 0 | CP45: 0 | CQ45: 0 | CS45: 0 | CT45: 0 | CV45: 520 | CW45: 0 | CY45: 800 | CZ45: 0 | DB45: 0 | DC45: 0 | DE45: 0 | DF45: 0 | DH45: 0 | DI45: 0 | DK45: 0 | DL45: 0 | DN45: 0 | DO45: 0 | DQ45: 0 | DR45: 0 | DT45: 1040 | DU45: 0 | DW45: 3920 | DX45: 0 | DZ45: 0 | EA45: 0 | EC45: 520 | ED45: 0
A46: 2.9 | B46: Z | C46: 9 | D46: Krečna glet masa Bezcementna krečna masa za gletovanje | E46: Lime smoothing mass No cement lime compound for smoothing | F46: kg | G46: =CENA!G37 -> 0 | H46: 8450 | I46: 0 | J46: 900 | K46: 0 | M46: 100 | N46: 0 | P46: 175 | Q46: 0 | S46: 400 | T46: 0 | V46: 100 | W46: 0 | Y46: 150 | Z46: 0 | AB46: 375 | AC46: 0 | AE46: 500 | AF46: 0 | AH46: 0 | AI46: 0 | AK46: 0 | AL46: 0 | AN46: 200 | AO46: 0 | AQ46: 100 | AR46: 0 | AT46: 100 | AU46: 0 | AW46: 125 | AX46: 0 | AZ46: 75 | BA46: 0 | BC46: 400 | BD46: 0 | BF46: 100 | BG46: 0 | BI46: 125 | BJ46: 0 | BL46: 200 | BM46: 0 | BO46: 0 | BP46: 0 | BR46: 400 | BS46: 0 | BU46: 100 | BV46: 0 | BX46: 200 | BY46: 0 | CA46: 300 | CB46: 0 | CD46: 500 | CE46: 0 | CG46: 0 | CH46: 0 | CJ46: 500 | CK46: 0 | CM46: 250 | CN46: 0 | CP46: 100 | CQ46: 0 | CS46: 75 | CT46: 0 | CV46: 100 | CW46: 0 | CY46: 125 | CZ46: 0 | DB46: 100 | DC46: 0 | DE46: 100 | DF46: 0 | DH46: 400 | DI46: 0 | DK46: 100 | DL46: 0 | DN46: 100 | DO46: 0 | DQ46: 200 | DR46: 0 | DT46: 100 | DU46: 0 | DW46: 250 | DX46: 0 | DZ46: 0 | EA46: 0 | EC46: 325 | ED46: 0
A47: 2.10 | B47: Z | C47: 10 | D47: Poludisperzivna boja Poludisperziona boja razrediva vodom | E47: Semi dispersion paint | F47: kg | G47: =CENA!G38 -> 0 | H47: 2475 | I47: 0 | J47: 150 | K47: 0 | M47: 50 | N47: 0 | P47: 50 | Q47: 0 | S47: 75 | T47: 0 | V47: 50 | W47: 0 | Y47: 50 | Z47: 0 | AB47: 75 | AC47: 0 | AE47: 75 | AF47: 0 | AH47: 50 | AI47: 0 | AK47: 0 | AL47: 0 | AN47: 50 | AO47: 0 | AQ47: 50 | AR47: 0 | AT47: 25 | AU47: 0 | AW47: 50 | AX47: 0 | AZ47: 50 | BA47: 0 | BC47: 75 | BD47: 0 | BF47: 50 | BG47: 0 | BI47: 50 | BJ47: 0 | BL47: 125 | BM47: 0 | BO47: 0 | BP47: 0 | BR47: 75 | BS47: 0 | BU47: 50 | BV47: 0 | BX47: 75 | BY47: 0 | CA47: 75 | CB47: 0 | CD47: 75 | CE47: 0 | CG47: 75 | CH47: 0 | CJ47: 75 | CK47: 0 | CM47: 75 | CN47: 0 | CP47: 50 | CQ47: 0 | CS47: 25 | CT47: 0 | CV47: 50 | CW47: 0 | CY47: 50 | CZ47: 0 | DB47: 50 | DC47: 0 | DE47: 50 | DF47: 0 | DH47: 75 | DI47: 0 | DK47: 50 | DL47: 0 | DN47: 75 | DO47: 0 | DQ47: 50 | DR47: 0 | DT47: 50 | DU47: 0 | DW47: 75 | DX47: 0 | DZ47: 50 | EA47: 0 | EC47: 50 | ED47: 0
A49: 3 | B49: K | D49: MATERIJAL ZA KROVNU KONSTRUKCIJU, KROVNI POKRIVAČ, OSB I GIPS KARONSKE TABLE | E49: ROOF CONSTRUCTION AND ROOFING MATERIAL, OSB AND PLASTERBOARD TABLE
A50: 3.1 | B50: K | C50: 1 | D50: Presovani glineni crep I klase dimenzija: 400-450x245-275 mm | E50: Pressed clay tiles class 1 dim: 400-450x245-275 mm | F50: kom/pcs | G50: =CENA!G41 -> 0 | H50: =J50+M50+P50+S50+AQ50+CJ50+DK50+FD50+V50+Y50+AB50+AE50+AH50+AK50+AN50+AT50+AW50+AZ50+BC50+BF50+BI50+BL50+BO50+BR50+BU50+BX50+CA50+CD50+CG50+CM50+CP50+CS50+CV50+CY50+DB50+DE50+DH50+DN50+DQ50+DT50+DW50+DZ50+EC50+EF50+EI50+EL50+EO50+ER50+EU50+EX50+FA50+FG50+FJ50+FM50+FP50+FS50+FV50+FY50+GB50+GE50+GH50+GK50+GN50+GQ50+GT50+GW50+GZ50+HC50+HF50+HI50+HL50+HO50+HR50+HU50+HX50+IA50+ID50+IG50+IJ50+IM50+IP50+IS50+IV50+IY50+JB50+JE50+JH50+JK50+JN50+JQ50+JT50+JW50+JZ50+KC50+KF50+KI50+KL50+KO50+KR50+KU50+KX50+LA50+LD50+LG50+LJ50+LM50+LP50+LS50+LV50+LY50+MB50+ME50+MH50+MK50+MN50+MQ50+MT50+MW50+MZ50+NC50+NF50+NI50+NL50+NO50+NR50+NU50+NX50+OA50+OD50+OG50+OJ50+OM50+OP50+OS50+OV50+OY50+PB50+PE50+PH50+PK50+PN50+PQ50+PT50+PW50+PZ50+QC50+QF50+QI50+QL50+QO50+QR50+QU50+QX50+RA50+RD50+RG50+RJ50+RM50+RP50+RS50+RV50+RY50+SB50+SE50+SH50+SK50+SN50+SQ50+ST50+SW50+SZ50+TC50+TF50+TI50+TL50+TO50+TR50+TU50+TX50+UA50+UD50+UG50+UJ50+UM50+UP50+US50 -> 115840 | I50: =G50*H50 -> 0 | J50: 0 | K50: =$G50*J50 -> 0 | M50: 3200 | N50: =$G50*M50 -> 0 | P50: 3200 | Q50: =$G50*P50 -> 0 | S50: 2560 | T50: =$G50*S50 -> 0 | V50: 3840 | W50: =$G50*V50 -> 0 | Y50: 4160 | Z50: =$G50*Y50 -> 0 | AB50: 0 | AC50: =$G50*AB50 -> 0 | AE50: 2880 | AF50: =$G50*AE50 -> 0 | AH50: 1280 | AI50: =$G50*AH50 -> 0 | AK50: 3840 | AL50: =$G50*AK50 -> 0 | AN50: 1920 | AO50: =$G50*AN50 -> 0 | AQ50: 3840 | AR50: =$G50*AQ50 -> 0 | AT50: 3520 | AU50: =$G50*AT50 -> 0 | AW50: 2880 | AX50: =$G50*AW50 -> 0 | AZ50: 3520 | BA50: =$G50*AZ50 -> 0 | BC50: 0 | BD50: =$G50*BC50 -> 0 | BF50: 3520 | BG50: =$G50*BF50 -> 0 | BI50: 2880 | BJ50: =$G50*BI50 -> 0 | BL50: 2560 | BM50: =$G50*BL50 -> 0 | BO50: 4160 | BP50: =$G50*BO50 -> 0 | BR50: 3200 | BS50: =$G50*BR50 -> 0 | BU50: 2880 | BV50: =$G50*BU50 -> 0 | BX50: 0 | BY50: =$G50*BX50 -> 0 | CA50: 3520 | CB50: =$G50*CA50 -> 0 | CD50: 2560 | CE50: =$G50*CD50 -> 0 | CG50: 6080 | CH50: =$G50*CG50 -> 0 | CJ50: 2560 | CK50: =$G50*CJ50 -> 0 | CM50: 3200 | CN50: =$G50*CM50 -> 0 | CP50: 2560 | CQ50: =$G50*CP50 -> 0 | CS50: 3200 | CT50: =$G50*CS50 -> 0 | CV50: 3200 | CW50: =$G50*CV50 -> 0 | CY50: 3520 | CZ50: =$G50*CY50 -> 0 | DB50: 2880 | DC50: =$G50*DB50 -> 0 | DE50: 2880 | DF50: =$G50*DE50 -> 0 | DH50: 2560 | DI50: =$G50*DH50 -> 0 | DK50: 2560 | DL50: =$G50*DK50 -> 0 | DN50: 0 | DO50: =$G50*DN50 -> 0 | DQ50: 1920 | DR50: =$G50*DQ50 -> 0 | DT50: 3200 | DU50: =$G50*DT50 -> 0 | DW50: 2560 | DX50: =$G50*DW50 -> 0 | DZ50: 3520 | EA50: =$G50*DZ50 -> 0 | EC50: 3520 | ED50: =$G50*EC50 -> 0
A51: 3.2 | B51: K | C51: 3 | D51: Biber crep I klase dimenzija: 180x380 mm | E51: Biber clay tiles class 1 dim: 180x380 mm | F51: kom/pcs | G51: =CENA!G42 -> 0 | H51: 0 | I51: 0 | J51: 0 | K51: =$G51*J51 -> 0 | M51: 0 | N51: =$G51*M51 -> 0 | P51: 0 | Q51: 0 | S51: 0 | T51: 0 | V51: 0 | W51: =$G51*V51 -> 0 | Y51: 0 | Z51: =$G51*Y51 -> 0 | AB51: 0 | AC51: =$G51*AB51 -> 0 | AE51: 0 | AF51: =$G51*AE51 -> 0 | AH51: 0 | AI51: =$G51*AH51 -> 0 | AK51: 0 | AL51: =$G51*AK51 -> 0 | AN51: 0 | AO51: =$G51*AN51 -> 0 | AQ51: 0 | AR51: =$G51*AQ51 -> 0 | AT51: 0 | AU51: =$G51*AT51 -> 0 | AW51: 0 | AX51: =$G51*AW51 -> 0 | AZ51: 0 | BA51: =$G51*AZ51 -> 0 | BC51: 0 | BD51: =$G51*BC51 -> 0 | BF51: 0 | BG51: =$G51*BF51 -> 0 | BI51: 0 | BJ51: =$G51*BI51 -> 0 | BL51: 0 | BM51: =$G51*BL51 -> 0 | BO51: 0 | BP51: =$G51*BO51 -> 0 | BR51: 0 | BS51: =$G51*BR51 -> 0 | BU51: 0 | BV51: =$G51*BU51 -> 0 | BX51: 0 | BY51: 0 | CA51: 0 | CB51: =$G51*CA51 -> 0 | CD51: 0 | CE51: =$G51*CD51 -> 0 | CG51: 0 | CH51: =$G51*CG51 -> 0 | CJ51: 0 | CK51: =$G51*CJ51 -> 0 | CM51: 0 | CN51: =$G51*CM51 -> 0 | CP51: 0 | CQ51: =$G51*CP51 -> 0 | CS51: 0 | CT51: =$G51*CS51 -> 0 | CV51: 0 | CW51: =$G51*CV51 -> 0 | CY51: 0 | CZ51: =$G51*CY51 -> 0 | DB51: 0 | DC51: =$G51*DB51 -> 0 | DE51: 0 | DF51: =$G51*DE51 -> 0 | DH51: 0 | DI51: =$G51*DH51 -> 0 | DK51: 0 | DL51: =$G51*DK51 -> 0 | DN51: 0 | DO51: =$G51*DN51 -> 0 | DQ51: 0 | DR51: 0 | DT51: 0 | DU51: 0 | DW51: 0 | DX51: =$G51*DW51 -> 0 | DZ51: 0 | EA51: =$G51*DZ51 -> 0 | EC51: 0 | ED51: =$G51*EC51 -> 0
A52: 3.3 | B52: K | C52: 2 | D52: Slemeni crep I klase (žljebnjak) | E52: Ridge clay tiles class 1 | F52: kom/pcs | G52: =CENA!G43 -> 0 | H52: 2518 | I52: 0 | J52: 0 | K52: =$G52*J52 -> 0 | M52: 48 | N52: =$G52*M52 -> 0 | P52: 45 | Q52: 0 | S52: 36 | T52: 0 | V52: 135 | W52: =$G52*V52 -> 0 | Y52: 82 | Z52: =$G52*Y52 -> 0 | AB52: 0 | AC52: =$G52*AB52 -> 0 | AE52: 120 | AF52: =$G52*AE52 -> 0 | AH52: 24 | AI52: =$G52*AH52 -> 0 | AK52: 57 | AL52: =$G52*AK52 -> 0 | AN52: 60 | AO52: =$G52*AN52 -> 0 | AQ52: 93 | AR52: =$G52*AQ52 -> 0 | AT52: 54 | AU52: =$G52*AT52 -> 0 | AW52: 56 | AX52: =$G52*AW52 -> 0 | AZ52: 57 | BA52: =$G52*AZ52 -> 0 | BC52: 0 | BD52: =$G52*BC52 -> 0 | BF52: 74 | BG52: =$G52*BF52 -> 0 | BI52: 42 | BJ52: =$G52*BI52 -> 0 | BL52: 36 | BM52: =$G52*BL52 -> 0 | BO52: 63 | BP52: =$G52*BO52 -> 0 | BR52: 90 | BS52: =$G52*BR52 -> 0 | BU52: 120 | BV52: =$G52*BU52 -> 0 | BX52: 0 | BY52: 0 | CA52: 52 | CB52: =$G52*CA52 -> 0 | CD52: 36 | CE52: =$G52*CD52 -> 0 | CG52: 114 | CH52: =$G52*CG52 -> 0 | CJ52: 120 | CK52: =$G52*CJ52 -> 0 | CM52: 45 | CN52: =$G52*CM52 -> 0 | CP52: 48 | CQ52: =$G52*CP52 -> 0 | CS52: 48 | CT52: =$G52*CS52 -> 0 | CV52: 60 | CW52: =$G52*CV52 -> 0 | CY52: 64 | CZ52: =$G52*CY52 -> 0 | DB52: 51 | DC52: =$G52*DB52 -> 0 | DE52: 33 | DF52: =$G52*DE52 -> 0 | DH52: 42 | DI52: =$G52*DH52 -> 0 | DK52: 138 | DL52: =$G52*DK52 -> 0 | DN52: 0 | DO52: =$G52*DN52 -> 0 | DQ52: 108 | DR52: 0 | DT52: 45 | DU52: 0 | DW52: 36 | DX52: =$G52*DW52 -> 0 | DZ52: 98 | EA52: =$G52*DZ52 -> 0 | EC52: 88 | ED52: =$G52*EC52 -> 0
A53: 3.4 | B53: K | C53: 4 | D53: Paropropusna i vodonepropusna krovna folija kontrola vodene pare iznad termoizolacije | E53: Vapour permeable and waterproof roof sheeting control of water vapor above the insulation | F53: m2 | G53: =CENA!G44 -> 0 | H53: 8850 | I53: 0 | J53: 0 | K53: =$G53*J53 -> 0 | M53: 225 | N53: =$G53*M53 -> 0 | P53: 225 | Q53: 0 | S53: 225 | T53: 0 | V53: 300 | W53: =$G53*V53 -> 0 | Y53: 300 | Z53: =$G53*Y53 -> 0 | AB53: 0 | AC53: =$G53*AB53 -> 0 | AE53: 225 | AF53: =$G53*AE53 -> 0 | AH53: 75 | AI53: =$G53*AH53 -> 0 | AK53: 300 | AL53: =$G53*AK53 -> 0 | AN53: 150 | AO53: =$G53*AN53 -> 0 | AQ53: 300 | AR53: =$G53*AQ53 -> 0 | AT53: 225 | AU53: =$G53*AT53 -> 0 | AW53: 225 | AX53: =$G53*AW53 -> 0 | AZ53: 300 | BA53: =$G53*AZ53 -> 0 | BC53: 0 | BD53: =$G53*BC53 -> 0 | BF53: 225 | BG53: =$G53*BF53 -> 0 | BI53: 225 | BJ53: =$G53*BI53 -> 0 | BL53: 150 | BM53: =$G53*BL53 -> 0 | BO53: 300 | BP53: =$G53*BO53 -> 0 | BR53: 225 | BS53: =$G53*BR53 -> 0 | BU53: 225 | BV53: =$G53*BU53 -> 0 | BX53: 0 | BY53: 0 | CA53: 300 | CB53: =$G53*CA53 -> 0 | CD53: 225 | CE53: =$G53*CD53 -> 0 | CG53: 450 | CH53: =$G53*CG53 -> 0 | CJ53: 225 | CK53: =$G53*CJ53 -> 0 | CM53: 225 | CN53: =$G53*CM53 -> 0 | CP53: 225 | CQ53: =$G53*CP53 -> 0 | CS53: 225 | CT53: =$G53*CS53 -> 0 | CV53: 225 | CW53: =$G53*CV53 -> 0 | CY53: 300 | CZ53: =$G53*CY53 -> 0 | DB53: 225 | DC53: =$G53*DB53 -> 0 | DE53: 225 | DF53: =$G53*DE53 -> 0 | DH53: 225 | DI53: =$G53*DH53 -> 0 | DK53: 225 | DL53: =$G53*DK53 -> 0 | DN53: 0 | DO53: =$G53*DN53 -> 0 | DQ53: 150 | DR53: 0 | DT53: 225 | DU53: 0 | DW53: 225 | DX53: =$G53*DW53 -> 0 | DZ53: 225 | EA53: =$G53*DZ53 -> 0 | EC53: 300 | ED53: =$G53*EC53 -> 0
A54: 3.5 | B54: K | C54: 5 | D54: Staklena mineralna vuna termoizolacija potkrovlja između rogova | E54: Glass Mineral Wool loft insulation between the rafters | F54: / | G54: / | H54: / | I54: / | J54: / | K54: / | M54: / | N54: / | P54: / | Q54: / | S54: / | T54: / | V54: / | W54: / | Y54: / | Z54: / | AB54: / | AC54: / | AE54: / | AF54: / | AH54: / | AI54: / | AK54: / | AL54: / | AN54: / | AO54: / | AQ54: / | AR54: / | AT54: / | AU54: / | AW54: / | AX54: / | AZ54: / | BA54: / | BC54: / | BD54: / | BF54: / | BG54: / | BI54: / | BJ54: / | BL54: / | BM54: / | BO54: / | BP54: / | BR54: / | BS54: / | BU54: / | BV54: / | BX54: / | BY54: / | CA54: / | CB54: / | CD54: / | CE54: / | CG54: / | CH54: / | CJ54: / | CK54: / | CM54: / | CN54: / | CP54: / | CQ54: / | CS54: / | CT54: / | CV54: / | CW54: / | CY54: / | CZ54: / | DB54: / | DC54: / | DE54: / | DF54: / | DH54: / | DI54: / | DK54: / | DL54: / | DN54: / | DO54: / | DQ54: / | DR54: / | DT54: / | DU54: / | DW54: / | DX54: / | DZ54: / | EA54: / | EC54: / | ED54: /
A55: 3.5.1 | C55: A | D55: debljina d=10 cm | E55: thickness d=10 cm | F55: m2 | G55: =CENA!G46 -> 0 | H55: =J55+M55+P55+S55+AQ55+CJ55+DK55+FD55+V55+Y55+AB55+AE55+AH55+AK55+AN55+AT55+AW55+AZ55+BC55+BF55+BI55+BL55+BO55+BR55+BU55+BX55+CA55+CD55+CG55+CM55+CP55+CS55+CV55+CY55+DB55+DE55+DH55+DN55+DQ55+DT55+DW55+DZ55+EC55+EF55+EI55+EL55+EO55+ER55+EU55+EX55+FA55+FG55+FJ55+FM55+FP55+FS55+FV55+FY55+GB55+GE55+GH55+GK55+GN55+GQ55+GT55+GW55+GZ55+HC55+HF55+HI55+HL55+HO55+HR55+HU55+HX55+IA55+ID55+IG55+IJ55+IM55+IP55+IS55+IV55+IY55+JB55+JE55+JH55+JK55+JN55+JQ55+JT55+JW55+JZ55+KC55+KF55+KI55+KL55+KO55+KR55+KU55+KX55+LA55+LD55+LG55+LJ55+LM55+LP55+LS55+LV55+LY55+MB55+ME55+MH55+MK55+MN55+MQ55+MT55+MW55+MZ55+NC55+NF55+NI55+NL55+NO55+NR55+NU55+NX55+OA55+OD55+OG55+OJ55+OM55+OP55+OS55+OV55+OY55+PB55+PE55+PH55+PK55+PN55+PQ55+PT55+PW55+PZ55+QC55+QF55+QI55+QL55+QO55+QR55+QU55+QX55+RA55+RD55+RG55+RJ55+RM55+RP55+RS55+RV55+RY55+SB55+SE55+SH55+SK55+SN55+SQ55+ST55+SW55+SZ55+TC55+TF55+TI55+TL55+TO55+TR55+TU55+TX55+UA55+UD55+UG55+UJ55+UM55+UP55+US55 -> 936 | I55: =G55*H55 -> 0 | J55: 252 | K55: =$G55*J55 -> 0 | M55: 0 | N55: =$G55*M55 -> 0 | P55: 0 | Q55: =$G55*P55 -> 0 | S55: 0 | T55: =$G55*S55 -> 0 | V55: 0 | W55: =$G55*V55 -> 0 | Y55: 0 | Z55: =$G55*Y55 -> 0 | AB55: 72 | AC55: =$G55*AB55 -> 0 | AE55: 0 | AF55: =$G55*AE55 -> 0 | AH55: 0 | AI55: =$G55*AH55 -> 0 | AK55: 0 | AL55: =$G55*AK55 -> 0 | AN55: 0 | AO55: =$G55*AN55 -> 0 | AQ55: 0 | AR55: =$G55*AQ55 -> 0 | AT55: 0 | AU55: =$G55*AT55 -> 0 | AW55: 0 | AX55: =$G55*AW55 -> 0 | AZ55: 45 | BA55: =$G55*AZ55 -> 0 | BC55: 126 | BD55: =$G55*BC55 -> 0 | BF55: 0 | BG55: =$G55*BF55 -> 0 | BI55: 0 | BJ55: =$G55*BI55 -> 0 | BL55: 0 | BM55: =$G55*BL55 -> 0 | BO55: 0 | BP55: =$G55*BO55 -> 0 | BR55: 0 | BS55: =$G55*BR55 -> 0 | BU55: 0 | BV55: =$G55*BU55 -> 0 | BX55: 126 | BY55: =$G55*BX55 -> 0 | CA55: 90 | CB55: =$G55*CA55 -> 0 | CD55: 126 | CE55: =$G55*CD55 -> 0 | CG55: 0 | CH55: =$G55*CG55 -> 0 | CJ55: 99 | CK55: =$G55*CJ55 -> 0 | CM55: 0 | CN55: =$G55*CM55 -> 0 | CP55: 0 | CQ55: =$G55*CP55 -> 0 | CS55: 0 | CT55: =$G55*CS55 -> 0 | CV55: 0 | CW55: =$G55*CV55 -> 0 | CY55: 0 | CZ55: =$G55*CY55 -> 0 | DB55: 0 | DC55: =$G55*DB55 -> 0 | DE55: 0 | DF55: =$G55*DE55 -> 0 | DH55: 0 | DI55: =$G55*DH55 -> 0 | DK55: 0 | DL55: =$G55*DK55 -> 0 | DN55: 0 | DO55: =$G55*DN55 -> 0 | DQ55: 0 | DR55: =$G55*DQ55 -> 0 | DT55: 0 | DU55: =$G55*DT55 -> 0 | DW55: 0 | DX55: =$G55*DW55 -> 0 | DZ55: 0 | EA55: =$G55*DZ55 -> 0 | EC55: 0 | ED55: =$G55*EC55 -> 0
A56: 3.5.2 | C56: B | D56: debljina d=12 cm | E56: thickness d=12 cm | F56: m2 | G56: =CENA!G47 -> 0 | H56: 550.56 | I56: 0 | J56: 0 | K56: =$G56*J56 -> 0 | M56: 0 | N56: =$G56*M56 -> 0 | P56: 0 | Q56: 0 | S56: 0 | T56: 0 | V56: 66.96 | W56: =$G56*V56 -> 0 | Y56: 0 | Z56: =$G56*Y56 -> 0 | AB56: 0 | AC56: =$G56*AB56 -> 0 | AE56: 0 | AF56: =$G56*AE56 -> 0 | AH56: 0 | AI56: =$G56*AH56 -> 0 | AK56: 0 | AL56: =$G56*AK56 -> 0 | AN56: 104.16 | AO56: =$G56*AN56 -> 0 | AQ56: 0 | AR56: =$G56*AQ56 -> 0 | AT56: 0 | AU56: =$G56*AT56 -> 0 | AW56: 0 | AX56: =$G56*AW56 -> 0 | AZ56: 0 | BA56: =$G56*AZ56 -> 0 | BC56: 0 | BD56: =$G56*BC56 -> 0 | BF56: 0 | BG56: =$G56*BF56 -> 0 | BI56: 0 | BJ56: =$G56*BI56 -> 0 | BL56: 0 | BM56: =$G56*BL56 -> 0 | BO56: 0 | BP56: =$G56*BO56 -> 0 | BR56: 0 | BS56: =$G56*BR56 -> 0 | BU56: 0 | BV56: =$G56*BU56 -> 0 | BX56: 0 | BY56: 0 | CA56: 0 | CB56: =$G56*CA56 -> 0 | CD56: 0 | CE56: =$G56*CD56 -> 0 | CG56: 0 | CH56: =$G56*CG56 -> 0 | CJ56: 0 | CK56: =$G56*CJ56 -> 0 | CM56: 0 | CN56: =$G56*CM56 -> 0 | CP56: 141.36 | CQ56: =$G56*CP56 -> 0 | CS56: 0 | CT56: =$G56*CS56 -> 0 | CV56: 0 | CW56: =$G56*CV56 -> 0 | CY56: 0 | CZ56: =$G56*CY56 -> 0 | DB56: 0 | DC56: =$G56*DB56 -> 0 | DE56: 0 | DF56: =$G56*DE56 -> 0 | DH56: 0 | DI56: =$G56*DH56 -> 0 | DK56: 133.92 | DL56: =$G56*DK56 -> 0 | DN56: 0 | DO56: =$G56*DN56 -> 0 | DQ56: 104.16 | DR56: 0 | DT56: 0 | DU56: 0 | DW56: 0 | DX56: =$G56*DW56 -> 0 | DZ56: 0 | EA56: =$G56*DZ56 -> 0 | EC56: 0 | ED56: =$G56*EC56 -> 0
A57: 3.5.3 | C57: C | D57: debljina d=14 cm | E57: thickness d=14 cm | F57: m2 | G57: =CENA!G48 -> 0 | H57: 0 | I57: 0 | J57: 0 | K57: =$G57*J57 -> 0 | M57: 0 | N57: =$G57*M57 -> 0 | P57: 0 | Q57: 0 | S57: 0 | T57: 0 | V57: 0 | W57: =$G57*V57 -> 0 | Y57: 0 | Z57: =$G57*Y57 -> 0 | AB57: 0 | AC57: =$G57*AB57 -> 0 | AE57: 0 | AF57: =$G57*AE57 -> 0 | AH57: 0 | AI57: =$G57*AH57 -> 0 | AK57: 0 | AL57: =$G57*AK57 -> 0 | AN57: 0 | AO57: =$G57*AN57 -> 0 | AQ57: 0 | AR57: =$G57*AQ57 -> 0 | AT57: 0 | AU57: =$G57*AT57 -> 0 | AW57: 0 | AX57: =$G57*AW57 -> 0 | AZ57: 0 | BA57: =$G57*AZ57 -> 0 | BC57: 0 | BD57: =$G57*BC57 -> 0 | BF57: 0 | BG57: =$G57*BF57 -> 0 | BI57: 0 | BJ57: =$G57*BI57 -> 0 | BL57: 0 | BM57: =$G57*BL57 -> 0 | BO57: 0 | BP57: =$G57*BO57 -> 0 | BR57: 0 | BS57: =$G57*BR57 -> 0 | BU57: 0 | BV57: =$G57*BU57 -> 0 | BX57: 0 | BY57: 0 | CA57: 0 | CB57: =$G57*CA57 -> 0 | CD57: 0 | CE57: =$G57*CD57 -> 0 | CG57: 0 | CH57: =$G57*CG57 -> 0 | CJ57: 0 | CK57: =$G57*CJ57 -> 0 | CM57: 0 | CN57: =$G57*CM57 -> 0 | CP57: 0 | CQ57: =$G57*CP57 -> 0 | CS57: 0 | CT57: =$G57*CS57 -> 0 | CV57: 0 | CW57: =$G57*CV57 -> 0 | CY57: 0 | CZ57: =$G57*CY57 -> 0 | DB57: 0 | DC57: =$G57*DB57 -> 0 | DE57: 0 | DF57: =$G57*DE57 -> 0 | DH57: 0 | DI57: =$G57*DH57 -> 0 | DK57: 0 | DL57: =$G57*DK57 -> 0 | DN57: 0 | DO57: =$G57*DN57 -> 0 | DQ57: 0 | DR57: 0 | DT57: 0 | DU57: 0 | DW57: 0 | DX57: =$G57*DW57 -> 0 | DZ57: 0 | EA57: =$G57*DZ57 -> 0 | EC57: 0 | ED57: =$G57*EC57 -> 0
A58: 3.6 | B58: K | C58: 6 | D58: Parna brana kontrola vodene pare ispod termoizolacije | E58: Vapor barrier control of water vapor below the insulation | F58: m2 | G58: =CENA!G49 -> 0 | H58: 1950 | I58: 0 | J58: 150 | K58: =$G58*J58 -> 0 | M58: 0 | N58: =$G58*M58 -> 0 | P58: 0 | Q58: 0 | S58: 0 | T58: 0 | V58: 75 | W58: =$G58*V58 -> 0 | Y58: 0 | Z58: =$G58*Y58 -> 0 | AB58: 150 | AC58: =$G58*AB58 -> 0 | AE58: 0 | AF58: =$G58*AE58 -> 0 | AH58: 0 | AI58: =$G58*AH58 -> 0 | AK58: 0 | AL58: =$G58*AK58 -> 0 | AN58: 150 | AO58: =$G58*AN58 -> 0 | AQ58: 0 | AR58: =$G58*AQ58 -> 0 | AT58: 0 | AU58: =$G58*AT58 -> 0 | AW58: 0 | AX58: =$G58*AW58 -> 0 | AZ58: 75 | BA58: =$G58*AZ58 -> 0 | BC58: 150 | BD58: =$G58*BC58 -> 0 | BF58: 0 | BG58: =$G58*BF58 -> 0 | BI58: 0 | BJ58: =$G58*BI58 -> 0 | BL58: 0 | BM58: =$G58*BL58 -> 0 | BO58: 0 | BP58: =$G58*BO58 -> 0 | BR58: 0 | BS58: =$G58*BR58 -> 0 | BU58: 0 | BV58: =$G58*BU58 -> 0 | BX58: 150 | BY58: 0 | CA58: 150 | CB58: =$G58*CA58 -> 0 | CD58: 150 | CE58: =$G58*CD58 -> 0 | CG58: 0 | CH58: =$G58*CG58 -> 0 | CJ58: 150 | CK58: =$G58*CJ58 -> 0 | CM58: 0 | CN58: =$G58*CM58 -> 0 | CP58: 225 | CQ58: =$G58*CP58 -> 0 | CS58: 0 | CT58: =$G58*CS58 -> 0 | CV58: 0 | CW58: =$G58*CV58 -> 0 | CY58: 0 | CZ58: =$G58*CY58 -> 0 | DB58: 0 | DC58: =$G58*DB58 -> 0 | DE58: 0 | DF58: =$G58*DE58 -> 0 | DH58: 0 | DI58: =$G58*DH58 -> 0 | DK58: 225 | DL58: =$G58*DK58 -> 0 | DN58: 0 | DO58: =$G58*DN58 -> 0 | DQ58: 150 | DR58: 0 | DT58: 0 | DU58: 0 | DW58: 0 | DX58: =$G58*DW58 -> 0 | DZ58: 0 | EA58: =$G58*DZ58 -> 0 | EC58: 0 | ED58: =$G58*EC58 -> 0
A59: 3.7 | B59: K | C59: 7 | D59: Čamova rezana građa različitog preseka dužine 400 cm | E59: Fir lumber of different cross-section length 400 cm | F59: / | G59: / | H59: / | I59: / | J59: / | K59: / | M59: / | N59: / | P59: / | Q59: / | S59: / | T59: / | V59: / | W59: / | Y59: / | Z59: / | AB59: / | AC59: / | AE59: / | AF59: / | AH59: / | AI59: / | AK59: / | AL59: / | AN59: / | AO59: / | AQ59: / | AR59: / | AT59: / | AU59: / | AW59: / | AX59: / | AZ59: / | BA59: / | BC59: / | BD59: / | BF59: / | BG59: / | BI59: / | BJ59: / | BL59: / | BM59: / | BO59: / | BP59: / | BR59: / | BS59: / | BU59: / | BV59: / | BX59: / | BY59: / | CA59: / | CB59: / | CD59: / | CE59: / | CG59: / | CH59: / | CJ59: / | CK59: / | CM59: / | CN59: / | CP59: / | CQ59: / | CS59: / | CT59: / | CV59: / | CW59: / | CY59: / | CZ59: / | DB59: / | DC59: / | DE59: / | DF59: / | DH59: / | DI59: / | DK59: / | DL59: / | DN59: / | DO59: / | DQ59: / | DR59: / | DT59: / | DU59: / | DW59: / | DX59: / | DZ59: / | EA59: / | EC59: / | ED59: /
A60: 3.7.1 | C60: A | D60: Rog/Venčanica/Raspinjača 10/12 cm | E60: rafters / wall plate / ridge collar 10/12 cm | F60: m3 | G60: =CENA!G51 -> 0 | H60: =J60+M60+P60+S60+AQ60+CJ60+DK60+FD60+V60+Y60+AB60+AE60+AH60+AK60+AN60+AT60+AW60+AZ60+BC60+BF60+BI60+BL60+BO60+BR60+BU60+BX60+CA60+CD60+CG60+CM60+CP60+CS60+CV60+CY60+DB60+DE60+DH60+DN60+DQ60+DT60+DW60+DZ60+EC60+EF60+EI60+EL60+EO60+ER60+EU60+EX60+FA60+FG60+FJ60+FM60+FP60+FS60+FV60+FY60+GB60+GE60+GH60+GK60+GN60+GQ60+GT60+GW60+GZ60+HC60+HF60+HI60+HL60+HO60+HR60+HU60+HX60+IA60+ID60+IG60+IJ60+IM60+IP60+IS60+IV60+IY60+JB60+JE60+JH60+JK60+JN60+JQ60+JT60+JW60+JZ60+KC60+KF60+KI60+KL60+KO60+KR60+KU60+KX60+LA60+LD60+LG60+LJ60+LM60+LP60+LS60+LV60+LY60+MB60+ME60+MH60+MK60+MN60+MQ60+MT60+MW60+MZ60+NC60+NF60+NI60+NL60+NO60+NR60+NU60+NX60+OA60+OD60+OG60+OJ60+OM60+OP60+OS60+OV60+OY60+PB60+PE60+PH60+PK60+PN60+PQ60+PT60+PW60+PZ60+QC60+QF60+QI60+QL60+QO60+QR60+QU60+QX60+RA60+RD60+RG60+RJ60+RM60+RP60+RS60+RV60+RY60+SB60+SE60+SH60+SK60+SN60+SQ60+ST60+SW60+SZ60+TC60+TF60+TI60+TL60+TO60+TR60+TU60+TX60+UA60+UD60+UG60+UJ60+UM60+UP60+US60 -> 2.88 | I60: =G60*H60 -> 0 | J60: 0 | K60: =$G60*J60 -> 0 | L60: =J60/$UW$60 -> 0 | M60: 0 | N60: =$G60*M60 -> 0 | O60: =M60/$UW$60 -> 0 | P60: 0 | Q60: =$G60*P60 -> 0 | R60: =P60/$UW$60 -> 0 | S60: 0 | T60: =$G60*S60 -> 0 | U60: =S60/$UW$60 -> 0 | V60: 0 | W60: =$G60*V60 -> 0 | X60: =V60/$UW$60 -> 0 | Y60: 0 | Z60: =$G60*Y60 -> 0 | AA60: =Y60/$UW$60 -> 0 | AB60: 0 | AC60: =$G60*AB60 -> 0 | AD60: =AB60/$UW$60 -> 0 | AE60: 0 | AF60: =$G60*AE60 -> 0 | AG60: =AE60/$UW$60 -> 0 | AH60: 1.344 | AI60: =$G60*AH60 -> 0 | AJ60: =AH60/$UW$60 -> 28 | AK60: 0 | AL60: =$G60*AK60 -> 0 | AM60: =AK60/$UW$60 -> 0 | AN60: 0 | AO60: =$G60*AN60 -> 0 | AP60: =AN60/$UW$60 -> 0 | AQ60: 0 | AR60: =$G60*AQ60 -> 0 | AS60: =AQ60/$UW$60 -> 0 | AT60: 0 | AU60: =$G60*AT60 -> 0 | AV60: =AT60/$UW$60 -> 0 | AW60: 0 | AX60: =$G60*AW60 -> 0 | AY60: =AW60/$UW$60 -> 0 | AZ60: 0 | BA60: =$G60*AZ60 -> 0 | BB60: =AZ60/$UW$60 -> 0 | BC60: 0 | BD60: =$G60*BC60 -> 0 | BE60: =BC60/$UW$60 -> 0 | BF60: 0 | BG60: =$G60*BF60 -> 0 | BH60: =BF60/$UW$60 -> 0 | BI60: 0 | BJ60: =$G60*BI60 -> 0 | BK60: =BI60/$UW$60 -> 0 | BL60: 0 | BM60: =$G60*BL60 -> 0 | BN60: =BL60/$UW$60 -> 0 | BO60: 0 | BP60: =$G60*BO60 -> 0 | BQ60: =BO60/$UW$60 -> 0 | BR60: 0 | BS60: =$G60*BR60 -> 0 | BT60: =BR60/$UW$60 -> 0 | BU60: 0 | BV60: =$G60*BU60 -> 0 | BW60: =BU60/$UW$60 -> 0 | BX60: 0 | BY60: =$G60*BX60 -> 0 | BZ60: =BX60/$UW$60 -> 0 | CA60: 0 | CB60: =$G60*CA60 -> 0 | CC60: =CA60/$UW$60 -> 0 | CD60: 0 | CE60: =$G60*CD60 -> 0 | CF60: =CD60/$UW$60 -> 0 | CG60: 0 | CH60: =$G60*CG60 -> 0 | CI60: =CG60/$UW$60 -> 0 | CJ60: 0 | CK60: =$G60*CJ60 -> 0 | CL60: =CJ60/$UW$60 -> 0 | CM60: 0 | CN60: =$G60*CM60 -> 0 | CO60: =CM60/$UW$60 -> 0 | CP60: 0 | CQ60: =$G60*CP60 -> 0 | CR60: =CP60/$UW$60 -> 0 | CS60: 0 | CT60: =$G60*CS60 -> 0 | CU60: =CS60/$UW$60 -> 0 | CV60: 0 | CW60: =$G60*CV60 -> 0 | CX60: =CV60/$UW$60 -> 0 | CY60: 0 | CZ60: =$G60*CY60 -> 0 | DA60: =CY60/$UW$60 -> 0 | DB60: 0 | DC60: =$G60*DB60 -> 0 | DD60: =DB60/$UW$60 -> 0 | DE60: 0.672 | DF60: =$G60*DE60 -> 0 | DG60: =DE60/$UW$60 -> 14 | DH60: 0 | DI60: =$G60*DH60 -> 0 | DJ60: =DH60/$UW$60 -> 0 | DK60: 0 | DL60: =$G60*DK60 -> 0 | DM60: =DK60/$UW$60 -> 0 | DN60: 0 | DO60: =$G60*DN60 -> 0 | DP60: =DN60/$UW$60 -> 0 | DQ60: 0 | DR60: =$G60*DQ60 -> 0 | DS60: =DQ60/$UW$60 -> 0 | DT60: 0.864 | DU60: =$G60*DT60 -> 0 | DV60: =DT60/$UW$60 -> 18 | DW60: 0 | DX60: =$G60*DW60 -> 0 | DY60: =DW60/$UW$60 -> 0 | DZ60: 0 | EA60: =$G60*DZ60 -> 0 | EB60: =DZ60/$UW$60 -> 0 | EC60: 0 | ED60: =$G60*EC60 -> 0 | EE60: =EC60/$UW$60 -> 0 | UW60: 0.048
A61: 3.7.2 | C61: B | D61: Rog/Stub/Grebenjača/Slemenja. 12/14 cm | E61: column / pile / hip rafter / ridge 12/14 cm | F61: m3 | G61: =CENA!G52 -> 0 | H61: 15.008 | I61: 0 | J61: 0 | K61: =$G61*J61 -> 0 | L61: =J61/$UW$61 -> 0 | M61: 0.536 | N61: =$G61*M61 -> 0 | O61: =M61/$UW$61 -> 7.976190476 | P61: 0.67 | Q61: 0 | R61: =P61/$UW$61 -> 9.970238095 | S61: 0 | T61: 0 | U61: =S61/$UW$61 -> 0 | V61: 0 | W61: =$G61*V61 -> 0 | X61: =V61/$UW$61 -> 0 | Y61: 1.072 | Z61: =$G61*Y61 -> 0 | AA61: =Y61/$UW$61 -> 15.95238095 | AB61: 0 | AC61: =$G61*AB61 -> 0 | AD61: =AB61/$UW$61 -> 0 | AE61: 0 | AF61: =$G61*AE61 -> 0 | AG61: =AE61/$UW$61 -> 0 | AH61: 0.804 | AI61: =$G61*AH61 -> 0 | AJ61: =AH61/$UW$61 -> 11.96428571 | AK61: 0 | AL61: =$G61*AK61 -> 0 | AM61: =AK61/$UW$61 -> 0 | AN61: 0 | AO61: =$G61*AN61 -> 0 | AP61: =AN61/$UW$61 -> 0 | AQ61: 1.072 | AR61: =$G61*AQ61 -> 0 | AS61: =AQ61/$UW$61 -> 15.95238095 | AT61: 0.536 | AU61: =$G61*AT61 -> 0 | AV61: =AT61/$UW$61 -> 7.976190476 | AW61: 0.67 | AX61: =$G61*AW61 -> 0 | AY61: =AW61/$UW$61 -> 9.970238095 | AZ61: 0.67 | BA61: =$G61*AZ61 -> 0 | BB61: =AZ61/$UW$61 -> 9.970238095 | BC61: 0 | BD61: =$G61*BC61 -> 0 | BE61: =BC61/$UW$61 -> 0 | BF61: 0.804 | BG61: =$G61*BF61 -> 0 | BH61: =BF61/$UW$61 -> 11.96428571 | BI61: 0.536 | BJ61: =$G61*BI61 -> 0 | BK61: =BI61/$UW$61 -> 7.976190476 | BL61: 0 | BM61: =$G61*BL61 -> 0 | BN61: =BL61/$UW$61 -> 0 | BO61: 0 | BP61: =$G61*BO61 -> 0 | BQ61: =BO61/$UW$61 -> 0 | BR61: 0 | BS61: =$G61*BR61 -> 0 | BT61: =BR61/$UW$61 -> 0 | BU61: 0 | BV61: =$G61*BU61 -> 0 | BW61: =BU61/$UW$61 -> 0 | BX61: 0 | BY61: 0 | BZ61: =BX61/$UW$61 -> 0 | CA61: 0.536 | CB61: =$G61*CA61 -> 0 | CC61: =CA61/$UW$61 -> 7.976190476 | CD61: 0 | CE61: =$G61*CD61 -> 0 | CF61: =CD61/$UW$61 -> 0 | CG61: 0 | CH61: =$G61*CG61 -> 0 | CI61: =CG61/$UW$61 -> 0 | CJ61: 0 | CK61: =$G61*CJ61 -> 0 | CL61: =CJ61/$UW$61 -> 0 | CM61: 0.536 | CN61: =$G61*CM61 -> 0 | CO61: =CM61/$UW$61 -> 7.976190476 | CP61: 0 | CQ61: =$G61*CP61 -> 0 | CR61: =CP61/$UW$61 -> 0 | CS61: 0.536 | CT61: =$G61*CS61 -> 0 | CU61: =CS61/$UW$61 -> 7.976190476 | CV61: 0.67 | CW61: =$G61*CV61 -> 0 | CX61: =CV61/$UW$61 -> 9.970238095 | CY61: 1.34 | CZ61: =$G61*CY61 -> 0 | DA61: =CY61/$UW$61 -> 19.94047619 | DB61: 0 | DC61: =$G61*DB61 -> 0 | DD61: =DB61/$UW$61 -> 0 | DE61: 0.402 | DF61: =$G61*DE61 -> 0 | DG61: =DE61/$UW$61 -> 5.982142857 | DH61: 0 | DI61: =$G61*DH61 -> 0 | DJ61: =DH61/$UW$61 -> 0 | DK61: 0 | DL61: =$G61*DK61 -> 0 | DM61: =DK61/$UW$61 -> 0 | DN61: 0 | DO61: =$G61*DN61 -> 0 | DP61: =DN61/$UW$61 -> 0 | DQ61: 0 | DR61: 0 | DS61: =DQ61/$UW$61 -> 0 | DT61: 0.536 | DU61: 0 | DV61: =DT61/$UW$61 -> 7.976190476 | DW61: 0.536 | DX61: =$G61*DW61 -> 0 | DY61: =DW61/$UW$61 -> 7.976190476 | DZ61: 1.608 | EA61: =$G61*DZ61 -> 0 | EB61: =DZ61/$UW$61 -> 23.92857143 | EC61: 0.938 | ED61: =$G61*EC61 -> 0 | EE61: =EC61/$UW$61 -> 13.95833333 | UW61: 0.0672
A62: 3.7.3 | C62: C | D62: Stub/Grebenjača 14/14 cm | E62: column / hip rafter 14/14 cm | F62: m3 | G62: =CENA!G53 -> 0 | H62: 0 | I62: 0 | J62: 0 | K62: =$G62*J62 -> 0 | L62: =J62/$UW$62 -> 0 | M62: 0 | N62: =$G62*M62 -> 0 | O62: =M62/$UW$62 -> 0 | P62: 0 | Q62: 0 | R62: =P62/$UW$62 -> 0 | S62: 0 | T62: 0 | U62: =S62/$UW$62 -> 0 | V62: 0 | W62: =$G62*V62 -> 0 | X62: =V62/$UW$62 -> 0 | Y62: 0 | Z62: =$G62*Y62 -> 0 | AA62: =Y62/$UW$62 -> 0 | AB62: 0 | AC62: =$G62*AB62 -> 0 | AD62: =AB62/$UW$62 -> 0 | AE62: 0 | AF62: =$G62*AE62 -> 0 | AG62: =AE62/$UW$62 -> 0 | AH62: 0 | AI62: =$G62*AH62 -> 0 | AJ62: =AH62/$UW$62 -> 0 | AK62: 0 | AL62: =$G62*AK62 -> 0 | AM62: =AK62/$UW$62 -> 0 | AN62: 0 | AO62: =$G62*AN62 -> 0 | AP62: =AN62/$UW$62 -> 0 | AQ62: 0 | AR62: =$G62*AQ62 -> 0 | AS62: =AQ62/$UW$62 -> 0 | AT62: 0 | AU62: =$G62*AT62 -> 0 | AV62: =AT62/$UW$62 -> 0 | AW62: 0 | AX62: =$G62*AW62 -> 0 | AY62: =AW62/$UW$62 -> 0 | AZ62: 0 | BA62: =$G62*AZ62 -> 0 | BB62: =AZ62/$UW$62 -> 0 | BC62: 0 | BD62: =$G62*BC62 -> 0 | BE62: =BC62/$UW$62 -> 0 | BF62: 0 | BG62: =$G62*BF62 -> 0 | BH62: =BF62/$UW$62 -> 0 | BI62: 0 | BJ62: =$G62*BI62 -> 0 | BK62: =BI62/$UW$62 -> 0 | BL62: 0 | BM62: =$G62*BL62 -> 0 | BN62: =BL62/$UW$62 -> 0 | BO62: 0 | BP62: =$G62*BO62 -> 0 | BQ62: =BO62/$UW$62 -> 0 | BR62: 0 | BS62: =$G62*BR62 -> 0 | BT62: =BR62/$UW$62 -> 0 | BU62: 0 | BV62: =$G62*BU62 -> 0 | BW62: =BU62/$UW$62 -> 0 | BX62: 0 | BY62: 0 | BZ62: =BX62/$UW$62 -> 0 | CA62: 0 | CB62: =$G62*CA62 -> 0 | CC62: =CA62/$UW$62 -> 0 | CD62: 0 | CE62: =$G62*CD62 -> 0 | CF62: =CD62/$UW$62 -> 0 | CG62: 0 | CH62: =$G62*CG62 -> 0 | CI62: =CG62/$UW$62 -> 0 | CJ62: 0 | CK62: =$G62*CJ62 -> 0 | CL62: =CJ62/$UW$62 -> 0 | CM62: 0 | CN62: =$G62*CM62 -> 0 | CO62: =CM62/$UW$62 -> 0 | CP62: 0 | CQ62: =$G62*CP62 -> 0 | CR62: =CP62/$UW$62 -> 0 | CS62: 0 | CT62: =$G62*CS62 -> 0 | CU62: =CS62/$UW$62 -> 0 | CV62: 0 | CW62: =$G62*CV62 -> 0 | CX62: =CV62/$UW$62 -> 0 | CY62: 0 | CZ62: =$G62*CY62 -> 0 | DA62: =CY62/$UW$62 -> 0 | DB62: 0 | DC62: =$G62*DB62 -> 0 | DD62: =DB62/$UW$62 -> 0 | DE62: 0 | DF62: =$G62*DE62 -> 0 | DG62: =DE62/$UW$62 -> 0 | DH62: 0 | DI62: =$G62*DH62 -> 0 | DJ62: =DH62/$UW$62 -> 0 | DK62: 0 | DL62: =$G62*DK62 -> 0 | DM62: =DK62/$UW$62 -> 0 | DN62: 0 | DO62: =$G62*DN62 -> 0 | DP62: =DN62/$UW$62 -> 0 | DQ62: 0 | DR62: 0 | DS62: =DQ62/$UW$62 -> 0 | DT62: 0 | DU62: 0 | DV62: =DT62/$UW$62 -> 0 | DW62: 0 | DX62: =$G62*DW62 -> 0 | DY62: =DW62/$UW$62 -> 0 | DZ62: 0 | EA62: =$G62*DZ62 -> 0 | EB62: =DZ62/$UW$62 -> 0 | EC62: 0 | ED62: =$G62*EC62 -> 0 | EE62: =EC62/$UW$62 -> 0 | UW62: 0.0784
A63: 3.7.4 | C63: H | D63: Tavanjače 18/26 cm | E63: attic beams 18/26 cm | F63: m3 | G63: =CENA!G54 -> 0 | H63: 0 | I63: 0 | J63: 0 | K63: =$G63*J63 -> 0 | L63: =J63/$UW$63 -> 0 | M63: 0 | N63: =$G63*M63 -> 0 | O63: =M63/$UW$63 -> 0 | P63: 0 | Q63: 0 | R63: =P63/$UW$63 -> 0 | S63: 0 | T63: 0 | U63: =S63/$UW$63 -> 0 | V63: 0 | W63: =$G63*V63 -> 0 | X63: =V63/$UW$63 -> 0 | Y63: 0 | Z63: =$G63*Y63 -> 0 | AA63: =Y63/$UW$63 -> 0 | AB63: 0 | AC63: =$G63*AB63 -> 0 | AD63: =AB63/$UW$63 -> 0 | AE63: 0 | AF63: =$G63*AE63 -> 0 | AG63: =AE63/$UW$63 -> 0 | AH63: 0 | AI63: =$G63*AH63 -> 0 | AJ63: =AH63/$UW$63 -> 0 | AK63: 0 | AL63: =$G63*AK63 -> 0 | AM63: =AK63/$UW$63 -> 0 | AN63: 0 | AO63: =$G63*AN63 -> 0 | AP63: =AN63/$UW$63 -> 0 | AQ63: 0 | AR63: =$G63*AQ63 -> 0 | AS63: =AQ63/$UW$63 -> 0 | AT63: 0 | AU63: =$G63*AT63 -> 0 | AV63: =AT63/$UW$63 -> 0 | AW63: 0 | AX63: =$G63*AW63 -> 0 | AY63: =AW63/$UW$63 -> 0 | AZ63: 0 | BA63: =$G63*AZ63 -> 0 | BB63: =AZ63/$UW$63 -> 0 | BC63: 0 | BD63: =$G63*BC63 -> 0 | BE63: =BC63/$UW$63 -> 0 | BF63: 0 | BG63: =$G63*BF63 -> 0 | BH63: =BF63/$UW$63 -> 0 | BI63: 0 | BJ63: =$G63*BI63 -> 0 | BK63: =BI63/$UW$63 -> 0 | BL63: 0 | BM63: =$G63*BL63 -> 0 | BN63: =BL63/$UW$63 -> 0 | BO63: 0 | BP63: =$G63*BO63 -> 0 | BQ63: =BO63/$UW$63 -> 0 | BR63: 0 | BS63: =$G63*BR63 -> 0 | BT63: =BR63/$UW$63 -> 0 | BU63: 0 | BV63: =$G63*BU63 -> 0 | BW63: =BU63/$UW$63 -> 0 | BX63: 0 | BY63: 0 | BZ63: =BX63/$UW$63 -> 0 | CA63: 0 | CB63: =$G63*CA63 -> 0 | CC63: =CA63/$UW$63 -> 0 | CD63: 0 | CE63: =$G63*CD63 -> 0 | CF63: =CD63/$UW$63 -> 0 | CG63: 0 | CH63: =$G63*CG63 -> 0 | CI63: =CG63/$UW$63 -> 0 | CJ63: 0 | CK63: =$G63*CJ63 -> 0 | CL63: =CJ63/$UW$63 -> 0 | CM63: 0 | CN63: =$G63*CM63 -> 0 | CO63: =CM63/$UW$63 -> 0 | CP63: 0 | CQ63: =$G63*CP63 -> 0 | CR63: =CP63/$UW$63 -> 0 | CS63: 0 | CT63: =$G63*CS63 -> 0 | CU63: =CS63/$UW$63 -> 0 | CV63: 0 | CW63: =$G63*CV63 -> 0 | CX63: =CV63/$UW$63 -> 0 | CY63: 0 | CZ63: =$G63*CY63 -> 0 | DA63: =CY63/$UW$63 -> 0 | DB63: 0 | DC63: =$G63*DB63 -> 0 | DD63: =DB63/$UW$63 -> 0 | DE63: 0 | DF63: =$G63*DE63 -> 0 | DG63: =DE63/$UW$63 -> 0 | DH63: 0 | DI63: =$G63*DH63 -> 0 | DJ63: =DH63/$UW$63 -> 0 | DK63: 0 | DL63: =$G63*DK63 -> 0 | DM63: =DK63/$UW$63 -> 0 | DN63: 0 | DO63: =$G63*DN63 -> 0 | DP63: =DN63/$UW$63 -> 0 | DQ63: 0 | DR63: 0 | DS63: =DQ63/$UW$63 -> 0 | DT63: 0 | DU63: 0 | DV63: =DT63/$UW$63 -> 0 | DW63: 0 | DX63: =$G63*DW63 -> 0 | DY63: =DW63/$UW$63 -> 0 | DZ63: 0 | EA63: =$G63*DZ63 -> 0 | EB63: =DZ63/$UW$63 -> 0 | EC63: 0 | ED63: =$G63*EC63 -> 0 | EE63: =EC63/$UW$63 -> 0 | UW63: 0.1872
A64: 3.8 | B64: K | C64: 8 | D64: Čamova rezana građa različitog preseka dužine 600 cm | E64: Fir lumber of different cross-section length 600 cm | F64: / | G64: / | H64: / | I64: / | J64: / | K64: / | M64: / | N64: / | P64: / | Q64: / | S64: / | T64: / | V64: / | W64: / | Y64: / | Z64: / | AB64: / | AC64: / | AE64: / | AF64: / | AH64: / | AI64: / | AK64: / | AL64: / | AN64: / | AO64: / | AQ64: / | AR64: / | AT64: / | AU64: / | AW64: / | AX64: / | AZ64: / | BA64: / | BC64: / | BD64: / | BF64: / | BG64: / | BI64: / | BJ64: / | BL64: / | BM64: / | BO64: / | BP64: / | BR64: / | BS64: / | BU64: / | BV64: / | BX64: / | BY64: / | CA64: / | CB64: / | CD64: / | CE64: / | CG64: / | CH64: / | CJ64: / | CK64: / | CM64: / | CN64: / | CP64: / | CQ64: / | CS64: / | CT64: / | CV64: / | CW64: / | CY64: / | CZ64: / | DB64: / | DC64: / | DE64: / | DF64: / | DH64: / | DI64: / | DK64: / | DL64: / | DN64: / | DO64: / | DQ64: / | DR64: / | DT64: / | DU64: / | DW64: / | DX64: / | DZ64: / | EA64: / | EC64: / | ED64: / | UW64: /
A65: 3.8.1 | C65: A | D65: Rog/Venčanica/Raspinjača 10/12 cm | E65: rafters / wall plate / ridge collar 10/12 cm | F65: m3 | G65: =CENA!G56 -> 0 | H65: =J65+M65+P65+S65+AQ65+CJ65+DK65+FD65+V65+Y65+AB65+AE65+AH65+AK65+AN65+AT65+AW65+AZ65+BC65+BF65+BI65+BL65+BO65+BR65+BU65+BX65+CA65+CD65+CG65+CM65+CP65+CS65+CV65+CY65+DB65+DE65+DH65+DN65+DQ65+DT65+DW65+DZ65+EC65+EF65+EI65+EL65+EO65+ER65+EU65+EX65+FA65+FG65+FJ65+FM65+FP65+FS65+FV65+FY65+GB65+GE65+GH65+GK65+GN65+GQ65+GT65+GW65+GZ65+HC65+HF65+HI65+HL65+HO65+HR65+HU65+HX65+IA65+ID65+IG65+IJ65+IM65+IP65+IS65+IV65+IY65+JB65+JE65+JH65+JK65+JN65+JQ65+JT65+JW65+JZ65+KC65+KF65+KI65+KL65+KO65+KR65+KU65+KX65+LA65+LD65+LG65+LJ65+LM65+LP65+LS65+LV65+LY65+MB65+ME65+MH65+MK65+MN65+MQ65+MT65+MW65+MZ65+NC65+NF65+NI65+NL65+NO65+NR65+NU65+NX65+OA65+OD65+OG65+OJ65+OM65+OP65+OS65+OV65+OY65+PB65+PE65+PH65+PK65+PN65+PQ65+PT65+PW65+PZ65+QC65+QF65+QI65+QL65+QO65+QR65+QU65+QX65+RA65+RD65+RG65+RJ65+RM65+RP65+RS65+RV65+RY65+SB65+SE65+SH65+SK65+SN65+SQ65+ST65+SW65+SZ65+TC65+TF65+TI65+TL65+TO65+TR65+TU65+TX65+UA65+UD65+UG65+UJ65+UM65+UP65+US65 -> 120.312 | I65: =G65*H65 -> 0 | J65: 0 | K65: =$G65*J65 -> 0 | L65: =J65/$UW$65 -> 0 | M65: 3.6 | N65: =$G65*M65 -> 0 | O65: =M65/$UW$65 -> 50 | P65: 3.6 | Q65: =$G65*P65 -> 0 | R65: =P65/$UW$65 -> 50 | S65: 2.88 | T65: =$G65*S65 -> 0 | U65: =S65/$UW$65 -> 40 | V65: 5.184 | W65: =$G65*V65 -> 0 | X65: =V65/$UW$65 -> 72 | Y65: 4.896 | Z65: =$G65*Y65 -> 0 | AA65: =Y65/$UW$65 -> 68 | AB65: 0 | AC65: =$G65*AB65 -> 0 | AD65: =AB65/$UW$65 -> 0 | AE65: 3.312 | AF65: =$G65*AE65 -> 0 | AG65: =AE65/$UW$65 -> 46 | AH65: 0 | AI65: =$G65*AH65 -> 0 | AJ65: =AH65/$UW$65 -> 0 | AK65: 1.44 | AL65: =$G65*AK65 -> 0 | AM65: =AK65/$UW$65 -> 20 | AN65: 2.448 | AO65: =$G65*AN65 -> 0 | AP65: =AN65/$UW$65 -> 34 | AQ65: 4.896 | AR65: =$G65*AQ65 -> 0 | AS65: =AQ65/$UW$65 -> 68 | AT65: 3.456 | AU65: =$G65*AT65 -> 0 | AV65: =AT65/$UW$65 -> 48 | AW65: 3.456 | AX65: =$G65*AW65 -> 0 | AY65: =AW65/$UW$65 -> 48 | AZ65: 3.744 | BA65: =$G65*AZ65 -> 0 | BB65: =AZ65/$UW$65 -> 52 | BC65: 0 | BD65: =$G65*BC65 -> 0 | BE65: =BC65/$UW$65 -> 0 | BF65: 4.32 | BG65: =$G65*BF65 -> 0 | BH65: =BF65/$UW$65 -> 60 | BI65: 3.024 | BJ65: =$G65*BI65 -> 0 | BK65: =BI65/$UW$65 -> 42 | BL65: 0.72 | BM65: =$G65*BL65 -> 0 | BN65: =BL65/$UW$65 -> 10 | BO65: 4.464 | BP65: =$G65*BO65 -> 0 | BQ65: =BO65/$UW$65 -> 62 | BR65: 4.176 | BS65: =$G65*BR65 -> 0 | BT65: =BR65/$UW$65 -> 58 | BU65: 1.296 | BV65: =$G65*BU65 -> 0 | BW65: =BU65/$UW$65 -> 18 | BX65: 0 | BY65: =$G65*BX65 -> 0 | BZ65: =BX65/$UW$65 -> 0 | CA65: 3.744 | CB65: =$G65*CA65 -> 0 | CC65: =CA65/$UW$65 -> 52 | CD65: 3.312 | CE65: =$G65*CD65 -> 0 | CF65: =CD65/$UW$65 -> 46 | CG65: 0 | CH65: =$G65*CG65 -> 0 | CI65: =CG65/$UW$65 -> 0 | CJ65: 3.168 | CK65: =$G65*CJ65 -> 0 | CL65: =CJ65/$UW$65 -> 44 | CM65: 3.456 | CN65: =$G65*CM65 -> 0 | CO65: =CM65/$UW$65 -> 48 | CP65: 0.576 | CQ65: =$G65*CP65 -> 0 | CR65: =CP65/$UW$65 -> 8 | CS65: 3.456 | CT65: =$G65*CS65 -> 0 | CU65: =CS65/$UW$65 -> 48 | CV65: 3.6 | CW65: =$G65*CV65 -> 0 | CX65: =CV65/$UW$65 -> 50 | CY65: 4.176 | CZ65: =$G65*CY65 -> 0 | DA65: =CY65/$UW$65 -> 58 | DB65: 5.184 | DC65: =$G65*DB65 -> 0 | DD65: =DB65/$UW$65 -> 72 | DE65: 2.304 | DF65: =$G65*DE65 -> 0 | DG65: =DE65/$UW$65 -> 32 | DH65: 3.312 | DI65: =$G65*DH65 -> 0 | DJ65: =DH65/$UW$65 -> 46 | DK65: 3.6 | DL65: =$G65*DK65 -> 0 | DM65: =DK65/$UW$65 -> 50 | DN65: 0 | DO65: =$G65*DN65 -> 0 | DP65: =DN65/$UW$65 -> 0 | DQ65: 3.744 | DR65: =$G65*DQ65 -> 0 | DS65: =DQ65/$UW$65 -> 52 | DT65: 3.24 | DU65: =$G65*DT65 -> 0 | DV65: =DT65/$UW$65 -> 45 | DW65: 2.448 | DX65: =$G65*DW65 -> 0 | DY65: =DW65/$UW$65 -> 34 | DZ65: 5.904 | EA65: =$G65*DZ65 -> 0 | EB65: =DZ65/$UW$65 -> 82 | EC65: 4.176 | ED65: =$G65*EC65 -> 0 | EE65: =EC65/$UW$65 -> 58 | UW65: 0.072
A66: 3.8.2 | C66: B | D66: Rog/Stub/Grebenjača/Slemenja. 12/14 cm | E66: column / pile / hip rafter / ridge 12/14 cm | F66: m3 | G66: =CENA!G57 -> 0 | H66: 21.672 | I66: 0 | J66: 0 | K66: 0 | L66: =J66/$UW$66 -> 0 | M66: 0.672 | N66: 0 | O66: =M66/$UW$66 -> 6.666666667 | P66: 0.42 | Q66: 0 | R66: =P66/$UW$66 -> 4.166666667 | S66: 0.672 | T66: 0 | U66: =S66/$UW$66 -> 6.666666667 | V66: 1.512 | W66: 0 | X66: =V66/$UW$66 -> 15 | Y66: 1.008 | Z66: 0 | AA66: =Y66/$UW$66 -> 10 | AB66: 0 | AC66: 0 | AD66: =AB66/$UW$66 -> 0 | AE66: 0.672 | AF66: 0 | AG66: =AE66/$UW$66 -> 6.666666667 | AH66: 0 | AI66: 0 | AJ66: =AH66/$UW$66 -> 0 | AK66: 0 | AL66: 0 | AM66: =AK66/$UW$66 -> 0 | AN66: 0.504 | AO66: 0 | AP66: =AN66/$UW$66 -> 5 | AQ66: 0.84 | AR66: 0 | AS66: =AQ66/$UW$66 -> 8.333333333 | AT66: 0.504 | AU66: 0 | AV66: =AT66/$UW$66 -> 5 | AW66: 0.504 | AX66: 0 | AY66: =AW66/$UW$66 -> 5 | AZ66: 0.504 | BA66: 0 | BB66: =AZ66/$UW$66 -> 5 | BC66: 0 | BD66: 0 | BE66: =BC66/$UW$66 -> 0 | BF66: 0.672 | BG66: 0 | BH66: =BF66/$UW$66 -> 6.666666667 | BI66: 0.42 | BJ66: 0 | BK66: =BI66/$UW$66 -> 4.166666667 | BL66: 0 | BM66: 0 | BN66: =BL66/$UW$66 -> 0 | BO66: 0.672 | BP66: 0 | BQ66: =BO66/$UW$66 -> 6.666666667 | BR66: 0.672 | BS66: 0 | BT66: =BR66/$UW$66 -> 6.666666667 | BU66: 0 | BV66: 0 | BW66: =BU66/$UW$66 -> 0 | BX66: 0 | BY66: 0 | BZ66: =BX66/$UW$66 -> 0 | CA66: 0.504 | CB66: 0 | CC66: =CA66/$UW$66 -> 5 | CD66: 0.672 | CE66: 0 | CF66: =CD66/$UW$66 -> 6.666666667 | CG66: 0 | CH66: 0 | CI66: =CG66/$UW$66 -> 0 | CJ66: 0.672 | CK66: 0 | CL66: =CJ66/$UW$66 -> 6.666666667 | CM66: 0.42 | CN66: 0 | CO66: =CM66/$UW$66 -> 4.166666667 | CP66: 0 | CQ66: 0 | CR66: =CP66/$UW$66 -> 0 | CS66: 0.504 | CT66: 0 | CU66: =CS66/$UW$66 -> 5 | CV66: 0.588 | CW66: 0 | CX66: =CV66/$UW$66 -> 5.833333333 | CY66: 1.26 | CZ66: 0 | DA66: =CY66/$UW$66 -> 12.5 | DB66: 1.344 | DC66: 0 | DD66: =DB66/$UW$66 -> 13.33333333 | DE66: 0.336 | DF66: 0 | DG66: =DE66/$UW$66 -> 3.333333333 | DH66: 0.672 | DI66: 0 | DJ66: =DH66/$UW$66 -> 6.666666667 | DK66: 1.344 | DL66: 0 | DM66: =DK66/$UW$66 -> 13.33333333 | DN66: 0 | DO66: 0 | DP66: =DN66/$UW$66 -> 0 | DQ66: 1.344 | DR66: 0 | DS66: =DQ66/$UW$66 -> 13.33333333 | DT66: 0.42 | DU66: 0 | DV66: =DT66/$UW$66 -> 4.166666667 | DW66: 0.336 | DX66: 0 | DY66: =DW66/$UW$66 -> 3.333333333 | DZ66: 0.336 | EA66: 0 | EB66: =DZ66/$UW$66 -> 3.333333333 | EC66: 0.672 | ED66: 0 | EE66: =EC66/$UW$66 -> 6.666666667 | UW66: 0.1008
A67: 3.8.3 | C67: C | D67: Stub/Grebenjača 14/14 cm | E67: column / hip rafter 14/14 cm | F67: m3 | G67: =CENA!G58 -> 0 | H67: 1.17 | I67: 0 | J67: 0 | K67: 0 | L67: =J67/$UW$67 -> 0 | M67: 0 | N67: 0 | O67: =M67/$UW$67 -> 0 | P67: 0 | Q67: 0 | R67: =P67/$UW$67 -> 0 | S67: 0 | T67: 0 | U67: =S67/$UW$67 -> 0 | V67: 0 | W67: 0 | X67: =V67/$UW$67 -> 0 | Y67: 0 | Z67: 0 | AA67: =Y67/$UW$67 -> 0 | AB67: 0 | AC67: 0 | AD67: =AB67/$UW$67 -> 0 | AE67: 0 | AF67: 0 | AG67: =AE67/$UW$67 -> 0 | AH67: 0 | AI67: 0 | AJ67: =AH67/$UW$67 -> 0 | AK67: 1.17 | AL67: 0 | AM67: =AK67/$UW$67 -> 9.948979592 | AN67: 0 | AO67: 0 | AP67: =AN67/$UW$67 -> 0 | AQ67: 0 | AR67: 0 | AS67: =AQ67/$UW$67 -> 0 | AT67: 0 | AU67: 0 | AV67: =AT67/$UW$67 -> 0 | AW67: 0 | AX67: 0 | AY67: =AW67/$UW$67 -> 0 | AZ67: 0 | BA67: 0 | BB67: =AZ67/$UW$67 -> 0 | BC67: 0 | BD67: 0 | BE67: =BC67/$UW$67 -> 0 | BF67: 0 | BG67: 0 | BH67: =BF67/$UW$67 -> 0 | BI67: 0 | BJ67: 0 | BK67: =BI67/$UW$67 -> 0 | BL67: 0 | BM67: 0 | BN67: =BL67/$UW$67 -> 0 | BO67: 0 | BP67: 0 | BQ67: =BO67/$UW$67 -> 0 | BR67: 0 | BS67: 0 | BT67: =BR67/$UW$67 -> 0 | BU67: 0 | BV67: 0 | BW67: =BU67/$UW$67 -> 0 | BX67: 0 | BY67: 0 | BZ67: =BX67/$UW$67 -> 0 | CA67: 0 | CB67: 0 | CC67: =CA67/$UW$67 -> 0 | CD67: 0 | CE67: 0 | CF67: =CD67/$UW$67 -> 0 | CG67: 0 | CH67: 0 | CI67: =CG67/$UW$67 -> 0 | CJ67: 0 | CK67: 0 | CL67: =CJ67/$UW$67 -> 0 | CM67: 0 | CN67: 0 | CO67: =CM67/$UW$67 -> 0 | CP67: 0 | CQ67: 0 | CR67: =CP67/$UW$67 -> 0 | CS67: 0 | CT67: 0 | CU67: =CS67/$UW$67 -> 0 | CV67: 0 | CW67: 0 | CX67: =CV67/$UW$67 -> 0 | CY67: 0 | CZ67: 0 | DA67: =CY67/$UW$67 -> 0 | DB67: 0 | DC67: 0 | DD67: =DB67/$UW$67 -> 0 | DE67: 0 | DF67: 0 | DG67: =DE67/$UW$67 -> 0 | DH67: 0 | DI67: 0 | DJ67: =DH67/$UW$67 -> 0 | DK67: 0 | DL67: 0 | DM67: =DK67/$UW$67 -> 0 | DN67: 0 | DO67: 0 | DP67: =DN67/$UW$67 -> 0 | DQ67: 0 | DR67: 0 | DS67: =DQ67/$UW$67 -> 0 | DT67: 0 | DU67: 0 | DV67: =DT67/$UW$67 -> 0 | DW67: 0 | DX67: 0 | DY67: =DW67/$UW$67 -> 0 | DZ67: 0 | EA67: 0 | EB67: =DZ67/$UW$67 -> 0 | EC67: 0 | ED67: 0 | EE67: =EC67/$UW$67 -> 0 | UW67: 0.1176
A68: 3.8.4 | C68: D | D68: Rožnjača 14/16 cm | E68: Purlin 14/16 cm | F68: m3 | G68: =CENA!G59 -> 0 | H68: 0 | I68: 0 | J68: 0 | K68: 0 | L68: =J68/$UW$68 -> 0 | M68: 0 | N68: 0 | O68: =M68/$UW$68 -> 0 | P68: 0 | Q68: 0 | R68: =P68/$UW$68 -> 0 | S68: 0 | T68: 0 | U68: =S68/$UW$68 -> 0 | V68: 0 | W68: 0 | X68: =V68/$UW$68 -> 0 | Y68: 0 | Z68: 0 | AA68: =Y68/$UW$68 -> 0 | AB68: 0 | AC68: 0 | AD68: =AB68/$UW$68 -> 0 | AE68: 0 | AF68: 0 | AG68: =AE68/$UW$68 -> 0 | AH68: 0 | AI68: 0 | AJ68: =AH68/$UW$68 -> 0 | AK68: 0 | AL68: 0 | AM68: =AK68/$UW$68 -> 0 | AN68: 0 | AO68: 0 | AP68: =AN68/$UW$68 -> 0 | AQ68: 0 | AR68: 0 | AS68: =AQ68/$UW$68 -> 0 | AT68: 0 | AU68: 0 | AV68: =AT68/$UW$68 -> 0 | AW68: 0 | AX68: 0 | AY68: =AW68/$UW$68 -> 0 | AZ68: 0 | BA68: 0 | BB68: =AZ68/$UW$68 -> 0 | BC68: 0 | BD68: 0 | BE68: =BC68/$UW$68 -> 0 | BF68: 0 | BG68: 0 | BH68: =BF68/$UW$68 -> 0 | BI68: 0 | BJ68: 0 | BK68: =BI68/$UW$68 -> 0 | BL68: 0 | BM68: 0 | BN68: =BL68/$UW$68 -> 0 | BO68: 0 | BP68: 0 | BQ68: =BO68/$UW$68 -> 0 | BR68: 0 | BS68: 0 | BT68: =BR68/$UW$68 -> 0 | BU68: 0 | BV68: 0 | BW68: =BU68/$UW$68 -> 0 | BX68: 0 | BY68: 0 | BZ68: =BX68/$UW$68 -> 0 | CA68: 0 | CB68: 0 | CC68: =CA68/$UW$68 -> 0 | CD68: 0 | CE68: 0 | CF68: =CD68/$UW$68 -> 0 | CG68: 0 | CH68: 0 | CI68: =CG68/$UW$68 -> 0 | CJ68: 0 | CK68: 0 | CL68: =CJ68/$UW$68 -> 0 | CM68: 0 | CN68: 0 | CO68: =CM68/$UW$68 -> 0 | CP68: 0 | CQ68: 0 | CR68: =CP68/$UW$68 -> 0 | CS68: 0 | CT68: 0 | CU68: =CS68/$UW$68 -> 0 | CV68: 0 | CW68: 0 | CX68: =CV68/$UW$68 -> 0 | CY68: 0 | CZ68: 0 | DA68: =CY68/$UW$68 -> 0 | DB68: 0 | DC68: 0 | DD68: =DB68/$UW$68 -> 0 | DE68: 0 | DF68: 0 | DG68: =DE68/$UW$68 -> 0 | DH68: 0 | DI68: 0 | DJ68: =DH68/$UW$68 -> 0 | DK68: 0 | DL68: 0 | DM68: =DK68/$UW$68 -> 0 | DN68: 0 | DO68: 0 | DP68: =DN68/$UW$68 -> 0 | DQ68: 0 | DR68: 0 | DS68: =DQ68/$UW$68 -> 0 | DT68: 0 | DU68: 0 | DV68: =DT68/$UW$68 -> 0 | DW68: 0 | DX68: 0 | DY68: =DW68/$UW$68 -> 0 | DZ68: 0 | EA68: 0 | EB68: =DZ68/$UW$68 -> 0 | EC68: 0 | ED68: 0 | EE68: =EC68/$UW$68 -> 0 | UW68: 0.1344
A69: 3.8.5 | C69: E | D69: Kosnik/Pajanta 10/10 cm | E69: Strut 10/10 cm | F69: m3 | G69: =CENA!G60 -> 0 | H69: 0.72 | I69: 0 | J69: 0 | K69: 0 | L69: =J69/$UW$69 -> 0 | M69: 0 | N69: 0 | O69: =M69/$UW$69 -> 0 | P69: 0 | Q69: 0 | R69: =P69/$UW$69 -> 0 | S69: 0 | T69: 0 | U69: =S69/$UW$69 -> 0 | V69: 0 | W69: 0 | X69: =V69/$UW$69 -> 0 | Y69: 0 | Z69: 0 | AA69: =Y69/$UW$69 -> 0 | AB69: 0 | AC69: 0 | AD69: =AB69/$UW$69 -> 0 | AE69: 0 | AF69: 0 | AG69: =AE69/$UW$69 -> 0 | AH69: 0 | AI69: 0 | AJ69: =AH69/$UW$69 -> 0 | AK69: 0 | AL69: 0 | AM69: =AK69/$UW$69 -> 0 | AN69: 0.72 | AO69: 0 | AP69: =AN69/$UW$69 -> 12 | AQ69: 0 | AR69: 0 | AS69: =AQ69/$UW$69 -> 0 | AT69: 0 | AU69: 0 | AV69: =AT69/$UW$69 -> 0 | AW69: 0 | AX69: 0 | AY69: =AW69/$UW$69 -> 0 | AZ69: 0 | BA69: 0 | BB69: =AZ69/$UW$69 -> 0 | BC69: 0 | BD69: 0 | BE69: =BC69/$UW$69 -> 0 | BF69: 0 | BG69: 0 | BH69: =BF69/$UW$69 -> 0 | BI69: 0 | BJ69: 0 | BK69: =BI69/$UW$69 -> 0 | BL69: 0 | BM69: 0 | BN69: =BL69/$UW$69 -> 0 | BO69: 0 | BP69: 0 | BQ69: =BO69/$UW$69 -> 0 | BR69: 0 | BS69: 0 | BT69: =BR69/$UW$69 -> 0 | BU69: 0 | BV69: 0 | BW69: =BU69/$UW$69 -> 0 | BX69: 0 | BY69: 0 | BZ69: =BX69/$UW$69 -> 0 | CA69: 0 | CB69: 0 | CC69: =CA69/$UW$69 -> 0 | CD69: 0 | CE69: 0 | CF69: =CD69/$UW$69 -> 0 | CG69: 0 | CH69: 0 | CI69: =CG69/$UW$69 -> 0 | CJ69: 0 | CK69: 0 | CL69: =CJ69/$UW$69 -> 0 | CM69: 0 | CN69: 0 | CO69: =CM69/$UW$69 -> 0 | CP69: 0 | CQ69: 0 | CR69: =CP69/$UW$69 -> 0 | CS69: 0 | CT69: 0 | CU69: =CS69/$UW$69 -> 0 | CV69: 0 | CW69: 0 | CX69: =CV69/$UW$69 -> 0 | CY69: 0 | CZ69: 0 | DA69: =CY69/$UW$69 -> 0 | DB69: 0 | DC69: 0 | DD69: =DB69/$UW$69 -> 0 | DE69: 0 | DF69: 0 | DG69: =DE69/$UW$69 -> 0 | DH69: 0 | DI69: 0 | DJ69: =DH69/$UW$69 -> 0 | DK69: 0 | DL69: 0 | DM69: =DK69/$UW$69 -> 0 | DN69: 0 | DO69: 0 | DP69: =DN69/$UW$69 -> 0 | DQ69: 0 | DR69: 0 | DS69: =DQ69/$UW$69 -> 0 | DT69: 0 | DU69: 0 | DV69: =DT69/$UW$69 -> 0 | DW69: 0 | DX69: 0 | DY69: =DW69/$UW$69 -> 0 | DZ69: 0 | EA69: 0 | EB69: =DZ69/$UW$69 -> 0 | EC69: 0 | ED69: 0 | EE69: =EC69/$UW$69 -> 0 | UW69: 0.06
A70: 3.8.6 | C70: F | D70: Klešta 6/12 cm | E70: Collar tie 6/12 cm | F70: m3 | G70: =CENA!G61 -> 0 | H70: 1.935 | I70: 0 | J70: 0 | K70: 0 | L70: =J70/$UW$70 -> 0 | M70: 0.258 | N70: 0 | O70: =M70/$UW$70 -> 5.972222222 | P70: 0 | Q70: 0 | R70: =P70/$UW$70 -> 0 | S70: 0 | T70: 0 | U70: =S70/$UW$70 -> 0 | V70: 0 | W70: 0 | X70: =V70/$UW$70 -> 0 | Y70: 0.258 | Z70: 0 | AA70: =Y70/$UW$70 -> 5.972222222 | AB70: 0 | AC70: 0 | AD70: =AB70/$UW$70 -> 0 | AE70: 0 | AF70: 0 | AG70: =AE70/$UW$70 -> 0 | AH70: 0 | AI70: 0 | AJ70: =AH70/$UW$70 -> 0 | AK70: 0 | AL70: 0 | AM70: =AK70/$UW$70 -> 0 | AN70: 0 | AO70: 0 | AP70: =AN70/$UW$70 -> 0 | AQ70: 0.258 | AR70: 0 | AS70: =AQ70/$UW$70 -> 5.972222222 | AT70: 0 | AU70: 0 | AV70: =AT70/$UW$70 -> 0 | AW70: 0 | AX70: 0 | AY70: =AW70/$UW$70 -> 0 | AZ70: 0 | BA70: 0 | BB70: =AZ70/$UW$70 -> 0 | BC70: 0 | BD70: 0 | BE70: =BC70/$UW$70 -> 0 | BF70: 0 | BG70: 0 | BH70: =BF70/$UW$70 -> 0 | BI70: 0 | BJ70: 0 | BK70: =BI70/$UW$70 -> 0 | BL70: 0 | BM70: 0 | BN70: =BL70/$UW$70 -> 0 | BO70: 0 | BP70: 0 | BQ70: =BO70/$UW$70 -> 0 | BR70: 0 | BS70: 0 | BT70: =BR70/$UW$70 -> 0 | BU70: 0 | BV70: 0 | BW70: =BU70/$UW$70 -> 0 | BX70: 0 | BY70: 0 | BZ70: =BX70/$UW$70 -> 0 | CA70: 0 | CB70: 0 | CC70: =CA70/$UW$70 -> 0 | CD70: 0 | CE70: 0 | CF70: =CD70/$UW$70 -> 0 | CG70: 0 | CH70: 0 | CI70: =CG70/$UW$70 -> 0 | CJ70: 0 | CK70: 0 | CL70: =CJ70/$UW$70 -> 0 | CM70: 0 | CN70: 0 | CO70: =CM70/$UW$70 -> 0 | CP70: 0 | CQ70: 0 | CR70: =CP70/$UW$70 -> 0 | CS70: 0 | CT70: 0 | CU70: =CS70/$UW$70 -> 0 | CV70: 0 | CW70: 0 | CX70: =CV70/$UW$70 -> 0 | CY70: 0.301 | CZ70: 0 | DA70: =CY70/$UW$70 -> 6.967592593 | DB70: 0.516 | DC70: 0 | DD70: =DB70/$UW$70 -> 11.94444444 | DE70: 0 | DF70: 0 | DG70: =DE70/$UW$70 -> 0 | DH70: 0 | DI70: 0 | DJ70: =DH70/$UW$70 -> 0 | DK70: 0 | DL70: 0 | DM70: =DK70/$UW$70 -> 0 | DN70: 0 | DO70: 0 | DP70: =DN70/$UW$70 -> 0 | DQ70: 0 | DR70: 0 | DS70: =DQ70/$UW$70 -> 0 | DT70: 0 | DU70: 0 | DV70: =DT70/$UW$70 -> 0 | DW70: 0 | DX70: 0 | DY70: =DW70/$UW$70 -> 0 | DZ70: 0.344 | EA70: 0 | EB70: =DZ70/$UW$70 -> 7.962962963 | EC70: 0 | ED70: 0 | EE70: =EC70/$UW$70 -> 0 | UW70: 0.0432
A71: 3.8.7 | C71: G | D71: Krovna štafla 5/8 cm | E71: Roof battens 5/8 cm | F71: m3 | G71: =CENA!G62 -> 0 | H71: 3.312 | I71: 0 | J71: 0 | K71: 0 | L71: =J71/$UW$71 -> 0 | M71: 0 | N71: 0 | O71: =M71/$UW$71 -> 0 | P71: 0 | Q71: 0 | R71: =P71/$UW$71 -> 0 | S71: 0.144 | T71: 0 | U71: =S71/$UW$71 -> 6 | V71: 0.432 | W71: 0 | X71: =V71/$UW$71 -> 18 | Y71: 0 | Z71: 0 | AA71: =Y71/$UW$71 -> 0 | AB71: 0 | AC71: 0 | AD71: =AB71/$UW$71 -> 0 | AE71: 0.144 | AF71: 0 | AG71: =AE71/$UW$71 -> 6 | AH71: 0 | AI71: 0 | AJ71: =AH71/$UW$71 -> 0 | AK71: 0 | AL71: 0 | AM71: =AK71/$UW$71 -> 0 | AN71: 0.288 | AO71: 0 | AP71: =AN71/$UW$71 -> 12 | AQ71: 0 | AR71: 0 | AS71: =AQ71/$UW$71 -> 0 | AT71: 0 | AU71: 0 | AV71: =AT71/$UW$71 -> 0 | AW71: 0 | AX71: 0 | AY71: =AW71/$UW$71 -> 0 | AZ71: 0 | BA71: 0 | BB71: =AZ71/$UW$71 -> 0 | BC71: 0 | BD71: 0 | BE71: =BC71/$UW$71 -> 0 | BF71: 0 | BG71: 0 | BH71: =BF71/$UW$71 -> 0 | BI71: 0 | BJ71: 0 | BK71: =BI71/$UW$71 -> 0 | BL71: 0 | BM71: 0 | BN71: =BL71/$UW$71 -> 0 | BO71: 0.144 | BP71: 0 | BQ71: =BO71/$UW$71 -> 6 | BR71: 0.144 | BS71: 0 | BT71: =BR71/$UW$71 -> 6 | BU71: 0 | BV71: 0 | BW71: =BU71/$UW$71 -> 0 | BX71: 0 | BY71: 0 | BZ71: =BX71/$UW$71 -> 0 | CA71: 0 | CB71: 0 | CC71: =CA71/$UW$71 -> 0 | CD71: 0.144 | CE71: 0 | CF71: =CD71/$UW$71 -> 6 | CG71: 0 | CH71: 0 | CI71: =CG71/$UW$71 -> 0 | CJ71: 0.144 | CK71: 0 | CL71: =CJ71/$UW$71 -> 6 | CM71: 0 | CN71: 0 | CO71: =CM71/$UW$71 -> 0 | CP71: 0 | CQ71: 0 | CR71: =CP71/$UW$71 -> 0 | CS71: 0 | CT71: 0 | CU71: =CS71/$UW$71 -> 0 | CV71: 0 | CW71: 0 | CX71: =CV71/$UW$71 -> 0 | CY71: 0 | CZ71: 0 | DA71: =CY71/$UW$71 -> 0 | DB71: 0.432 | DC71: 0 | DD71: =DB71/$UW$71 -> 18 | DE71: 0 | DF71: 0 | DG71: =DE71/$UW$71 -> 0 | DH71: 0.144 | DI71: 0 | DJ71: =DH71/$UW$71 -> 6 | DK71: 0.672 | DL71: 0 | DM71: =DK71/$UW$71 -> 28 | DN71: 0 | DO71: 0 | DP71: =DN71/$UW$71 -> 0 | DQ71: 0.48 | DR71: 0 | DS71: =DQ71/$UW$71 -> 20 | DT71: 0 | DU71: 0 | DV71: =DT71/$UW$71 -> 0 | DW71: 0 | DX71: 0 | DY71: =DW71/$UW$71 -> 0 | DZ71: 0 | EA71: 0 | EB71: =DZ71/$UW$71 -> 0 | EC71: 0 | ED71: 0 | EE71: =EC71/$UW$71 -> 0 | UW71: 0.024
A72: 3.8.8 | C72: H | D72: Tavanjače 18/26 cm | E72: attic beams 18/26 cm | F72: m3 | G72: =CENA!G63 -> 0 | H72: 0 | I72: 0 | J72: 0 | K72: 0 | L72: =J72/$UW$72 -> 0 | M72: 0 | N72: 0 | O72: =M72/$UW$72 -> 0 | P72: 0 | Q72: 0 | R72: =P72/$UW$72 -> 0 | S72: 0 | T72: 0 | U72: =S72/$UW$72 -> 0 | V72: 0 | W72: 0 | X72: =V72/$UW$72 -> 0 | Y72: 0 | Z72: 0 | AA72: =Y72/$UW$72 -> 0 | AB72: 0 | AC72: 0 | AD72: =AB72/$UW$72 -> 0 | AE72: 0 | AF72: 0 | AG72: =AE72/$UW$72 -> 0 | AH72: 0 | AI72: 0 | AJ72: =AH72/$UW$72 -> 0 | AK72: 0 | AL72: 0 | AM72: =AK72/$UW$72 -> 0 | AN72: 0 | AO72: 0 | AP72: =AN72/$UW$72 -> 0 | AQ72: 0 | AR72: 0 | AS72: =AQ72/$UW$72 -> 0 | AT72: 0 | AU72: 0 | AV72: =AT72/$UW$72 -> 0 | AW72: 0 | AX72: 0 | AY72: =AW72/$UW$72 -> 0 | AZ72: 0 | BA72: 0 | BB72: =AZ72/$UW$72 -> 0 | BC72: 0 | BD72: 0 | BE72: =BC72/$UW$72 -> 0 | BF72: 0 | BG72: 0 | BH72: =BF72/$UW$72 -> 0 | BI72: 0 | BJ72: 0 | BK72: =BI72/$UW$72 -> 0 | BL72: 0 | BM72: 0 | BN72: =BL72/$UW$72 -> 0 | BO72: 0 | BP72: 0 | BQ72: =BO72/$UW$72 -> 0 | BR72: 0 | BS72: 0 | BT72: =BR72/$UW$72 -> 0 | BU72: 0 | BV72: 0 | BW72: =BU72/$UW$72 -> 0 | BX72: 0 | BY72: 0 | BZ72: =BX72/$UW$72 -> 0 | CA72: 0 | CB72: 0 | CC72: =CA72/$UW$72 -> 0 | CD72: 0 | CE72: 0 | CF72: =CD72/$UW$72 -> 0 | CG72: 0 | CH72: 0 | CI72: =CG72/$UW$72 -> 0 | CJ72: 0 | CK72: 0 | CL72: =CJ72/$UW$72 -> 0 | CM72: 0 | CN72: 0 | CO72: =CM72/$UW$72 -> 0 | CP72: 0 | CQ72: 0 | CR72: =CP72/$UW$72 -> 0 | CS72: 0 | CT72: 0 | CU72: =CS72/$UW$72 -> 0 | CV72: 0 | CW72: 0 | CX72: =CV72/$UW$72 -> 0 | CY72: 0 | CZ72: 0 | DA72: =CY72/$UW$72 -> 0 | DB72: 0 | DC72: 0 | DD72: =DB72/$UW$72 -> 0 | DE72: 0 | DF72: 0 | DG72: =DE72/$UW$72 -> 0 | DH72: 0 | DI72: 0 | DJ72: =DH72/$UW$72 -> 0 | DK72: 0 | DL72: 0 | DM72: =DK72/$UW$72 -> 0 | DN72: 0 | DO72: 0 | DP72: =DN72/$UW$72 -> 0 | DQ72: 0 | DR72: 0 | DS72: =DQ72/$UW$72 -> 0 | DT72: 0 | DU72: 0 | DV72: =DT72/$UW$72 -> 0 | DW72: 0 | DX72: 0 | DY72: =DW72/$UW$72 -> 0 | DZ72: 0 | EA72: 0 | EB72: =DZ72/$UW$72 -> 0 | EC72: 0 | ED72: 0 | EE72: =EC72/$UW$72 -> 0 | UW72: 0.2808
A73: 3.9 | B73: K | C73: 9 | D73: Građevinska daska - fosna 4,8/25/400 cm | E73: Fir board 4,8/25/400 cm | F73: m3 | G73: =CENA!G64 -> 0 | H73: 0.144 | I73: 0 | J73: 0 | K73: 0 | L73: =J73/$UW$73 -> 0 | M73: 0 | N73: 0 | O73: =M73/$UW$73 -> 0 | P73: 0 | Q73: 0 | R73: =P73/$UW$73 -> 0 | S73: 0.144 | T73: 0 | U73: =S73/$UW$73 -> 3 | V73: 0 | W73: 0 | X73: =V73/$UW$73 -> 0 | Y73: 0 | Z73: 0 | AA73: =Y73/$UW$73 -> 0 | AB73: 0 | AC73: 0 | AD73: =AB73/$UW$73 -> 0 | AE73: 0 | AF73: 0 | AG73: =AE73/$UW$73 -> 0 | AH73: 0 | AI73: 0 | AJ73: =AH73/$UW$73 -> 0 | AK73: 0 | AL73: 0 | AM73: =AK73/$UW$73 -> 0 | AN73: 0 | AO73: 0 | AP73: =AN73/$UW$73 -> 0 | AQ73: 0 | AR73: 0 | AS73: =AQ73/$UW$73 -> 0 | AT73: 0 | AU73: 0 | AV73: =AT73/$UW$73 -> 0 | AW73: 0 | AX73: 0 | AY73: =AW73/$UW$73 -> 0 | AZ73: 0 | BA73: 0 | BB73: =AZ73/$UW$73 -> 0 | BC73: 0 | BD73: 0 | BE73: =BC73/$UW$73 -> 0 | BF73: 0 | BG73: 0 | BH73: =BF73/$UW$73 -> 0 | BI73: 0 | BJ73: 0 | BK73: =BI73/$UW$73 -> 0 | BL73: 0 | BM73: 0 | BN73: =BL73/$UW$73 -> 0 | BO73: 0 | BP73: 0 | BQ73: =BO73/$UW$73 -> 0 | BR73: 0 | BS73: 0 | BT73: =BR73/$UW$73 -> 0 | BU73: 0 | BV73: 0 | BW73: =BU73/$UW$73 -> 0 | BX73: 0 | BY73: 0 | BZ73: =BX73/$UW$73 -> 0 | CA73: 0 | CB73: 0 | CC73: =CA73/$UW$73 -> 0 | CD73: 0 | CE73: 0 | CF73: =CD73/$UW$73 -> 0 | CG73: 0 | CH73: 0 | CI73: =CG73/$UW$73 -> 0 | CJ73: 0 | CK73: 0 | CL73: =CJ73/$UW$73 -> 0 | CM73: 0 | CN73: 0 | CO73: =CM73/$UW$73 -> 0 | CP73: 0 | CQ73: 0 | CR73: =CP73/$UW$73 -> 0 | CS73: 0 | CT73: 0 | CU73: =CS73/$UW$73 -> 0 | CV73: 0 | CW73: 0 | CX73: =CV73/$UW$73 -> 0 | CY73: 0 | CZ73: 0 | DA73: =CY73/$UW$73 -> 0 | DB73: 0 | DC73: 0 | DD73: =DB73/$UW$73 -> 0 | DE73: 0 | DF73: 0 | DG73: =DE73/$UW$73 -> 0 | DH73: 0 | DI73: 0 | DJ73: =DH73/$UW$73 -> 0 | DK73: 0 | DL73: 0 | DM73: =DK73/$UW$73 -> 0 | DN73: 0 | DO73: 0 | DP73: =DN73/$UW$73 -> 0 | DQ73: 0 | DR73: 0 | DS73: =DQ73/$UW$73 -> 0 | DT73: 0 | DU73: 0 | DV73: =DT73/$UW$73 -> 0 | DW73: 0 | DX73: 0 | DY73: =DW73/$UW$73 -> 0 | DZ73: 0 | EA73: 0 | EB73: =DZ73/$UW$73 -> 0 | EC73: 0 | ED73: 0 | EE73: =EC73/$UW$73 -> 0 | UW73: 0.048
A74: 3.10 | B74: K | C74: 10 | D74: Krovna daska od čamove rezane građe 2,4-2,5/15 cm, isporučuje se dužine l=3,0 metra | E74: Roof fir board 2,4-2,5/15 cm, lenght l=3,0 m | F74: m3 | G74: =CENA!G65 -> 0 | H74: 34.20940594 | I74: 0 | J74: 0 | K74: 0 | M74: 0 | N74: 0 | P74: 0 | Q74: 0 | S74: 3.564356436 | T74: 0 | V74: 0 | W74: 0 | Y74: 0 | Z74: 0 | AB74: 0 | AC74: 0 | AE74: 0 | AF74: 0 | AH74: 0 | AI74: 0 | AK74: 0 | AL74: 0 | AN74: 0 | AO74: 0 | AQ74: 0 | AR74: 0 | AT74: 2.227722772 | AU74: 0 | AW74: 0 | AX74: 0 | AZ74: 0 | BA74: 0 | BC74: 0 | BD74: 0 | BF74: 0 | BG74: 0 | BI74: 0 | BJ74: 0 | BL74: 2.97029703 | BM74: 0 | BO74: 0 | BP74: 0 | BR74: 0 | BS74: 0 | BU74: 3.465346535 | BV74: 0 | BX74: 0 | BY74: 0 | CA74: 0 | CB74: 0 | CD74: 0 | CE74: 0 | CG74: 9.405940594 | CH74: 0 | CJ74: 0 | CK74: 0 | CM74: 0 | CN74: 0 | CP74: 0 | CQ74: 0 | CS74: 0 | CT74: 0 | CV74: 0 | CW74: 0 | CY74: 1.833168317 | CZ74: 0 | DB74: 3.985148515 | DC74: 0 | DE74: 0 | DF74: 0 | DH74: 0 | DI74: 0 | DK74: 2.475247525 | DL74: 0 | DN74: 0 | DO74: 0 | DQ74: 2.5 | DR74: 0 | DT74: 0 | DU74: 0 | DW74: 1.782178218 | DX74: 0 | DZ74: 0 | EA74: 0 | EC74: 0 | ED74: 0
A75: 3.11 | B75: K | C75: 11 | D75: Krovna letva od čamove rezane građe 3 / 5 cm , isporučuje se dužine l=3,0 metra | E75: Fir batten 3 / 5 cm , lenght l=3,0 m | F75: m1 | G75: =CENA!G66 -> 0 | H75: 31974 | I75: 0 | J75: 0 | K75: 0 | L75: =J75/$UW$75 -> 0 | M75: 870 | N75: 0 | O75: =M75/$UW$75 -> 290 | P75: 870 | Q75: 0 | R75: =P75/$UW$75 -> 290 | S75: 600 | T75: 0 | U75: =S75/$UW$75 -> 200 | V75: 930 | W75: 0 | X75: =V75/$UW$75 -> 310 | Y75: 1341 | Z75: 0 | AA75: =Y75/$UW$75 -> 447 | AB75: 0 | AC75: 0 | AD75: =AB75/$UW$75 -> 0 | AE75: 900 | AF75: 0 | AG75: =AE75/$UW$75 -> 300 | AH75: 300 | AI75: 0 | AJ75: =AH75/$UW$75 -> 100 | AK75: 963 | AL75: 0 | AM75: =AK75/$UW$75 -> 321 | AN75: 540 | AO75: 0 | AP75: =AN75/$UW$75 -> 180 | AQ75: 1182 | AR75: 0 | AS75: =AQ75/$UW$75 -> 394 | AT75: 978 | AU75: 0 | AV75: =AT75/$UW$75 -> 326 | AW75: 702 | AX75: 0 | AY75: =AW75/$UW$75 -> 234 | AZ75: 927 | BA75: 0 | BB75: =AZ75/$UW$75 -> 309 | BC75: 600 | BD75: 0 | BE75: =BC75/$UW$75 -> 200 | BF75: 891 | BG75: 0 | BH75: =BF75/$UW$75 -> 297 | BI75: 750 | BJ75: 0 | BK75: =BI75/$UW$75 -> 250 | BL75: 600 | BM75: 0 | BN75: =BL75/$UW$75 -> 200 | BO75: 900 | BP75: 0 | BQ75: =BO75/$UW$75 -> 300 | BR75: 900 | BS75: 0 | BT75: =BR75/$UW$75 -> 300 | BU75: 738 | BV75: 0 | BW75: =BU75/$UW$75 -> 246 | BX75: 0 | BY75: 0 | BZ75: =BX75/$UW$75 -> 0 | CA75: 921 | CB75: 0 | CC75: =CA75/$UW$75 -> 307 | CD75: 600 | CE75: 0 | CF75: =CD75/$UW$75 -> 200 | CG75: 1596 | CH75: 0 | CI75: =CG75/$UW$75 -> 532 | CJ75: 1200 | CK75: 0 | CL75: =CJ75/$UW$75 -> 400 | CM75: 921 | CN75: 0 | CO75: =CM75/$UW$75 -> 307 | CP75: 600 | CQ75: 0 | CR75: =CP75/$UW$75 -> 200 | CS75: 852 | CT75: 0 | CU75: =CS75/$UW$75 -> 284 | CV75: 897 | CW75: 0 | CX75: =CV75/$UW$75 -> 299 | CY75: 930 | CZ75: 0 | DA75: =CY75/$UW$75 -> 310 | DB75: 678 | DC75: 0 | DD75: =DB75/$UW$75 -> 226 | DE75: 750 | DF75: 0 | DG75: =DE75/$UW$75 -> 250 | DH75: 600 | DI75: 0 | DJ75: =DH75/$UW$75 -> 200 | DK75: 690 | DL75: 0 | DM75: =DK75/$UW$75 -> 230 | DN75: 0 | DO75: 0 | DP75: =DN75/$UW$75 -> 0 | DQ75: 525 | DR75: 0 | DS75: =DQ75/$UW$75 -> 175 | DT75: 870 | DU75: 0 | DV75: =DT75/$UW$75 -> 290 | DW75: 690 | DX75: 0 | DY75: =DW75/$UW$75 -> 230 | DZ75: 1221 | EA75: 0 | EB75: =DZ75/$UW$75 -> 407 | EC75: 951 | ED75: 0 | EE75: =EC75/$UW$75 -> 317 | UW75: 3
A76: 3.12 | B76: K | C76: 12 | D76: OSB3 vlagootporne konstruktivne ploče d=18 mm / dim. 2440 x 1220 | E76: OSB3 moisture resistant structural panels d=18 mm / dim. 2440 x 1220 | F76: kom/pcs | G76: =CENA!G67 -> 0 | H76: 632 | I76: 0 | J76: 0 | K76: 0 | M76: 0 | N76: 0 | P76: 0 | Q76: 0 | S76: 0 | T76: 0 | V76: 0 | W76: 0 | Y76: 0 | Z76: 0 | AB76: 0 | AC76: 0 | AE76: 57 | AF76: 0 | AH76: 22 | AI76: 0 | AK76: 0 | AL76: 0 | AN76: 41 | AO76: 0 | AQ76: 0 | AR76: 0 | AT76: 0 | AU76: 0 | AW76: 61 | AX76: 0 | AZ76: 20 | BA76: 0 | BC76: 41 | BD76: 0 | BF76: 0 | BG76: 0 | BI76: 0 | BJ76: 0 | BL76: 0 | BM76: 0 | BO76: 0 | BP76: 0 | BR76: 68 | BS76: 0 | BU76: 0 | BV76: 0 | BX76: 0 | BY76: 0 | CA76: 0 | CB76: 0 | CD76: 49 | CE76: 0 | CG76: 0 | CH76: 0 | CJ76: 49 | CK76: 0 | CM76: 0 | CN76: 0 | CP76: 54 | CQ76: 0 | CS76: 0 | CT76: 0 | CV76: 0 | CW76: 0 | CY76: 0 | CZ76: 0 | DB76: 0 | DC76: 0 | DE76: 54 | DF76: 0 | DH76: 50 | DI76: 0 | DK76: 50 | DL76: 0 | DN76: 16 | DO76: 0 | DQ76: 0 | DR76: 0 | DT76: 0 | DU76: 0 | DW76: 0 | DX76: 0 | DZ76: 0 | EA76: 0 | EC76: 0 | ED76: 0
A77: 3.13 | B77: K | C77: 13 | D77: Standardne gips kartonske ploče - Tip A dimenzije: 1200-1250 x 2000 mm | E77: Standard plasterboard table - Type A dim: 1200-1250 x 2000 mm | F77: kom/pcs | G77: =CENA!G68 -> 0 | H77: 483 | I77: 0 | J77: 50 | K77: 0 | M77: 20 | N77: 0 | P77: 36 | Q77: 0 | S77: 0 | T77: 0 | V77: 0 | W77: 0 | Y77: 0 | Z77: 0 | AB77: 63 | AC77: 0 | AE77: 27 | AF77: 0 | AH77: 0 | AI77: 0 | AK77: 38 | AL77: 0 | AN77: 27 | AO77: 0 | AQ77: 21 | AR77: 0 | AT77: 0 | AU77: 0 | AW77: 0 | AX77: 0 | AZ77: 0 | BA77: 0 | BC77: 13 | BD77: 0 | BF77: 0 | BG77: 0 | BI77: 0 | BJ77: 0 | BL77: 0 | BM77: 0 | BO77: 0 | BP77: 0 | BR77: 0 | BS77: 0 | BU77: 0 | BV77: 0 | BX77: 7 | BY77: 0 | CA77: 0 | CB77: 0 | CD77: 0 | CE77: 0 | CG77: 0 | CH77: 0 | CJ77: 0 | CK77: 0 | CM77: 18 | CN77: 0 | CP77: 0 | CQ77: 0 | CS77: 0 | CT77: 0 | CV77: 0 | CW77: 0 | CY77: 27 | CZ77: 0 | DB77: 0 | DC77: 0 | DE77: 33 | DF77: 0 | DH77: 0 | DI77: 0 | DK77: 0 | DL77: 0 | DN77: 38 | DO77: 0 | DQ77: 30 | DR77: 0 | DT77: 0 | DU77: 0 | DW77: 35 | DX77: 0 | DZ77: 0 | EA77: 0 | EC77: 0 | ED77: 0
A78: 3.14 | B78: K | C78: 14 | D78: Vlagootporne gips kartonske ploče - Tip H2 dimenzije: 1200-1250 x 2000 mm | E78: Moisture resistant Plasterboard - Type H2 dim: 1200-1250 x 2000 mm | F78: kom/pcs | G78: =CENA!G69 -> 0 | H78: 74 | I78: 0 | J78: 21 | K78: 0 | M78: 2 | N78: 0 | P78: 2 | Q78: 0 | S78: 0 | T78: 0 | V78: 3 | W78: 0 | Y78: 0 | Z78: 0 | AB78: 3 | AC78: 0 | AE78: 0 | AF78: 0 | AH78: 0 | AI78: 0 | AK78: 3 | AL78: 0 | AN78: 4 | AO78: 0 | AQ78: 0 | AR78: 0 | AT78: 0 | AU78: 0 | AW78: 2 | AX78: 0 | AZ78: 0 | BA78: 0 | BC78: 5 | BD78: 0 | BF78: 0 | BG78: 0 | BI78: 0 | BJ78: 0 | BL78: 0 | BM78: 0 | BO78: 0 | BP78: 0 | BR78: 0 | BS78: 0 | BU78: 4 | BV78: 0 | BX78: 3 | BY78: 0 | CA78: 0 | CB78: 0 | CD78: 0 | CE78: 0 | CG78: 0 | CH78: 0 | CJ78: 0 | CK78: 0 | CM78: 2 | CN78: 0 | CP78: 3 | CQ78: 0 | CS78: 0 | CT78: 0 | CV78: 2 | CW78: 0 | CY78: 2 | CZ78: 0 | DB78: 0 | DC78: 0 | DE78: 3 | DF78: 0 | DH78: 0 | DI78: 0 | DK78: 0 | DL78: 0 | DN78: 4 | DO78: 0 | DQ78: 3 | DR78: 0 | DT78: 0 | DU78: 0 | DW78: 3 | DX78: 0 | DZ78: 0 | EA78: 0 | EC78: 0 | ED78: 0
A79: 3.15 | B79: K | C79: 15 | D79: Čelični pocinkovani i farbani olučni elementi prečnika: Ø 100 mm dužine 600 cm | E79: Galvanized steel and painted gutter elements diameter: Ø 100 mm length 600 cm | F79: / | G79: / | H79: / | I79: / | J79: / | K79: / | M79: / | N79: / | P79: / | Q79: / | S79: / | T79: / | V79: / | W79: / | Y79: / | Z79: / | AB79: / | AC79: / | AE79: / | AF79: / | AH79: / | AI79: / | AK79: / | AL79: / | AN79: / | AO79: / | AQ79: / | AR79: / | AT79: / | AU79: / | AW79: / | AX79: / | AZ79: / | BA79: / | BC79: / | BD79: / | BF79: / | BG79: / | BI79: / | BJ79: / | BL79: / | BM79: / | BO79: / | BP79: / | BR79: / | BS79: / | BU79: / | BV79: / | BX79: / | BY79: / | CA79: / | CB79: / | CD79: / | CE79: / | CG79: / | CH79: / | CJ79: / | CK79: / | CM79: / | CN79: / | CP79: / | CQ79: / | CS79: / | CT79: / | CV79: / | CW79: / | CY79: / | CZ79: / | DB79: / | DC79: / | DE79: / | DF79: / | DH79: / | DI79: / | DK79: / | DL79: / | DN79: / | DO79: / | DQ79: / | DR79: / | DT79: / | DU79: / | DW79: / | DX79: / | DZ79: / | EA79: / | EC79: / | ED79: /
A80: 3.15.1 | C80: A | D80: Horizontalni polukružni | E80: horizontal semicircular gutter | F80: kom/pcs | G80: =CENA!G71 -> 0 | H80: =J80+M80+P80+S80+AQ80+CJ80+DK80+FD80+V80+Y80+AB80+AE80+AH80+AK80+AN80+AT80+AW80+AZ80+BC80+BF80+BI80+BL80+BO80+BR80+BU80+BX80+CA80+CD80+CG80+CM80+CP80+CS80+CV80+CY80+DB80+DE80+DH80+DN80+DQ80+DT80+DW80+DZ80+EC80+EF80+EI80+EL80+EO80+ER80+EU80+EX80+FA80+FG80+FJ80+FM80+FP80+FS80+FV80+FY80+GB80+GE80+GH80+GK80+GN80+GQ80+GT80+GW80+GZ80+HC80+HF80+HI80+HL80+HO80+HR80+HU80+HX80+IA80+ID80+IG80+IJ80+IM80+IP80+IS80+IV80+IY80+JB80+JE80+JH80+JK80+JN80+JQ80+JT80+JW80+JZ80+KC80+KF80+KI80+KL80+KO80+KR80+KU80+KX80+LA80+LD80+LG80+LJ80+LM80+LP80+LS80+LV80+LY80+MB80+ME80+MH80+MK80+MN80+MQ80+MT80+MW80+MZ80+NC80+NF80+NI80+NL80+NO80+NR80+NU80+NX80+OA80+OD80+OG80+OJ80+OM80+OP80+OS80+OV80+OY80+PB80+PE80+PH80+PK80+PN80+PQ80+PT80+PW80+PZ80+QC80+QF80+QI80+QL80+QO80+QR80+QU80+QX80+RA80+RD80+RG80+RJ80+RM80+RP80+RS80+RV80+RY80+SB80+SE80+SH80+SK80+SN80+SQ80+ST80+SW80+SZ80+TC80+TF80+TI80+TL80+TO80+TR80+TU80+TX80+UA80+UD80+UG80+UJ80+UM80+UP80+US80 -> 231 | I80: =G80*H80 -> 0 | J80: 0 | K80: =$G80*J80 -> 0 | M80: 6 | N80: =$G80*M80 -> 0 | P80: 5 | Q80: =$G80*P80 -> 0 | S80: 5 | T80: =$G80*S80 -> 0 | V80: 9 | W80: =$G80*V80 -> 0 | Y80: 9 | Z80: =$G80*Y80 -> 0 | AB80: 4 | AC80: =$G80*AB80 -> 0 | AE80: 5 | AF80: =$G80*AE80 -> 0 | AH80: 3 | AI80: =$G80*AH80 -> 0 | AK80: 7 | AL80: =$G80*AK80 -> 0 | AN80: 5 | AO80: =$G80*AN80 -> 0 | AQ80: 6 | AR80: =$G80*AQ80 -> 0 | AT80: 6 | AU80: =$G80*AT80 -> 0 | AW80: 6 | AX80: =$G80*AW80 -> 0 | AZ80: 6 | BA80: =$G80*AZ80 -> 0 | BC80: 5 | BD80: =$G80*BC80 -> 0 | BF80: 7 | BG80: =$G80*BF80 -> 0 | BI80: 5 | BJ80: =$G80*BI80 -> 0 | BL80: 4 | BM80: =$G80*BL80 -> 0 | BO80: 8 | BP80: =$G80*BO80 -> 0 | BR80: 7 | BS80: =$G80*BR80 -> 0 | BU80: 9 | BV80: =$G80*BU80 -> 0 | BX80: 0 | BY80: =$G80*BX80 -> 0 | CA80: 6 | CB80: =$G80*CA80 -> 0 | CD80: 5 | CE80: =$G80*CD80 -> 0 | CG80: 0 | CH80: =$G80*CG80 -> 0 | CJ80: 6 | CK80: =$G80*CJ80 -> 0 | CM80: 6 | CN80: =$G80*CM80 -> 0 | CP80: 4 | CQ80: =$G80*CP80 -> 0 | CS80: 6 | CT80: =$G80*CS80 -> 0 | CV80: 6 | CW80: =$G80*CV80 -> 0 | CY80: 6 | CZ80: =$G80*CY80 -> 0 | DB80: 7 | DC80: =$G80*DB80 -> 0 | DE80: 4 | DF80: =$G80*DE80 -> 0 | DH80: 5 | DI80: =$G80*DH80 -> 0 | DK80: 7 | DL80: =$G80*DK80 -> 0 | DN80: 7 | DO80: =$G80*DN80 -> 0 | DQ80: 6 | DR80: =$G80*DQ80 -> 0 | DT80: 5 | DU80: =$G80*DT80 -> 0 | DW80: 4 | DX80: =$G80*DW80 -> 0 | DZ80: 8 | EA80: =$G80*DZ80 -> 0 | EC80: 6 | ED80: =$G80*EC80 -> 0
A81: 3.15.2 | C81: B | D81: Vertikalni kružni oluk | E81: Vertical circular gutter | F81: kom/pcs | G81: =CENA!G72 -> 0 | H81: 118 | I81: 0 | J81: 0 | K81: =$G81*J81 -> 0 | M81: 3 | N81: =$G81*M81 -> 0 | P81: 3 | Q81: 0 | S81: 3 | T81: 0 | V81: 4 | W81: =$G81*V81 -> 0 | Y81: 3 | Z81: =$G81*Y81 -> 0 | AB81: 3 | AC81: =$G81*AB81 -> 0 | AE81: 2 | AF81: =$G81*AE81 -> 0 | AH81: 2 | AI81: =$G81*AH81 -> 0 | AK81: 3 | AL81: =$G81*AK81 -> 0 | AN81: 2 | AO81: =$G81*AN81 -> 0 | AQ81: 4 | AR81: =$G81*AQ81 -> 0 | AT81: 4 | AU81: =$G81*AT81 -> 0 | AW81: 3 | AX81: =$G81*AW81 -> 0 | AZ81: 3 | BA81: =$G81*AZ81 -> 0 | BC81: 3 | BD81: =$G81*BC81 -> 0 | BF81: 3 | BG81: =$G81*BF81 -> 0 | BI81: 3 | BJ81: =$G81*BI81 -> 0 | BL81: 1 | BM81: =$G81*BL81 -> 0 | BO81: 3 | BP81: =$G81*BO81 -> 0 | BR81: 3 | BS81: =$G81*BR81 -> 0 | BU81: 3 | BV81: =$G81*BU81 -> 0 | BX81: 0 | BY81: 0 | CA81: 5 | CB81: =$G81*CA81 -> 0 | CD81: 3 | CE81: =$G81*CD81 -> 0 | CG81: 0 | CH81: =$G81*CG81 -> 0 | CJ81: 3 | CK81: =$G81*CJ81 -> 0 | CM81: 3 | CN81: =$G81*CM81 -> 0 | CP81: 3 | CQ81: =$G81*CP81 -> 0 | CS81: 3 | CT81: =$G81*CS81 -> 0 | CV81: 3 | CW81: =$G81*CV81 -> 0 | CY81: 3 | CZ81: =$G81*CY81 -> 0 | DB81: 3 | DC81: =$G81*DB81 -> 0 | DE81: 3 | DF81: =$G81*DE81 -> 0 | DH81: 3 | DI81: =$G81*DH81 -> 0 | DK81: 2 | DL81: =$G81*DK81 -> 0 | DN81: 5 | DO81: =$G81*DN81 -> 0 | DQ81: 3 | DR81: 0 | DT81: 3 | DU81: 0 | DW81: 3 | DX81: =$G81*DW81 -> 0 | DZ81: 3 | EA81: =$G81*DZ81 -> 0 | EC81: 3 | ED81: =$G81*EC81 -> 0
A83: 4 | B83: P | D83: MATERIJAL ZA PODOVE, LAMINAT, PLOČICE I XPS | E83: FLOORING, LAMINATE, TILES AND XPS
A84: 4.1 | B84: P | C84: 1 | D84: Unutrašnje podne keramičke pločice Min. dimenzije pločica: 200x300 mm | E84: Floor tiles for inside Min. tile size: 200x300 mm | F84: m2 | G84: =CENA!G75 -> 0 | H84: =J84+M84+P84+S84+AQ84+CJ84+DK84+FD84+V84+Y84+AB84+AE84+AH84+AK84+AN84+AT84+AW84+AZ84+BC84+BF84+BI84+BL84+BO84+BR84+BU84+BX84+CA84+CD84+CG84+CM84+CP84+CS84+CV84+CY84+DB84+DE84+DH84+DN84+DQ84+DT84+DW84+DZ84+EC84+EF84+EI84+EL84+EO84+ER84+EU84+EX84+FA84+FG84+FJ84+FM84+FP84+FS84+FV84+FY84+GB84+GE84+GH84+GK84+GN84+GQ84+GT84+GW84+GZ84+HC84+HF84+HI84+HL84+HO84+HR84+HU84+HX84+IA84+ID84+IG84+IJ84+IM84+IP84+IS84+IV84+IY84+JB84+JE84+JH84+JK84+JN84+JQ84+JT84+JW84+JZ84+KC84+KF84+KI84+KL84+KO84+KR84+KU84+KX84+LA84+LD84+LG84+LJ84+LM84+LP84+LS84+LV84+LY84+MB84+ME84+MH84+MK84+MN84+MQ84+MT84+MW84+MZ84+NC84+NF84+NI84+NL84+NO84+NR84+NU84+NX84+OA84+OD84+OG84+OJ84+OM84+OP84+OS84+OV84+OY84+PB84+PE84+PH84+PK84+PN84+PQ84+PT84+PW84+PZ84+QC84+QF84+QI84+QL84+QO84+QR84+QU84+QX84+RA84+RD84+RG84+RJ84+RM84+RP84+RS84+RV84+RY84+SB84+SE84+SH84+SK84+SN84+SQ84+ST84+SW84+SZ84+TC84+TF84+TI84+TL84+TO84+TR84+TU84+TX84+UA84+UD84+UG84+UJ84+UM84+UP84+US84 -> 639 | I84: =G84*H84 -> 0 | J84: 27 | K84: =$G84*J84 -> 0 | M84: 0 | N84: =$G84*M84 -> 0 | P84: 5 | Q84: =$G84*P84 -> 0 | S84: 14 | T84: =$G84*S84 -> 0 | V84: 44 | W84: =$G84*V84 -> 0 | Y84: 17 | Z84: =$G84*Y84 -> 0 | AB84: 30 | AC84: =$G84*AB84 -> 0 | AE84: 10 | AF84: =$G84*AE84 -> 0 | AH84: 13 | AI84: =$G84*AH84 -> 0 | AK84: 8 | AL84: =$G84*AK84 -> 0 | AN84: 20 | AO84: =$G84*AN84 -> 0 | AQ84: 16 | AR84: =$G84*AQ84 -> 0 | AT84: 12 | AU84: =$G84*AT84 -> 0 | AW84: 22 | AX84: =$G84*AW84 -> 0 | AZ84: 9 | BA84: =$G84*AZ84 -> 0 | BC84: 33 | BD84: =$G84*BC84 -> 0 | BF84: 7 | BG84: =$G84*BF84 -> 0 | BI84: 31 | BJ84: =$G84*BI84 -> 0 | BL84: 15 | BM84: =$G84*BL84 -> 0 | BO84: 13 | BP84: =$G84*BO84 -> 0 | BR84: 13 | BS84: =$G84*BR84 -> 0 | BU84: 38 | BV84: =$G84*BU84 -> 0 | BX84: 28 | BY84: =$G84*BX84 -> 0 | CA84: 11 | CB84: =$G84*CA84 -> 0 | CD84: 12 | CE84: =$G84*CD84 -> 0 | CG84: 22 | CH84: =$G84*CG84 -> 0 | CJ84: 5 | CK84: =$G84*CJ84 -> 0 | CM84: 25 | CN84: =$G84*CM84 -> 0 | CP84: 20 | CQ84: =$G84*CP84 -> 0 | CS84: 0 | CT84: =$G84*CS84 -> 0 | CV84: 17 | CW84: =$G84*CV84 -> 0 | CY84: 7 | CZ84: =$G84*CY84 -> 0 | DB84: 0 | DC84: =$G84*DB84 -> 0 | DE84: 5 | DF84: =$G84*DE84 -> 0 | DH84: 17 | DI84: =$G84*DH84 -> 0 | DK84: 0 | DL84: =$G84*DK84 -> 0 | DN84: 20 | DO84: =$G84*DN84 -> 0 | DQ84: 18 | DR84: =$G84*DQ84 -> 0 | DT84: 21 | DU84: =$G84*DT84 -> 0 | DW84: 8 | DX84: =$G84*DW84 -> 0 | DZ84: 0 | EA84: =$G84*DZ84 -> 0 | EC84: 6 | ED84: =$G84*EC84 -> 0
A85: 4.2 | B85: P | C85: 2 | D85: Unutrašnje zidne keramičke pločice Min. dimenzije pločica: 200x300 mm | E85: Wall tiles for inside Min. tile size: 200x300 mm | F85: m2 | G85: =CENA!G76 -> 0 | H85: 1045 | I85: 0 | J85: 37 | K85: 0 | M85: 0 | N85: 0 | P85: 20 | Q85: 0 | S85: 21 | T85: 0 | V85: 47 | W85: 0 | Y85: 21 | Z85: 0 | AB85: 37 | AC85: 0 | AE85: 27 | AF85: 0 | AH85: 23 | AI85: 0 | AK85: 28 | AL85: 0 | AN85: 32 | AO85: 0 | AQ85: 30 | AR85: 0 | AT85: 27 | AU85: 0 | AW85: 28 | AX85: 0 | AZ85: 11 | BA85: 0 | BC85: 32 | BD85: 0 | BF85: 26 | BG85: 0 | BI85: 29 | BJ85: 0 | BL85: 21 | BM85: 0 | BO85: 41 | BP85: 0 | BR85: 21 | BS85: 0 | BU85: 53 | BV85: 0 | BX85: 34 | BY85: 0 | CA85: 25 | CB85: 0 | CD85: 26 | CE85: 0 | CG85: 38 | CH85: 0 | CJ85: 27 | CK85: 0 | CM85: 21 | CN85: 0 | CP85: 28 | CQ85: 0 | CS85: 0 | CT85: 0 | CV85: 0 | CW85: 0 | CY85: 26 | CZ85: 0 | DB85: 0 | DC85: 0 | DE85: 23 | DF85: 0 | DH85: 27 | DI85: 0 | DK85: 0 | DL85: 0 | DN85: 49 | DO85: 0 | DQ85: 31 | DR85: 0 | DT85: 23 | DU85: 0 | DW85: 28 | DX85: 0 | DZ85: 0 | EA85: 0 | EC85: 27 | ED85: 0
A86: 4.3 | B86: P | C86: 3 | D86: Lepak za keramičke pločice Fleksibilni, polimer-cementni lepak | E86: Glue for ceramic tiles Flexible, polymer-cement glue | F86: kg | G86: =CENA!G77 -> 0 | H86: 5075 | I86: 0 | J86: 200 | K86: 0 | M86: 0 | N86: 0 | P86: 75 | Q86: 0 | S86: 100 | T86: 0 | V86: 275 | W86: 0 | Y86: 125 | Z86: 0 | AB86: 200 | AC86: 0 | AE86: 100 | AF86: 0 | AH86: 100 | AI86: 0 | AK86: 100 | AL86: 0 | AN86: 150 | AO86: 0 | AQ86: 150 | AR86: 0 | AT86: 125 | AU86: 0 | AW86: 150 | AX86: 0 | AZ86: 75 | BA86: 0 | BC86: 200 | BD86: 0 | BF86: 100 | BG86: 0 | BI86: 175 | BJ86: 0 | BL86: 100 | BM86: 0 | BO86: 175 | BP86: 0 | BR86: 100 | BS86: 0 | BU86: 275 | BV86: 0 | BX86: 175 | BY86: 0 | CA86: 100 | CB86: 0 | CD86: 125 | CE86: 0 | CG86: 175 | CH86: 0 | CJ86: 100 | CK86: 0 | CM86: 150 | CN86: 0 | CP86: 150 | CQ86: 0 | CS86: 0 | CT86: 0 | CV86: 50 | CW86: 0 | CY86: 100 | CZ86: 0 | DB86: 0 | DC86: 0 | DE86: 100 | DF86: 0 | DH86: 125 | DI86: 0 | DK86: 0 | DL86: 0 | DN86: 200 | DO86: 0 | DQ86: 150 | DR86: 0 | DT86: 125 | DU86: 0 | DW86: 100 | DX86: 0 | DZ86: 0 | EA86: 0 | EC86: 100 | ED86: 0
A87: 4.4 | B87: P | C87: 4 | D87: Fleksibilna masa za fugovanje Vodoodbojna fug masa na bazi cementa | E87: Flexible mass for grouting Waterproof grout cement based | F87: kg | G87: =CENA!G78 -> 0 | H87: 492 | I87: 0 | J87: 18 | K87: 0 | M87: 0 | N87: 0 | P87: 8 | Q87: 0 | S87: 10 | T87: 0 | V87: 26 | W87: 0 | Y87: 12 | Z87: 0 | AB87: 20 | AC87: 0 | AE87: 10 | AF87: 0 | AH87: 10 | AI87: 0 | AK87: 10 | AL87: 0 | AN87: 16 | AO87: 0 | AQ87: 14 | AR87: 0 | AT87: 12 | AU87: 0 | AW87: 14 | AX87: 0 | AZ87: 6 | BA87: 0 | BC87: 18 | BD87: 0 | BF87: 10 | BG87: 0 | BI87: 18 | BJ87: 0 | BL87: 10 | BM87: 0 | BO87: 16 | BP87: 0 | BR87: 10 | BS87: 0 | BU87: 26 | BV87: 0 | BX87: 18 | BY87: 0 | CA87: 10 | CB87: 0 | CD87: 12 | CE87: 0 | CG87: 18 | CH87: 0 | CJ87: 10 | CK87: 0 | CM87: 14 | CN87: 0 | CP87: 14 | CQ87: 0 | CS87: 0 | CT87: 0 | CV87: 6 | CW87: 0 | CY87: 10 | CZ87: 0 | DB87: 0 | DC87: 0 | DE87: 8 | DF87: 0 | DH87: 12 | DI87: 0 | DK87: 0 | DL87: 0 | DN87: 20 | DO87: 0 | DQ87: 14 | DR87: 0 | DT87: 12 | DU87: 0 | DW87: 10 | DX87: 0 | DZ87: 0 | EA87: 0 | EC87: 10 | ED87: 0
A88: 4.5 | B88: P | C88: 5 | D88: Laminat - jakopresovani (HLP) sa klik sistemom, dezen: hrast natur (prirodni) | E88: Laminate (HLP) with click system, design: oak natural (natural) | F88: m2 | G88: =CENA!G79 -> 0 | H88: 1712 | I88: 0 | J88: 66 | K88: 0 | M88: 36 | N88: 0 | P88: 50 | Q88: 0 | S88: 38 | T88: 0 | V88: 44 | W88: 0 | Y88: 34 | Z88: 0 | AB88: 42 | AC88: 0 | AE88: 48 | AF88: 0 | AH88: 22 | AI88: 0 | AK88: 24 | AL88: 0 | AN88: 50 | AO88: 0 | AQ88: 56 | AR88: 0 | AT88: 0 | AU88: 0 | AW88: 40 | AX88: 0 | AZ88: 52 | BA88: 0 | BC88: 0 | BD88: 0 | BF88: 50 | BG88: 0 | BI88: 58 | BJ88: 0 | BL88: 42 | BM88: 0 | BO88: 80 | BP88: 0 | BR88: 96 | BS88: 0 | BU88: 56 | BV88: 0 | BX88: 0 | BY88: 0 | CA88: 26 | CB88: 0 | CD88: 56 | CE88: 0 | CG88: 46 | CH88: 0 | CJ88: 20 | CK88: 0 | CM88: 34 | CN88: 0 | CP88: 30 | CQ88: 0 | CS88: 0 | CT88: 0 | CV88: 40 | CW88: 0 | CY88: 36 | CZ88: 0 | DB88: 68 | DC88: 0 | DE88: 50 | DF88: 0 | DH88: 46 | DI88: 0 | DK88: 0 | DL88: 0 | DN88: 66 | DO88: 0 | DQ88: 54 | DR88: 0 | DT88: 52 | DU88: 0 | DW88: 40 | DX88: 0 | DZ88: 0 | EA88: 0 | EC88: 64 | ED88: 0
A89: 4.6 | B89: P | C89: 6 | D89: Lajsne za laminat od medijapana materijal: medijapan / MDF | E89: Moldings for laminate MDF Material: MDF / MDF | F89: m1 | G89: =CENA!G80 -> 0 | H89: 2184 | I89: 0 | J89: 93.6 | K89: 0 | L89: =J89/2.6 -> 36 | M89: 31.2 | N89: 0 | O89: =M89/2.6 -> 12 | P89: 62.4 | Q89: 0 | R89: =P89/2.6 -> 24 | S89: 62.4 | T89: 0 | U89: =S89/2.6 -> 24 | V89: 62.4 | W89: 0 | X89: =V89/2.6 -> 24 | Y89: 31.2 | Z89: 0 | AA89: =Y89/2.6 -> 12 | AB89: 62.4 | AC89: 0 | AD89: =AB89/2.6 -> 24 | AE89: 62.4 | AF89: 0 | AG89: =AE89/2.6 -> 24 | AH89: 62.4 | AI89: 0 | AJ89: =AH89/2.6 -> 24 | AK89: 31.2 | AL89: 0 | AM89: =AK89/2.6 -> 12 | AN89: 62.4 | AO89: 0 | AP89: =AN89/2.6 -> 24 | AQ89: 62.4 | AR89: 0 | AS89: =AQ89/2.6 -> 24 | AT89: 0 | AU89: 0 | AV89: =AT89/2.6 -> 0 | AW89: 31.2 | AX89: 0 | AY89: =AW89/2.6 -> 12 | AZ89: 62.4 | BA89: 0 | BB89: =AZ89/2.6 -> 24 | BC89: 0 | BD89: 0 | BE89: =BC89/2.6 -> 0 | BF89: 62.4 | BG89: 0 | BH89: =BF89/2.6 -> 24 | BI89: 62.4 | BJ89: 0 | BK89: =BI89/2.6 -> 24 | BL89: 62.4 | BM89: 0 | BN89: =BL89/2.6 -> 24 | BO89: 93.6 | BP89: 0 | BQ89: =BO89/2.6 -> 36 | BR89: 93.6 | BS89: 0 | BT89: =BR89/2.6 -> 36 | BU89: 93.6 | BV89: 0 | BW89: =BU89/2.6 -> 36 | BX89: 0 | BY89: 0 | BZ89: =BX89/2.6 -> 0 | CA89: 31.2 | CB89: 0 | CC89: =CA89/2.6 -> 12 | CD89: 93.6 | CE89: 0 | CF89: =CD89/2.6 -> 36 | CG89: 62.4 | CH89: 0 | CI89: =CG89/2.6 -> 24 | CJ89: 31.2 | CK89: 0 | CL89: =CJ89/2.6 -> 12 | CM89: 31.2 | CN89: 0 | CO89: =CM89/2.6 -> 12 | CP89: 31.2 | CQ89: 0 | CR89: =CP89/2.6 -> 12 | CS89: 0 | CT89: 0 | CU89: =CS89/2.6 -> 0 | CV89: 62.4 | CW89: 0 | CX89: =CV89/2.6 -> 24 | CY89: 31.2 | CZ89: 0 | DA89: =CY89/2.6 -> 12 | DB89: 93.6 | DC89: 0 | DD89: =DB89/2.6 -> 36 | DE89: 62.4 | DF89: 0 | DG89: =DE89/2.6 -> 24 | DH89: 62.4 | DI89: 0 | DJ89: =DH89/2.6 -> 24 | DK89: 0 | DL89: 0 | DM89: =DK89/2.6 -> 0 | DN89: 93.6 | DO89: 0 | DP89: =DN89/2.6 -> 36 | DQ89: 62.4 | DR89: 0 | DS89: =DQ89/2.6 -> 24 | DT89: 62.4 | DU89: 0 | DV89: =DT89/2.6 -> 24 | DW89: 62.4 | DX89: 0 | DY89: =DW89/2.6 -> 24 | DZ89: 0 | EA89: 0 | EB89: =DZ89/2.6 -> 0 | EC89: 62.4 | ED89: 0 | EE89: =EC89/2.6 -> 24
A90: 4.7 | B90: P | C90: 7 | D90: Podloga za laminat od polietilenske pene Sunđerasta podloga za laminat | E90: The base for laminate of polyethylene foam Foam base for laminate | F90: m2 | G90: =CENA!G81 -> 0 | H90: 2161.5 | I90: 0 | J90: 82.5 | K90: 0 | M90: 49.5 | N90: 0 | P90: 66 | Q90: 0 | S90: 49.5 | T90: 0 | V90: 49.5 | W90: 0 | Y90: 49.5 | Z90: 0 | AB90: 49.5 | AC90: 0 | AE90: 66 | AF90: 0 | AH90: 33 | AI90: 0 | AK90: 33 | AL90: 0 | AN90: 66 | AO90: 0 | AQ90: 66 | AR90: 0 | AT90: 0 | AU90: 0 | AW90: 49.5 | AX90: 0 | AZ90: 66 | BA90: 0 | BC90: 0 | BD90: 0 | BF90: 66 | BG90: 0 | BI90: 66 | BJ90: 0 | BL90: 49.5 | BM90: 0 | BO90: 99 | BP90: 0 | BR90: 115.5 | BS90: 0 | BU90: 66 | BV90: 0 | BX90: 0 | BY90: 0 | CA90: 33 | CB90: 0 | CD90: 66 | CE90: 0 | CG90: 66 | CH90: 0 | CJ90: 33 | CK90: 0 | CM90: 49.5 | CN90: 0 | CP90: 33 | CQ90: 0 | CS90: 0 | CT90: 0 | CV90: 49.5 | CW90: 0 | CY90: 49.5 | CZ90: 0 | DB90: 82.5 | DC90: 0 | DE90: 66 | DF90: 0 | DH90: 49.5 | DI90: 0 | DK90: 0 | DL90: 0 | DN90: 82.5 | DO90: 0 | DQ90: 66 | DR90: 0 | DT90: 66 | DU90: 0 | DW90: 49.5 | DX90: 0 | DZ90: 0 | EA90: 0 | EC90: 82.5 | ED90: 0
A91: 4.8 | B91: P | C91: 8 | D91: Cementni suvi estrih (cementna košuljica). Pripremljeno cementno praškasto vezivo | E91: Cement dry screed (cement screed) Prepared cement powder binder | F91: kg | G91: =CENA!G82 -> 0 | H91: 79240 | I91: 0 | J91: 8920 | K91: 0 | M91: 3520 | N91: 0 | P91: 5000 | Q91: 0 | S91: 0 | T91: 0 | V91: 0 | W91: 0 | Y91: 3320 | Z91: 0 | AB91: 0 | AC91: 0 | AE91: 0 | AF91: 0 | AH91: 0 | AI91: 0 | AK91: 0 | AL91: 0 | AN91: 0 | AO91: 0 | AQ91: 4520 | AR91: 0 | AT91: 0 | AU91: 0 | AW91: 0 | AX91: 0 | AZ91: 5120 | BA91: 0 | BC91: 3000 | BD91: 0 | BF91: 4920 | BG91: 0 | BI91: 5600 | BJ91: 0 | BL91: 0 | BM91: 0 | BO91: 9440 | BP91: 0 | BR91: 3560 | BS91: 0 | BU91: 0 | BV91: 0 | BX91: 1800 | BY91: 0 | CA91: 0 | CB91: 0 | CD91: 6640 | CE91: 0 | CG91: 0 | CH91: 0 | CJ91: 0 | CK91: 0 | CM91: 0 | CN91: 0 | CP91: 0 | CQ91: 0 | CS91: 0 | CT91: 0 | CV91: 3960 | CW91: 0 | CY91: 0 | CZ91: 0 | DB91: 0 | DC91: 0 | DE91: 4920 | DF91: 0 | DH91: 0 | DI91: 0 | DK91: 0 | DL91: 0 | DN91: 0 | DO91: 0 | DQ91: 0 | DR91: 0 | DT91: 5000 | DU91: 0 | DW91: 0 | DX91: 0 | DZ91: 0 | EA91: 0 | EC91: 0 | ED91: 0
A92: 4.9 | B92: P | C92: 9 | D92: Građevinska PVC folija Za razdvajanje cementne košuljice od termo izolacije. | E92: PVC foil for construction. To separate the cement screed of thermal insulation. | F92: m2 | G92: =CENA!G83 -> 0 | H92: 1240 | I92: 0 | J92: 120 | K92: 0 | M92: 40 | N92: 0 | P92: 80 | Q92: 0 | S92: 0 | T92: 0 | V92: 0 | W92: 0 | Y92: 40 | Z92: 0 | AB92: 80 | AC92: 0 | AE92: 0 | AF92: 0 | AH92: 0 | AI92: 0 | AK92: 0 | AL92: 0 | AN92: 0 | AO92: 0 | AQ92: 80 | AR92: 0 | AT92: 0 | AU92: 0 | AW92: 0 | AX92: 0 | AZ92: 80 | BA92: 0 | BC92: 40 | BD92: 0 | BF92: 80 | BG92: 0 | BI92: 80 | BJ92: 0 | BL92: 0 | BM92: 0 | BO92: 120 | BP92: 0 | BR92: 40 | BS92: 0 | BU92: 0 | BV92: 0 | BX92: 40 | BY92: 0 | CA92: 0 | CB92: 0 | CD92: 80 | CE92: 0 | CG92: 0 | CH92: 0 | CJ92: 0 | CK92: 0 | CM92: 0 | CN92: 0 | CP92: 0 | CQ92: 0 | CS92: 0 | CT92: 0 | CV92: 80 | CW92: 0 | CY92: 0 | CZ92: 0 | DB92: 0 | DC92: 0 | DE92: 80 | DF92: 0 | DH92: 0 | DI92: 0 | DK92: 0 | DL92: 0 | DN92: 0 | DO92: 0 | DQ92: 0 | DR92: 0 | DT92: 80 | DU92: 0 | DW92: 0 | DX92: 0 | DZ92: 0 | EA92: 0 | EC92: 0 | ED92: 0
A93: 4.10 | B93: P | C93: 10 | D93: Stirodur (XPS za izolaciju na podovima) ploča od ekstrudirane polistirenske pene | E93: Stirodur (XPS insulation for floors) panel of extruded polystyrene foam | F93: / | G93: / | H93: / | I93: / | J93: 0 | K93: / | M93: 0 | N93: / | P93: 0 | Q93: / | S93: 0 | T93: / | V93: 0 | W93: / | Y93: 0 | Z93: / | AB93: 0 | AC93: / | AE93: 0 | AF93: / | AH93: 0 | AI93: / | AK93: 0 | AL93: / | AN93: 0 | AO93: / | AQ93: 0 | AR93: / | AT93: 0 | AU93: / | AW93: 0 | AX93: / | AZ93: 0 | BA93: / | BC93: 0 | BD93: / | BF93: 0 | BG93: / | BI93: 0 | BJ93: / | BL93: 0 | BM93: / | BO93: 0 | BP93: / | BR93: 0 | BS93: / | BU93: 0 | BV93: / | BX93: 0 | BY93: / | CB93: / | CD93: 0 | CE93: / | CG93: 0 | CH93: / | CJ93: 0 | CK93: / | CN93: / | CP93: 0 | CQ93: / | CS93: 0 | CT93: / | CV93: 0 | CW93: / | CY93: 0 | CZ93: / | DB93: 0 | DC93: / | DE93: 0 | DF93: / | DH93: 0 | DI93: / | DK93: 0 | DL93: / | DN93: 0 | DO93: / | DQ93: 0 | DR93: / | DT93: 0 | DU93: / | DX93: / | DZ93: 0 | EA93: / | EC93: 0 | ED93: /
A94: 4.10.1 | C94: A | D94: debljine d=2 cm | E94: d=2 cm | F94: m2 | G94: =CENA!G85 -> 0 | H94: =J94+M94+P94+S94+AQ94+CJ94+DK94+FD94+V94+Y94+AB94+AE94+AH94+AK94+AN94+AT94+AW94+AZ94+BC94+BF94+BI94+BL94+BO94+BR94+BU94+BX94+CA94+CD94+CG94+CM94+CP94+CS94+CV94+CY94+DB94+DE94+DH94+DN94+DQ94+DT94+DW94+DZ94+EC94+EF94+EI94+EL94+EO94+ER94+EU94+EX94+FA94+FG94+FJ94+FM94+FP94+FS94+FV94+FY94+GB94+GE94+GH94+GK94+GN94+GQ94+GT94+GW94+GZ94+HC94+HF94+HI94+HL94+HO94+HR94+HU94+HX94+IA94+ID94+IG94+IJ94+IM94+IP94+IS94+IV94+IY94+JB94+JE94+JH94+JK94+JN94+JQ94+JT94+JW94+JZ94+KC94+KF94+KI94+KL94+KO94+KR94+KU94+KX94+LA94+LD94+LG94+LJ94+LM94+LP94+LS94+LV94+LY94+MB94+ME94+MH94+MK94+MN94+MQ94+MT94+MW94+MZ94+NC94+NF94+NI94+NL94+NO94+NR94+NU94+NX94+OA94+OD94+OG94+OJ94+OM94+OP94+OS94+OV94+OY94+PB94+PE94+PH94+PK94+PN94+PQ94+PT94+PW94+PZ94+QC94+QF94+QI94+QL94+QO94+QR94+QU94+QX94+RA94+RD94+RG94+RJ94+RM94+RP94+RS94+RV94+RY94+SB94+SE94+SH94+SK94+SN94+SQ94+ST94+SW94+SZ94+TC94+TF94+TI94+TL94+TO94+TR94+TU94+TX94+UA94+UD94+UG94+UJ94+UM94+UP94+US94 -> 2010 | I94: =G94*H94 -> 0 | J94: 90 | K94: =$G94*J94 -> 0 | M94: 45 | N94: =$G94*M94 -> 0 | P94: 60 | Q94: =$G94*P94 -> 0 | S94: 0 | T94: =$G94*S94 -> 0 | V94: 60 | W94: =$G94*V94 -> 0 | Y94: 45 | Z94: =$G94*Y94 -> 0 | AB94: 75 | AC94: =$G94*AB94 -> 0 | AE94: 0 | AF94: =$G94*AE94 -> 0 | AH94: 30 | AI94: =$G94*AH94 -> 0 | AK94: 45 | AL94: =$G94*AK94 -> 0 | AN94: 90 | AO94: =$G94*AN94 -> 0 | AQ94: 60 | AR94: =$G94*AQ94 -> 0 | AT94: 0 | AU94: =$G94*AT94 -> 0 | AW94: 0 | AX94: =$G94*AW94 -> 0 | AZ94: 60 | BA94: =$G94*AZ94 -> 0 | BC94: 30 | BD94: =$G94*BC94 -> 0 | BF94: 60 | BG94: =$G94*BF94 -> 0 | BI94: 60 | BJ94: =$G94*BI94 -> 0 | BL94: 75 | BM94: =$G94*BL94 -> 0 | BO94: 105 | BP94: =$G94*BO94 -> 0 | BR94: 45 | BS94: =$G94*BR94 -> 0 | BU94: 135 | BV94: =$G94*BU94 -> 0 | BX94: 30 | BY94: =$G94*BX94 -> 0 | CA94: 30 | CB94: =$G94*CA94 -> 0 | CD94: 75 | CE94: =$G94*CD94 -> 0 | CG94: 60 | CH94: =$G94*CG94 -> 0 | CJ94: 30 | CK94: =$G94*CJ94 -> 0 | CM94: 45 | CN94: =$G94*CM94 -> 0 | CP94: 30 | CQ94: =$G94*CP94 -> 0 | CS94: 0 | CT94: =$G94*CS94 -> 0 | CV94: 45 | CW94: =$G94*CV94 -> 0 | CY94: 0 | CZ94: =$G94*CY94 -> 0 | DB94: 90 | DC94: =$G94*DB94 -> 0 | DE94: 60 | DF94: =$G94*DE94 -> 0 | DH94: 45 | DI94: =$G94*DH94 -> 0 | DK94: 0 | DL94: =$G94*DK94 -> 0 | DN94: 75 | DO94: =$G94*DN94 -> 0 | DQ94: 45 | DR94: =$G94*DQ94 -> 0 | DT94: 60 | DU94: =$G94*DT94 -> 0 | DW94: 45 | DX94: =$G94*DW94 -> 0 | DZ94: 0 | EA94: =$G94*DZ94 -> 0 | EC94: 75 | ED94: =$G94*EC94 -> 0
A95: 4.10.2 | C95: B | D95: debljine d=5 cm | E95: d=5 cm | F95: m2 | G95: =CENA!G86 -> 0 | H95: 102 | I95: 0 | J95: 0 | K95: =$G95*J95 -> 0 | M95: 0 | N95: =$G95*M95 -> 0 | P95: 0 | Q95: 0 | S95: 0 | T95: 0 | V95: 0 | W95: =$G95*V95 -> 0 | Y95: 0 | Z95: =$G95*Y95 -> 0 | AB95: 0 | AC95: =$G95*AB95 -> 0 | AE95: 0 | AF95: =$G95*AE95 -> 0 | AH95: 0 | AI95: =$G95*AH95 -> 0 | AK95: 0 | AL95: =$G95*AK95 -> 0 | AN95: 0 | AO95: =$G95*AN95 -> 0 | AQ95: 0 | AR95: =$G95*AQ95 -> 0 | AT95: 0 | AU95: =$G95*AT95 -> 0 | AW95: 0 | AX95: =$G95*AW95 -> 0 | AZ95: 0 | BA95: =$G95*AZ95 -> 0 | BC95: 0 | BD95: =$G95*BC95 -> 0 | BF95: 0 | BG95: =$G95*BF95 -> 0 | BI95: 0 | BJ95: =$G95*BI95 -> 0 | BL95: 0 | BM95: =$G95*BL95 -> 0 | BO95: 0 | BP95: =$G95*BO95 -> 0 | BR95: 0 | BS95: =$G95*BR95 -> 0 | BU95: 0 | BV95: =$G95*BU95 -> 0 | BX95: 0 | BY95: 0 | CA95: 0 | CB95: =$G95*CA95 -> 0 | CD95: 0 | CE95: =$G95*CD95 -> 0 | CG95: 84 | CH95: =$G95*CG95 -> 0 | CJ95: 0 | CK95: =$G95*CJ95 -> 0 | CM95: 0 | CN95: =$G95*CM95 -> 0 | CP95: 0 | CQ95: =$G95*CP95 -> 0 | CS95: 0 | CT95: =$G95*CS95 -> 0 | CV95: 0 | CW95: =$G95*CV95 -> 0 | CY95: 0 | CZ95: =$G95*CY95 -> 0 | DB95: 0 | DC95: =$G95*DB95 -> 0 | DE95: 0 | DF95: =$G95*DE95 -> 0 | DH95: 0 | DI95: =$G95*DH95 -> 0 | DK95: 18 | DL95: =$G95*DK95 -> 0 | DN95: 0 | DO95: =$G95*DN95 -> 0 | DQ95: 0 | DR95: 0 | DT95: 0 | DU95: 0 | DW95: 0 | DX95: =$G95*DW95 -> 0 | DZ95: 0 | EA95: =$G95*DZ95 -> 0 | EC95: 0 | ED95: =$G95*EC95 -> 0
A97: 5 | B97: F | D97: MATERIJAL ZA IZRADU FASADE | E97: FACADE MATERIAL
A98: 5.1 | B98: F | C98: 1 | D98: EPS za termoizolaciju fasadnih zidova ploča od ekspandiranog polistirena | E98: Thermal insulation for facade walls (EPS) plates made of expanded polystyrene | F98: / | G98: / | H98: / | I98: / | J98: / | K98: / | M98: / | N98: / | P98: / | Q98: / | S98: / | T98: / | V98: / | W98: / | Y98: / | Z98: / | AB98: / | AC98: / | AE98: / | AF98: / | AH98: / | AI98: / | AK98: / | AL98: / | AN98: / | AO98: / | AQ98: / | AR98: / | AT98: / | AU98: / | AW98: / | AX98: / | AZ98: / | BA98: / | BC98: / | BD98: / | BF98: / | BG98: / | BI98: / | BJ98: / | BL98: / | BM98: / | BO98: / | BP98: / | BR98: / | BS98: / | BU98: / | BV98: / | BX98: / | BY98: / | CA98: / | CB98: / | CD98: / | CE98: / | CG98: / | CH98: / | CJ98: / | CK98: / | CM98: / | CN98: / | CP98: / | CQ98: / | CS98: / | CT98: / | CV98: / | CW98: / | CY98: / | CZ98: / | DB98: / | DC98: / | DE98: / | DF98: / | DH98: / | DI98: / | DK98: / | DL98: / | DN98: / | DO98: / | DQ98: / | DR98: / | DT98: / | DU98: / | DW98: / | DX98: / | DZ98: / | EA98: / | EC98: / | ED98: /
A99: 5.1.1 | C99: A | D99: debljina d=8 cm | E99: d=8 cm | F99: m2 | G99: =CENA!G90 -> 0 | H99: =J99+M99+P99+S99+AQ99+CJ99+DK99+FD99+V99+Y99+AB99+AE99+AH99+AK99+AN99+AT99+AW99+AZ99+BC99+BF99+BI99+BL99+BO99+BR99+BU99+BX99+CA99+CD99+CG99+CM99+CP99+CS99+CV99+CY99+DB99+DE99+DH99+DN99+DQ99+DT99+DW99+DZ99+EC99+EF99+EI99+EL99+EO99+ER99+EU99+EX99+FA99+FG99+FJ99+FM99+FP99+FS99+FV99+FY99+GB99+GE99+GH99+GK99+GN99+GQ99+GT99+GW99+GZ99+HC99+HF99+HI99+HL99+HO99+HR99+HU99+HX99+IA99+ID99+IG99+IJ99+IM99+IP99+IS99+IV99+IY99+JB99+JE99+JH99+JK99+JN99+JQ99+JT99+JW99+JZ99+KC99+KF99+KI99+KL99+KO99+KR99+KU99+KX99+LA99+LD99+LG99+LJ99+LM99+LP99+LS99+LV99+LY99+MB99+ME99+MH99+MK99+MN99+MQ99+MT99+MW99+MZ99+NC99+NF99+NI99+NL99+NO99+NR99+NU99+NX99+OA99+OD99+OG99+OJ99+OM99+OP99+OS99+OV99+OY99+PB99+PE99+PH99+PK99+PN99+PQ99+PT99+PW99+PZ99+QC99+QF99+QI99+QL99+QO99+QR99+QU99+QX99+RA99+RD99+RG99+RJ99+RM99+RP99+RS99+RV99+RY99+SB99+SE99+SH99+SK99+SN99+SQ99+ST99+SW99+SZ99+TC99+TF99+TI99+TL99+TO99+TR99+TU99+TX99+UA99+UD99+UG99+UJ99+UM99+UP99+US99 -> 177 | I99: =G99*H99 -> 0 | J99: 0 | K99: =$G99*J99 -> 0 | M99: 0 | N99: =$G99*M99 -> 0 | P99: 0 | Q99: =$G99*P99 -> 0 | S99: 0 | T99: =$G99*S99 -> 0 | V99: 0 | W99: =$G99*V99 -> 0 | Y99: 0 | Z99: =$G99*Y99 -> 0 | AB99: 0 | AC99: =$G99*AB99 -> 0 | AE99: 0 | AF99: =$G99*AE99 -> 0 | AH99: 0 | AI99: =$G99*AH99 -> 0 | AK99: 0 | AL99: =$G99*AK99 -> 0 | AN99: 0 | AO99: =$G99*AN99 -> 0 | AQ99: 0 | AR99: =$G99*AQ99 -> 0 | AT99: 177 | AU99: =$G99*AT99 -> 0 | AW99: 0 | AX99: =$G99*AW99 -> 0 | AZ99: 0 | BA99: =$G99*AZ99 -> 0 | BC99: 0 | BD99: =$G99*BC99 -> 0 | BF99: 0 | BG99: =$G99*BF99 -> 0 | BI99: 0 | BJ99: =$G99*BI99 -> 0 | BL99: 0 | BM99: =$G99*BL99 -> 0 | BO99: 0 | BP99: =$G99*BO99 -> 0 | BR99: 0 | BS99: =$G99*BR99 -> 0 | BU99: 0 | BV99: =$G99*BU99 -> 0 | BX99: 0 | BY99: =$G99*BX99 -> 0 | CA99: 0 | CB99: =$G99*CA99 -> 0 | CD99: 0 | CE99: =$G99*CD99 -> 0 | CG99: 0 | CH99: =$G99*CG99 -> 0 | CJ99: 0 | CK99: =$G99*CJ99 -> 0 | CM99: 0 | CN99: =$G99*CM99 -> 0 | CP99: 0 | CQ99: =$G99*CP99 -> 0 | CS99: 0 | CT99: =$G99*CS99 -> 0 | CV99: 0 | CW99: =$G99*CV99 -> 0 | CY99: 0 | CZ99: =$G99*CY99 -> 0 | DB99: 0 | DC99: =$G99*DB99 -> 0 | DE99: 0 | DF99: =$G99*DE99 -> 0 | DH99: 0 | DI99: =$G99*DH99 -> 0 | DK99: 0 | DL99: =$G99*DK99 -> 0 | DN99: 0 | DO99: =$G99*DN99 -> 0 | DQ99: 0 | DR99: =$G99*DQ99 -> 0 | DT99: 0 | DU99: =$G99*DT99 -> 0 | DW99: 0 | DX99: =$G99*DW99 -> 0 | DZ99: 0 | EA99: =$G99*DZ99 -> 0 | EC99: 0 | ED99: =$G99*EC99 -> 0
A100: 5.1.2 | C100: B | D100: debljina d=10 cm | E100: d=10 cm | F100: m2 | G100: =CENA!G91 -> 0 | H100: 5357.5 | I100: 0 | J100: 0 | K100: 0 | M100: 150 | N100: 0 | P100: 120 | Q100: 0 | S100: 112.5 | T100: 0 | V100: 190 | W100: 0 | Y100: 80 | Z100: 0 | AB100: 110 | AC100: 0 | AE100: 200 | AF100: 0 | AH100: 90 | AI100: 0 | AK100: 165 | AL100: 0 | AN100: 90 | AO100: 0 | AQ100: 170 | AR100: 0 | AT100: 0 | AU100: 0 | AW100: 130 | AX100: 0 | AZ100: 137.5 | BA100: 0 | BC100: 90 | BD100: 0 | BF100: 140 | BG100: 0 | BI100: 125 | BJ100: 0 | BL100: 120 | BM100: 0 | BO100: 200 | BP100: 0 | BR100: 157.5 | BS100: 0 | BU100: 150 | BV100: 0 | BX100: 195 | BY100: 0 | CA100: 130 | CB100: 0 | CD100: 172.5 | CE100: 0 | CG100: 0 | CH100: 0 | CJ100: 0 | CK100: 0 | CM100: 110 | CN100: 0 | CP100: 120 | CQ100: 0 | CS100: 157.5 | CT100: 0 | CV100: 162.5 | CW100: 0 | CY100: 160 | CZ100: 0 | DB100: 155 | DC100: 0 | DE100: 135 | DF100: 0 | DH100: 142.5 | DI100: 0 | DK100: 45 | DL100: 0 | DN100: 242.5 | DO100: 0 | DQ100: 117.5 | DR100: 0 | DT100: 132.5 | DU100: 0 | DW100: 167.5 | DX100: 0 | DZ100: 130 | EA100: 0 | EC100: 155 | ED100: 0
A101: 5.1.3 | C101: C | D101: debljina d=12 cm | E101: d=12 cm | F101: m2 | G101: =CENA!G92 -> 0 | H101: 0 | I101: 0 | J101: 0 | K101: 0 | M101: 0 | N101: 0 | P101: 0 | Q101: 0 | S101: 0 | T101: 0 | V101: 0 | W101: 0 | Y101: 0 | Z101: 0 | AB101: 0 | AC101: 0 | AE101: 0 | AF101: 0 | AH101: 0 | AI101: 0 | AK101: 0 | AL101: 0 | AN101: 0 | AO101: 0 | AQ101: 0 | AR101: 0 | AT101: 0 | AU101: 0 | AW101: 0 | AX101: 0 | AZ101: 0 | BA101: 0 | BC101: 0 | BD101: 0 | BF101: 0 | BG101: 0 | BI101: 0 | BJ101: 0 | BL101: 0 | BM101: 0 | BO101: 0 | BP101: 0 | BR101: 0 | BS101: 0 | BU101: 0 | BV101: 0 | BX101: 0 | BY101: 0 | CA101: 0 | CB101: 0 | CD101: 0 | CE101: 0 | CG101: 0 | CH101: 0 | CJ101: 0 | CK101: 0 | CM101: 0 | CN101: 0 | CP101: 0 | CQ101: 0 | CS101: 0 | CT101: 0 | CV101: 0 | CW101: 0 | CY101: 0 | CZ101: 0 | DB101: 0 | DC101: 0 | DE101: 0 | DF101: 0 | DH101: 0 | DI101: 0 | DK101: 0 | DL101: 0 | DN101: 0 | DO101: 0 | DQ101: 0 | DR101: 0 | DT101: 0 | DU101: 0 | DW101: 0 | DX101: 0 | DZ101: 0 | EA101: 0 | EC101: 0 | ED101: 0
A102: 5.1.4 | C102: D | D102: debljina d=14 cm | E102: d=14 cm | F102: m2 | G102: =CENA!G93 -> 0 | H102: 0 | I102: 0 | J102: 0 | K102: 0 | M102: 0 | N102: 0 | P102: 0 | Q102: 0 | S102: 0 | T102: 0 | V102: 0 | W102: 0 | Y102: 0 | Z102: 0 | AB102: 0 | AC102: 0 | AE102: 0 | AF102: 0 | AH102: 0 | AI102: 0 | AK102: 0 | AL102: 0 | AN102: 0 | AO102: 0 | AQ102: 0 | AR102: 0 | AT102: 0 | AU102: 0 | AW102: 0 | AX102: 0 | AZ102: 0 | BA102: 0 | BC102: 0 | BD102: 0 | BF102: 0 | BG102: 0 | BI102: 0 | BJ102: 0 | BL102: 0 | BM102: 0 | BO102: 0 | BP102: 0 | BR102: 0 | BS102: 0 | BU102: 0 | BV102: 0 | BX102: 0 | BY102: 0 | CA102: 0 | CB102: 0 | CD102: 0 | CE102: 0 | CG102: 0 | CH102: 0 | CJ102: 0 | CK102: 0 | CM102: 0 | CN102: 0 | CP102: 0 | CQ102: 0 | CS102: 0 | CT102: 0 | CV102: 0 | CW102: 0 | CY102: 0 | CZ102: 0 | DB102: 0 | DC102: 0 | DE102: 0 | DF102: 0 | DH102: 0 | DI102: 0 | DK102: 0 | DL102: 0 | DN102: 0 | DO102: 0 | DQ102: 0 | DR102: 0 | DT102: 0 | DU102: 0 | DW102: 0 | DX102: 0 | DZ102: 0 | EA102: 0 | EC102: 0 | ED102: 0
A103: 5.2 | B103: F | C103: 2 | D103: GrađevinskI lepak za EPS ploče cementni lepak namenjen za lepljenje ploča od ekspandiranog polistirena (EPS) i armiranje armaturne (rabic) mrežice | E103: Construction glue for EPS plates cement adhesive for gluing plates made of expanded polystyrene (EPS) and reinforcing wire (rabic) net | F103: kg | G103: =CENA!G94 -> 0 | H103: 72300 | I103: 0 | J103: 0 | K103: 0 | M103: 1890 | N103: 0 | P103: 1500 | Q103: 0 | S103: 1410 | T103: 0 | V103: 2400 | W103: 0 | Y103: 990 | Z103: 0 | AB103: 1380 | AC103: 0 | AE103: 2520 | AF103: 0 | AH103: 1140 | AI103: 0 | AK103: 2070 | AL103: 0 | AN103: 1140 | AO103: 0 | AQ103: 2130 | AR103: 0 | AT103: 2220 | AU103: 0 | AW103: 1650 | AX103: 0 | AZ103: 1710 | BA103: 0 | BC103: 1140 | BD103: 0 | BF103: 1770 | BG103: 0 | BI103: 1560 | BJ103: 0 | BL103: 1500 | BM103: 0 | BO103: 2520 | BP103: 0 | BR103: 1980 | BS103: 0 | BU103: 2130 | BV103: 0 | BX103: 2460 | BY103: 0 | CA103: 1620 | CB103: 0 | CD103: 2160 | CE103: 0 | CG103: 2250 | CH103: 0 | CJ103: 0 | CK103: 0 | CM103: 1380 | CN103: 0 | CP103: 1500 | CQ103: 0 | CS103: 1950 | CT103: 0 | CV103: 2040 | CW103: 0 | CY103: 2010 | CZ103: 0 | DB103: 2130 | DC103: 0 | DE103: 1680 | DF103: 0 | DH103: 1770 | DI103: 0 | DK103: 780 | DL103: 0 | DN103: 3030 | DO103: 0 | DQ103: 1440 | DR103: 0 | DT103: 1650 | DU103: 0 | DW103: 2100 | DX103: 0 | DZ103: 1650 | EA103: 0 | EC103: 1950 | ED103: 0
A104: 5.3 | B104: F | C104: 3 | D104: Armaturna (rabic) staklena mrežica. Visokokvalitetna alkalno postojana staklena mrežica | E104: Reinforcing (rabic) fiberglass mesh High quality alkali resistant fiberglass mesh | F104: m2 | G104: =CENA!G95 -> 0 | H104: 7500 | I104: 0 | J104: 0 | K104: 0 | M104: 200 | N104: 0 | P104: 150 | Q104: 0 | S104: 150 | T104: 0 | V104: 250 | W104: 0 | Y104: 100 | Z104: 0 | AB104: 150 | AC104: 0 | AE104: 250 | AF104: 0 | AH104: 150 | AI104: 0 | AK104: 200 | AL104: 0 | AN104: 150 | AO104: 0 | AQ104: 200 | AR104: 0 | AT104: 250 | AU104: 0 | AW104: 150 | AX104: 0 | AZ104: 200 | BA104: 0 | BC104: 150 | BD104: 0 | BF104: 200 | BG104: 0 | BI104: 150 | BJ104: 0 | BL104: 150 | BM104: 0 | BO104: 250 | BP104: 0 | BR104: 200 | BS104: 0 | BU104: 200 | BV104: 0 | BX104: 250 | BY104: 0 | CA104: 150 | CB104: 0 | CD104: 200 | CE104: 0 | CG104: 250 | CH104: 0 | CJ104: 0 | CK104: 0 | CM104: 150 | CN104: 0 | CP104: 150 | CQ104: 0 | CS104: 200 | CT104: 0 | CV104: 200 | CW104: 0 | CY104: 200 | CZ104: 0 | DB104: 200 | DC104: 0 | DE104: 200 | DF104: 0 | DH104: 200 | DI104: 0 | DK104: 100 | DL104: 0 | DN104: 300 | DO104: 0 | DQ104: 150 | DR104: 0 | DT104: 200 | DU104: 0 | DW104: 200 | DX104: 0 | DZ104: 150 | EA104: 0 | EC104: 200 | ED104: 0
A105: 5.4 | B105: F | C105: 4 | D105: Aktivni predpremaz pre nanošenja tankoslojnog fasadnog maltera. predpremaz za izjednačavanje upijanja - podloga | E105: Active primer before applying the thin-layer plaster primer for the equalization of absorption surface | F105: kg | G105: =CENA!G96 -> 0 | H105: 1675 | I105: 0 | J105: 0 | K105: 0 | M105: 50 | N105: 0 | P105: 25 | Q105: 0 | S105: 0 | T105: 0 | V105: 50 | W105: 0 | Y105: 50 | Z105: 0 | AB105: 25 | AC105: 0 | AE105: 50 | AF105: 0 | AH105: 25 | AI105: 0 | AK105: 50 | AL105: 0 | AN105: 25 | AO105: 0 | AQ105: 50 | AR105: 0 | AT105: 50 | AU105: 0 | AW105: 50 | AX105: 0 | AZ105: 50 | BA105: 0 | BC105: 25 | BD105: 0 | BF105: 50 | BG105: 0 | BI105: 50 | BJ105: 0 | BL105: 25 | BM105: 0 | BO105: 0 | BP105: 0 | BR105: 50 | BS105: 0 | BU105: 50 | BV105: 0 | BX105: 50 | BY105: 0 | CA105: 50 | CB105: 0 | CD105: 50 | CE105: 0 | CG105: 0 | CH105: 0 | CJ105: 50 | CK105: 0 | CM105: 25 | CN105: 0 | CP105: 25 | CQ105: 0 | CS105: 50 | CT105: 0 | CV105: 50 | CW105: 0 | CY105: 50 | CZ105: 0 | DB105: 50 | DC105: 0 | DE105: 50 | DF105: 0 | DH105: 50 | DI105: 0 | DK105: 50 | DL105: 0 | DN105: 50 | DO105: 0 | DQ105: 25 | DR105: 0 | DT105: 50 | DU105: 0 | DW105: 50 | DX105: 0 | DZ105: 50 | EA105: 0 | EC105: 50 | ED105: 0
A106: 5.5 | B106: F | C106: 5 | D106: Fasadni tankoslojni akrilni malter Završni malter u pastoznom stanju, namenjen za zaštitu fasadnih zidnih površina | E106: Facade thin-layer acrylic plaster Finishing plaster in paste-like state, intended for the protection of facade wall surfaces | F106: / | G106: / | H106: / | I106: / | J106: / | K106: / | M106: / | N106: / | P106: / | Q106: / | S106: / | T106: / | V106: / | W106: / | Y106: / | Z106: / | AB106: / | AC106: / | AE106: / | AF106: / | AH106: / | AI106: / | AK106: / | AL106: / | AN106: / | AO106: / | AQ106: / | AR106: / | AT106: / | AU106: / | AW106: / | AX106: / | AZ106: / | BA106: / | BC106: / | BD106: / | BF106: / | BG106: / | BI106: / | BJ106: / | BL106: / | BM106: / | BO106: / | BP106: / | BR106: / | BS106: / | BU106: / | BV106: / | BX106: / | BY106: / | CA106: / | CB106: / | CD106: / | CE106: / | CG106: / | CH106: / | CJ106: / | CK106: / | CM106: / | CN106: / | CP106: / | CQ106: / | CS106: / | CT106: / | CV106: / | CW106: / | CY106: / | CZ106: / | DB106: / | DC106: / | DE106: / | DF106: / | DH106: / | DI106: / | DK106: / | DL106: / | DN106: / | DO106: / | DQ106: / | DR106: / | DT106: / | DU106: / | DW106: / | DX106: / | DZ106: / | EA106: / | EC106: / | ED106: /
A107: 5.5.1 | C107: A | D107: boja približna RAL 1034 -kajsija | E107: color similar to RAL 1034-apricot | F107: kg | G107: =CENA!G98 -> 0 | H107: =J107+M107+P107+S107+AQ107+CJ107+DK107+FD107+V107+Y107+AB107+AE107+AH107+AK107+AN107+AT107+AW107+AZ107+BC107+BF107+BI107+BL107+BO107+BR107+BU107+BX107+CA107+CD107+CG107+CM107+CP107+CS107+CV107+CY107+DB107+DE107+DH107+DN107+DQ107+DT107+DW107+DZ107+EC107+EF107+EI107+EL107+EO107+ER107+EU107+EX107+FA107+FG107+FJ107+FM107+FP107+FS107+FV107+FY107+GB107+GE107+GH107+GK107+GN107+GQ107+GT107+GW107+GZ107+HC107+HF107+HI107+HL107+HO107+HR107+HU107+HX107+IA107+ID107+IG107+IJ107+IM107+IP107+IS107+IV107+IY107+JB107+JE107+JH107+JK107+JN107+JQ107+JT107+JW107+JZ107+KC107+KF107+KI107+KL107+KO107+KR107+KU107+KX107+LA107+LD107+LG107+LJ107+LM107+LP107+LS107+LV107+LY107+MB107+ME107+MH107+MK107+MN107+MQ107+MT107+MW107+MZ107+NC107+NF107+NI107+NL107+NO107+NR107+NU107+NX107+OA107+OD107+OG107+OJ107+OM107+OP107+OS107+OV107+OY107+PB107+PE107+PH107+PK107+PN107+PQ107+PT107+PW107+PZ107+QC107+QF107+QI107+QL107+QO107+QR107+QU107+QX107+RA107+RD107+RG107+RJ107+RM107+RP107+RS107+RV107+RY107+SB107+SE107+SH107+SK107+SN107+SQ107+ST107+SW107+SZ107+TC107+TF107+TI107+TL107+TO107+TR107+TU107+TX107+UA107+UD107+UG107+UJ107+UM107+UP107+US107 -> 16150 | I107: =G107*H107 -> 0 | J107: 0 | K107: =$G107*J107 -> 0 | M107: 525 | N107: =$G107*M107 -> 0 | P107: 0 | Q107: =$G107*P107 -> 0 | S107: 0 | T107: =$G107*S107 -> 0 | V107: 675 | W107: =$G107*V107 -> 0 | Y107: 450 | Z107: =$G107*Y107 -> 0 | AB107: 400 | AC107: =$G107*AB107 -> 0 | AE107: 700 | AF107: =$G107*AE107 -> 0 | AH107: 325 | AI107: =$G107*AH107 -> 0 | AK107: 575 | AL107: =$G107*AK107 -> 0 | AN107: 325 | AO107: =$G107*AN107 -> 0 | AQ107: 0 | AR107: =$G107*AQ107 -> 0 | AT107: 0 | AU107: =$G107*AT107 -> 0 | AW107: 475 | AX107: =$G107*AW107 -> 0 | AZ107: 500 | BA107: =$G107*AZ107 -> 0 | BC107: 325 | BD107: =$G107*BC107 -> 0 | BF107: 500 | BG107: =$G107*BF107 -> 0 | BI107: 600 | BJ107: =$G107*BI107 -> 0 | BL107: 425 | BM107: =$G107*BL107 -> 0 | BO107: 0 | BP107: =$G107*BO107 -> 0 | BR107: 575 | BS107: =$G107*BR107 -> 0 | BU107: 525 | BV107: =$G107*BU107 -> 0 | BX107: 700 | BY107: =$G107*BX107 -> 0 | CA107: 0 | CB107: =$G107*CA107 -> 0 | CD107: 600 | CE107: =$G107*CD107 -> 0 | CG107: 0 | CH107: =$G107*CG107 -> 0 | CJ107: 500 | CK107: =$G107*CJ107 -> 0 | CM107: 0 | CN107: =$G107*CM107 -> 0 | CP107: 425 | CQ107: =$G107*CP107 -> 0 | CS107: 550 | CT107: =$G107*CS107 -> 0 | CV107: 575 | CW107: =$G107*CV107 -> 0 | CY107: 575 | CZ107: =$G107*CY107 -> 0 | DB107: 550 | DC107: =$G107*DB107 -> 0 | DE107: 475 | DF107: =$G107*DE107 -> 0 | DH107: 500 | DI107: =$G107*DH107 -> 0 | DK107: 575 | DL107: =$G107*DK107 -> 0 | DN107: 850 | DO107: =$G107*DN107 -> 0 | DQ107: 425 | DR107: =$G107*DQ107 -> 0 | DT107: 475 | DU107: =$G107*DT107 -> 0 | DW107: 0 | DX107: =$G107*DW107 -> 0 | DZ107: 475 | EA107: =$G107*DZ107 -> 0 | EC107: 0 | ED107: =$G107*EC107 -> 0
A108: 5.5.2 | C108: B | D108: boja približna RAL 6005 -pastelno zelena | E108: color similar to RAL 6005 pastel-green | F108: kg | G108: =CENA!G99 -> 0 | H108: 0 | I108: 0 | J108: 0 | K108: =$G108*J108 -> 0 | M108: 0 | N108: =$G108*M108 -> 0 | P108: 0 | Q108: 0 | S108: 0 | T108: 0 | V108: 0 | W108: =$G108*V108 -> 0 | Y108: 0 | Z108: 0 | AB108: 0 | AC108: =$G108*AB108 -> 0 | AE108: 0 | AF108: =$G108*AE108 -> 0 | AH108: 0 | AI108: =$G108*AH108 -> 0 | AK108: 0 | AL108: =$G108*AK108 -> 0 | AN108: 0 | AO108: =$G108*AN108 -> 0 | AQ108: 0 | AR108: =$G108*AQ108 -> 0 | AT108: 0 | AU108: =$G108*AT108 -> 0 | AW108: 0 | AX108: =$G108*AW108 -> 0 | AZ108: 0 | BA108: =$G108*AZ108 -> 0 | BC108: 0 | BD108: =$G108*BC108 -> 0 | BF108: 0 | BG108: =$G108*BF108 -> 0 | BI108: 0 | BJ108: =$G108*BI108 -> 0 | BL108: 0 | BM108: =$G108*BL108 -> 0 | BO108: 0 | BP108: =$G108*BO108 -> 0 | BR108: 0 | BS108: =$G108*BR108 -> 0 | BU108: 0 | BV108: =$G108*BU108 -> 0 | BX108: 0 | BY108: 0 | CA108: 0 | CB108: =$G108*CA108 -> 0 | CD108: 0 | CE108: 0 | CG108: 0 | CH108: =$G108*CG108 -> 0 | CJ108: 0 | CK108: =$G108*CJ108 -> 0 | CM108: 0 | CN108: =$G108*CM108 -> 0 | CP108: 0 | CQ108: =$G108*CP108 -> 0 | CS108: 0 | CT108: =$G108*CS108 -> 0 | CV108: 0 | CW108: =$G108*CV108 -> 0 | CY108: 0 | CZ108: =$G108*CY108 -> 0 | DB108: 0 | DC108: =$G108*DB108 -> 0 | DE108: 0 | DF108: =$G108*DE108 -> 0 | DH108: 0 | DI108: =$G108*DH108 -> 0 | DK108: 0 | DL108: =$G108*DK108 -> 0 | DN108: 0 | DO108: =$G108*DN108 -> 0 | DQ108: 0 | DR108: 0 | DT108: 0 | DU108: 0 | DW108: 0 | DX108: =$G108*DW108 -> 0 | DZ108: 0 | EA108: 0 | EC108: 0 | ED108: =$G108*EC108 -> 0
A109: 5.5.3 | C109: C | D109: boja približna RAL 5023 -pastelno plava | E109: color similar to RAL 5023 pastel-blue | F109: kg | G109: =CENA!G100 -> 0 | H109: 0 | I109: 0 | J109: 0 | K109: =$G109*J109 -> 0 | M109: 0 | N109: =$G109*M109 -> 0 | P109: 0 | Q109: 0 | S109: 0 | T109: 0 | V109: 0 | W109: =$G109*V109 -> 0 | Y109: 0 | Z109: 0 | AB109: 0 | AC109: =$G109*AB109 -> 0 | AE109: 0 | AF109: =$G109*AE109 -> 0 | AH109: 0 | AI109: =$G109*AH109 -> 0 | AK109: 0 | AL109: =$G109*AK109 -> 0 | AN109: 0 | AO109: =$G109*AN109 -> 0 | AQ109: 0 | AR109: =$G109*AQ109 -> 0 | AT109: 0 | AU109: =$G109*AT109 -> 0 | AW109: 0 | AX109: =$G109*AW109 -> 0 | AZ109: 0 | BA109: =$G109*AZ109 -> 0 | BC109: 0 | BD109: =$G109*BC109 -> 0 | BF109: 0 | BG109: =$G109*BF109 -> 0 | BI109: 0 | BJ109: =$G109*BI109 -> 0 | BL109: 0 | BM109: =$G109*BL109 -> 0 | BO109: 0 | BP109: =$G109*BO109 -> 0 | BR109: 0 | BS109: =$G109*BR109 -> 0 | BU109: 0 | BV109: =$G109*BU109 -> 0 | BX109: 0 | BY109: 0 | CA109: 0 | CB109: =$G109*CA109 -> 0 | CD109: 0 | CE109: 0 | CG109: 0 | CH109: =$G109*CG109 -> 0 | CJ109: 0 | CK109: =$G109*CJ109 -> 0 | CM109: 0 | CN109: =$G109*CM109 -> 0 | CP109: 0 | CQ109: =$G109*CP109 -> 0 | CS109: 0 | CT109: =$G109*CS109 -> 0 | CV109: 0 | CW109: =$G109*CV109 -> 0 | CY109: 0 | CZ109: =$G109*CY109 -> 0 | DB109: 0 | DC109: =$G109*DB109 -> 0 | DE109: 0 | DF109: =$G109*DE109 -> 0 | DH109: 0 | DI109: =$G109*DH109 -> 0 | DK109: 0 | DL109: =$G109*DK109 -> 0 | DN109: 0 | DO109: =$G109*DN109 -> 0 | DQ109: 0 | DR109: 0 | DT109: 0 | DU109: 0 | DW109: 0 | DX109: =$G109*DW109 -> 0 | DZ109: 0 | EA109: 0 | EC109: 0 | ED109: =$G109*EC109 -> 0
A110: 5.5.4 | C110: D | D110: boja približna RAL 3011 -pastelno crvena | E110: color similar to RAL 3011 pastel-red | F110: kg | G110: =CENA!G101 -> 0 | H110: 0 | I110: 0 | J110: 0 | K110: =$G110*J110 -> 0 | M110: 0 | N110: =$G110*M110 -> 0 | P110: 0 | Q110: 0 | S110: 0 | T110: 0 | V110: 0 | W110: =$G110*V110 -> 0 | Y110: 0 | Z110: 0 | AB110: 0 | AC110: =$G110*AB110 -> 0 | AE110: 0 | AF110: =$G110*AE110 -> 0 | AH110: 0 | AI110: =$G110*AH110 -> 0 | AK110: 0 | AL110: =$G110*AK110 -> 0 | AN110: 0 | AO110: =$G110*AN110 -> 0 | AQ110: 0 | AR110: =$G110*AQ110 -> 0 | AT110: 0 | AU110: =$G110*AT110 -> 0 | AW110: 0 | AX110: =$G110*AW110 -> 0 | AZ110: 0 | BA110: =$G110*AZ110 -> 0 | BC110: 0 | BD110: =$G110*BC110 -> 0 | BF110: 0 | BG110: =$G110*BF110 -> 0 | BI110: 0 | BJ110: =$G110*BI110 -> 0 | BL110: 0 | BM110: =$G110*BL110 -> 0 | BO110: 0 | BP110: =$G110*BO110 -> 0 | BR110: 0 | BS110: =$G110*BR110 -> 0 | BU110: 0 | BV110: =$G110*BU110 -> 0 | BX110: 0 | BY110: 0 | CA110: 0 | CB110: =$G110*CA110 -> 0 | CD110: 0 | CE110: 0 | CG110: 0 | CH110: =$G110*CG110 -> 0 | CJ110: 0 | CK110: =$G110*CJ110 -> 0 | CM110: 0 | CN110: =$G110*CM110 -> 0 | CP110: 0 | CQ110: =$G110*CP110 -> 0 | CS110: 0 | CT110: =$G110*CS110 -> 0 | CV110: 0 | CW110: =$G110*CV110 -> 0 | CY110: 0 | CZ110: =$G110*CY110 -> 0 | DB110: 0 | DC110: =$G110*DB110 -> 0 | DE110: 0 | DF110: =$G110*DE110 -> 0 | DH110: 0 | DI110: =$G110*DH110 -> 0 | DK110: 0 | DL110: =$G110*DK110 -> 0 | DN110: 0 | DO110: =$G110*DN110 -> 0 | DQ110: 0 | DR110: 0 | DT110: 0 | DU110: 0 | DW110: 0 | DX110: =$G110*DW110 -> 0 | DZ110: 0 | EA110: 0 | EC110: 0 | ED110: =$G110*EC110 -> 0
A111: 5.5.5 | C111: E | D111: boja približna RAL 8002 -braon | E111: color similar to RAL 8002 brown | F111: kg | G111: =CENA!G102 -> 0 | H111: 4025 | I111: 0 | J111: 0 | K111: =$G111*J111 -> 0 | M111: 0 | N111: =$G111*M111 -> 0 | P111: 425 | Q111: 0 | S111: 0 | T111: 0 | V111: 0 | W111: =$G111*V111 -> 0 | Y111: 0 | Z111: 0 | AB111: 0 | AC111: =$G111*AB111 -> 0 | AE111: 0 | AF111: =$G111*AE111 -> 0 | AH111: 0 | AI111: =$G111*AH111 -> 0 | AK111: 0 | AL111: =$G111*AK111 -> 0 | AN111: 0 | AO111: =$G111*AN111 -> 0 | AQ111: 600 | AR111: =$G111*AQ111 -> 0 | AT111: 625 | AU111: =$G111*AT111 -> 0 | AW111: 0 | AX111: =$G111*AW111 -> 0 | AZ111: 0 | BA111: =$G111*AZ111 -> 0 | BC111: 0 | BD111: =$G111*BC111 -> 0 | BF111: 0 | BG111: =$G111*BF111 -> 0 | BI111: 0 | BJ111: =$G111*BI111 -> 0 | BL111: 0 | BM111: =$G111*BL111 -> 0 | BO111: 0 | BP111: =$G111*BO111 -> 0 | BR111: 0 | BS111: =$G111*BR111 -> 0 | BU111: 0 | BV111: =$G111*BU111 -> 0 | BX111: 0 | BY111: 0 | CA111: 825 | CB111: =$G111*CA111 -> 0 | CD111: 0 | CE111: 0 | CG111: 0 | CH111: =$G111*CG111 -> 0 | CJ111: 0 | CK111: =$G111*CJ111 -> 0 | CM111: 400 | CN111: =$G111*CM111 -> 0 | CP111: 0 | CQ111: =$G111*CP111 -> 0 | CS111: 0 | CT111: =$G111*CS111 -> 0 | CV111: 0 | CW111: =$G111*CV111 -> 0 | CY111: 0 | CZ111: =$G111*CY111 -> 0 | DB111: 0 | DC111: =$G111*DB111 -> 0 | DE111: 0 | DF111: =$G111*DE111 -> 0 | DH111: 0 | DI111: =$G111*DH111 -> 0 | DK111: 0 | DL111: =$G111*DK111 -> 0 | DN111: 0 | DO111: =$G111*DN111 -> 0 | DQ111: 0 | DR111: 0 | DT111: 0 | DU111: 0 | DW111: 600 | DX111: =$G111*DW111 -> 0 | DZ111: 0 | EA111: 0 | EC111: 550 | ED111: =$G111*EC111 -> 0
A113: 6 | B113: H | D113: MATERIJAL ZA HIDRO IZOLACIJE | E113: WATERPROOFING MATERIAL
A114: 6.1 | B114: H | C114: 1 | D114: Bitulit (prethodni premaz za hidroizolaciju) Upotrebljava se u isporučenom stanju (hladan postupak ) bez zagrevanja | E114: Bitulit (previous coating for waterproofing) It is used as delivered (cold process) without heating | F114: kg | G114: =CENA!G105 -> 0 | H114: =J114+M114+P114+S114+AQ114+CJ114+DK114+FD114+V114+Y114+AB114+AE114+AH114+AK114+AN114+AT114+AW114+AZ114+BC114+BF114+BI114+BL114+BO114+BR114+BU114+BX114+CA114+CD114+CG114+CM114+CP114+CS114+CV114+CY114+DB114+DE114+DH114+DN114+DQ114+DT114+DW114+DZ114+EC114+EF114+EI114+EL114+EO114+ER114+EU114+EX114+FA114+FG114+FJ114+FM114+FP114+FS114+FV114+FY114+GB114+GE114+GH114+GK114+GN114+GQ114+GT114+GW114+GZ114+HC114+HF114+HI114+HL114+HO114+HR114+HU114+HX114+IA114+ID114+IG114+IJ114+IM114+IP114+IS114+IV114+IY114+JB114+JE114+JH114+JK114+JN114+JQ114+JT114+JW114+JZ114+KC114+KF114+KI114+KL114+KO114+KR114+KU114+KX114+LA114+LD114+LG114+LJ114+LM114+LP114+LS114+LV114+LY114+MB114+ME114+MH114+MK114+MN114+MQ114+MT114+MW114+MZ114+NC114+NF114+NI114+NL114+NO114+NR114+NU114+NX114+OA114+OD114+OG114+OJ114+OM114+OP114+OS114+OV114+OY114+PB114+PE114+PH114+PK114+PN114+PQ114+PT114+PW114+PZ114+QC114+QF114+QI114+QL114+QO114+QR114+QU114+QX114+RA114+RD114+RG114+RJ114+RM114+RP114+RS114+RV114+RY114+SB114+SE114+SH114+SK114+SN114+SQ114+ST114+SW114+SZ114+TC114+TF114+TI114+TL114+TO114+TR114+TU114+TX114+UA114+UD114+UG114+UJ114+UM114+UP114+US114 -> 306 | I114: =G114*H114 -> 0 | J114: 4.5 | K114: =$G114*J114 -> 0 | M114: 0 | N114: =$G114*M114 -> 0 | P114: 9 | Q114: =$G114*P114 -> 0 | S114: 4.5 | T114: =$G114*S114 -> 0 | V114: 18 | W114: =$G114*V114 -> 0 | Y114: 0 | Z114: =$G114*Y114 -> 0 | AB114: 4.5 | AC114: =$G114*AB114 -> 0 | AE114: 4.5 | AF114: =$G114*AE114 -> 0 | AH114: 4.5 | AI114: =$G114*AH114 -> 0 | AK114: 4.5 | AL114: =$G114*AK114 -> 0 | AN114: 4.5 | AO114: =$G114*AN114 -> 0 | AQ114: 18 | AR114: =$G114*AQ114 -> 0 | AT114: 0 | AU114: =$G114*AT114 -> 0 | AW114: 4.5 | AX114: =$G114*AW114 -> 0 | AZ114: 22.5 | BA114: =$G114*AZ114 -> 0 | BC114: 0 | BD114: =$G114*BC114 -> 0 | BF114: 22.5 | BG114: =$G114*BF114 -> 0 | BI114: 0 | BJ114: =$G114*BI114 -> 0 | BL114: 0 | BM114: =$G114*BL114 -> 0 | BO114: 0 | BP114: =$G114*BO114 -> 0 | BR114: 0 | BS114: =$G114*BR114 -> 0 | BU114: 4.5 | BV114: =$G114*BU114 -> 0 | BX114: 4.5 | BY114: =$G114*BX114 -> 0 | CB114: =$G114*CA114 -> 0 | CD114: 9 | CE114: =$G114*CD114 -> 0 | CG114: 4.5 | CH114: =$G114*CG114 -> 0 | CJ114: 4.5 | CK114: =$G114*CJ114 -> 0 | CM114: 4.5 | CN114: =$G114*CM114 -> 0 | CP114: 4.5 | CQ114: =$G114*CP114 -> 0 | CS114: 0 | CT114: =$G114*CS114 -> 0 | CV114: 4.5 | CW114: =$G114*CV114 -> 0 | CY114: 9 | CZ114: =$G114*CY114 -> 0 | DB114: 27 | DC114: =$G114*DB114 -> 0 | DE114: 0 | DF114: =$G114*DE114 -> 0 | DH114: 4.5 | DI114: =$G114*DH114 -> 0 | DK114: 0 | DL114: =$G114*DK114 -> 0 | DN114: 13.5 | DO114: =$G114*DN114 -> 0 | DQ114: 27 | DR114: =$G114*DQ114 -> 0 | DT114: 22.5 | DU114: =$G114*DT114 -> 0 | DW114: 22.5 | DX114: =$G114*DW114 -> 0 | DZ114: 0 | EA114: =$G114*DZ114 -> 0 | EC114: 13.5 | ED114: =$G114*EC114 -> 0
A115: 6.2 | B115: H | C115: 2 | D115: Poliazbitol (hladni premaz za hidroizolaciju) Upotrebljava se u isporučenom stanju (hladan postupak) bez zagrevanja | E115: POLYASBITOL (cold coating for waterproofing) It is used as delivered (cold process) without heating | F115: kg | G115: =CENA!G106 -> 0 | H115: 110 | I115: 0 | J115: 0 | K115: =$G115*J115 -> 0 | M115: 0 | N115: =$G115*M115 -> 0 | P115: 0 | Q115: 0 | S115: 0 | T115: 0 | V115: 0 | W115: =$G115*V115 -> 0 | Y115: 0 | Z115: =$G115*Y115 -> 0 | AB115: 0 | AC115: =$G115*AB115 -> 0 | AE115: 0 | AF115: =$G115*AE115 -> 0 | AH115: 0 | AI115: =$G115*AH115 -> 0 | AK115: 0 | AL115: =$G115*AK115 -> 0 | AN115: 0 | AO115: =$G115*AN115 -> 0 | AQ115: 0 | AR115: =$G115*AQ115 -> 0 | AT115: 0 | AU115: =$G115*AT115 -> 0 | AW115: 0 | AX115: =$G115*AW115 -> 0 | AZ115: 0 | BA115: =$G115*AZ115 -> 0 | BC115: 0 | BD115: =$G115*BC115 -> 0 | BF115: 0 | BG115: =$G115*BF115 -> 0 | BI115: 0 | BJ115: =$G115*BI115 -> 0 | BL115: 0 | BM115: =$G115*BL115 -> 0 | BO115: 0 | BP115: =$G115*BO115 -> 0 | BR115: 0 | BS115: =$G115*BR115 -> 0 | BU115: 0 | BV115: =$G115*BU115 -> 0 | BX115: 22 | BY115: 0 | CB115: =$G115*CA115 -> 0 | CD115: 0 | CE115: =$G115*CD115 -> 0 | CG115: 0 | CH115: =$G115*CG115 -> 0 | CJ115: 0 | CK115: =$G115*CJ115 -> 0 | CM115: 22 | CN115: =$G115*CM115 -> 0 | CP115: 0 | CQ115: =$G115*CP115 -> 0 | CS115: 0 | CT115: =$G115*CS115 -> 0 | CV115: 0 | CW115: =$G115*CV115 -> 0 | CY115: 0 | CZ115: =$G115*CY115 -> 0 | DB115: 0 | DC115: =$G115*DB115 -> 0 | DE115: 0 | DF115: =$G115*DE115 -> 0 | DH115: 0 | DI115: =$G115*DH115 -> 0 | DK115: 0 | DL115: =$G115*DK115 -> 0 | DN115: 66 | DO115: =$G115*DN115 -> 0 | DQ115: 0 | DR115: 0 | DT115: 0 | DU115: 0 | DW115: 0 | DX115: =$G115*DW115 -> 0 | DZ115: 0 | EA115: =$G115*DZ115 -> 0 | EC115: 0 | ED115: =$G115*EC115 -> 0
A116: 6.3 | B116: H | C116: 3 | D116: Ter papir Bitumenska hidroizolaciona traka. | E116: Ter paper Bituminous waterproofing tape. | F116: m2 | G116: =CENA!G107 -> 0 | H116: 0 | I116: 0 | J116: 0 | K116: =$G116*J116 -> 0 | M116: 0 | N116: =$G116*M116 -> 0 | P116: 0 | Q116: 0 | S116: 0 | T116: 0 | V116: 0 | W116: =$G116*V116 -> 0 | Y116: 0 | Z116: =$G116*Y116 -> 0 | AB116: 0 | AC116: =$G116*AB116 -> 0 | AE116: 0 | AF116: =$G116*AE116 -> 0 | AH116: 0 | AI116: =$G116*AH116 -> 0 | AK116: 0 | AL116: =$G116*AK116 -> 0 | AN116: 0 | AO116: =$G116*AN116 -> 0 | AQ116: 0 | AR116: =$G116*AQ116 -> 0 | AT116: 0 | AU116: =$G116*AT116 -> 0 | AW116: 0 | AX116: =$G116*AW116 -> 0 | AZ116: 0 | BA116: =$G116*AZ116 -> 0 | BC116: 0 | BD116: =$G116*BC116 -> 0 | BF116: 0 | BG116: =$G116*BF116 -> 0 | BI116: 0 | BJ116: =$G116*BI116 -> 0 | BL116: 0 | BM116: =$G116*BL116 -> 0 | BO116: 0 | BP116: =$G116*BO116 -> 0 | BR116: 0 | BS116: =$G116*BR116 -> 0 | BU116: 0 | BV116: =$G116*BU116 -> 0 | BX116: 0 | BY116: 0 | CB116: =$G116*CA116 -> 0 | CD116: 0 | CE116: =$G116*CD116 -> 0 | CG116: 0 | CH116: =$G116*CG116 -> 0 | CJ116: 0 | CK116: =$G116*CJ116 -> 0 | CM116: 0 | CN116: =$G116*CM116 -> 0 | CP116: 0 | CQ116: =$G116*CP116 -> 0 | CS116: 0 | CT116: =$G116*CS116 -> 0 | CV116: 0 | CW116: =$G116*CV116 -> 0 | CY116: 0 | CZ116: =$G116*CY116 -> 0 | DB116: 0 | DC116: =$G116*DB116 -> 0 | DE116: 0 | DF116: =$G116*DE116 -> 0 | DH116: 0 | DI116: =$G116*DH116 -> 0 | DK116: 0 | DL116: =$G116*DK116 -> 0 | DN116: 0 | DO116: =$G116*DN116 -> 0 | DQ116: 0 | DR116: 0 | DT116: 0 | DU116: 0 | DW116: 0 | DX116: =$G116*DW116 -> 0 | DZ116: 0 | EA116: =$G116*DZ116 -> 0 | EC116: 0 | ED116: =$G116*EC116 -> 0
A117: 6.4 | B117: H | C117: 4 | D117: Kondor V-3 (hidroizolaciona traka) Plastomer-bitumenska traka, uložak stakleni voal, debljina: ≥ 3 mm | E117: Condor V-3 (waterproof tape) Plastomer-bituminous tape, glass mat, thickness: ≥ 3 mm | F117: m2 | G117: =CENA!G108 -> 0 | H117: 990 | I117: 0 | J117: 20 | K117: =$G117*J117 -> 0 | M117: 0 | N117: =$G117*M117 -> 0 | P117: 30 | Q117: 0 | S117: 20 | T117: 0 | V117: 30 | W117: =$G117*V117 -> 0 | Y117: 0 | Z117: =$G117*Y117 -> 0 | AB117: 10 | AC117: =$G117*AB117 -> 0 | AE117: 20 | AF117: =$G117*AE117 -> 0 | AH117: 10 | AI117: =$G117*AH117 -> 0 | AK117: 10 | AL117: =$G117*AK117 -> 0 | AN117: 10 | AO117: =$G117*AN117 -> 0 | AQ117: 50 | AR117: =$G117*AQ117 -> 0 | AT117: 0 | AU117: =$G117*AT117 -> 0 | AW117: 20 | AX117: =$G117*AW117 -> 0 | AZ117: 60 | BA117: =$G117*AZ117 -> 0 | BC117: 0 | BD117: =$G117*BC117 -> 0 | BF117: 60 | BG117: =$G117*BF117 -> 0 | BI117: 0 | BJ117: =$G117*BI117 -> 0 | BL117: 10 | BM117: =$G117*BL117 -> 0 | BO117: 60 | BP117: =$G117*BO117 -> 0 | BR117: 0 | BS117: =$G117*BR117 -> 0 | BU117: 20 | BV117: =$G117*BU117 -> 0 | BX117: 20 | BY117: 0 | CB117: =$G117*CA117 -> 0 | CD117: 20 | CE117: =$G117*CD117 -> 0 | CG117: 10 | CH117: =$G117*CG117 -> 0 | CJ117: 20 | CK117: =$G117*CJ117 -> 0 | CM117: 20 | CN117: =$G117*CM117 -> 0 | CP117: 10 | CQ117: =$G117*CP117 -> 0 | CS117: 0 | CT117: =$G117*CS117 -> 0 | CV117: 20 | CW117: =$G117*CV117 -> 0 | CY117: 20 | CZ117: =$G117*CY117 -> 0 | DB117: 80 | DC117: =$G117*DB117 -> 0 | DE117: 30 | DF117: =$G117*DE117 -> 0 | DH117: 20 | DI117: =$G117*DH117 -> 0 | DK117: 0 | DL117: =$G117*DK117 -> 0 | DN117: 30 | DO117: =$G117*DN117 -> 0 | DQ117: 90 | DR117: 0 | DT117: 60 | DU117: 0 | DW117: 60 | DX117: =$G117*DW117 -> 0 | DZ117: 0 | EA117: =$G117*DZ117 -> 0 | EC117: 40 | ED117: =$G117*EC117 -> 0
A119: 7 | B119: S | D119: STOLARIJA | E119: DOORS AND WINDOWS
A120: 7.1 | B120: S | C120: 1 | D120: Ulazna vrata od PVC-a (komplet pozicija). boja profila: bela RAL 9003 broj komora: ≥ 5 komora širina x visina (zidarske mere) | E120: Entrance door of PVC (set position) Profile color: white RAL 9003 Number of chambers: ≥ 5 chambers width x height (masonry measures) | F120: / | G120: / | H120: / | I120: / | J120: / | K120: / | M120: / | N120: / | P120: / | Q120: / | S120: / | T120: / | V120: / | W120: / | Y120: / | Z120: / | AB120: / | AC120: / | AE120: / | AF120: / | AH120: / | AI120: / | AK120: / | AL120: / | AN120: / | AO120: / | AQ120: / | AR120: / | AT120: / | AU120: / | AW120: / | AX120: / | AZ120: / | BA120: / | BC120: / | BD120: / | BF120: / | BG120: / | BI120: / | BJ120: / | BL120: / | BM120: / | BO120: / | BP120: / | BR120: / | BS120: / | BU120: / | BV120: / | BX120: / | BY120: / | CA120: / | CB120: / | CD120: / | CE120: / | CG120: / | CH120: / | CJ120: / | CK120: / | CM120: / | CN120: / | CP120: / | CQ120: / | CS120: / | CT120: / | CV120: / | CW120: / | CY120: / | CZ120: / | DB120: / | DC120: / | DE120: / | DF120: / | DH120: / | DI120: / | DK120: / | DL120: / | DN120: / | DO120: / | DQ120: / | DR120: / | DT120: / | DU120: / | DW120: / | DX120: / | DZ120: / | EA120: / | EC120: / | ED120: /
A121: 7.1.1 | C121: A | D121: JK 90x210 cm - Leva 90 cm | E121: one wing 90x210 cm - Left 90 cm | F121: kom/pcs | G121: =CENA!G112 -> 0 | H121: =J121+M121+P121+S121+AQ121+CJ121+DK121+FD121+V121+Y121+AB121+AE121+AH121+AK121+AN121+AT121+AW121+AZ121+BC121+BF121+BI121+BL121+BO121+BR121+BU121+BX121+CA121+CD121+CG121+CM121+CP121+CS121+CV121+CY121+DB121+DE121+DH121+DN121+DQ121+DT121+DW121+DZ121+EC121+EF121+EI121+EL121+EO121+ER121+EU121+EX121+FA121+FG121+FJ121+FM121+FP121+FS121+FV121+FY121+GB121+GE121+GH121+GK121+GN121+GQ121+GT121+GW121+GZ121+HC121+HF121+HI121+HL121+HO121+HR121+HU121+HX121+IA121+ID121+IG121+IJ121+IM121+IP121+IS121+IV121+IY121+JB121+JE121+JH121+JK121+JN121+JQ121+JT121+JW121+JZ121+KC121+KF121+KI121+KL121+KO121+KR121+KU121+KX121+LA121+LD121+LG121+LJ121+LM121+LP121+LS121+LV121+LY121+MB121+ME121+MH121+MK121+MN121+MQ121+MT121+MW121+MZ121+NC121+NF121+NI121+NL121+NO121+NR121+NU121+NX121+OA121+OD121+OG121+OJ121+OM121+OP121+OS121+OV121+OY121+PB121+PE121+PH121+PK121+PN121+PQ121+PT121+PW121+PZ121+QC121+QF121+QI121+QL121+QO121+QR121+QU121+QX121+RA121+RD121+RG121+RJ121+RM121+RP121+RS121+RV121+RY121+SB121+SE121+SH121+SK121+SN121+SQ121+ST121+SW121+SZ121+TC121+TF121+TI121+TL121+TO121+TR121+TU121+TX121+UA121+UD121+UG121+UJ121+UM121+UP121+US121 -> 6 | I121: =G121*H121 -> 0 | J121: 0 | K121: =$G121*J121 -> 0 | M121: 0 | N121: =$G121*M121 -> 0 | P121: 0 | Q121: =$G121*P121 -> 0 | S121: 0 | T121: =$G121*S121 -> 0 | V121: 0 | W121: =$G121*V121 -> 0 | Y121: 0 | Z121: =$G121*Y121 -> 0 | AB121: 1 | AC121: =$G121*AB121 -> 0 | AE121: 0 | AF121: =$G121*AE121 -> 0 | AH121: 0 | AI121: =$G121*AH121 -> 0 | AK121: 0 | AL121: =$G121*AK121 -> 0 | AN121: 0 | AO121: =$G121*AN121 -> 0 | AQ121: 0 | AR121: =$G121*AQ121 -> 0 | AT121: 0 | AU121: =$G121*AT121 -> 0 | AW121: 1 | AX121: =$G121*AW121 -> 0 | AZ121: 0 | BA121: =$G121*AZ121 -> 0 | BC121: 0 | BD121: =$G121*BC121 -> 0 | BF121: 0 | BG121: =$G121*BF121 -> 0 | BI121: 0 | BJ121: =$G121*BI121 -> 0 | BL121: 0 | BM121: =$G121*BL121 -> 0 | BO121: 0 | BP121: =$G121*BO121 -> 0 | BR121: 0 | BS121: =$G121*BR121 -> 0 | BU121: 0 | BV121: =$G121*BU121 -> 0 | BX121: 0 | BY121: =$G121*BX121 -> 0 | CB121: =$G121*CA121 -> 0 | CD121: 0 | CE121: =$G121*CD121 -> 0 | CG121: 0 | CH121: =$G121*CG121 -> 0 | CJ121: 0 | CK121: =$G121*CJ121 -> 0 | CN121: =$G121*CM121 -> 0 | CP121: 0 | CQ121: =$G121*CP121 -> 0 | CS121: 0 | CT121: =$G121*CS121 -> 0 | CV121: 1 | CW121: =$G121*CV121 -> 0 | CY121: 1 | CZ121: =$G121*CY121 -> 0 | DB121: 0 | DC121: =$G121*DB121 -> 0 | DE121: 0 | DF121: =$G121*DE121 -> 0 | DH121: 0 | DI121: =$G121*DH121 -> 0 | DK121: 1 | DL121: =$G121*DK121 -> 0 | DN121: 0 | DO121: =$G121*DN121 -> 0 | DQ121: 0 | DR121: =$G121*DQ121 -> 0 | DT121: 1 | DU121: =$G121*DT121 -> 0 | DX121: =$G121*DW121 -> 0 | DZ121: 0 | EA121: =$G121*DZ121 -> 0 | EC121: 0 | ED121: =$G121*EC121 -> 0
A122: 7.1.2 | C122: B | D122: JK 90x210 cm - Desna 90 cm | E122: one wing 90x210 cm - Right 90 cm | F122: kom/pcs | G122: =CENA!G113 -> 0 | H122: 18 | I122: 0 | J122: 0 | K122: =$G122*J122 -> 0 | M122: 0 | N122: =$G122*M122 -> 0 | P122: 1 | Q122: 0 | S122: 0 | T122: 0 | V122: 1 | W122: =$G122*V122 -> 0 | Y122: 1 | Z122: 0 | AB122: 0 | AC122: =$G122*AB122 -> 0 | AE122: 1 | AF122: =$G122*AE122 -> 0 | AH122: 0 | AI122: =$G122*AH122 -> 0 | AK122: 0 | AL122: =$G122*AK122 -> 0 | AN122: 0 | AO122: =$G122*AN122 -> 0 | AQ122: 0 | AR122: =$G122*AQ122 -> 0 | AT122: 1 | AU122: =$G122*AT122 -> 0 | AW122: 1 | AX122: =$G122*AW122 -> 0 | AZ122: 0 | BA122: =$G122*AZ122 -> 0 | BC122: 2 | BD122: =$G122*BC122 -> 0 | BF122: 0 | BG122: =$G122*BF122 -> 0 | BI122: 0 | BJ122: =$G122*BI122 -> 0 | BL122: 0 | BM122: =$G122*BL122 -> 0 | BO122: 0 | BP122: =$G122*BO122 -> 0 | BR122: 1 | BS122: =$G122*BR122 -> 0 | BU122: 0 | BV122: =$G122*BU122 -> 0 | BX122: 1 | BY122: 0 | CB122: =$G122*CA122 -> 0 | CD122: 0 | CE122: 0 | CG122: 0 | CH122: =$G122*CG122 -> 0 | CJ122: 0 | CK122: =$G122*CJ122 -> 0 | CM122: 2 | CN122: =$G122*CM122 -> 0 | CP122: 0 | CQ122: =$G122*CP122 -> 0 | CS122: 2 | CT122: =$G122*CS122 -> 0 | CV122: 1 | CW122: =$G122*CV122 -> 0 | CY122: 0 | CZ122: =$G122*CY122 -> 0 | DB122: 1 | DC122: =$G122*DB122 -> 0 | DE122: 0 | DF122: =$G122*DE122 -> 0 | DH122: 0 | DI122: =$G122*DH122 -> 0 | DK122: 0 | DL122: =$G122*DK122 -> 0 | DN122: 2 | DO122: =$G122*DN122 -> 0 | DQ122: 0 | DR122: 0 | DT122: 0 | DU122: 0 | DX122: =$G122*DW122 -> 0 | DZ122: 0 | EA122: 0 | EC122: 0 | ED122: =$G122*EC122 -> 0
A123: 7.1.3 | C123: C | D123: DK 120x210 cm - Leva 90+30 cm | E123: two wings 120x210 cm - Left 90+30 cm | F123: kom/pcs | G123: =CENA!G114 -> 0 | H123: 8 | I123: 0 | J123: 0 | K123: =$G123*J123 -> 0 | M123: 0 | N123: =$G123*M123 -> 0 | P123: 0 | Q123: 0 | S123: 1 | T123: 0 | V123: 0 | W123: =$G123*V123 -> 0 | Y123: 0 | Z123: 0 | AB123: 0 | AC123: =$G123*AB123 -> 0 | AE123: 0 | AF123: =$G123*AE123 -> 0 | AH123: 0 | AI123: =$G123*AH123 -> 0 | AK123: 2 | AL123: =$G123*AK123 -> 0 | AN123: 0 | AO123: =$G123*AN123 -> 0 | AQ123: 0 | AR123: =$G123*AQ123 -> 0 | AT123: 0 | AU123: =$G123*AT123 -> 0 | AW123: 0 | AX123: =$G123*AW123 -> 0 | AZ123: 0 | BA123: =$G123*AZ123 -> 0 | BC123: 0 | BD123: =$G123*BC123 -> 0 | BF123: 0 | BG123: =$G123*BF123 -> 0 | BI123: 0 | BJ123: =$G123*BI123 -> 0 | BL123: 1 | BM123: =$G123*BL123 -> 0 | BO123: 0 | BP123: =$G123*BO123 -> 0 | BR123: 0 | BS123: =$G123*BR123 -> 0 | BU123: 0 | BV123: =$G123*BU123 -> 0 | BX123: 0 | BY123: 0 | CB123: =$G123*CA123 -> 0 | CD123: 0 | CE123: 0 | CG123: 0 | CH123: =$G123*CG123 -> 0 | CJ123: 0 | CK123: =$G123*CJ123 -> 0 | CN123: =$G123*CM123 -> 0 | CP123: 1 | CQ123: =$G123*CP123 -> 0 | CS123: 0 | CT123: =$G123*CS123 -> 0 | CV123: 0 | CW123: =$G123*CV123 -> 0 | CY123: 0 | CZ123: =$G123*CY123 -> 0 | DB123: 0 | DC123: =$G123*DB123 -> 0 | DE123: 1 | DF123: =$G123*DE123 -> 0 | DH123: 1 | DI123: =$G123*DH123 -> 0 | DK123: 0 | DL123: =$G123*DK123 -> 0 | DN123: 0 | DO123: =$G123*DN123 -> 0 | DQ123: 0 | DR123: 0 | DT123: 0 | DU123: 0 | DX123: =$G123*DW123 -> 0 | DZ123: 0 | EA123: 0 | EC123: 1 | ED123: =$G123*EC123 -> 0
A124: 7.1.4 | C124: D | D124: DK 120x210 cm - Desna 90+30 cm | E124: two wings 120x210 cm - Right 90+30 cm | F124: kom/pcs | G124: =CENA!G115 -> 0 | H124: 16 | I124: 0 | J124: 0 | K124: =$G124*J124 -> 0 | M124: 1 | N124: =$G124*M124 -> 0 | P124: 0 | Q124: 0 | S124: 1 | T124: 0 | V124: 0 | W124: =$G124*V124 -> 0 | Y124: 0 | Z124: 0 | AB124: 0 | AC124: =$G124*AB124 -> 0 | AE124: 0 | AF124: =$G124*AE124 -> 0 | AH124: 1 | AI124: =$G124*AH124 -> 0 | AK124: 0 | AL124: =$G124*AK124 -> 0 | AN124: 0 | AO124: =$G124*AN124 -> 0 | AQ124: 1 | AR124: =$G124*AQ124 -> 0 | AT124: 0 | AU124: =$G124*AT124 -> 0 | AW124: 0 | AX124: =$G124*AW124 -> 0 | AZ124: 1 | BA124: =$G124*AZ124 -> 0 | BC124: 0 | BD124: =$G124*BC124 -> 0 | BF124: 1 | BG124: =$G124*BF124 -> 0 | BI124: 1 | BJ124: =$G124*BI124 -> 0 | BL124: 0 | BM124: =$G124*BL124 -> 0 | BO124: 2 | BP124: =$G124*BO124 -> 0 | BR124: 0 | BS124: =$G124*BR124 -> 0 | BU124: 2 | BV124: =$G124*BU124 -> 0 | BX124: 0 | BY124: 0 | CB124: =$G124*CA124 -> 0 | CD124: 0 | CE124: 0 | CG124: 0 | CH124: =$G124*CG124 -> 0 | CJ124: 1 | CK124: =$G124*CJ124 -> 0 | CN124: =$G124*CM124 -> 0 | CP124: 0 | CQ124: =$G124*CP124 -> 0 | CS124: 0 | CT124: =$G124*CS124 -> 0 | CV124: 0 | CW124: =$G124*CV124 -> 0 | CY124: 1 | CZ124: =$G124*CY124 -> 0 | DB124: 1 | DC124: =$G124*DB124 -> 0 | DE124: 0 | DF124: =$G124*DE124 -> 0 | DH124: 0 | DI124: =$G124*DH124 -> 0 | DK124: 0 | DL124: =$G124*DK124 -> 0 | DN124: 0 | DO124: =$G124*DN124 -> 0 | DQ124: 1 | DR124: 0 | DT124: 0 | DU124: 0 | DW124: 1 | DX124: =$G124*DW124 -> 0 | DZ124: 0 | EA124: 0 | EC124: 0 | ED124: =$G124*EC124 -> 0
A125: 7.2 | B125: S | C125: 2 | D125: Prozori od PVC-a (komplet pozicija). Vertikalno i horizontalno otvaranje, boja profila: bela RAL 9003, broj komora: ≥ 5 komora širina x visina (zidarske mere) | E125: Windows made of PVC (set position) Vertical and horizontal opening, color profile: white RAL 9003, the number of chambers: ≥ 5 chambers width x height (masonry measures) | F125: / | G125: / | H125: / | I125: / | J125: / | K125: / | M125: / | N125: / | P125: / | Q125: / | S125: / | T125: / | V125: / | W125: / | Y125: / | Z125: / | AB125: / | AC125: / | AE125: / | AF125: / | AH125: / | AI125: / | AK125: / | AL125: / | AN125: / | AO125: / | AQ125: / | AR125: / | AT125: / | AU125: / | AW125: / | AX125: / | AZ125: / | BA125: / | BC125: / | BD125: / | BF125: / | BG125: / | BI125: / | BJ125: / | BL125: / | BM125: / | BO125: / | BP125: / | BR125: / | BS125: / | BU125: / | BV125: / | BX125: / | BY125: / | CA125: / | CB125: / | CD125: / | CE125: / | CG125: / | CH125: / | CJ125: / | CK125: / | CM125: / | CN125: / | CP125: / | CQ125: / | CS125: / | CT125: / | CV125: / | CW125: / | CY125: / | CZ125: / | DB125: / | DC125: / | DE125: / | DF125: / | DH125: / | DI125: / | DK125: / | DL125: / | DN125: / | DO125: / | DQ125: / | DR125: / | DT125: / | DU125: / | DW125: / | DX125: / | DZ125: / | EA125: / | EC125: / | ED125: /
A126: 7.2.1 | C126: A | D126: JK 60x60 cm | E126: one wing 60x60 cm | F126: kom/pcs | G126: =CENA!G117 -> 0 | H126: =J126+M126+P126+S126+AQ126+CJ126+DK126+FD126+V126+Y126+AB126+AE126+AH126+AK126+AN126+AT126+AW126+AZ126+BC126+BF126+BI126+BL126+BO126+BR126+BU126+BX126+CA126+CD126+CG126+CM126+CP126+CS126+CV126+CY126+DB126+DE126+DH126+DN126+DQ126+DT126+DW126+DZ126+EC126+EF126+EI126+EL126+EO126+ER126+EU126+EX126+FA126+FG126+FJ126+FM126+FP126+FS126+FV126+FY126+GB126+GE126+GH126+GK126+GN126+GQ126+GT126+GW126+GZ126+HC126+HF126+HI126+HL126+HO126+HR126+HU126+HX126+IA126+ID126+IG126+IJ126+IM126+IP126+IS126+IV126+IY126+JB126+JE126+JH126+JK126+JN126+JQ126+JT126+JW126+JZ126+KC126+KF126+KI126+KL126+KO126+KR126+KU126+KX126+LA126+LD126+LG126+LJ126+LM126+LP126+LS126+LV126+LY126+MB126+ME126+MH126+MK126+MN126+MQ126+MT126+MW126+MZ126+NC126+NF126+NI126+NL126+NO126+NR126+NU126+NX126+OA126+OD126+OG126+OJ126+OM126+OP126+OS126+OV126+OY126+PB126+PE126+PH126+PK126+PN126+PQ126+PT126+PW126+PZ126+QC126+QF126+QI126+QL126+QO126+QR126+QU126+QX126+RA126+RD126+RG126+RJ126+RM126+RP126+RS126+RV126+RY126+SB126+SE126+SH126+SK126+SN126+SQ126+ST126+SW126+SZ126+TC126+TF126+TI126+TL126+TO126+TR126+TU126+TX126+UA126+UD126+UG126+UJ126+UM126+UP126+US126 -> 65 | I126: =G126*H126 -> 0 | J126: 0 | K126: =$G126*J126 -> 0 | M126: 3 | N126: =$G126*M126 -> 0 | P126: 2 | Q126: =$G126*P126 -> 0 | S126: 2 | T126: =$G126*S126 -> 0 | V126: 3 | W126: =$G126*V126 -> 0 | Y126: 1 | Z126: =$G126*Y126 -> 0 | AB126: 1 | AC126: =$G126*AB126 -> 0 | AE126: 2 | AF126: =$G126*AE126 -> 0 | AH126: 1 | AI126: =$G126*AH126 -> 0 | AK126: 2 | AL126: =$G126*AK126 -> 0 | AN126: 0 | AO126: =$G126*AN126 -> 0 | AQ126: 1 | AR126: =$G126*AQ126 -> 0 | AT126: 3 | AU126: =$G126*AT126 -> 0 | AW126: 0 | AX126: =$G126*AW126 -> 0 | AZ126: 0 | BA126: =$G126*AZ126 -> 0 | BC126: 0 | BD126: =$G126*BC126 -> 0 | BF126: 1 | BG126: =$G126*BF126 -> 0 | BI126: 1 | BJ126: =$G126*BI126 -> 0 | BL126: 1 | BM126: =$G126*BL126 -> 0 | BO126: 2 | BP126: =$G126*BO126 -> 0 | BR126: 2 | BS126: =$G126*BR126 -> 0 | BU126: 2 | BV126: =$G126*BU126 -> 0 | BX126: 0 | BY126: =$G126*BX126 -> 0 | CA126: 2 | CB126: =$G126*CA126 -> 0 | CD126: 2 | CE126: =$G126*CD126 -> 0 | CG126: 2 | CH126: =$G126*CG126 -> 0 | CJ126: 2 | CK126: =$G126*CJ126 -> 0 | CM126: 1 | CN126: =$G126*CM126 -> 0 | CP126: 2 | CQ126: =$G126*CP126 -> 0 | CS126: 1 | CT126: =$G126*CS126 -> 0 | CV126: 1 | CW126: =$G126*CV126 -> 0 | CY126: 3 | CZ126: =$G126*CY126 -> 0 | DB126: 2 | DC126: =$G126*DB126 -> 0 | DE126: 1 | DF126: =$G126*DE126 -> 0 | DH126: 3 | DI126: =$G126*DH126 -> 0 | DK126: 1 | DL126: =$G126*DK126 -> 0 | DN126: 6 | DO126: =$G126*DN126 -> 0 | DQ126: 2 | DR126: =$G126*DQ126 -> 0 | DT126: 1 | DU126: =$G126*DT126 -> 0 | DW126: 1 | DX126: =$G126*DW126 -> 0 | DZ126: 0 | EA126: =$G126*DZ126 -> 0 | EC126: 2 | ED126: =$G126*EC126 -> 0
A127: 7.2.2 | C127: B | D127: JK 80x80 cm | E127: one wing 80x80 cm | F127: kom/pcs | G127: =CENA!G118 -> 0 | H127: 19 | I127: 0 | J127: 0 | K127: 0 | M127: 0 | N127: 0 | P127: 0 | Q127: 0 | S127: 0 | T127: 0 | V127: 1 | W127: 0 | Y127: 0 | Z127: 0 | AB127: 0 | AC127: 0 | AE127: 2 | AF127: 0 | AH127: 0 | AI127: 0 | AK127: 0 | AL127: 0 | AN127: 0 | AO127: 0 | AQ127: 1 | AR127: 0 | AT127: 0 | AU127: 0 | AW127: 3 | AX127: 0 | AZ127: 0 | BA127: 0 | BC127: 0 | BD127: 0 | BF127: 0 | BG127: 0 | BI127: 0 | BJ127: 0 | BL127: 1 | BM127: 0 | BO127: 0 | BP127: 0 | BR127: 4 | BS127: 0 | BU127: 0 | BV127: 0 | BX127: 0 | BY127: 0 | CB127: 0 | CD127: 0 | CE127: 0 | CG127: 0 | CH127: 0 | CJ127: 0 | CK127: 0 | CM127: 2 | CN127: 0 | CP127: 0 | CQ127: 0 | CS127: 0 | CT127: 0 | CV127: 1 | CW127: 0 | CY127: 0 | CZ127: 0 | DB127: 0 | DC127: 0 | DE127: 0 | DF127: 0 | DH127: 4 | DI127: 0 | DK127: 0 | DL127: 0 | DN127: 0 | DO127: 0 | DQ127: 0 | DR127: 0 | DT127: 0 | DU127: 0 | DX127: 0 | DZ127: 0 | EA127: 0 | EC127: 0 | ED127: 0
A128: 7.2.3 | C128: C | D128: JK 80x120 cm | E128: one wing 80x120 cm | F128: kom/pcs | G128: =CENA!G119 -> 0 | H128: 16 | I128: 0 | J128: 0 | K128: 0 | M128: 0 | N128: 0 | P128: 0 | Q128: 0 | S128: 0 | T128: 0 | V128: 1 | W128: 0 | Y128: 0 | Z128: 0 | AB128: 0 | AC128: 0 | AE128: 0 | AF128: 0 | AH128: 0 | AI128: 0 | AK128: 2 | AL128: 0 | AN128: 0 | AO128: 0 | AQ128: 0 | AR128: 0 | AT128: 0 | AU128: 0 | AW128: 1 | AX128: 0 | AZ128: 0 | BA128: 0 | BC128: 0 | BD128: 0 | BF128: 0 | BG128: 0 | BI128: 0 | BJ128: 0 | BL128: 0 | BM128: 0 | BO128: 2 | BP128: 0 | BR128: 0 | BS128: 0 | BU128: 0 | BV128: 0 | BX128: 0 | BY128: 0 | CA128: 7 | CB128: 0 | CD128: 0 | CE128: 0 | CG128: 0 | CH128: 0 | CJ128: 0 | CK128: 0 | CM128: 2 | CN128: 0 | CP128: 0 | CQ128: 0 | CS128: 0 | CT128: 0 | CV128: 0 | CW128: 0 | CY128: 1 | CZ128: 0 | DB128: 0 | DC128: 0 | DE128: 0 | DF128: 0 | DH128: 0 | DI128: 0 | DK128: 0 | DL128: 0 | DN128: 0 | DO128: 0 | DQ128: 0 | DR128: 0 | DT128: 0 | DU128: 0 | DX128: 0 | DZ128: 0 | EA128: 0 | EC128: 0 | ED128: 0
A129: 7.2.4 | C129: D | D129: JK 80x140 cm | E129: one wing 80x140 cm | F129: kom/pcs | G129: =CENA!G120 -> 0 | H129: 2 | I129: 0 | J129: 0 | K129: 0 | M129: 0 | N129: 0 | P129: 0 | Q129: 0 | S129: 1 | T129: 0 | V129: 0 | W129: 0 | Y129: 0 | Z129: 0 | AB129: 0 | AC129: 0 | AE129: 0 | AF129: 0 | AH129: 0 | AI129: 0 | AK129: 0 | AL129: 0 | AN129: 0 | AO129: 0 | AQ129: 0 | AR129: 0 | AT129: 0 | AU129: 0 | AW129: 0 | AX129: 0 | AZ129: 0 | BA129: 0 | BC129: 0 | BD129: 0 | BF129: 1 | BG129: 0 | BI129: 0 | BJ129: 0 | BL129: 0 | BM129: 0 | BO129: 0 | BP129: 0 | BR129: 0 | BS129: 0 | BU129: 0 | BV129: 0 | BX129: 0 | BY129: 0 | CB129: 0 | CD129: 0 | CE129: 0 | CG129: 0 | CH129: 0 | CJ129: 0 | CK129: 0 | CN129: 0 | CP129: 0 | CQ129: 0 | CS129: 0 | CT129: 0 | CV129: 0 | CW129: 0 | CY129: 0 | CZ129: 0 | DB129: 0 | DC129: 0 | DE129: 0 | DF129: 0 | DH129: 0 | DI129: 0 | DK129: 0 | DL129: 0 | DN129: 0 | DO129: 0 | DQ129: 0 | DR129: 0 | DT129: 0 | DU129: 0 | DX129: 0 | DZ129: 0 | EA129: 0 | EC129: 0 | ED129: 0
A130: 7.2.5 | C130: E | D130: JK 100x120 cm | E130: one wing 100x120 cm | F130: kom/pcs | G130: =CENA!G121 -> 0 | H130: 8 | I130: 0 | J130: 0 | K130: 0 | M130: 0 | N130: 0 | P130: 0 | Q130: 0 | S130: 0 | T130: 0 | V130: 0 | W130: 0 | Y130: 0 | Z130: 0 | AB130: 0 | AC130: 0 | AE130: 1 | AF130: 0 | AH130: 0 | AI130: 0 | AK130: 0 | AL130: 0 | AN130: 0 | AO130: 0 | AQ130: 0 | AR130: 0 | AT130: 0 | AU130: 0 | AW130: 2 | AX130: 0 | AZ130: 1 | BA130: 0 | BC130: 0 | BD130: 0 | BF130: 0 | BG130: 0 | BI130: 1 | BJ130: 0 | BL130: 0 | BM130: 0 | BO130: 2 | BP130: 0 | BR130: 0 | BS130: 0 | BU130: 0 | BV130: 0 | BX130: 0 | BY130: 0 | CB130: 0 | CD130: 0 | CE130: 0 | CG130: 0 | CH130: 0 | CJ130: 0 | CK130: 0 | CN130: 0 | CP130: 0 | CQ130: 0 | CS130: 0 | CT130: 0 | CV130: 0 | CW130: 0 | CY130: 1 | CZ130: 0 | DB130: 0 | DC130: 0 | DE130: 0 | DF130: 0 | DH130: 0 | DI130: 0 | DK130: 0 | DL130: 0 | DN130: 0 | DO130: 0 | DQ130: 0 | DR130: 0 | DT130: 0 | DU130: 0 | DX130: 0 | DZ130: 0 | EA130: 0 | EC130: 0 | ED130: 0
A131: 7.2.6 | C131: F | D131: JK 100x140 cm | E131: one wing 100x140 cm | F131: kom/pcs | G131: =CENA!G122 -> 0 | H131: 11 | I131: 0 | J131: 0 | K131: 0 | M131: 0 | N131: 0 | P131: 0 | Q131: 0 | S131: 1 | T131: 0 | V131: 0 | W131: 0 | Y131: 1 | Z131: 0 | AB131: 0 | AC131: 0 | AE131: 0 | AF131: 0 | AH131: 0 | AI131: 0 | AK131: 0 | AL131: 0 | AN131: 0 | AO131: 0 | AQ131: 0 | AR131: 0 | AT131: 0 | AU131: 0 | AW131: 0 | AX131: 0 | AZ131: 0 | BA131: 0 | BC131: 0 | BD131: 0 | BF131: 1 | BG131: 0 | BI131: 0 | BJ131: 0 | BL131: 0 | BM131: 0 | BO131: 4 | BP131: 0 | BR131: 1 | BS131: 0 | BU131: 0 | BV131: 0 | BX131: 0 | BY131: 0 | CB131: 0 | CD131: 0 | CE131: 0 | CG131: 0 | CH131: 0 | CJ131: 0 | CK131: 0 | CN131: 0 | CP131: 0 | CQ131: 0 | CS131: 3 | CT131: 0 | CV131: 0 | CW131: 0 | CY131: 0 | CZ131: 0 | DB131: 0 | DC131: 0 | DE131: 0 | DF131: 0 | DH131: 0 | DI131: 0 | DK131: 0 | DL131: 0 | DN131: 0 | DO131: 0 | DQ131: 0 | DR131: 0 | DT131: 0 | DU131: 0 | DX131: 0 | DZ131: 0 | EA131: 0 | EC131: 0 | ED131: 0
A132: 7.2.7 | C132: G | D132: DK 120x120 cm | E132: two wings 120x120 cm | F132: kom/pcs | G132: =CENA!G123 -> 0 | H132: 15 | I132: 0 | J132: 0 | K132: 0 | M132: 2 | N132: 0 | P132: 1 | Q132: 0 | S132: 1 | T132: 0 | V132: 0 | W132: 0 | Y132: 1 | Z132: 0 | AB132: 0 | AC132: 0 | AE132: 0 | AF132: 0 | AH132: 2 | AI132: 0 | AK132: 0 | AL132: 0 | AN132: 0 | AO132: 0 | AQ132: 0 | AR132: 0 | AT132: 0 | AU132: 0 | AW132: 0 | AX132: 0 | AZ132: 0 | BA132: 0 | BC132: 1 | BD132: 0 | BF132: 0 | BG132: 0 | BI132: 0 | BJ132: 0 | BL132: 2 | BM132: 0 | BO132: 0 | BP132: 0 | BR132: 0 | BS132: 0 | BU132: 2 | BV132: 0 | BX132: 0 | BY132: 0 | CB132: 0 | CD132: 0 | CE132: 0 | CG132: 0 | CH132: 0 | CJ132: 0 | CK132: 0 | CN132: 0 | CP132: 0 | CQ132: 0 | CS132: 0 | CT132: 0 | CV132: 0 | CW132: 0 | CY132: 0 | CZ132: 0 | DB132: 0 | DC132: 0 | DE132: 0 | DF132: 0 | DH132: 0 | DI132: 0 | DK132: 0 | DL132: 0 | DN132: 1 | DO132: 0 | DQ132: 1 | DR132: 0 | DT132: 1 | DU132: 0 | DX132: 0 | DZ132: 0 | EA132: 0 | EC132: 0 | ED132: 0
A133: 7.2.8 | C133: H | D133: DK 120x140 cm | E133: two wings 120x140 cm | F133: kom/pcs | G133: =CENA!G124 -> 0 | H133: 31 | I133: 0 | J133: 0 | K133: 0 | M133: 0 | N133: 0 | P133: 2 | Q133: 0 | S133: 1 | T133: 0 | V133: 0 | W133: 0 | Y133: 0 | Z133: 0 | AB133: 0 | AC133: 0 | AE133: 1 | AF133: 0 | AH133: 0 | AI133: 0 | AK133: 3 | AL133: 0 | AN133: 0 | AO133: 0 | AQ133: 8 | AR133: 0 | AT133: 0 | AU133: 0 | AW133: 0 | AX133: 0 | AZ133: 2 | BA133: 0 | BC133: 0 | BD133: 0 | BF133: 0 | BG133: 0 | BI133: 2 | BJ133: 0 | BL133: 0 | BM133: 0 | BO133: 0 | BP133: 0 | BR133: 0 | BS133: 0 | BU133: 0 | BV133: 0 | BX133: 0 | BY133: 0 | CB133: 0 | CD133: 0 | CE133: 0 | CG133: 0 | CH133: 0 | CJ133: 1 | CK133: 0 | CN133: 0 | CP133: 0 | CQ133: 0 | CS133: 0 | CT133: 0 | CV133: 0 | CW133: 0 | CY133: 0 | CZ133: 0 | DB133: 0 | DC133: 0 | DE133: 0 | DF133: 0 | DH133: 0 | DI133: 0 | DK133: 0 | DL133: 0 | DN133: 1 | DO133: 0 | DQ133: 0 | DR133: 0 | DT133: 1 | DU133: 0 | DW133: 4 | DX133: 0 | DZ133: 0 | EA133: 0 | EC133: 5 | ED133: 0
A134: 7.2.9 | C134: I | D134: DK 140x120 cm | E134: two wings 140x120 cm | F134: kom/pcs | G134: =CENA!G125 -> 0 | H134: 11 | I134: 0 | J134: 0 | K134: 0 | M134: 0 | N134: 0 | P134: 5 | Q134: 0 | S134: 0 | T134: 0 | V134: 0 | W134: 0 | Y134: 0 | Z134: 0 | AB134: 1 | AC134: 0 | AE134: 0 | AF134: 0 | AH134: 0 | AI134: 0 | AK134: 0 | AL134: 0 | AN134: 0 | AO134: 0 | AQ134: 2 | AR134: 0 | AT134: 0 | AU134: 0 | AW134: 0 | AX134: 0 | AZ134: 0 | BA134: 0 | BC134: 0 | BD134: 0 | BF134: 0 | BG134: 0 | BI134: 0 | BJ134: 0 | BL134: 0 | BM134: 0 | BO134: 0 | BP134: 0 | BR134: 0 | BS134: 0 | BU134: 1 | BV134: 0 | BX134: 0 | BY134: 0 | CB134: 0 | CD134: 0 | CE134: 0 | CG134: 0 | CH134: 0 | CJ134: 0 | CK134: 0 | CN134: 0 | CP134: 0 | CQ134: 0 | CS134: 0 | CT134: 0 | CV134: 0 | CW134: 0 | CY134: 0 | CZ134: 0 | DB134: 1 | DC134: 0 | DE134: 0 | DF134: 0 | DH134: 1 | DI134: 0 | DK134: 0 | DL134: 0 | DN134: 0 | DO134: 0 | DQ134: 0 | DR134: 0 | DT134: 0 | DU134: 0 | DX134: 0 | DZ134: 0 | EA134: 0 | EC134: 0 | ED134: 0
A135: 7.2.10 | C135: J | D135: DK 140x140 cm | E135: two wings 140x140 cm | F135: kom/pcs | G135: =CENA!G126 -> 0 | H135: 13 | I135: 0 | J135: 0 | K135: 0 | M135: 0 | N135: 0 | P135: 0 | Q135: 0 | S135: 1 | T135: 0 | V135: 0 | W135: 0 | Y135: 0 | Z135: 0 | AB135: 0 | AC135: 0 | AE135: 0 | AF135: 0 | AH135: 0 | AI135: 0 | AK135: 0 | AL135: 0 | AN135: 0 | AO135: 0 | AQ135: 0 | AR135: 0 | AT135: 0 | AU135: 0 | AW135: 2 | AX135: 0 | AZ135: 1 | BA135: 0 | BC135: 0 | BD135: 0 | BF135: 2 | BG135: 0 | BI135: 2 | BJ135: 0 | BL135: 0 | BM135: 0 | BO135: 0 | BP135: 0 | BR135: 1 | BS135: 0 | BU135: 0 | BV135: 0 | BX135: 0 | BY135: 0 | CB135: 0 | CD135: 0 | CE135: 0 | CG135: 0 | CH135: 0 | CJ135: 0 | CK135: 0 | CN135: 0 | CP135: 0 | CQ135: 0 | CS135: 0 | CT135: 0 | CV135: 0 | CW135: 0 | CY135: 1 | CZ135: 0 | DB135: 2 | DC135: 0 | DE135: 1 | DF135: 0 | DH135: 0 | DI135: 0 | DK135: 0 | DL135: 0 | DN135: 0 | DO135: 0 | DQ135: 0 | DR135: 0 | DT135: 0 | DU135: 0 | DX135: 0 | DZ135: 0 | EA135: 0 | EC135: 0 | ED135: 0
A136: 7.2.11 | C136: K | D136: DK 160x120 cm | E136: two wings 160x120 cm | F136: kom/pcs | G136: =CENA!G127 -> 0 | H136: 19 | I136: 0 | J136: 0 | K136: 0 | M136: 0 | N136: 0 | P136: 0 | Q136: 0 | S136: 0 | T136: 0 | V136: 2 | W136: 0 | Y136: 0 | Z136: 0 | AB136: 1 | AC136: 0 | AE136: 2 | AF136: 0 | AH136: 0 | AI136: 0 | AK136: 0 | AL136: 0 | AN136: 0 | AO136: 0 | AQ136: 0 | AR136: 0 | AT136: 0 | AU136: 0 | AW136: 0 | AX136: 0 | AZ136: 0 | BA136: 0 | BC136: 0 | BD136: 0 | BF136: 0 | BG136: 0 | BI136: 0 | BJ136: 0 | BL136: 1 | BM136: 0 | BO136: 0 | BP136: 0 | BR136: 2 | BS136: 0 | BU136: 3 | BV136: 0 | BX136: 0 | BY136: 0 | CB136: 0 | CD136: 2 | CE136: 0 | CG136: 0 | CH136: 0 | CJ136: 0 | CK136: 0 | CN136: 0 | CP136: 0 | CQ136: 0 | CS136: 0 | CT136: 0 | CV136: 0 | CW136: 0 | CY136: 0 | CZ136: 0 | DB136: 0 | DC136: 0 | DE136: 0 | DF136: 0 | DH136: 0 | DI136: 0 | DK136: 3 | DL136: 0 | DN136: 0 | DO136: 0 | DQ136: 3 | DR136: 0 | DT136: 0 | DU136: 0 | DX136: 0 | DZ136: 0 | EA136: 0 | EC136: 0 | ED136: 0
A137: 7.2.12 | C137: L | D137: DK 160x140 cm | E137: two wings 160x140 cm | F137: kom/pcs | G137: =CENA!G128 -> 0 | H137: 28 | I137: 0 | J137: 0 | K137: 0 | M137: 0 | N137: 0 | P137: 0 | Q137: 0 | S137: 0 | T137: 0 | V137: 0 | W137: 0 | Y137: 3 | Z137: 0 | AB137: 1 | AC137: 0 | AE137: 0 | AF137: 0 | AH137: 0 | AI137: 0 | AK137: 2 | AL137: 0 | AN137: 0 | AO137: 0 | AQ137: 0 | AR137: 0 | AT137: 0 | AU137: 0 | AW137: 0 | AX137: 0 | AZ137: 1 | BA137: 0 | BC137: 0 | BD137: 0 | BF137: 2 | BG137: 0 | BI137: 1 | BJ137: 0 | BL137: 0 | BM137: 0 | BO137: 0 | BP137: 0 | BR137: 0 | BS137: 0 | BU137: 0 | BV137: 0 | BX137: 4 | BY137: 0 | CB137: 0 | CD137: 0 | CE137: 0 | CG137: 0 | CH137: 0 | CJ137: 2 | CK137: 0 | CN137: 0 | CP137: 0 | CQ137: 0 | CS137: 0 | CT137: 0 | CV137: 2 | CW137: 0 | CY137: 2 | CZ137: 0 | DB137: 0 | DC137: 0 | DE137: 2 | DF137: 0 | DH137: 0 | DI137: 0 | DK137: 0 | DL137: 0 | DN137: 5 | DO137: 0 | DQ137: 0 | DR137: 0 | DT137: 1 | DU137: 0 | DX137: 0 | DZ137: 0 | EA137: 0 | EC137: 0 | ED137: 0
A138: 7.3 | B138: S | C138: 3 | D138: Krovni prozor sa aluminijumskom opšivkom od laminirane i impregnirane čamove građe | E138: Roof window with aluminum flashings of laminated and impregnated fir timber | F138: / | G138: / | H138: / | I138: / | J138: / | K138: / | M138: / | N138: / | P138: / | Q138: / | S138: / | T138: / | V138: / | W138: / | Y138: / | Z138: / | AB138: / | AC138: / | AE138: / | AF138: / | AH138: / | AI138: / | AK138: / | AL138: / | AN138: / | AO138: / | AQ138: / | AR138: / | AT138: / | AU138: / | AW138: / | AX138: / | AZ138: / | BA138: / | BC138: / | BD138: / | BF138: / | BG138: / | BI138: / | BJ138: / | BL138: / | BM138: / | BO138: / | BP138: / | BR138: / | BS138: / | BU138: / | BV138: / | BX138: / | BY138: / | CA138: / | CB138: / | CD138: / | CE138: / | CG138: / | CH138: / | CJ138: / | CK138: / | CM138: / | CN138: / | CP138: / | CQ138: / | CS138: / | CT138: / | CV138: / | CW138: / | CY138: / | CZ138: / | DB138: / | DC138: / | DE138: / | DF138: / | DH138: / | DI138: / | DK138: / | DL138: / | DN138: / | DO138: / | DQ138: / | DR138: / | DT138: / | DU138: / | DW138: / | DX138: / | DZ138: / | EA138: / | EC138: / | ED138: /
A139: 7.3.1 | C139: A | D139: dimenzije 66 x 118 (širinaxvisina) | E139: 66 x 118 (width x height) | F139: kom/pcs | G139: =CENA!G130 -> 0 | H139: =J139+M139+P139+S139+AQ139+CJ139+DK139+FD139+V139+Y139+AB139+AE139+AH139+AK139+AN139+AT139+AW139+AZ139+BC139+BF139+BI139+BL139+BO139+BR139+BU139+BX139+CA139+CD139+CG139+CM139+CP139+CS139+CV139+CY139+DB139+DE139+DH139+DN139+DQ139+DT139+DW139+DZ139+EC139+EF139+EI139+EL139+EO139+ER139+EU139+EX139+FA139+FG139+FJ139+FM139+FP139+FS139+FV139+FY139+GB139+GE139+GH139+GK139+GN139+GQ139+GT139+GW139+GZ139+HC139+HF139+HI139+HL139+HO139+HR139+HU139+HX139+IA139+ID139+IG139+IJ139+IM139+IP139+IS139+IV139+IY139+JB139+JE139+JH139+JK139+JN139+JQ139+JT139+JW139+JZ139+KC139+KF139+KI139+KL139+KO139+KR139+KU139+KX139+LA139+LD139+LG139+LJ139+LM139+LP139+LS139+LV139+LY139+MB139+ME139+MH139+MK139+MN139+MQ139+MT139+MW139+MZ139+NC139+NF139+NI139+NL139+NO139+NR139+NU139+NX139+OA139+OD139+OG139+OJ139+OM139+OP139+OS139+OV139+OY139+PB139+PE139+PH139+PK139+PN139+PQ139+PT139+PW139+PZ139+QC139+QF139+QI139+QL139+QO139+QR139+QU139+QX139+RA139+RD139+RG139+RJ139+RM139+RP139+RS139+RV139+RY139+SB139+SE139+SH139+SK139+SN139+SQ139+ST139+SW139+SZ139+TC139+TF139+TI139+TL139+TO139+TR139+TU139+TX139+UA139+UD139+UG139+UJ139+UM139+UP139+US139 -> 0 | I139: =G139*H139 -> 0 | J139: 0 | K139: =$G139*J139 -> 0 | M139: 0 | N139: =$G139*M139 -> 0 | P139: 0 | Q139: =$G139*P139 -> 0 | S139: 0 | T139: =$G139*S139 -> 0 | V139: 0 | W139: =$G139*V139 -> 0 | Y139: 0 | Z139: =$G139*Y139 -> 0 | AB139: 0 | AC139: =$G139*AB139 -> 0 | AE139: 0 | AF139: =$G139*AE139 -> 0 | AH139: 0 | AI139: =$G139*AH139 -> 0 | AK139: 0 | AL139: =$G139*AK139 -> 0 | AN139: 0 | AO139: =$G139*AN139 -> 0 | AQ139: 0 | AR139: =$G139*AQ139 -> 0 | AT139: 0 | AU139: =$G139*AT139 -> 0 | AW139: 0 | AX139: =$G139*AW139 -> 0 | AZ139: 0 | BA139: =$G139*AZ139 -> 0 | BC139: 0 | BD139: =$G139*BC139 -> 0 | BF139: 0 | BG139: =$G139*BF139 -> 0 | BI139: 0 | BJ139: =$G139*BI139 -> 0 | BL139: 0 | BM139: =$G139*BL139 -> 0 | BO139: 0 | BP139: =$G139*BO139 -> 0 | BR139: 0 | BS139: =$G139*BR139 -> 0 | BU139: 0 | BV139: =$G139*BU139 -> 0 | BX139: 0 | BY139: =$G139*BX139 -> 0 | CB139: =$G139*CA139 -> 0 | CD139: 0 | CE139: =$G139*CD139 -> 0 | CG139: 0 | CH139: =$G139*CG139 -> 0 | CJ139: 0 | CK139: =$G139*CJ139 -> 0 | CN139: =$G139*CM139 -> 0 | CP139: 0 | CQ139: =$G139*CP139 -> 0 | CS139: 0 | CT139: =$G139*CS139 -> 0 | CV139: 0 | CW139: =$G139*CV139 -> 0 | CY139: 0 | CZ139: =$G139*CY139 -> 0 | DB139: 0 | DC139: =$G139*DB139 -> 0 | DE139: 0 | DF139: =$G139*DE139 -> 0 | DH139: 0 | DI139: =$G139*DH139 -> 0 | DK139: 0 | DL139: =$G139*DK139 -> 0 | DN139: 0 | DO139: =$G139*DN139 -> 0 | DQ139: 0 | DR139: =$G139*DQ139 -> 0 | DT139: 0 | DU139: =$G139*DT139 -> 0 | DX139: =$G139*DW139 -> 0 | DZ139: 0 | EA139: =$G139*DZ139 -> 0 | EC139: 0 | ED139: =$G139*EC139 -> 0
A140: 7.3.2 | C140: B | D140: dimenzije 78 x 98 (širinaxvisina) | E140: 78 x 98 (width x height) | F140: kom/pcs | G140: =CENA!G131 -> 0 | H140: 0 | I140: 0 | J140: 0 | K140: =$G140*J140 -> 0 | M140: 0 | N140: =$G140*M140 -> 0 | P140: 0 | Q140: 0 | S140: 0 | T140: 0 | V140: 0 | W140: =$G140*V140 -> 0 | Y140: 0 | Z140: 0 | AB140: 0 | AC140: =$G140*AB140 -> 0 | AE140: 0 | AF140: =$G140*AE140 -> 0 | AH140: 0 | AI140: =$G140*AH140 -> 0 | AK140: 0 | AL140: =$G140*AK140 -> 0 | AN140: 0 | AO140: =$G140*AN140 -> 0 | AQ140: 0 | AR140: =$G140*AQ140 -> 0 | AT140: 0 | AU140: =$G140*AT140 -> 0 | AW140: 0 | AX140: =$G140*AW140 -> 0 | AZ140: 0 | BA140: =$G140*AZ140 -> 0 | BC140: 0 | BD140: =$G140*BC140 -> 0 | BF140: 0 | BG140: =$G140*BF140 -> 0 | BI140: 0 | BJ140: =$G140*BI140 -> 0 | BL140: 0 | BM140: =$G140*BL140 -> 0 | BO140: 0 | BP140: =$G140*BO140 -> 0 | BR140: 0 | BS140: =$G140*BR140 -> 0 | BU140: 0 | BV140: =$G140*BU140 -> 0 | BX140: 0 | BY140: 0 | CB140: =$G140*CA140 -> 0 | CD140: 0 | CE140: 0 | CG140: 0 | CH140: =$G140*CG140 -> 0 | CJ140: 0 | CK140: =$G140*CJ140 -> 0 | CN140: =$G140*CM140 -> 0 | CP140: 0 | CQ140: =$G140*CP140 -> 0 | CS140: 0 | CT140: =$G140*CS140 -> 0 | CV140: 0 | CW140: =$G140*CV140 -> 0 | CY140: 0 | CZ140: =$G140*CY140 -> 0 | DB140: 0 | DC140: =$G140*DB140 -> 0 | DE140: 0 | DF140: =$G140*DE140 -> 0 | DH140: 0 | DI140: =$G140*DH140 -> 0 | DK140: 0 | DL140: =$G140*DK140 -> 0 | DN140: 0 | DO140: =$G140*DN140 -> 0 | DQ140: 0 | DR140: 0 | DT140: 0 | DU140: 0 | DX140: =$G140*DW140 -> 0 | DZ140: 0 | EA140: 0 | EC140: 0 | ED140: =$G140*EC140 -> 0
A141: 7.3.3 | C141: C | D141: dimenzije 78 x 118 (širinaxvisina) | E141: 78 x 118 (width x height) | F141: kom/pcs | G141: =CENA!G132 -> 0 | H141: 0 | I141: 0 | J141: 0 | K141: =$G141*J141 -> 0 | M141: 0 | N141: =$G141*M141 -> 0 | P141: 0 | Q141: 0 | S141: 0 | T141: 0 | V141: 0 | W141: =$G141*V141 -> 0 | Y141: 0 | Z141: 0 | AB141: 0 | AC141: =$G141*AB141 -> 0 | AE141: 0 | AF141: =$G141*AE141 -> 0 | AH141: 0 | AI141: =$G141*AH141 -> 0 | AK141: 0 | AL141: =$G141*AK141 -> 0 | AN141: 0 | AO141: =$G141*AN141 -> 0 | AQ141: 0 | AR141: =$G141*AQ141 -> 0 | AT141: 0 | AU141: =$G141*AT141 -> 0 | AW141: 0 | AX141: =$G141*AW141 -> 0 | AZ141: 0 | BA141: =$G141*AZ141 -> 0 | BC141: 0 | BD141: =$G141*BC141 -> 0 | BF141: 0 | BG141: =$G141*BF141 -> 0 | BI141: 0 | BJ141: =$G141*BI141 -> 0 | BL141: 0 | BM141: =$G141*BL141 -> 0 | BO141: 0 | BP141: =$G141*BO141 -> 0 | BR141: 0 | BS141: =$G141*BR141 -> 0 | BU141: 0 | BV141: =$G141*BU141 -> 0 | BX141: 0 | BY141: 0 | CB141: =$G141*CA141 -> 0 | CD141: 0 | CE141: 0 | CG141: 0 | CH141: =$G141*CG141 -> 0 | CJ141: 0 | CK141: =$G141*CJ141 -> 0 | CN141: =$G141*CM141 -> 0 | CP141: 0 | CQ141: =$G141*CP141 -> 0 | CS141: 0 | CT141: =$G141*CS141 -> 0 | CV141: 0 | CW141: =$G141*CV141 -> 0 | CY141: 0 | CZ141: =$G141*CY141 -> 0 | DB141: 0 | DC141: =$G141*DB141 -> 0 | DE141: 0 | DF141: =$G141*DE141 -> 0 | DH141: 0 | DI141: =$G141*DH141 -> 0 | DK141: 0 | DL141: =$G141*DK141 -> 0 | DN141: 0 | DO141: =$G141*DN141 -> 0 | DQ141: 0 | DR141: 0 | DT141: 0 | DU141: 0 | DX141: =$G141*DW141 -> 0 | DZ141: 0 | EA141: 0 | EC141: 0 | ED141: =$G141*EC141 -> 0
A142: 7.4 | B142: S | C142: 4 | D142: Balkonska vrata od PVC-a (komplet pozicija). boja profila: bela RAL 9003 broj komora: ≥ 5 komora širina x visina (zidarske mere) | E142: Balcony doors from PVC (set position) Profile color: white RAL 9003 Number of chambers: ≥ 5 chambers width x height (masonry measures) | F142: / | G142: / | H142: / | I142: / | J142: / | K142: / | M142: / | N142: / | P142: / | Q142: / | S142: / | T142: / | V142: / | W142: / | Y142: / | Z142: / | AB142: / | AC142: / | AE142: / | AF142: / | AH142: / | AI142: / | AK142: / | AL142: / | AN142: / | AO142: / | AQ142: / | AR142: / | AT142: / | AU142: / | AW142: / | AX142: / | AZ142: / | BA142: / | BC142: / | BD142: / | BF142: / | BG142: / | BI142: / | BJ142: / | BL142: / | BM142: / | BO142: / | BP142: / | BR142: / | BS142: / | BU142: / | BV142: / | BX142: / | BY142: / | CA142: / | CB142: / | CD142: / | CE142: / | CG142: / | CH142: / | CJ142: / | CK142: / | CM142: / | CN142: / | CP142: / | CQ142: / | CS142: / | CT142: / | CV142: / | CW142: / | CY142: / | CZ142: / | DB142: / | DC142: / | DE142: / | DF142: / | DH142: / | DI142: / | DK142: / | DL142: / | DN142: / | DO142: / | DQ142: / | DR142: / | DT142: / | DU142: / | DW142: / | DX142: / | DZ142: / | EA142: / | EC142: / | ED142: /
A143: 7.4.1 | C143: A | D143: JK 90x210 cm - Leva | E143: one wing 90x210 cm - Left | F143: kom/pcs | G143: =CENA!G134 -> 0 | H143: =J143+M143+P143+S143+AQ143+CJ143+DK143+FD143+V143+Y143+AB143+AE143+AH143+AK143+AN143+AT143+AW143+AZ143+BC143+BF143+BI143+BL143+BO143+BR143+BU143+BX143+CA143+CD143+CG143+CM143+CP143+CS143+CV143+CY143+DB143+DE143+DH143+DN143+DQ143+DT143+DW143+DZ143+EC143+EF143+EI143+EL143+EO143+ER143+EU143+EX143+FA143+FG143+FJ143+FM143+FP143+FS143+FV143+FY143+GB143+GE143+GH143+GK143+GN143+GQ143+GT143+GW143+GZ143+HC143+HF143+HI143+HL143+HO143+HR143+HU143+HX143+IA143+ID143+IG143+IJ143+IM143+IP143+IS143+IV143+IY143+JB143+JE143+JH143+JK143+JN143+JQ143+JT143+JW143+JZ143+KC143+KF143+KI143+KL143+KO143+KR143+KU143+KX143+LA143+LD143+LG143+LJ143+LM143+LP143+LS143+LV143+LY143+MB143+ME143+MH143+MK143+MN143+MQ143+MT143+MW143+MZ143+NC143+NF143+NI143+NL143+NO143+NR143+NU143+NX143+OA143+OD143+OG143+OJ143+OM143+OP143+OS143+OV143+OY143+PB143+PE143+PH143+PK143+PN143+PQ143+PT143+PW143+PZ143+QC143+QF143+QI143+QL143+QO143+QR143+QU143+QX143+RA143+RD143+RG143+RJ143+RM143+RP143+RS143+RV143+RY143+SB143+SE143+SH143+SK143+SN143+SQ143+ST143+SW143+SZ143+TC143+TF143+TI143+TL143+TO143+TR143+TU143+TX143+UA143+UD143+UG143+UJ143+UM143+UP143+US143 -> 1 | I143: =G143*H143 -> 0 | J143: 0 | K143: =$G143*J143 -> 0 | M143: 0 | N143: =$G143*M143 -> 0 | P143: 0 | Q143: =$G143*P143 -> 0 | S143: 0 | T143: =$G143*S143 -> 0 | V143: 0 | W143: =$G143*V143 -> 0 | Y143: 0 | Z143: =$G143*Y143 -> 0 | AB143: 0 | AC143: =$G143*AB143 -> 0 | AE143: 0 | AF143: =$G143*AE143 -> 0 | AH143: 0 | AI143: =$G143*AH143 -> 0 | AK143: 0 | AL143: =$G143*AK143 -> 0 | AN143: 0 | AO143: =$G143*AN143 -> 0 | AQ143: 0 | AR143: =$G143*AQ143 -> 0 | AT143: 0 | AU143: =$G143*AT143 -> 0 | AW143: 1 | AX143: =$G143*AW143 -> 0 | AZ143: 0 | BA143: =$G143*AZ143 -> 0 | BC143: 0 | BD143: =$G143*BC143 -> 0 | BF143: 0 | BG143: =$G143*BF143 -> 0 | BI143: 0 | BJ143: =$G143*BI143 -> 0 | BL143: 0 | BM143: =$G143*BL143 -> 0 | BO143: 0 | BP143: =$G143*BO143 -> 0 | BR143: 0 | BS143: =$G143*BR143 -> 0 | BU143: 0 | BV143: =$G143*BU143 -> 0 | BX143: 0 | BY143: =$G143*BX143 -> 0 | CB143: =$G143*CA143 -> 0 | CD143: 0 | CE143: =$G143*CD143 -> 0 | CG143: 0 | CH143: =$G143*CG143 -> 0 | CJ143: 0 | CK143: =$G143*CJ143 -> 0 | CN143: =$G143*CM143 -> 0 | CP143: 0 | CQ143: =$G143*CP143 -> 0 | CS143: 0 | CT143: =$G143*CS143 -> 0 | CV143: 0 | CW143: =$G143*CV143 -> 0 | CY143: 0 | CZ143: =$G143*CY143 -> 0 | DB143: 0 | DC143: =$G143*DB143 -> 0 | DE143: 0 | DF143: =$G143*DE143 -> 0 | DH143: 0 | DI143: =$G143*DH143 -> 0 | DK143: 0 | DL143: =$G143*DK143 -> 0 | DN143: 0 | DO143: =$G143*DN143 -> 0 | DQ143: 0 | DR143: =$G143*DQ143 -> 0 | DT143: 0 | DU143: =$G143*DT143 -> 0 | DX143: =$G143*DW143 -> 0 | DZ143: 0 | EA143: =$G143*DZ143 -> 0 | EC143: 0 | ED143: =$G143*EC143 -> 0
A144: 7.4.2 | C144: B | D144: JK 90x210 cm - Desna | E144: one wing 90x210 cm - Right | F144: kom/pcs | G144: =CENA!G135 -> 0 | H144: 2 | I144: 0 | J144: 0 | K144: =$G144*J144 -> 0 | M144: 0 | N144: =$G144*M144 -> 0 | P144: 0 | Q144: 0 | S144: 0 | T144: 0 | V144: 0 | W144: =$G144*V144 -> 0 | Y144: 0 | Z144: 0 | AB144: 1 | AC144: =$G144*AB144 -> 0 | AE144: 0 | AF144: =$G144*AE144 -> 0 | AH144: 0 | AI144: =$G144*AH144 -> 0 | AK144: 0 | AL144: =$G144*AK144 -> 0 | AN144: 0 | AO144: =$G144*AN144 -> 0 | AQ144: 0 | AR144: =$G144*AQ144 -> 0 | AT144: 0 | AU144: =$G144*AT144 -> 0 | AW144: 0 | AX144: =$G144*AW144 -> 0 | AZ144: 0 | BA144: =$G144*AZ144 -> 0 | BC144: 0 | BD144: =$G144*BC144 -> 0 | BF144: 0 | BG144: =$G144*BF144 -> 0 | BI144: 0 | BJ144: =$G144*BI144 -> 0 | BL144: 0 | BM144: =$G144*BL144 -> 0 | BO144: 0 | BP144: =$G144*BO144 -> 0 | BR144: 1 | BS144: =$G144*BR144 -> 0 | BU144: 0 | BV144: =$G144*BU144 -> 0 | BX144: 0 | BY144: 0 | CB144: =$G144*CA144 -> 0 | CD144: 0 | CE144: 0 | CG144: 0 | CH144: =$G144*CG144 -> 0 | CJ144: 0 | CK144: =$G144*CJ144 -> 0 | CN144: =$G144*CM144 -> 0 | CP144: 0 | CQ144: =$G144*CP144 -> 0 | CS144: 0 | CT144: =$G144*CS144 -> 0 | CV144: 0 | CW144: =$G144*CV144 -> 0 | CY144: 0 | CZ144: =$G144*CY144 -> 0 | DB144: 0 | DC144: =$G144*DB144 -> 0 | DE144: 0 | DF144: =$G144*DE144 -> 0 | DH144: 0 | DI144: =$G144*DH144 -> 0 | DK144: 0 | DL144: =$G144*DK144 -> 0 | DN144: 0 | DO144: =$G144*DN144 -> 0 | DQ144: 0 | DR144: 0 | DT144: 0 | DU144: 0 | DX144: =$G144*DW144 -> 0 | DZ144: 0 | EA144: 0 | EC144: 0 | ED144: =$G144*EC144 -> 0
A145: 7.4.3 | C145: C | D145: DK 140x210 cm | E145: two wings 140x210 cm | F145: kom/pcs | G145: =CENA!G136 -> 0 | H145: 1 | I145: 0 | J145: 1 | K145: =$G145*J145 -> 0 | M145: 0 | N145: =$G145*M145 -> 0 | P145: 0 | Q145: 0 | S145: 0 | T145: 0 | V145: 0 | W145: =$G145*V145 -> 0 | Y145: 0 | Z145: 0 | AB145: 0 | AC145: =$G145*AB145 -> 0 | AE145: 0 | AF145: =$G145*AE145 -> 0 | AH145: 0 | AI145: =$G145*AH145 -> 0 | AK145: 0 | AL145: =$G145*AK145 -> 0 | AN145: 0 | AO145: =$G145*AN145 -> 0 | AQ145: 0 | AR145: =$G145*AQ145 -> 0 | AT145: 0 | AU145: =$G145*AT145 -> 0 | AW145: 0 | AX145: =$G145*AW145 -> 0 | AZ145: 0 | BA145: =$G145*AZ145 -> 0 | BC145: 0 | BD145: =$G145*BC145 -> 0 | BF145: 0 | BG145: =$G145*BF145 -> 0 | BI145: 0 | BJ145: =$G145*BI145 -> 0 | BL145: 0 | BM145: =$G145*BL145 -> 0 | BO145: 0 | BP145: =$G145*BO145 -> 0 | BR145: 0 | BS145: =$G145*BR145 -> 0 | BU145: 0 | BV145: =$G145*BU145 -> 0 | BX145: 0 | BY145: 0 | CB145: =$G145*CA145 -> 0 | CD145: 0 | CE145: 0 | CG145: 0 | CH145: =$G145*CG145 -> 0 | CJ145: 0 | CK145: =$G145*CJ145 -> 0 | CN145: =$G145*CM145 -> 0 | CP145: 0 | CQ145: =$G145*CP145 -> 0 | CS145: 0 | CT145: =$G145*CS145 -> 0 | CV145: 0 | CW145: =$G145*CV145 -> 0 | CY145: 0 | CZ145: =$G145*CY145 -> 0 | DB145: 0 | DC145: =$G145*DB145 -> 0 | DE145: 0 | DF145: =$G145*DE145 -> 0 | DH145: 0 | DI145: =$G145*DH145 -> 0 | DK145: 0 | DL145: =$G145*DK145 -> 0 | DN145: 0 | DO145: =$G145*DN145 -> 0 | DQ145: 0 | DR145: 0 | DT145: 0 | DU145: 0 | DX145: =$G145*DW145 -> 0 | DZ145: 0 | EA145: 0 | EC145: 0 | ED145: =$G145*EC145 -> 0
A146: 7.5 | B146: S | C146: 5 | D146: Unutrašnja vrata sa ispunom od kartonskog saća (komplet pozicija). širina x visina (spoljna mera futera) | E146: Internal doors filled with cardboard honeycomb (set position) width x height (external measures footer) | F146: / | G146: / | H146: / | I146: / | J146: / | K146: / | M146: / | N146: / | P146: / | Q146: / | S146: / | T146: / | V146: / | W146: / | Y146: / | Z146: / | AB146: / | AC146: / | AE146: / | AF146: / | AH146: / | AI146: / | AK146: / | AL146: / | AN146: / | AO146: / | AQ146: / | AR146: / | AT146: / | AU146: / | AW146: / | AX146: / | AZ146: / | BA146: / | BC146: / | BD146: / | BF146: / | BG146: / | BI146: / | BJ146: / | BL146: / | BM146: / | BO146: / | BP146: / | BR146: / | BS146: / | BU146: / | BV146: / | BX146: / | BY146: / | CA146: / | CB146: / | CD146: / | CE146: / | CG146: / | CH146: / | CJ146: / | CK146: / | CM146: / | CN146: / | CP146: / | CQ146: / | CS146: / | CT146: / | CV146: / | CW146: / | CY146: / | CZ146: / | DB146: / | DC146: / | DE146: / | DF146: / | DH146: / | DI146: / | DK146: / | DL146: / | DN146: / | DO146: / | DQ146: / | DR146: / | DT146: / | DU146: / | DW146: / | DX146: / | DZ146: / | EA146: / | EC146: / | ED146: /
A147: 7.5.1 | C147: A | D147: 70x205 cm - Leva (dubina štoka 0-16 cm) | E147: 70x205 cm - Left (depth door 0-16 cm) | F147: kom/pcs | G147: =CENA!G138 -> 0 | H147: 3 | I147: =G147*H147 -> 0 | J147: 0 | K147: =$G147*J147 -> 0 | M147: 1 | N147: =$G147*M147 -> 0 | P147: 0 | Q147: =$G147*P147 -> 0 | S147: 0 | T147: =$G147*S147 -> 0 | V147: 0 | W147: =$G147*V147 -> 0 | Y147: 0 | Z147: =$G147*Y147 -> 0 | AB147: 0 | AC147: =$G147*AB147 -> 0 | AE147: 0 | AF147: =$G147*AE147 -> 0 | AH147: 0 | AI147: =$G147*AH147 -> 0 | AK147: 0 | AL147: =$G147*AK147 -> 0 | AN147: 0 | AO147: =$G147*AN147 -> 0 | AQ147: 0 | AR147: =$G147*AQ147 -> 0 | AT147: 1 | AU147: =$G147*AT147 -> 0 | AW147: 0 | AX147: =$G147*AW147 -> 0 | AZ147: 0 | BA147: =$G147*AZ147 -> 0 | BC147: 0 | BD147: =$G147*BC147 -> 0 | BF147: 0 | BG147: =$G147*BF147 -> 0 | BI147: 0 | BJ147: =$G147*BI147 -> 0 | BL147: 1 | BM147: =$G147*BL147 -> 0 | BO147: 0 | BP147: =$G147*BO147 -> 0 | BR147: 0 | BS147: =$G147*BR147 -> 0 | BU147: 0 | BV147: =$G147*BU147 -> 0 | BX147: 0 | BY147: =$G147*BX147 -> 0 | CB147: =$G147*CA147 -> 0 | CD147: 0 | CE147: =$G147*CD147 -> 0 | CG147: 0 | CH147: =$G147*CG147 -> 0 | CJ147: 0 | CK147: =$G147*CJ147 -> 0 | CN147: =$G147*CM147 -> 0 | CP147: 0 | CQ147: =$G147*CP147 -> 0 | CS147: 0 | CT147: =$G147*CS147 -> 0 | CV147: 0 | CW147: =$G147*CV147 -> 0 | CY147: 0 | CZ147: =$G147*CY147 -> 0 | DB147: 0 | DC147: =$G147*DB147 -> 0 | DE147: 0 | DF147: =$G147*DE147 -> 0 | DH147: 0 | DI147: =$G147*DH147 -> 0 | DK147: 0 | DL147: =$G147*DK147 -> 0 | DN147: 0 | DO147: =$G147*DN147 -> 0 | DQ147: 0 | DR147: =$G147*DQ147 -> 0 | DT147: 0 | DU147: =$G147*DT147 -> 0 | DX147: =$G147*DW147 -> 0 | DZ147: 0 | EA147: =$G147*DZ147 -> 0 | EC147: 0 | ED147: =$G147*EC147 -> 0
A148: 7.5.2 | C148: B | D148: 70x205 cm - Leva (dubina štoka 16-30 cm) | E148: 70x205 cm - Left (depth door 16-30 cm) | F148: kom/pcs | G148: =CENA!G139 -> 0 | H148: 0 | I148: 0 | J148: 0 | K148: 0 | M148: 0 | N148: 0 | P148: 0 | Q148: 0 | S148: 0 | T148: 0 | V148: 0 | W148: 0 | Y148: 0 | Z148: 0 | AB148: 0 | AC148: 0 | AE148: 0 | AF148: 0 | AH148: 0 | AI148: 0 | AK148: 0 | AL148: 0 | AN148: 0 | AO148: 0 | AQ148: 0 | AR148: 0 | AT148: 0 | AU148: 0 | AW148: 0 | AX148: 0 | AZ148: 0 | BA148: 0 | BC148: 0 | BD148: 0 | BF148: 0 | BG148: 0 | BI148: 0 | BJ148: 0 | BL148: 0 | BM148: 0 | BO148: 0 | BP148: 0 | BR148: 0 | BS148: 0 | BU148: 0 | BV148: 0 | BX148: 0 | BY148: 0 | CB148: 0 | CD148: 0 | CE148: 0 | CG148: 0 | CH148: 0 | CJ148: 0 | CK148: 0 | CN148: 0 | CP148: 0 | CQ148: 0 | CS148: 0 | CT148: 0 | CV148: 0 | CW148: 0 | CY148: 0 | CZ148: 0 | DB148: 0 | DC148: 0 | DE148: 0 | DF148: 0 | DH148: 0 | DI148: 0 | DK148: 0 | DL148: 0 | DN148: 0 | DO148: 0 | DQ148: 0 | DR148: 0 | DT148: 0 | DU148: 0 | DX148: 0 | DZ148: 0 | EA148: 0 | EC148: 0 | ED148: 0
A149: 7.5.3 | C149: C | D149: 70x205 cm - Desna (dubina štoka 0-16 cm) | E149: 70x205 cm - Right (depth door 0-16 cm) | F149: kom/pcs | G149: =CENA!G140 -> 0 | H149: 6 | I149: 0 | J149: 0 | K149: 0 | M149: 0 | N149: 0 | P149: 0 | Q149: 0 | S149: 0 | T149: 0 | V149: 0 | W149: 0 | Y149: 0 | Z149: 0 | AB149: 1 | AC149: 0 | AE149: 0 | AF149: 0 | AH149: 0 | AI149: 0 | AK149: 1 | AL149: 0 | AN149: 0 | AO149: 0 | AQ149: 0 | AR149: 0 | AT149: 0 | AU149: 0 | AW149: 0 | AX149: 0 | AZ149: 0 | BA149: 0 | BC149: 1 | BD149: 0 | BF149: 0 | BG149: 0 | BI149: 0 | BJ149: 0 | BL149: 0 | BM149: 0 | BO149: 0 | BP149: 0 | BR149: 0 | BS149: 0 | BU149: 0 | BV149: 0 | BX149: 0 | BY149: 0 | CB149: 0 | CD149: 0 | CE149: 0 | CG149: 0 | CH149: 0 | CJ149: 0 | CK149: 0 | CN149: 0 | CP149: 0 | CQ149: 0 | CS149: 0 | CT149: 0 | CV149: 0 | CW149: 0 | CY149: 0 | CZ149: 0 | DB149: 0 | DC149: 0 | DE149: 0 | DF149: 0 | DH149: 0 | DI149: 0 | DK149: 0 | DL149: 0 | DN149: 2 | DO149: 0 | DQ149: 1 | DR149: 0 | DT149: 0 | DU149: 0 | DX149: 0 | DZ149: 0 | EA149: 0 | EC149: 0 | ED149: 0
A150: 7.5.4 | C150: D | D150: 70x205 cm - Desna (dubina štoka 16-30 cm) | E150: 70x205 cm - Right (depth door 16-30 cm) | F150: kom/pcs | G150: =CENA!G141 -> 0 | H150: 0 | I150: 0 | J150: 0 | K150: 0 | M150: 0 | N150: 0 | P150: 0 | Q150: 0 | S150: 0 | T150: 0 | V150: 0 | W150: 0 | Y150: 0 | Z150: 0 | AB150: 0 | AC150: 0 | AE150: 0 | AF150: 0 | AH150: 0 | AI150: 0 | AK150: 0 | AL150: 0 | AN150: 0 | AO150: 0 | AQ150: 0 | AR150: 0 | AT150: 0 | AU150: 0 | AW150: 0 | AX150: 0 | AZ150: 0 | BA150: 0 | BC150: 0 | BD150: 0 | BF150: 0 | BG150: 0 | BI150: 0 | BJ150: 0 | BL150: 0 | BM150: 0 | BO150: 0 | BP150: 0 | BR150: 0 | BS150: 0 | BU150: 0 | BV150: 0 | BX150: 0 | BY150: 0 | CB150: 0 | CD150: 0 | CE150: 0 | CG150: 0 | CH150: 0 | CJ150: 0 | CK150: 0 | CN150: 0 | CP150: 0 | CQ150: 0 | CS150: 0 | CT150: 0 | CV150: 0 | CW150: 0 | CY150: 0 | CZ150: 0 | DB150: 0 | DC150: 0 | DE150: 0 | DF150: 0 | DH150: 0 | DI150: 0 | DK150: 0 | DL150: 0 | DN150: 0 | DO150: 0 | DQ150: 0 | DR150: 0 | DT150: 0 | DU150: 0 | DX150: 0 | DZ150: 0 | EA150: 0 | EC150: 0 | ED150: 0
A151: 7.5.5 | C151: E | D151: 80x205 cm - Leva (dubina štoka 0-16 cm) | E151: 80x205 cm - Left (depth door 0-16 cm) | F151: kom/pcs | G151: =CENA!G142 -> 0 | H151: 9 | I151: 0 | J151: 0 | K151: 0 | M151: 1 | N151: 0 | P151: 0 | Q151: 0 | S151: 0 | T151: 0 | V151: 0 | W151: 0 | Y151: 0 | Z151: 0 | AB151: 0 | AC151: 0 | AE151: 0 | AF151: 0 | AH151: 0 | AI151: 0 | AK151: 0 | AL151: 0 | AN151: 2 | AO151: 0 | AQ151: 0 | AR151: 0 | AT151: 0 | AU151: 0 | AW151: 0 | AX151: 0 | AZ151: 0 | BA151: 0 | BC151: 1 | BD151: 0 | BF151: 0 | BG151: 0 | BI151: 0 | BJ151: 0 | BL151: 0 | BM151: 0 | BO151: 0 | BP151: 0 | BR151: 0 | BS151: 0 | BU151: 0 | BV151: 0 | BX151: 0 | BY151: 0 | CB151: 0 | CD151: 3 | CE151: 0 | CG151: 0 | CH151: 0 | CJ151: 0 | CK151: 0 | CN151: 0 | CP151: 0 | CQ151: 0 | CS151: 0 | CT151: 0 | CV151: 1 | CW151: 0 | CY151: 0 | CZ151: 0 | DB151: 0 | DC151: 0 | DE151: 0 | DF151: 0 | DH151: 0 | DI151: 0 | DK151: 0 | DL151: 0 | DN151: 0 | DO151: 0 | DQ151: 0 | DR151: 0 | DT151: 0 | DU151: 0 | DX151: 0 | DZ151: 0 | EA151: 0 | EC151: 1 | ED151: 0
A152: 7.5.6 | C152: F | D152: 80x205 cm - Leva (dubina štoka 16-30 cm) | E152: 80x205 cm - Left (depth door 16-30 cm) | F152: kom/pcs | G152: =CENA!G143 -> 0 | H152: 2 | I152: 0 | J152: 0 | K152: 0 | M152: 0 | N152: 0 | P152: 0 | Q152: 0 | S152: 0 | T152: 0 | V152: 0 | W152: 0 | Y152: 0 | Z152: 0 | AB152: 0 | AC152: 0 | AE152: 0 | AF152: 0 | AH152: 1 | AI152: 0 | AK152: 0 | AL152: 0 | AN152: 0 | AO152: 0 | AQ152: 0 | AR152: 0 | AT152: 0 | AU152: 0 | AW152: 0 | AX152: 0 | AZ152: 0 | BA152: 0 | BC152: 0 | BD152: 0 | BF152: 0 | BG152: 0 | BI152: 0 | BJ152: 0 | BL152: 1 | BM152: 0 | BO152: 0 | BP152: 0 | BR152: 0 | BS152: 0 | BU152: 0 | BV152: 0 | BX152: 0 | BY152: 0 | CB152: 0 | CD152: 0 | CE152: 0 | CG152: 0 | CH152: 0 | CJ152: 0 | CK152: 0 | CN152: 0 | CP152: 0 | CQ152: 0 | CS152: 0 | CT152: 0 | CV152: 0 | CW152: 0 | CY152: 0 | CZ152: 0 | DB152: 0 | DC152: 0 | DE152: 0 | DF152: 0 | DH152: 0 | DI152: 0 | DK152: 0 | DL152: 0 | DN152: 0 | DO152: 0 | DQ152: 0 | DR152: 0 | DT152: 0 | DU152: 0 | DX152: 0 | DZ152: 0 | EA152: 0 | EC152: 0 | ED152: 0
A153: 7.5.7 | C153: G | D153: 80x205 cm - Desna (dubina štoka 0-16 cm) | E153: 80x205 cm - Right (depth door 0-16 cm) | F153: kom/pcs | G153: =CENA!G144 -> 0 | H153: 13 | I153: 0 | J153: 1 | K153: 0 | M153: 0 | N153: 0 | P153: 0 | Q153: 0 | S153: 0 | T153: 0 | V153: 0 | W153: 0 | Y153: 0 | Z153: 0 | AB153: 0 | AC153: 0 | AE153: 0 | AF153: 0 | AH153: 1 | AI153: 0 | AK153: 1 | AL153: 0 | AN153: 1 | AO153: 0 | AQ153: 0 | AR153: 0 | AT153: 0 | AU153: 0 | AW153: 0 | AX153: 0 | AZ153: 0 | BA153: 0 | BC153: 0 | BD153: 0 | BF153: 0 | BG153: 0 | BI153: 0 | BJ153: 0 | BL153: 1 | BM153: 0 | BO153: 0 | BP153: 0 | BR153: 1 | BS153: 0 | BU153: 0 | BV153: 0 | BX153: 2 | BY153: 0 | CA153: 1 | CB153: 0 | CD153: 0 | CE153: 0 | CG153: 0 | CH153: 0 | CJ153: 0 | CK153: 0 | CM153: 1 | CN153: 0 | CP153: 0 | CQ153: 0 | CS153: 0 | CT153: 0 | CV153: 0 | CW153: 0 | CY153: 1 | CZ153: 0 | DB153: 0 | DC153: 0 | DE153: 0 | DF153: 0 | DH153: 0 | DI153: 0 | DK153: 0 | DL153: 0 | DN153: 1 | DO153: 0 | DQ153: 0 | DR153: 0 | DT153: 0 | DU153: 0 | DX153: 0 | DZ153: 0 | EA153: 0 | EC153: 1 | ED153: 0
A154: 7.5.8 | C154: H | D154: 80x205 cm - Desna (dubina štoka 16-30 cm) | E154: 80x205 cm - Right (depth door 16-30 cm) | F154: kom/pcs | G154: =CENA!G145 -> 0 | H154: 0 | I154: 0 | J154: 0 | K154: 0 | M154: 0 | N154: 0 | P154: 0 | Q154: 0 | S154: 0 | T154: 0 | V154: 0 | W154: 0 | Y154: 0 | Z154: 0 | AB154: 0 | AC154: 0 | AE154: 0 | AF154: 0 | AH154: 0 | AI154: 0 | AK154: 0 | AL154: 0 | AN154: 0 | AO154: 0 | AQ154: 0 | AR154: 0 | AT154: 0 | AU154: 0 | AW154: 0 | AX154: 0 | AZ154: 0 | BA154: 0 | BC154: 0 | BD154: 0 | BF154: 0 | BG154: 0 | BI154: 0 | BJ154: 0 | BL154: 0 | BM154: 0 | BO154: 0 | BP154: 0 | BR154: 0 | BS154: 0 | BU154: 0 | BV154: 0 | BX154: 0 | BY154: 0 | CB154: 0 | CD154: 0 | CE154: 0 | CG154: 0 | CH154: 0 | CJ154: 0 | CK154: 0 | CN154: 0 | CP154: 0 | CQ154: 0 | CS154: 0 | CT154: 0 | CV154: 0 | CW154: 0 | CY154: 0 | CZ154: 0 | DB154: 0 | DC154: 0 | DE154: 0 | DF154: 0 | DH154: 0 | DI154: 0 | DK154: 0 | DL154: 0 | DN154: 0 | DO154: 0 | DQ154: 0 | DR154: 0 | DT154: 0 | DU154: 0 | DX154: 0 | DZ154: 0 | EA154: 0 | EC154: 0 | ED154: 0
A155: 7.5.9 | C155: I | D155: 90x205 cm - Leva (dubina štoka 0-16 cm) | E155: 90x205 cm - Left (depth door 0-16 cm) | F155: kom/pcs | G155: =CENA!G146 -> 0 | H155: 21 | I155: 0 | J155: 2 | K155: 0 | M155: 2 | N155: 0 | P155: 1 | Q155: 0 | S155: 0 | T155: 0 | V155: 2 | W155: 0 | Y155: 0 | Z155: 0 | AB155: 1 | AC155: 0 | AE155: 0 | AF155: 0 | AH155: 0 | AI155: 0 | AK155: 0 | AL155: 0 | AN155: 3 | AO155: 0 | AQ155: 0 | AR155: 0 | AT155: 0 | AU155: 0 | AW155: 0 | AX155: 0 | AZ155: 0 | BA155: 0 | BC155: 0 | BD155: 0 | BF155: 0 | BG155: 0 | BI155: 0 | BJ155: 0 | BL155: 1 | BM155: 0 | BO155: 0 | BP155: 0 | BR155: 0 | BS155: 0 | BU155: 1 | BV155: 0 | BX155: 0 | BY155: 0 | CB155: 0 | CD155: 0 | CE155: 0 | CG155: 0 | CH155: 0 | CJ155: 0 | CK155: 0 | CM155: 1 | CN155: 0 | CP155: 0 | CQ155: 0 | CS155: 0 | CT155: 0 | CV155: 0 | CW155: 0 | CY155: 0 | CZ155: 0 | DB155: 0 | DC155: 0 | DE155: 1 | DF155: 0 | DH155: 0 | DI155: 0 | DK155: 0 | DL155: 0 | DN155: 2 | DO155: 0 | DQ155: 1 | DR155: 0 | DT155: 0 | DU155: 0 | DW155: 1 | DX155: 0 | DZ155: 0 | EA155: 0 | EC155: 2 | ED155: 0
A156: 7.5.10 | C156: J | D156: 90x205 cm - Leva (dubina štoka 16-30 cm) | E156: 90x205 cm - Left (depth door 16-30 cm) | F156: kom/pcs | G156: =CENA!G147 -> 0 | H156: 0 | I156: 0 | J156: 0 | K156: 0 | M156: 0 | N156: 0 | P156: 0 | Q156: 0 | S156: 0 | T156: 0 | V156: 0 | W156: 0 | Y156: 0 | Z156: 0 | AB156: 0 | AC156: 0 | AE156: 0 | AF156: 0 | AH156: 0 | AI156: 0 | AK156: 0 | AL156: 0 | AN156: 0 | AO156: 0 | AQ156: 0 | AR156: 0 | AT156: 0 | AU156: 0 | AW156: 0 | AX156: 0 | AZ156: 0 | BA156: 0 | BC156: 0 | BD156: 0 | BF156: 0 | BG156: 0 | BI156: 0 | BJ156: 0 | BL156: 0 | BM156: 0 | BO156: 0 | BP156: 0 | BR156: 0 | BS156: 0 | BU156: 0 | BV156: 0 | BX156: 0 | BY156: 0 | CB156: 0 | CD156: 0 | CE156: 0 | CG156: 0 | CH156: 0 | CJ156: 0 | CK156: 0 | CN156: 0 | CP156: 0 | CQ156: 0 | CS156: 0 | CT156: 0 | CV156: 0 | CW156: 0 | CY156: 0 | CZ156: 0 | DB156: 0 | DC156: 0 | DE156: 0 | DF156: 0 | DH156: 0 | DI156: 0 | DK156: 0 | DL156: 0 | DN156: 0 | DO156: 0 | DQ156: 0 | DR156: 0 | DT156: 0 | DU156: 0 | DX156: 0 | DZ156: 0 | EA156: 0 | EC156: 0 | ED156: 0
A157: 7.5.11 | C157: K | D157: 90x205 cm - Desna (dubina štoka 0-16 cm) | E157: 90x205 cm - Right (depth door 0-16 cm) | F157: kom/pcs | G157: =CENA!G148 -> 0 | H157: 30 | I157: 0 | J157: 2 | K157: 0 | M157: 2 | N157: 0 | P157: 2 | Q157: 0 | S157: 0 | T157: 0 | V157: 1 | W157: 0 | Y157: 0 | Z157: 0 | AB157: 3 | AC157: 0 | AE157: 0 | AF157: 0 | AH157: 2 | AI157: 0 | AK157: 1 | AL157: 0 | AN157: 0 | AO157: 0 | AQ157: 0 | AR157: 0 | AT157: 0 | AU157: 0 | AW157: 0 | AX157: 0 | AZ157: 0 | BA157: 0 | BC157: 0 | BD157: 0 | BF157: 0 | BG157: 0 | BI157: 0 | BJ157: 0 | BL157: 0 | BM157: 0 | BO157: 0 | BP157: 0 | BR157: 0 | BS157: 0 | BU157: 3 | BV157: 0 | BX157: 0 | BY157: 0 | CB157: 0 | CD157: 0 | CE157: 0 | CG157: 0 | CH157: 0 | CJ157: 0 | CK157: 0 | CM157: 1 | CN157: 0 | CP157: 0 | CQ157: 0 | CS157: 0 | CT157: 0 | CV157: 2 | CW157: 0 | CY157: 3 | CZ157: 0 | DB157: 0 | DC157: 0 | DE157: 1 | DF157: 0 | DH157: 0 | DI157: 0 | DK157: 0 | DL157: 0 | DN157: 1 | DO157: 0 | DQ157: 2 | DR157: 0 | DT157: 0 | DU157: 0 | DW157: 2 | DX157: 0 | DZ157: 0 | EA157: 0 | EC157: 2 | ED157: 0
A158: 7.5.12 | C158: L | D158: 90x205 cm - Desna (dubina štoka 16-30 cm) | E158: 90x205 cm - Right (depth door 16-30 cm) | F158: kom/pcs | G158: =CENA!G149 -> 0 | H158: 0 | I158: 0 | J158: 0 | K158: 0 | M158: 0 | N158: 0 | P158: 0 | Q158: 0 | S158: 0 | T158: 0 | V158: 0 | W158: 0 | Y158: 0 | Z158: 0 | AB158: 0 | AC158: 0 | AE158: 0 | AF158: 0 | AH158: 0 | AI158: 0 | AK158: 0 | AL158: 0 | AN158: 0 | AO158: 0 | AQ158: 0 | AR158: 0 | AT158: 0 | AU158: 0 | AW158: 0 | AX158: 0 | AZ158: 0 | BA158: 0 | BC158: 0 | BD158: 0 | BF158: 0 | BG158: 0 | BI158: 0 | BJ158: 0 | BL158: 0 | BM158: 0 | BO158: 0 | BP158: 0 | BR158: 0 | BS158: 0 | BU158: 0 | BV158: 0 | BX158: 0 | BY158: 0 | CB158: 0 | CD158: 0 | CE158: 0 | CG158: 0 | CH158: 0 | CJ158: 0 | CK158: 0 | CN158: 0 | CP158: 0 | CQ158: 0 | CS158: 0 | CT158: 0 | CV158: 0 | CW158: 0 | CY158: 0 | CZ158: 0 | DB158: 0 | DC158: 0 | DE158: 0 | DF158: 0 | DH158: 0 | DI158: 0 | DK158: 0 | DL158: 0 | DN158: 0 | DO158: 0 | DQ158: 0 | DR158: 0 | DT158: 0 | DU158: 0 | DX158: 0 | DZ158: 0 | EA158: 0 | EC158: 0 | ED158: 0
A160: 8 | B160: D | D160: OSTALA OPREMA I MATERIJAL | E160: OTHER EQUIPMENT AND SUPPLIES
A161: 8.1 | B161: D | C161: 1 | D161: Jednostruki dimnjak prečnika Ф 140 mm. Troslojni montažni dimnjački sistem namenjen za sva ložišta i sve vrste goriva, bez ventilacije. Sastavljen je od: dimnjačke cevi od tehničke keramike, izolacije oko cevi dimnjaka od kamene vune minimalne specifične težine 80kg/m3, spoljneg dimnjačkog plašta od lakog betona, vatrostalnog lepka u kartušama, vatrootpornih i gasnonepropusnih atestiranih troslojnih vratanaca , kondenz posude, priključaka za reviziju i ložišta, krovne ploče od staklo betona, nosača tervola i tvrdih tervol ploča za priključke, ventilacione rešetke, dilatacione rozete od nerđajućeg čelika. Spoljna dimenzija dimnjačkog plašta za fi14cm=32x32cm. | E161: A single chimney diameter 140 mm. Three-layer prefabricated chimney system designed for all furnaces and all types of fuel, with no ventilation. It is composed of: chimney pipe of technical ceramics, pipe insulation around the chimney of stone wool minimum specific weight of 80kg/m3, external chimney mantle of lightweight concrete, refractory adhesive in cartouches, fireproof and gas impermeable certified three-layer side door, condensate pots, connectors for the audit and furnaces, roof tiles of glass concrete girders Tervola and hard tervol plate connections, ventilation grilles, rosettes expansion of stainless steel. The external dimensions of the chimney sleeve fi14cm = 32x32cm. | F161: m1 | G161: =CENA!G152 -> 0 | H161: =J161+M161+P161+S161+AQ161+CJ161+DK161+FD161+V161+Y161+AB161+AE161+AH161+AK161+AN161+AT161+AW161+AZ161+BC161+BF161+BI161+BL161+BO161+BR161+BU161+BX161+CA161+CD161+CG161+CM161+CP161+CS161+CV161+CY161+DB161+DE161+DH161+DN161+DQ161+DT161+DW161+DZ161+EC161+EF161+EI161+EL161+EO161+ER161+EU161+EX161+FA161+FG161+FJ161+FM161+FP161+FS161+FV161+FY161+GB161+GE161+GH161+GK161+GN161+GQ161+GT161+GW161+GZ161+HC161+HF161+HI161+HL161+HO161+HR161+HU161+HX161+IA161+ID161+IG161+IJ161+IM161+IP161+IS161+IV161+IY161+JB161+JE161+JH161+JK161+JN161+JQ161+JT161+JW161+JZ161+KC161+KF161+KI161+KL161+KO161+KR161+KU161+KX161+LA161+LD161+LG161+LJ161+LM161+LP161+LS161+LV161+LY161+MB161+ME161+MH161+MK161+MN161+MQ161+MT161+MW161+MZ161+NC161+NF161+NI161+NL161+NO161+NR161+NU161+NX161+OA161+OD161+OG161+OJ161+OM161+OP161+OS161+OV161+OY161+PB161+PE161+PH161+PK161+PN161+PQ161+PT161+PW161+PZ161+QC161+QF161+QI161+QL161+QO161+QR161+QU161+QX161+RA161+RD161+RG161+RJ161+RM161+RP161+RS161+RV161+RY161+SB161+SE161+SH161+SK161+SN161+SQ161+ST161+SW161+SZ161+TC161+TF161+TI161+TL161+TO161+TR161+TU161+TX161+UA161+UD161+UG161+UJ161+UM161+UP161+US161 -> 115 | I161: =G161*H161 -> 0 | J161: 0 | K161: =$G161*J161 -> 0 | M161: 8 | N161: =$G161*M161 -> 0 | P161: 0 | Q161: =$G161*P161 -> 0 | S161: 0 | T161: =$G161*S161 -> 0 | V161: 7 | W161: =$G161*V161 -> 0 | Y161: 8 | Z161: =$G161*Y161 -> 0 | AB161: 0 | AC161: =$G161*AB161 -> 0 | AE161: 8 | AF161: =$G161*AE161 -> 0 | AH161: 5 | AI161: =$G161*AH161 -> 0 | AK161: 0 | AL161: =$G161*AK161 -> 0 | AN161: 8 | AO161: =$G161*AN161 -> 0 | AQ161: 0 | AR161: =$G161*AQ161 -> 0 | AT161: 0 | AU161: =$G161*AT161 -> 0 | AW161: 0 | AX161: =$G161*AW161 -> 0 | AZ161: 0 | BA161: =$G161*AZ161 -> 0 | BC161: 0 | BD161: =$G161*BC161 -> 0 | BF161: 8 | BG161: =$G161*BF161 -> 0 | BI161: 8 | BJ161: =$G161*BI161 -> 0 | BL161: 0 | BM161: =$G161*BL161 -> 0 | BO161: 8 | BP161: =$G161*BO161 -> 0 | BR161: 0 | BS161: =$G161*BR161 -> 0 | BU161: 7 | BV161: =$G161*BU161 -> 0 | BX161: 0 | BY161: =$G161*BX161 -> 0 | CA161: 8 | CB161: =$G161*CA161 -> 0 | CD161: 0 | CE161: =$G161*CD161 -> 0 | CG161: 0 | CH161: =$G161*CG161 -> 0 | CJ161: 0 | CK161: =$G161*CJ161 -> 0 | CM161: 8 | CN161: =$G161*CM161 -> 0 | CP161: 0 | CQ161: =$G161*CP161 -> 0 | CS161: 0 | CT161: =$G161*CS161 -> 0 | CV161: 0 | CW161: =$G161*CV161 -> 0 | CY161: 0 | CZ161: =$G161*CY161 -> 0 | DB161: 8 | DC161: =$G161*DB161 -> 0 | DE161: 0 | DF161: =$G161*DE161 -> 0 | DH161: 8 | DI161: =$G161*DH161 -> 0 | DK161: 0 | DL161: =$G161*DK161 -> 0 | DN161: 0 | DO161: =$G161*DN161 -> 0 | DQ161: 0 | DR161: =$G161*DQ161 -> 0 | DT161: 0 | DU161: =$G161*DT161 -> 0 | DW161: 8 | DX161: =$G161*DW161 -> 0 | DZ161: 0 | EA161: =$G161*DZ161 -> 0 | EC161: 0 | ED161: =$G161*EC161 -> 0
A163: 9 | B163: V | D163: Vodovod Kanalizacija Oprema | E163: WATER SUPPLY AND SEWAGE
D164: Vodovod | E164: WATER SUPPLY
A165: 9.1 | B165: V | C165: 1 | D165: Vodovodne polietilenske cevi PE 100 PN16 za radni pritisak 16 bara (SDR 11) | E165: Water supply polyethylene pipe PE 100 PN16 the working pressure of 16 bar (SDR 11) | F165: / | G165: / | H165: / | I165: / | J165: / | K165: / | M165: / | N165: / | P165: / | Q165: / | S165: / | T165: / | V165: / | W165: / | Y165: / | Z165: / | AB165: / | AC165: / | AE165: / | AF165: / | AH165: / | AI165: / | AK165: / | AL165: / | AN165: / | AO165: / | AQ165: / | AR165: / | AT165: / | AU165: / | AW165: / | AX165: / | AZ165: / | BA165: / | BC165: / | BD165: / | BF165: / | BG165: / | BI165: / | BJ165: / | BL165: / | BM165: / | BO165: / | BP165: / | BR165: / | BS165: / | BU165: / | BV165: / | BX165: / | BY165: / | CA165: / | CB165: / | CD165: / | CE165: / | CG165: / | CH165: / | CJ165: / | CK165: / | CM165: / | CN165: / | CP165: / | CQ165: / | CS165: / | CT165: / | CV165: / | CW165: / | CY165: / | CZ165: / | DB165: / | DC165: / | DE165: / | DF165: / | DH165: / | DI165: / | DK165: / | DL165: / | DN165: / | DO165: / | DQ165: / | DR165: / | DT165: / | DU165: / | DW165: / | DX165: / | DZ165: / | EA165: / | EC165: / | ED165: /
A166: 9.1.1 | C166: A | D166: d25 (s min. 2,3) - 3/4" | E166: d25 (s min. 2,3) - 3/4" | F166: m1 | G166: =CENA!G157 -> 0 | H166: =J166+M166+P166+S166+AQ166+CJ166+DK166+FD166+V166+Y166+AB166+AE166+AH166+AK166+AN166+AT166+AW166+AZ166+BC166+BF166+BI166+BL166+BO166+BR166+BU166+BX166+CA166+CD166+CG166+CM166+CP166+CS166+CV166+CY166+DB166+DE166+DH166+DN166+DQ166+DT166+DW166+DZ166+EC166+EF166+EI166+EL166+EO166+ER166+EU166+EX166+FA166+FG166+FJ166+FM166+FP166+FS166+FV166+FY166+GB166+GE166+GH166+GK166+GN166+GQ166+GT166+GW166+GZ166+HC166+HF166+HI166+HL166+HO166+HR166+HU166+HX166+IA166+ID166+IG166+IJ166+IM166+IP166+IS166+IV166+IY166+JB166+JE166+JH166+JK166+JN166+JQ166+JT166+JW166+JZ166+KC166+KF166+KI166+KL166+KO166+KR166+KU166+KX166+LA166+LD166+LG166+LJ166+LM166+LP166+LS166+LV166+LY166+MB166+ME166+MH166+MK166+MN166+MQ166+MT166+MW166+MZ166+NC166+NF166+NI166+NL166+NO166+NR166+NU166+NX166+OA166+OD166+OG166+OJ166+OM166+OP166+OS166+OV166+OY166+PB166+PE166+PH166+PK166+PN166+PQ166+PT166+PW166+PZ166+QC166+QF166+QI166+QL166+QO166+QR166+QU166+QX166+RA166+RD166+RG166+RJ166+RM166+RP166+RS166+RV166+RY166+SB166+SE166+SH166+SK166+SN166+SQ166+ST166+SW166+SZ166+TC166+TF166+TI166+TL166+TO166+TR166+TU166+TX166+UA166+UD166+UG166+UJ166+UM166+UP166+US166 -> 0 | I166: =G166*H166 -> 0 | J166: 0 | K166: =$G166*J166 -> 0 | M166: 0 | N166: =$G166*M166 -> 0 | P166: 0 | Q166: =$G166*P166 -> 0 | S166: 0 | T166: =$G166*S166 -> 0 | V166: 0 | W166: =$G166*V166 -> 0 | Y166: 0 | Z166: =$G166*Y166 -> 0 | AB166: 0 | AC166: =$G166*AB166 -> 0 | AE166: 0 | AF166: =$G166*AE166 -> 0 | AH166: 0 | AI166: =$G166*AH166 -> 0 | AK166: 0 | AL166: =$G166*AK166 -> 0 | AN166: 0 | AO166: =$G166*AN166 -> 0 | AQ166: 0 | AR166: =$G166*AQ166 -> 0 | AT166: 0 | AU166: =$G166*AT166 -> 0 | AW166: 0 | AX166: =$G166*AW166 -> 0 | AZ166: 0 | BA166: =$G166*AZ166 -> 0 | BC166: 0 | BD166: =$G166*BC166 -> 0 | BF166: 0 | BG166: =$G166*BF166 -> 0 | BI166: 0 | BJ166: =$G166*BI166 -> 0 | BL166: 0 | BM166: =$G166*BL166 -> 0 | BO166: 0 | BP166: =$G166*BO166 -> 0 | BR166: 0 | BS166: =$G166*BR166 -> 0 | BU166: 0 | BV166: =$G166*BU166 -> 0 | BX166: 0 | BY166: =$G166*BX166 -> 0 | CB166: =$G166*CA166 -> 0 | CD166: 0 | CE166: =$G166*CD166 -> 0 | CG166: 0 | CH166: =$G166*CG166 -> 0 | CJ166: 0 | CK166: =$G166*CJ166 -> 0 | CN166: =$G166*CM166 -> 0 | CP166: 0 | CQ166: =$G166*CP166 -> 0 | CS166: 0 | CT166: =$G166*CS166 -> 0 | CV166: 0 | CW166: =$G166*CV166 -> 0 | CY166: 0 | CZ166: =$G166*CY166 -> 0 | DB166: 0 | DC166: =$G166*DB166 -> 0 | DE166: 0 | DF166: =$G166*DE166 -> 0 | DH166: 0 | DI166: =$G166*DH166 -> 0 | DK166: 0 | DL166: =$G166*DK166 -> 0 | DN166: 0 | DO166: =$G166*DN166 -> 0 | DQ166: 0 | DR166: =$G166*DQ166 -> 0 | DT166: 0 | DU166: =$G166*DT166 -> 0 | DX166: =$G166*DW166 -> 0 | DZ166: 0 | EA166: =$G166*DZ166 -> 0 | EC166: 0 | ED166: =$G166*EC166 -> 0
A167: 9.1.2 | C167: B | D167: d32 (s min. 3,0) - 1" | E167: d32 (s min. 3,0) - 1" | F167: m1 | G167: =CENA!G158 -> 0 | H167: 0 | I167: 0 | J167: 0 | K167: =$G167*J167 -> 0 | M167: 0 | N167: =$G167*M167 -> 0 | P167: 0 | Q167: 0 | S167: 0 | T167: 0 | V167: 0 | W167: =$G167*V167 -> 0 | Y167: 0 | Z167: =$G167*Y167 -> 0 | AB167: 0 | AC167: =$G167*AB167 -> 0 | AE167: 0 | AF167: =$G167*AE167 -> 0 | AH167: 0 | AI167: =$G167*AH167 -> 0 | AK167: 0 | AL167: =$G167*AK167 -> 0 | AN167: 0 | AO167: =$G167*AN167 -> 0 | AQ167: 0 | AR167: =$G167*AQ167 -> 0 | AT167: 0 | AU167: =$G167*AT167 -> 0 | AW167: 0 | AX167: =$G167*AW167 -> 0 | AZ167: 0 | BA167: =$G167*AZ167 -> 0 | BC167: 0 | BD167: =$G167*BC167 -> 0 | BF167: 0 | BG167: =$G167*BF167 -> 0 | BI167: 0 | BJ167: =$G167*BI167 -> 0 | BL167: 0 | BM167: =$G167*BL167 -> 0 | BO167: 0 | BP167: =$G167*BO167 -> 0 | BR167: 0 | BS167: =$G167*BR167 -> 0 | BU167: 0 | BV167: =$G167*BU167 -> 0 | BX167: 0 | BY167: 0 | CB167: =$G167*CA167 -> 0 | CD167: 0 | CE167: =$G167*CD167 -> 0 | CG167: 0 | CH167: =$G167*CG167 -> 0 | CJ167: 0 | CK167: =$G167*CJ167 -> 0 | CN167: =$G167*CM167 -> 0 | CP167: 0 | CQ167: =$G167*CP167 -> 0 | CS167: 0 | CT167: =$G167*CS167 -> 0 | CV167: 0 | CW167: =$G167*CV167 -> 0 | CY167: 0 | CZ167: =$G167*CY167 -> 0 | DB167: 0 | DC167: =$G167*DB167 -> 0 | DE167: 0 | DF167: =$G167*DE167 -> 0 | DH167: 0 | DI167: =$G167*DH167 -> 0 | DK167: 0 | DL167: =$G167*DK167 -> 0 | DN167: 0 | DO167: =$G167*DN167 -> 0 | DQ167: 0 | DR167: 0 | DT167: 0 | DU167: 0 | DX167: =$G167*DW167 -> 0 | DZ167: 0 | EA167: =$G167*DZ167 -> 0 | EC167: 0 | ED167: =$G167*EC167 -> 0
A168: 9.1.3 | C168: C | D168: d40 (s min. 3,7) - 5/4" | E168: d40 (s min. 3,7) - 5/4" | F168: m1 | G168: =CENA!G159 -> 0 | H168: 0 | I168: 0 | J168: 0 | K168: =$G168*J168 -> 0 | M168: 0 | N168: =$G168*M168 -> 0 | P168: 0 | Q168: 0 | S168: 0 | T168: 0 | V168: 0 | W168: =$G168*V168 -> 0 | Y168: 0 | Z168: =$G168*Y168 -> 0 | AB168: 0 | AC168: =$G168*AB168 -> 0 | AE168: 0 | AF168: =$G168*AE168 -> 0 | AH168: 0 | AI168: =$G168*AH168 -> 0 | AK168: 0 | AL168: =$G168*AK168 -> 0 | AN168: 0 | AO168: =$G168*AN168 -> 0 | AQ168: 0 | AR168: =$G168*AQ168 -> 0 | AT168: 0 | AU168: =$G168*AT168 -> 0 | AW168: 0 | AX168: =$G168*AW168 -> 0 | AZ168: 0 | BA168: =$G168*AZ168 -> 0 | BC168: 0 | BD168: =$G168*BC168 -> 0 | BF168: 0 | BG168: =$G168*BF168 -> 0 | BI168: 0 | BJ168: =$G168*BI168 -> 0 | BL168: 0 | BM168: =$G168*BL168 -> 0 | BO168: 0 | BP168: =$G168*BO168 -> 0 | BR168: 0 | BS168: =$G168*BR168 -> 0 | BU168: 0 | BV168: =$G168*BU168 -> 0 | BX168: 0 | BY168: 0 | CB168: =$G168*CA168 -> 0 | CD168: 0 | CE168: =$G168*CD168 -> 0 | CG168: 0 | CH168: =$G168*CG168 -> 0 | CJ168: 0 | CK168: =$G168*CJ168 -> 0 | CN168: =$G168*CM168 -> 0 | CP168: 0 | CQ168: =$G168*CP168 -> 0 | CS168: 0 | CT168: =$G168*CS168 -> 0 | CV168: 0 | CW168: =$G168*CV168 -> 0 | CY168: 0 | CZ168: =$G168*CY168 -> 0 | DB168: 0 | DC168: =$G168*DB168 -> 0 | DE168: 0 | DF168: =$G168*DE168 -> 0 | DH168: 0 | DI168: =$G168*DH168 -> 0 | DK168: 0 | DL168: =$G168*DK168 -> 0 | DN168: 0 | DO168: =$G168*DN168 -> 0 | DQ168: 0 | DR168: 0 | DT168: 0 | DU168: 0 | DX168: =$G168*DW168 -> 0 | DZ168: 0 | EA168: =$G168*DZ168 -> 0 | EC168: 0 | ED168: =$G168*EC168 -> 0
A169: 9.2 | B169: V | C169: 2 | D169: Vodovodne cevi PP-R 80 PN20 za radni pritisak 20 bara, bele ili zelene boje (materijal: polipropilen-random kapolimer) | E169: Water pipe PP-R 80 PN20 the working pressure of 20 bar, white or green (material: polypropylene random kapolimer) | F169: / | G169: / | H169: / | I169: / | J169: / | K169: / | M169: / | N169: / | P169: / | Q169: / | S169: / | T169: / | V169: / | W169: / | Y169: / | Z169: / | AB169: / | AC169: / | AE169: / | AF169: / | AH169: / | AI169: / | AK169: / | AL169: / | AN169: / | AO169: / | AQ169: / | AR169: / | AT169: / | AU169: / | AW169: / | AX169: / | AZ169: / | BA169: / | BC169: / | BD169: / | BF169: / | BG169: / | BI169: / | BJ169: / | BL169: / | BM169: / | BO169: / | BP169: / | BR169: / | BS169: / | BU169: / | BV169: / | BX169: / | BY169: / | CA169: / | CB169: / | CD169: / | CE169: / | CG169: / | CH169: / | CJ169: / | CK169: / | CM169: / | CN169: / | CP169: / | CQ169: / | CS169: / | CT169: / | CV169: / | CW169: / | CY169: / | CZ169: / | DB169: / | DC169: / | DE169: / | DF169: / | DH169: / | DI169: / | DK169: / | DL169: / | DN169: / | DO169: / | DQ169: / | DR169: / | DT169: / | DU169: / | DW169: / | DX169: / | DZ169: / | EA169: / | EC169: / | ED169: /
A170: 9.2.1 | C170: B | D170: d20 (s min. 3,4) - 1/2" | E170: d20 (s min. 3,4) - 1/2" | F170: m1 | G170: =CENA!G161 -> 0 | H170: =J170+M170+P170+S170+AQ170+CJ170+DK170+FD170+V170+Y170+AB170+AE170+AH170+AK170+AN170+AT170+AW170+AZ170+BC170+BF170+BI170+BL170+BO170+BR170+BU170+BX170+CA170+CD170+CG170+CM170+CP170+CS170+CV170+CY170+DB170+DE170+DH170+DN170+DQ170+DT170+DW170+DZ170+EC170+EF170+EI170+EL170+EO170+ER170+EU170+EX170+FA170+FG170+FJ170+FM170+FP170+FS170+FV170+FY170+GB170+GE170+GH170+GK170+GN170+GQ170+GT170+GW170+GZ170+HC170+HF170+HI170+HL170+HO170+HR170+HU170+HX170+IA170+ID170+IG170+IJ170+IM170+IP170+IS170+IV170+IY170+JB170+JE170+JH170+JK170+JN170+JQ170+JT170+JW170+JZ170+KC170+KF170+KI170+KL170+KO170+KR170+KU170+KX170+LA170+LD170+LG170+LJ170+LM170+LP170+LS170+LV170+LY170+MB170+ME170+MH170+MK170+MN170+MQ170+MT170+MW170+MZ170+NC170+NF170+NI170+NL170+NO170+NR170+NU170+NX170+OA170+OD170+OG170+OJ170+OM170+OP170+OS170+OV170+OY170+PB170+PE170+PH170+PK170+PN170+PQ170+PT170+PW170+PZ170+QC170+QF170+QI170+QL170+QO170+QR170+QU170+QX170+RA170+RD170+RG170+RJ170+RM170+RP170+RS170+RV170+RY170+SB170+SE170+SH170+SK170+SN170+SQ170+ST170+SW170+SZ170+TC170+TF170+TI170+TL170+TO170+TR170+TU170+TX170+UA170+UD170+UG170+UJ170+UM170+UP170+US170 -> 1188 | I170: =G170*H170 -> 0 | J170: 36 | K170: =$G170*J170 -> 0 | M170: 0 | N170: =$G170*M170 -> 0 | P170: 36 | Q170: =$G170*P170 -> 0 | S170: 36 | T170: =$G170*S170 -> 0 | V170: 36 | W170: =$G170*V170 -> 0 | Y170: 36 | Z170: =$G170*Y170 -> 0 | AB170: 36 | AC170: =$G170*AB170 -> 0 | AE170: 0 | AF170: =$G170*AE170 -> 0 | AH170: 36 | AI170: =$G170*AH170 -> 0 | AK170: 36 | AL170: =$G170*AK170 -> 0 | AN170: 36 | AO170: =$G170*AN170 -> 0 | AQ170: 36 | AR170: =$G170*AQ170 -> 0 | AT170: 36 | AU170: =$G170*AT170 -> 0 | AW170: 36 | AX170: =$G170*AW170 -> 0 | AZ170: 0 | BA170: =$G170*AZ170 -> 0 | BC170: 36 | BD170: =$G170*BC170 -> 0 | BF170: 36 | BG170: =$G170*BF170 -> 0 | BI170: 36 | BJ170: =$G170*BI170 -> 0 | BL170: 36 | BM170: =$G170*BL170 -> 0 | BO170: 36 | BP170: =$G170*BO170 -> 0 | BR170: 0 | BS170: =$G170*BR170 -> 0 | BU170: 36 | BV170: =$G170*BU170 -> 0 | BX170: 36 | BY170: =$G170*BX170 -> 0 | CA170: 36 | CB170: =$G170*CA170 -> 0 | CD170: 36 | CE170: =$G170*CD170 -> 0 | CG170: 36 | CH170: =$G170*CG170 -> 0 | CJ170: 36 | CK170: =$G170*CJ170 -> 0 | CM170: 36 | CN170: =$G170*CM170 -> 0 | CP170: 36 | CQ170: =$G170*CP170 -> 0 | CS170: 0 | CT170: =$G170*CS170 -> 0 | CV170: 0 | CW170: =$G170*CV170 -> 0 | CY170: 36 | CZ170: =$G170*CY170 -> 0 | DB170: 0 | DC170: =$G170*DB170 -> 0 | DE170: 36 | DF170: =$G170*DE170 -> 0 | DH170: 36 | DI170: =$G170*DH170 -> 0 | DK170: 0 | DL170: =$G170*DK170 -> 0 | DN170: 36 | DO170: =$G170*DN170 -> 0 | DQ170: 36 | DR170: =$G170*DQ170 -> 0 | DT170: 36 | DU170: =$G170*DT170 -> 0 | DW170: 36 | DX170: =$G170*DW170 -> 0 | DZ170: 0 | EA170: =$G170*DZ170 -> 0 | EC170: 36 | ED170: =$G170*EC170 -> 0
A171: 9.2.2 | C171: C | D171: d25 (s min. 4,2) - 3/4" | E171: d25 (s min. 4,2) - 3/4" | F171: m1 | G171: =CENA!G162 -> 0 | H171: 396 | I171: 0 | J171: 12 | K171: =$G171*J171 -> 0 | M171: 0 | N171: =$G171*M171 -> 0 | P171: 12 | Q171: 0 | S171: 12 | T171: 0 | V171: 12 | W171: =$G171*V171 -> 0 | Y171: 12 | Z171: =$G171*Y171 -> 0 | AB171: 12 | AC171: =$G171*AB171 -> 0 | AE171: 0 | AF171: =$G171*AE171 -> 0 | AH171: 12 | AI171: =$G171*AH171 -> 0 | AK171: 12 | AL171: =$G171*AK171 -> 0 | AN171: 12 | AO171: =$G171*AN171 -> 0 | AQ171: 12 | AR171: =$G171*AQ171 -> 0 | AT171: 12 | AU171: =$G171*AT171 -> 0 | AW171: 12 | AX171: =$G171*AW171 -> 0 | AZ171: 0 | BA171: =$G171*AZ171 -> 0 | BC171: 12 | BD171: =$G171*BC171 -> 0 | BF171: 12 | BG171: =$G171*BF171 -> 0 | BI171: 12 | BJ171: =$G171*BI171 -> 0 | BL171: 12 | BM171: =$G171*BL171 -> 0 | BO171: 12 | BP171: =$G171*BO171 -> 0 | BR171: 0 | BS171: =$G171*BR171 -> 0 | BU171: 12 | BV171: =$G171*BU171 -> 0 | BX171: 12 | BY171: 0 | CA171: 12 | CB171: =$G171*CA171 -> 0 | CD171: 12 | CE171: =$G171*CD171 -> 0 | CG171: 12 | CH171: =$G171*CG171 -> 0 | CJ171: 12 | CK171: =$G171*CJ171 -> 0 | CM171: 12 | CN171: =$G171*CM171 -> 0 | CP171: 12 | CQ171: =$G171*CP171 -> 0 | CS171: 0 | CT171: =$G171*CS171 -> 0 | CV171: 0 | CW171: =$G171*CV171 -> 0 | CY171: 12 | CZ171: =$G171*CY171 -> 0 | DB171: 0 | DC171: =$G171*DB171 -> 0 | DE171: 12 | DF171: =$G171*DE171 -> 0 | DH171: 12 | DI171: =$G171*DH171 -> 0 | DK171: 0 | DL171: =$G171*DK171 -> 0 | DN171: 12 | DO171: =$G171*DN171 -> 0 | DQ171: 12 | DR171: 0 | DT171: 12 | DU171: 0 | DW171: 12 | DX171: =$G171*DW171 -> 0 | DZ171: 0 | EA171: =$G171*DZ171 -> 0 | EC171: 12 | ED171: =$G171*EC171 -> 0
A172: 9.2.3 | C172: D | D172: d32 (s min. 5,4) - 1" | E172: d32 (s min. 5,4) - 1" | F172: m1 | G172: =CENA!G163 -> 0 | H172: 0 | I172: 0 | J172: 0 | K172: =$G172*J172 -> 0 | M172: 0 | N172: =$G172*M172 -> 0 | P172: 0 | Q172: 0 | S172: 0 | T172: 0 | V172: 0 | W172: =$G172*V172 -> 0 | Y172: 0 | Z172: =$G172*Y172 -> 0 | AB172: 0 | AC172: =$G172*AB172 -> 0 | AE172: 0 | AF172: =$G172*AE172 -> 0 | AH172: 0 | AI172: =$G172*AH172 -> 0 | AK172: 0 | AL172: =$G172*AK172 -> 0 | AN172: 0 | AO172: =$G172*AN172 -> 0 | AQ172: 0 | AR172: =$G172*AQ172 -> 0 | AT172: 0 | AU172: =$G172*AT172 -> 0 | AW172: 0 | AX172: =$G172*AW172 -> 0 | AZ172: 0 | BA172: =$G172*AZ172 -> 0 | BC172: 0 | BD172: =$G172*BC172 -> 0 | BF172: 0 | BG172: =$G172*BF172 -> 0 | BI172: 0 | BJ172: =$G172*BI172 -> 0 | BL172: 0 | BM172: =$G172*BL172 -> 0 | BO172: 0 | BP172: =$G172*BO172 -> 0 | BR172: 0 | BS172: =$G172*BR172 -> 0 | BU172: 0 | BV172: =$G172*BU172 -> 0 | BX172: 0 | BY172: 0 | CB172: =$G172*CA172 -> 0 | CD172: 0 | CE172: =$G172*CD172 -> 0 | CG172: 0 | CH172: =$G172*CG172 -> 0 | CJ172: 0 | CK172: =$G172*CJ172 -> 0 | CN172: =$G172*CM172 -> 0 | CP172: 0 | CQ172: =$G172*CP172 -> 0 | CS172: 0 | CT172: =$G172*CS172 -> 0 | CV172: 0 | CW172: =$G172*CV172 -> 0 | CY172: 0 | CZ172: =$G172*CY172 -> 0 | DB172: 0 | DC172: =$G172*DB172 -> 0 | DE172: 0 | DF172: =$G172*DE172 -> 0 | DH172: 0 | DI172: =$G172*DH172 -> 0 | DK172: 0 | DL172: =$G172*DK172 -> 0 | DN172: 0 | DO172: =$G172*DN172 -> 0 | DQ172: 0 | DR172: 0 | DT172: 0 | DU172: 0 | DX172: =$G172*DW172 -> 0 | DZ172: 0 | EA172: =$G172*DZ172 -> 0 | EC172: 0 | ED172: =$G172*EC172 -> 0
A173: 9.3 | B173: V | C173: 3 | D173: Vodomer sa prirubnicama, holenderima i pripadajućom opremom za montažu, za pritisak do 16 bara | E173: water gauge flanges, unions and associated equipment for assembly, for pressure up to 16 bar | F173: / | G173: / | H173: / | I173: / | J173: / | K173: / | M173: / | N173: / | P173: / | Q173: / | S173: / | T173: / | V173: / | W173: / | Y173: / | Z173: / | AB173: / | AC173: / | AE173: / | AF173: / | AH173: / | AI173: / | AK173: / | AL173: / | AN173: / | AO173: / | AQ173: / | AR173: / | AT173: / | AU173: / | AW173: / | AX173: / | AZ173: / | BA173: / | BC173: / | BD173: / | BF173: / | BG173: / | BI173: / | BJ173: / | BL173: / | BM173: / | BO173: / | BP173: / | BR173: / | BS173: / | BU173: / | BV173: / | BX173: / | BY173: / | CA173: / | CB173: / | CD173: / | CE173: / | CG173: / | CH173: / | CJ173: / | CK173: / | CM173: / | CN173: / | CP173: / | CQ173: / | CS173: / | CT173: / | CV173: / | CW173: / | CY173: / | CZ173: / | DB173: / | DC173: / | DE173: / | DF173: / | DH173: / | DI173: / | DK173: / | DL173: / | DN173: / | DO173: / | DQ173: / | DR173: / | DT173: / | DU173: / | DW173: / | DX173: / | DZ173: / | EA173: / | EC173: / | ED173: /
A174: 9.3.1 | C174: A | D174: horizontalni 3/4" | E174: Horizontal 3/4" | F174: kom/pcs | G174: =CENA!G165 -> 0 | H174: =J174+M174+P174+S174+AQ174+CJ174+DK174+FD174+V174+Y174+AB174+AE174+AH174+AK174+AN174+AT174+AW174+AZ174+BC174+BF174+BI174+BL174+BO174+BR174+BU174+BX174+CA174+CD174+CG174+CM174+CP174+CS174+CV174+CY174+DB174+DE174+DH174+DN174+DQ174+DT174+DW174+DZ174+EC174+EF174+EI174+EL174+EO174+ER174+EU174+EX174+FA174+FG174+FJ174+FM174+FP174+FS174+FV174+FY174+GB174+GE174+GH174+GK174+GN174+GQ174+GT174+GW174+GZ174+HC174+HF174+HI174+HL174+HO174+HR174+HU174+HX174+IA174+ID174+IG174+IJ174+IM174+IP174+IS174+IV174+IY174+JB174+JE174+JH174+JK174+JN174+JQ174+JT174+JW174+JZ174+KC174+KF174+KI174+KL174+KO174+KR174+KU174+KX174+LA174+LD174+LG174+LJ174+LM174+LP174+LS174+LV174+LY174+MB174+ME174+MH174+MK174+MN174+MQ174+MT174+MW174+MZ174+NC174+NF174+NI174+NL174+NO174+NR174+NU174+NX174+OA174+OD174+OG174+OJ174+OM174+OP174+OS174+OV174+OY174+PB174+PE174+PH174+PK174+PN174+PQ174+PT174+PW174+PZ174+QC174+QF174+QI174+QL174+QO174+QR174+QU174+QX174+RA174+RD174+RG174+RJ174+RM174+RP174+RS174+RV174+RY174+SB174+SE174+SH174+SK174+SN174+SQ174+ST174+SW174+SZ174+TC174+TF174+TI174+TL174+TO174+TR174+TU174+TX174+UA174+UD174+UG174+UJ174+UM174+UP174+US174 -> 0 | I174: =G174*H174 -> 0 | J174: 0 | K174: =$G174*J174 -> 0 | M174: 0 | N174: =$G174*M174 -> 0 | P174: 0 | Q174: =$G174*P174 -> 0 | S174: 0 | T174: =$G174*S174 -> 0 | V174: 0 | W174: =$G174*V174 -> 0 | Y174: 0 | Z174: =$G174*Y174 -> 0 | AB174: 0 | AC174: =$G174*AB174 -> 0 | AE174: 0 | AF174: =$G174*AE174 -> 0 | AH174: 0 | AI174: =$G174*AH174 -> 0 | AK174: 0 | AL174: =$G174*AK174 -> 0 | AN174: 0 | AO174: =$G174*AN174 -> 0 | AQ174: 0 | AR174: =$G174*AQ174 -> 0 | AT174: 0 | AU174: =$G174*AT174 -> 0 | AW174: 0 | AX174: =$G174*AW174 -> 0 | AZ174: 0 | BA174: =$G174*AZ174 -> 0 | BC174: 0 | BD174: =$G174*BC174 -> 0 | BF174: 0 | BG174: =$G174*BF174 -> 0 | BI174: 0 | BJ174: =$G174*BI174 -> 0 | BL174: 0 | BM174: =$G174*BL174 -> 0 | BO174: 0 | BP174: =$G174*BO174 -> 0 | BR174: 0 | BS174: =$G174*BR174 -> 0 | BU174: 0 | BV174: =$G174*BU174 -> 0 | BX174: 0 | BY174: =$G174*BX174 -> 0 | CB174: =$G174*CA174 -> 0 | CD174: 0 | CE174: =$G174*CD174 -> 0 | CG174: 0 | CH174: =$G174*CG174 -> 0 | CJ174: 0 | CK174: =$G174*CJ174 -> 0 | CN174: =$G174*CM174 -> 0 | CP174: 0 | CQ174: =$G174*CP174 -> 0 | CS174: 0 | CT174: =$G174*CS174 -> 0 | CV174: 0 | CW174: =$G174*CV174 -> 0 | CY174: 0 | CZ174: =$G174*CY174 -> 0 | DB174: 0 | DC174: =$G174*DB174 -> 0 | DE174: 0 | DF174: =$G174*DE174 -> 0 | DH174: 0 | DI174: =$G174*DH174 -> 0 | DK174: 0 | DL174: =$G174*DK174 -> 0 | DN174: 0 | DO174: =$G174*DN174 -> 0 | DQ174: 0 | DR174: =$G174*DQ174 -> 0 | DT174: 0 | DU174: =$G174*DT174 -> 0 | DX174: =$G174*DW174 -> 0 | DZ174: 0 | EA174: =$G174*DZ174 -> 0 | EC174: 0 | ED174: =$G174*EC174 -> 0
A175: 9.3.2 | C175: B | D175: horizontalni 1" | E175: Horizontal 1" | F175: kom/pcs | G175: =CENA!G166 -> 0 | H175: 0 | I175: 0 | J175: 0 | K175: =$G175*J175 -> 0 | M175: 0 | N175: =$G175*M175 -> 0 | P175: 0 | Q175: 0 | S175: 0 | T175: 0 | V175: 0 | W175: =$G175*V175 -> 0 | Y175: 0 | Z175: =$G175*Y175 -> 0 | AB175: 0 | AC175: =$G175*AB175 -> 0 | AE175: 0 | AF175: =$G175*AE175 -> 0 | AH175: 0 | AI175: =$G175*AH175 -> 0 | AK175: 0 | AL175: =$G175*AK175 -> 0 | AN175: 0 | AO175: =$G175*AN175 -> 0 | AQ175: 0 | AR175: =$G175*AQ175 -> 0 | AT175: 0 | AU175: =$G175*AT175 -> 0 | AW175: 0 | AX175: =$G175*AW175 -> 0 | AZ175: 0 | BA175: =$G175*AZ175 -> 0 | BC175: 0 | BD175: =$G175*BC175 -> 0 | BF175: 0 | BG175: =$G175*BF175 -> 0 | BI175: 0 | BJ175: =$G175*BI175 -> 0 | BL175: 0 | BM175: =$G175*BL175 -> 0 | BO175: 0 | BP175: =$G175*BO175 -> 0 | BR175: 0 | BS175: =$G175*BR175 -> 0 | BU175: 0 | BV175: =$G175*BU175 -> 0 | BX175: 0 | BY175: 0 | CB175: =$G175*CA175 -> 0 | CD175: 0 | CE175: =$G175*CD175 -> 0 | CG175: 0 | CH175: =$G175*CG175 -> 0 | CJ175: 0 | CK175: =$G175*CJ175 -> 0 | CN175: =$G175*CM175 -> 0 | CP175: 0 | CQ175: =$G175*CP175 -> 0 | CS175: 0 | CT175: =$G175*CS175 -> 0 | CV175: 0 | CW175: =$G175*CV175 -> 0 | CY175: 0 | CZ175: =$G175*CY175 -> 0 | DB175: 0 | DC175: =$G175*DB175 -> 0 | DE175: 0 | DF175: =$G175*DE175 -> 0 | DH175: 0 | DI175: =$G175*DH175 -> 0 | DK175: 0 | DL175: =$G175*DK175 -> 0 | DN175: 0 | DO175: =$G175*DN175 -> 0 | DQ175: 0 | DR175: 0 | DT175: 0 | DU175: 0 | DX175: =$G175*DW175 -> 0 | DZ175: 0 | EA175: =$G175*DZ175 -> 0 | EC175: 0 | ED175: =$G175*EC175 -> 0
A176: 9.3.3 | C176: C | D176: horizontalni 5/4" | E176: Horizontal 5/4" | F176: kom/pcs | G176: =CENA!G167 -> 0 | H176: 0 | I176: 0 | J176: 0 | K176: =$G176*J176 -> 0 | M176: 0 | N176: =$G176*M176 -> 0 | P176: 0 | Q176: 0 | S176: 0 | T176: 0 | V176: 0 | W176: =$G176*V176 -> 0 | Y176: 0 | Z176: =$G176*Y176 -> 0 | AB176: 0 | AC176: =$G176*AB176 -> 0 | AE176: 0 | AF176: =$G176*AE176 -> 0 | AH176: 0 | AI176: =$G176*AH176 -> 0 | AK176: 0 | AL176: =$G176*AK176 -> 0 | AN176: 0 | AO176: =$G176*AN176 -> 0 | AQ176: 0 | AR176: =$G176*AQ176 -> 0 | AT176: 0 | AU176: =$G176*AT176 -> 0 | AW176: 0 | AX176: =$G176*AW176 -> 0 | AZ176: 0 | BA176: =$G176*AZ176 -> 0 | BC176: 0 | BD176: =$G176*BC176 -> 0 | BF176: 0 | BG176: =$G176*BF176 -> 0 | BI176: 0 | BJ176: =$G176*BI176 -> 0 | BL176: 0 | BM176: =$G176*BL176 -> 0 | BO176: 0 | BP176: =$G176*BO176 -> 0 | BR176: 0 | BS176: =$G176*BR176 -> 0 | BU176: 0 | BV176: =$G176*BU176 -> 0 | BX176: 0 | BY176: 0 | CB176: =$G176*CA176 -> 0 | CD176: 0 | CE176: =$G176*CD176 -> 0 | CG176: 0 | CH176: =$G176*CG176 -> 0 | CJ176: 0 | CK176: =$G176*CJ176 -> 0 | CN176: =$G176*CM176 -> 0 | CP176: 0 | CQ176: =$G176*CP176 -> 0 | CS176: 0 | CT176: =$G176*CS176 -> 0 | CV176: 0 | CW176: =$G176*CV176 -> 0 | CY176: 0 | CZ176: =$G176*CY176 -> 0 | DB176: 0 | DC176: =$G176*DB176 -> 0 | DE176: 0 | DF176: =$G176*DE176 -> 0 | DH176: 0 | DI176: =$G176*DH176 -> 0 | DK176: 0 | DL176: =$G176*DK176 -> 0 | DN176: 0 | DO176: =$G176*DN176 -> 0 | DQ176: 0 | DR176: 0 | DT176: 0 | DU176: 0 | DX176: =$G176*DW176 -> 0 | DZ176: 0 | EA176: =$G176*DZ176 -> 0 | EC176: 0 | ED176: =$G176*EC176 -> 0
A177: 9.4 | B177: V | C177: 4 | D177: Ravni propusni ventil sa ogrankom za pražnjenje | E177: Skip straight valve with a branch drain | F177: / | G177: / | H177: / | I177: / | J177: / | K177: / | M177: / | N177: / | P177: / | Q177: / | S177: / | T177: / | V177: / | W177: / | Y177: / | Z177: / | AB177: / | AC177: / | AE177: / | AF177: / | AH177: / | AI177: / | AK177: / | AL177: / | AN177: / | AO177: / | AQ177: / | AR177: / | AT177: / | AU177: / | AW177: / | AX177: / | AZ177: / | BA177: / | BC177: / | BD177: / | BF177: / | BG177: / | BI177: / | BJ177: / | BL177: / | BM177: / | BO177: / | BP177: / | BR177: / | BS177: / | BU177: / | BV177: / | BX177: / | BY177: / | CA177: / | CB177: / | CD177: / | CE177: / | CG177: / | CH177: / | CJ177: / | CK177: / | CM177: / | CN177: / | CP177: / | CQ177: / | CS177: / | CT177: / | CV177: / | CW177: / | CY177: / | CZ177: / | DB177: / | DC177: / | DE177: / | DF177: / | DH177: / | DI177: / | DK177: / | DL177: / | DN177: / | DO177: / | DQ177: / | DR177: / | DT177: / | DU177: / | DW177: / | DX177: / | DZ177: / | EA177: / | EC177: / | ED177: /
